Workbook

Sheet MENU PRINCIPAL
B2: APLICATIVO DE RONDAS DE SEGURIDAD DEL PACIENTE PARA LA GESTIÓN DEL RIESGO EN LA ATENCION DE SALUD
B3: UNIDAD FUNCIONAL DE GESTIÓN DE LA CALIDAD EN SALUD
B20: OODD: | C20: INSTITUTO NACIONAL MATERNO PERINATAL
B22: TITULAR/RESPONSABLE IPRESS: | C22: Dr.EDWIN SOTO CCAYAHUALLPA
B24: IPRESS: | C24: 7135
B26: DATOS DEL ESTABLECIMIENTO SELECCIONADO:
B28: NOMBRE DEL ESTABLECMIENTO DE SALUD | C28: =IFERROR(VLOOKUP(VALUE(xrenipress),renipress[#Data],4,FALSE),"NO ENCONTRADO") -> ESPINAR
B30: MICRORED DE SALUD | C30: =IFERROR(VLOOKUP(VALUE(xrenipress),renipress[#Data],14,FALSE),"NO ENCONTRADO") -> NO PERTENECE A NINGUNA MICRORED
B32: RED DE SALUD | C32: =IFERROR(VLOOKUP(VALUE(xrenipress),renipress[#Data],13,FALSE),"NO ENCONTRADO") -> CANAS-CANCHIS-ESPINAR
B34: DIRESA/GERESA/DIRIS | C34: =IFERROR(VLOOKUP(VALUE(xrenipress),renipress[#Data],12,FALSE),"NO ENCONTRADO") -> CUSCO

Sheet FICHA EVALUACIÓN
D2: UNIDAD FUNCIONAL DE GESTIÓN DE LA CALIDAD EN SALUD
D6: =+'MENU PRINCIPAL'!B2 -> APLICATIVO DE RONDAS DE SEGURIDAD DEL PACIENTE PARA LA GESTIÓN DEL RIESGO EN LA ATENCION DE SALUD
D10: FICHA DE EVALUACIÓN
K11: IR A MENU
D14: ÓRGANO DESCONCENTRADO: | H14: ='MENU PRINCIPAL'!C20 -> INSTITUTO NACIONAL MATERNO PERINATAL | I14: TRIMESTRE: | J14: I TRIMESTRE | K14: AÑO: | L14: 2023
D15: IPRESS: | H15: HOSPITAL DE ESPINAR | I15: FECHA APLICACION: | K15: 2023-03-29
D16: UPSS: | H16: EMERGENCIA | I16: RESP.EPIDEMIOLOGIA: | J16: LIC. ISABEL ROMERO JACHA
D17: TITULAR/RESPONSABLE IPRESS: | H17: DR. EDWIN SOTO CCAYAHUALLPA | I17: RESP. DE LA UPSS: | J17: DR. EDINSON VALDERRAMA MAMANI
D18: RESP. DE ADMINISTRACION: | H18: LIC. JUVENAL TAIRO ZAMBRANO | I18: RESP.OFIC./UNIDAD CALIDAD: | J18: LIC. JUDITH K. CAHUATA TURO
D19: RESP. DPTO/SERVICIO ENFERMERÍA: | H19: LIC. MARIO CHOQUE ROMERO. | I19: OTROS RESPONSABLES: | J19: LIC. IRMA LUPACA JIHUAÑA
D23: BUENAS PRÁCTICAS | F23: % | H23: VERIFICADOR | J23: CUMPLIMIENTO | K23: OBSERVACIONES
A24: ¿
A25: ´ˆ | B25: 1 | C25: =COUNTIF($J$24:J25,"NO") -> 0 | D25: =IFERROR(VLOOKUP(B25,POR_UPSS,20,FALSE)," ") -> HISTORIA CLINICA | F25: =IFERROR(VLOOKUP(B25,POR_UPSS,23,FALSE)," ") -> 0.5217391304 | G25: =IFERROR(VLOOKUP(B25,POR_UPSS,22,FALSE)," ") -> A | H25: =IFERROR(VLOOKUP(B25,POR_UPSS,21,FALSE)," ") -> Registro de la fecha y hora de atención en la Historia Clínica y/o Registros Médicos. | I25: =IFERROR(VLOOKUP(F25,POR_UPSS,19,FALSE)," ") ->  | J25: SI
B26: 2 | C26: =COUNTIF($J$24:J26,"NO") -> 1 | D26: HISTORIA CLINICA | F26: 0.5217391304 | G26: B | H26: =IFERROR(VLOOKUP(B26,POR_UPSS,21,FALSE)," ") -> Registro completo de la filiación del paciente: Datos del EESS, Nº de HCl, Nombres y Apellidos del Paciente, Lugar y fecha de nacimiento, Edad, Sexo, Domicilio, Procedencia, Teléfono, DNI, Seguro, Estado Civi, Instrucción, Ocupación, Religión, Acompañante o Responsable de ser el caso. | J26: NO | K26: se sugiere que en cada atencion deben de considerar estos datos importantes para la historia clinica
B27: 3 | C27: =COUNTIF($J$24:J27,"NO") -> 1 | D27: HISTORIA CLINICA | F27: 0.5217391304 | G27: C | H27: Registro de la enfermedad actual. | J27: SI
B28: 4 | C28: =COUNTIF($J$24:J28,"NO") -> 2 | D28: HISTORIA CLINICA | F28: 0.5217391304 | G28: D | H28: Registro de los antecedentes del paciente. | J28: NO | K28: Es importante que se considere los antecedentes ya que de acuerdo a eso se verificara si la paciente puede tener alguna enfermedad de sus familiares
B29: 5 | C29: =COUNTIF($J$24:J29,"NO") -> 3 | D29: HISTORIA CLINICA | F29: 0.5217391304 | G29: E | H29: Registro de la Funciones Biológicas: apetito, sed, sueño, orina, deposiciones, estado de animo. | J29: NO | K29: deficiente llenado de historia clinica.
B30: 6 | C30: =COUNTIF($J$24:J30,"NO") -> 3 | D30: HISTORIA CLINICA | F30: 0.5217391304 | G30: F | H30: Registro completo del examen físico clínico general y regional de corresponder. | J30: SI
B31: 7 | C31: =COUNTIF($J$24:J31,"NO") -> 3 | D31: HISTORIA CLINICA | F31: 0.5217391304 | G31: G | H31: Registro de los diagnósticos con codificación CIE-10 ó DSM IV de corresponder (presuntivos o definitivos) | J31: SI
B32: 8 | C32: =COUNTIF($J$24:J32,"NO") -> 4 | D32: HISTORIA CLINICA | F32: 0.5217391304 | G32: H | H32: Registro de evolución del paciente: Fecha y hora de atención, Apreciación Subjetiva, Apreciación Objetiva, Tratamiento, Dieta, Interpretación de exámenes y comentario, terapeútica y Plan de trabajo, firma, sello y colegiatura del médico responsable. | J32: NO | K32: es importante considerar las horas de atencion y evolucion del paciente
B33: 9 | C33: =COUNTIF($J$24:J33,"NO") -> 4 | D33: HISTORIA CLINICA | F33: 0.5217391304 | G33: I | H33: Registro actualizado del Plan de Trabajo: Exámenes de Ayuda Diagnóstica, Procedimientos Médico-Quirúrgicos e Interconsultas. | J33: SI
B34: 10 | C34: =COUNTIF($J$24:J34,"NO") -> 4 | D34: HISTORIA CLINICA | F34: 0.5217391304 | G34: J | H34: Registro actualizado del tratamiento del paciente (medicamento, dosis, vía, periodicidad). | J34: SI
B35: 11 | C35: =COUNTIF($J$24:J35,"NO") -> 5 | D35: HISTORIA CLINICA | F35: 0.5217391304 | G35: K | H35: Registro y gráfico actualizado de la Funciones Vitales. | J35: NO | K35: deficiente implementacion la hoja grafica
B36: 12 | C36: =COUNTIF($J$24:J36,"NO") -> 6 | D36: HISTORIA CLINICA | F36: 0.5217391304 | G36: L | H36: Registro de la Hoja de Balance hidro - electrolítico actualizado. | J36: NO | K36: no cuenta con la hoja de balance hidrico
B37: 13 | C37: =COUNTIF($J$24:J37,"NO") -> 7 | D37: HISTORIA CLINICA | F37: 0.5217391304 | G37: M | H37: Registro e inclusión en la Historia Clínica de los resultados de examenes auxiliares y procedimientos del paciente. | J37: NO | K37: Falta implementar
B38: 14 | C38: =COUNTIF($J$24:J38,"NO") -> 7 | D38: HISTORIA CLINICA | F38: 0.5217391304 | G38: N | H38: Correspondencia entre el diagnóstico presuntivo y/o definitivo con el plan de trabajo en la última atención o evaluación realizada. | J38: SI
B39: 15 | C39: =COUNTIF($J$24:J39,"NO") -> 7 | D39: HISTORIA CLINICA | F39: 0.5217391304 | G39: O | H39: Correspondencia entre el plan de trabajo y los examenes de apoyo al diagnóstico solicitados en la última atención o evaluación realizada. | J39: SI
B40: 16 | C40: =COUNTIF($J$24:J40,"NO") -> 7 | D40: HISTORIA CLINICA | F40: 0.5217391304 | G40: P | H40: Registro del nombre del paciente en todas las hojas de la HCl. | J40: SI
B41: 17 | C41: =COUNTIF($J$24:J41,"NO") -> 8 | D41: HISTORIA CLINICA | F41: 0.5217391304 | G41: Q | H41: En caso de haberse producido un evento adverso, este ha sido registrado en la HCl o en algún medio de registro evidenciable. | J41: NO | K41: Falta implementar
B42: 18 | C42: =COUNTIF($J$24:J42,"NO") -> 9 | D42: HISTORIA CLINICA | F42: 0.5217391304 | G42: R | H42: Registro completo del Consentimiento Informado de acuerdo a la normatividad vigente. | J42: NO | K42: Falta implementar
B43: 19 | C43: =COUNTIF($J$24:J43,"NO") -> 9 | D43: HISTORIA CLINICA | F43: 0.5217391304 | G43: S | H43: Registro de la fecha y hora del alta del paciente | J43: SI
B44: 20 | C44: =COUNTIF($J$24:J44,"NO") -> 9 | D44: HISTORIA CLINICA | F44: 0.5217391304 | G44: T | H44: Registro de las indicaciones de alta del paciente además de la epicrisis, incluyendo diagnóstico definitivo. | J44: NO APLICA | K44: Ya que los pacientes solo estan en observacion y luego pasan a ser hospitalizados
B45: 21 | C45: =COUNTIF($J$24:J45,"NO") -> 10 | D45: HISTORIA CLINICA | F45: 0.5217391304 | G45: U | H45: Registro de los informes de los procedimientos realizados al paciente. | J45: NO | K45: En la historia clinica se debe considerar todos los procedimientos realizados ya que son importantes para una auditoria
B46: 22 | C46: =COUNTIF($J$24:J46,"NO") -> 10 | D46: HISTORIA CLINICA | F46: 0.5217391304 | G46: V | H46: Registro de la Contrarreferencia del paciente | J46: SI
B47: 23 | C47: =COUNTIF($J$24:J47,"NO") -> 11 | D47: HISTORIA CLINICA | F47: 0.5217391304 | G47: W | H47: La letra de la Historia Clínica es legible | J47: NO | K47: Es necesario que la letra sea legible para poder ver as indicaciones y tratamiento del paciente
B48: 24 | C48: =COUNTIF($J$24:J48,"NO") -> 11 | D48: HISTORIA CLINICA | F48: 0.5217391304 | G48: X | H48: Historia clínica ordenada y limpia. | J48: SI
B49: 25 | C49: =COUNTIF($J$24:J49,"NO") -> 11 | D49: SEGURIDAD EN LA UPSS | F49: 0.4166666667 | G49: Y | H49: Las Interconsultas se gestionan oportunamente durante el turno. | J49: SI
B50: 26 | C50: =COUNTIF($J$24:J50,"NO") -> 11 | D50: SEGURIDAD EN LA UPSS | F50: 0.4166666667 | G50: Z | H50: La solicitud de procedimientos de ayuda al diagnóstico y tratamiento se gestionan oportunamente durante el turno. | J50: SI
B51: 27 | C51: =COUNTIF($J$24:J51,"NO") -> 12 | D51: SEGURIDAD EN LA UPSS | F51: 0.4166666667 | G51: AA | H51: La solicitud de medicamentos e insumos se gestionan oportunamente durante el turno. | J51: NO | K51: Esto debido a que los compañeros de farmacia en los cambios de turno no les brindan los medicamentos para la atencion de pacientes
B52: 28 | C52: =COUNTIF($J$24:J52,"NO") -> 12 | D52: SEGURIDAD EN LA UPSS | F52: 0.4166666667 | G52: AB | H52: Cumplimiento de las indicaciones de la dieta del paciente según indicación del médico tratante. | J52: SI
B53: 29 | C53: =COUNTIF($J$24:J53,"NO") -> 12 | D53: SEGURIDAD EN LA UPSS | F53: 0.4166666667 | G53: AC | H53: Cumplimiento y verificación de la asistencia y permanencia del personal programado en el servicio para garantizar la atención oportuna de los pacientes. | J53: SI
B54: 30 | C54: =COUNTIF($J$24:J54,"NO") -> 12 | D54: SEGURIDAD EN LA UPSS | F54: 0.4166666667 | G54: AD | H54: Mecanismo de reemplazo para cubrir la ausencia del personal programado en el servicio a fin de garantizar la atención de los pacientes. | J54: SI
B55: 31 | C55: =COUNTIF($J$24:J55,"NO") -> 12 | D55: SEGURIDAD EN LA UPSS | F55: 0.4166666667 | G55: AE | H55: Personal en formación (internos, residentes, especialidad u otros) demuestran que tienen un personal asistencial que cumple el rol de tutoría y supervisión. | J55: NO APLICA
B56: 32 | C56: =COUNTIF($J$24:J56,"NO") -> 13 | D56: SEGURIDAD EN LA UPSS | F56: 0.4166666667 | G56: AF | H56: Personal conoce del sistema de registro y notificación de incidentes y eventos adversos. | J56: NO | K56: Falta implementar las hojas de registro
B57: 33 | C57: =COUNTIF($J$24:J57,"NO") -> 14 | D57: =IFERROR(VLOOKUP(B57,POR_UPSS,20,FALSE)," ") -> SEGURIDAD EN LA UPSS | F57: =IFERROR(VLOOKUP(B57,POR_UPSS,23,FALSE)," ") -> 0.4166666667 | G57: =IFERROR(VLOOKUP(B57,POR_UPSS,22,FALSE)," ") -> AG | H57: =IFERROR(VLOOKUP(B57,POR_UPSS,21,FALSE)," ") -> Registro físico y/o virtual de los incidentes y eventos adversos en la UPSS. | I57: =IFERROR(VLOOKUP(F57,POR_UPSS,19,FALSE)," ") ->  | J57: NO | K57: Falta implementar
B58: 34 | C58: =COUNTIF($J$24:J58,"NO") -> 15 | D58: SEGURIDAD EN LA UPSS | F58: 0.4166666667 | G58: AH | H58: Análisis y plan de intervención sobre la información de los incidentes y eventos adversos. | J58: NO | K58: Falta implementar
B59: 35 | C59: =COUNTIF($J$24:J59,"NO") -> 16 | D59: SEGURIDAD EN LA UPSS | F59: 0.4166666667 | G59: AI | H59: Registro físico o digital de notificación de accidentes de trabajo del personal asistencial. | J59: NO | K59: Falta implementar
B60: 36 | C60: =COUNTIF($J$24:J60,"NO") -> 16 | D60: SEGURIDAD EN LA UPSS | F60: 0.4166666667 | G60: AJ | H60: Utilización del formato de consentimiento informado para actividades de docencia. | J60: NO APLICA
B61: 37 | C61: =COUNTIF($J$24:J61,"NO") -> 17 | D61: SEGURIDAD EN LA UPSS | F61: 0.4166666667 | G61: AK | H61: Timbre o sistema de llamado se encuentra cerca del paciente y está operativo. | J61: NO | K61: Nose cuenta con timbre porque no se cuenta ya que el hospital no cuenta con local propio
B62: 38 | C62: =COUNTIF($J$24:J62,"NO") -> 18 | D62: SEGURIDAD EN LA UPSS | F62: 0.4166666667 | G62: AL | H62: Barandas de las camas funcionan y están levantadas para proteger al paciente. | J62: NO | K62: Las camas si cuentan con barandas pero no se encuentran levantadas
B63: 39 | C63: =COUNTIF($J$24:J63,"NO") -> 19 | D63: IDENTIFICACIÓN CORRECTA DEL PACIENTE | F63: 0 | G63: BG | H63: Paciente tiene brazalete de identificación y los datos registrados son correctos y completos. | J63: NO | K63: Ninguno de los pacientes cuenta con brazalete de identificacion
B64: 40 | C64: =COUNTIF($J$24:J64,"NO") -> 20 | D64: IDENTIFICACIÓN CORRECTA DEL PACIENTE | F64: 0 | G64: BH | H64: Cartel visible que tenga registrado el nombre completo del paciente. | J64: NO | K64: No cuenta con datos completos
B65: 41 | C65: =COUNTIF($J$24:J65,"NO") -> 21 | D65: IDENTIFICACIÓN CORRECTA DEL PACIENTE | F65: 0 | G65: BI | H65: Datos proporcionados por el paciente, son similares a los registrados en la historia clínica. | J65: NO | K65: No cuenta con datos completos
B66: 42 | C66: =COUNTIF($J$24:J66,"NO") -> 22 | D66: IDENTIFICACIÓN CORRECTA DEL PACIENTE | F66: 0 | G66: BJ | H66: Verificación de la identidad del paciente con el brazalete antes de cualquier procedimiento. | J66: NO | K66: No cuentan con brazaletes
B67: 43 | C67: =COUNTIF($J$24:J67,"NO") -> 23 | D67: IDENTIFICACIÓN CORRECTA DEL PACIENTE | F67: 0 | G67: BK | H67: Identificación de riesgo de caidas del paciente tanto en el brazalete del paciente como en el cartel visible. | J67: NO | K67: No se cuenta con carteles
B68: 44 | C68: =COUNTIF($J$24:J68,"NO") -> 24 | D68: IDENTIFICACIÓN CORRECTA DEL PACIENTE | F68: 0 | G68: BM | H68: Conocimiento del paciente o familiar responsable sobre su enfermedad, su evolución y pronóstico del mismo, el cual debe concordar con la información registrada en la historia clínica. | J68: NO | K68: No se dio informacion a los familiares del paciente
B69: 45 | C69: =COUNTIF($J$24:J69,"NO") -> 25 | D69: IDENTIFICACIÓN CORRECTA DEL PACIENTE | F69: 0 | G69: BN | H69: Paciente informado al que se le han aclado sus dudas y preguntas respecto a algún procedimiento o cirugía, evidenciandose la firma del Consentimiento respectivo. | J69: NO | K69: No se le dio una informacion adecuada al paciente
B70: 46 | C70: =COUNTIF($J$24:J70,"NO") -> 26 | D70: PREVENCIÓN DE LA FUGA DE PACIENTES | F70: 0 | G70: BO | H70: Paciente cuenta con ropa de hospital facilmente identificable. | J70: NO | K70: No se cuenta con pijamas para los pacientes
B71: 47 | C71: =COUNTIF($J$24:J71,"NO") -> 27 | D71: PREVENCIÓN DE LA FUGA DE PACIENTES | F71: 0 | G71: BP | H71: Vigilancia controla las pertenencias de los pacientes y las visitas para evitar el uso inadecuado de objetos potencialmente peligrosos. | J71: NO | K71: Solo se cuenta con el apoyo como vigilantes con los pilotos de ambulancia
B72: 48 | C72: =COUNTIF($J$24:J72,"NO") -> 28 | D72: PREVENCIÓN DE LA FUGA DE PACIENTES | F72: 0 | G72: BQ | H72: Tienen un sistema efectivo de control de las salidas y entradas del servicio de hospitalización. | J72: NO | K72: No siempre ya que aveces los pilotos de ambulancia se van con referencias
B73: 49 | C73: =COUNTIF($J$24:J73,"NO") -> 29 | D73: PREVENCIÓN DE LA FUGA DE PACIENTES | F73: 0 | G73: BR | H73: Entrevistas con el paciente para valorar el riesgo potencial de fuga. Solo en casos de oposición activa y riesgo inminente de fuga se recurrirá a la contención mecánica. | J73: NO | K73: No contamos con vigilantes exclusivos
B74: 50 | C74: =COUNTIF($J$24:J74,"NO") -> 30 | D74: PREVENCIÓN DE LA FUGA DE PACIENTES | F74: 0 | G74: BS | H74: Registro en la hoja de recomendaciones terapéuticas el riesgo de fuga del paciente y la activación de las medidas de supervisión oportunas. | J74: NO | K74: falta implementar
B75: 51 | C75: =COUNTIF($J$24:J75,"NO") -> 31 | D75: PREVENCIÓN DE LA FUGA DE PACIENTES | F75: 0 | G75: BT | H75: Existencia de un procedimiento o protocolo que se active en caso de fuga de paciente. | J75: NO | K75: No se cuenta con ningun protocolo
B76: 52 | C76: =COUNTIF($J$24:J76,"NO") -> 32 | D76: SEGURIDAD EN LA MEDICACIÓN | F76: 0.1 | G76: BU | H76: Paciente conoce que medicamentos recibe y a que hora corresponde que se lo administren. | J76: NO | K76: Paciente no recibio informacion
B77: 53 | C77: =COUNTIF($J$24:J77,"NO") -> 33 | D77: SEGURIDAD EN LA MEDICACIÓN | F77: 0.1 | G77: BV | H77: Paciente conoce los efectos secundarios que pueden producirle los medicamentos que recibe. | J77: NO | K77: Paciente no recibio informacion
B78: 54 | C78: =COUNTIF($J$24:J78,"NO") -> 34 | D78: SEGURIDAD EN LA MEDICACIÓN | F78: 0.1 | G78: BW | H78: Coche de paro cuenta con los insumos necesarios para atender situaciones críticas según normatividad vigente. | J78: NO | K78: Si se cuenta con coche de paro pero faltan mas insumos para que este completo
B79: 55 | C79: =COUNTIF($J$24:J79,"NO") -> 35 | D79: SEGURIDAD EN LA MEDICACIÓN | F79: 0.1 | G79: BX | H79: Soluciones endovenosas se encuentran debidamente rotulados con la fecha y los componentes contenidas en ella. | J79: NO | K79: No se encuentra debidamente rotulados
B80: 56 | C80: =COUNTIF($J$24:J80,"NO") -> 36 | D80: SEGURIDAD EN LA MEDICACIÓN | F80: 0.1 | G80: BY | H80: Almacenamiento ordenado de los medicamentos para evitar su confusión por su similitud de nombres o de presentación. | J80: NO | K80: Falta ordenarlos y roturarlos
B81: 57 | C81: =COUNTIF($J$24:J81,"NO") -> 36 | D81: SEGURIDAD EN LA MEDICACIÓN | F81: 0.1 | G81: BZ | H81: Medicamentos se encuentran adecuadamente rotulados en caso de requerirlos. | J81: SI
B82: 58 | C82: =COUNTIF($J$24:J82,"NO") -> 37 | D82: SEGURIDAD EN LA MEDICACIÓN | F82: 0.1 | G82: CA | H82: Medicamentos se clasifican para su almacenamiento local según el nombre del paciente por dosis unitaria. | J82: NO | K82: No se cuenta con coche para claficar los medicamentos de cada paciente
B83: 59 | C83: =COUNTIF($J$24:J83,"NO") -> 38 | D83: SEGURIDAD EN LA MEDICACIÓN | F83: 0.1 | G83: CB | H83: Medicamentos e insumos médicos cuentan con un mecanismo efectivo de control de vencimiento / caducidad. | J83: NO | K83: No se cuenta, falta implementar
B84: 60 | C84: =COUNTIF($J$24:J84,"NO") -> 39 | D84: SEGURIDAD EN LA MEDICACIÓN | F84: 0.1 | G84: CC | H84: Existencia de un registro de medicamentos controlados. | J84: NO | K84: Falta implementar
B85: 61 | C85: =COUNTIF($J$24:J85,"NO") -> 40 | D85: SEGURIDAD EN LA MEDICACIÓN | F85: 0.1 | G85: CD | H85: Profesional encargado del cuidado de los pacientes verifica los 5 correctos para la administración correcta de medicamentos. | J85: NO | K85: Profesional conoce pero no completo
B86: 62 | C86: =COUNTIF($J$24:J86,"NO") -> 41 | D86: PREVENCIÓN DE CAIDA DE PACIENTES Y CONTENCION MECÁNICA | F86: 0.1818181818 | G86: CE | H86: Valoración del riesgo de caída de todo paciente que se hospitaliza. | J86: NO | K86: Falta implementar
B87: 63 | C87: =COUNTIF($J$24:J87,"NO") -> 42 | D87: PREVENCIÓN DE CAIDA DE PACIENTES Y CONTENCION MECÁNICA | F87: 0.1818181818 | G87: CF | H87: Revaloración diaria de pacientes: ancianos, aquellos sometidos a polifarmacia, los drogodependientes y las personas con déficits neurológicos ‐ cognitivos. | J87: NO | K87: Falta implementar
B88: 64 | C88: =COUNTIF($J$24:J88,"NO") -> 43 | D88: PREVENCIÓN DE CAIDA DE PACIENTES Y CONTENCION MECÁNICA | F88: 0.1818181818 | G88: CG | H88: Información a los pacientes sobre los efectos secundarios de la medicación que pueden afectar la orientación y el sensorio. | J88: NO | K88: Falta brindar orientacion a los pacientes
B89: 65 | C89: =COUNTIF($J$24:J89,"NO") -> 44 | D89: =IFERROR(VLOOKUP(B89,POR_UPSS,20,FALSE)," ") -> PREVENCIÓN DE CAIDA DE PACIENTES Y CONTENCION MECÁNICA | F89: =IFERROR(VLOOKUP(B89,POR_UPSS,23,FALSE)," ") -> 0.1818181818 | G89: =IFERROR(VLOOKUP(B89,POR_UPSS,22,FALSE)," ") -> CH | H89: =IFERROR(VLOOKUP(B89,POR_UPSS,21,FALSE)," ") -> En casos de sedación y deterioro cognitivo severo se utilizarán barras de protección lateral o contención abdominal cuando el paciente se encuentre encamado. | I89: =IFERROR(VLOOKUP(F89,POR_UPSS,19,FALSE)," ") ->  | J89: NO | K89: Falta implementar
B90: 66 | C90: =COUNTIF($J$24:J90,"NO") -> 45 | D90: PREVENCIÓN DE CAIDA DE PACIENTES Y CONTENCION MECÁNICA | F90: 0.1818181818 | G90: CI | H90: Comunicar al paciente temas relacionados al uso de los baños, uso de las duchas, uso de los lavaderos, cambios posturales periodicos, etc. | J90: NO | K90: Falta brindar informacion
B91: 67 | C91: =COUNTIF($J$24:J91,"NO") -> 46 | D91: PREVENCIÓN DE CAIDA DE PACIENTES Y CONTENCION MECÁNICA | F91: 0.1818181818 | G91: CJ | H91: Protocolo que establezca población objetivo, indicaciones, medidas preventivas, profesionales responsables de la indicación y supervisión de los diversos mecanismos de sujeción mecanica. | J91: NO | K91: Falta Implementar los protocolos
B92: 68 | C92: =COUNTIF($J$24:J92,"NO") -> 47 | D92: PREVENCIÓN DE CAIDA DE PACIENTES Y CONTENCION MECÁNICA | F92: 0.1818181818 | G92: CK | H92: Sistemas de registro específicos de todo paciente con sujeción mecánica, el que se debe de reevaluar periódicamente la situación y el tiempo de sujeción. | J92: NO | K92: No se cuenta con los sistemas de registro
B93: 69 | C93: =COUNTIF($J$24:J93,"NO") -> 48 | D93: PREVENCIÓN DE CAIDA DE PACIENTES Y CONTENCION MECÁNICA | F93: 0.1818181818 | G93: CL | H93: Asegurarse que las técnicas de inmovilización puedan ser retiradas fácilmente. | J93: NO | K93: Falta implementar
B94: 70 | C94: =COUNTIF($J$24:J94,"NO") -> 48 | D94: PREVENCIÓN DE CAIDA DE PACIENTES Y CONTENCION MECÁNICA | F94: 0.1818181818 | G94: CM | H94: Si el paciente se encuentra en posición supina, comprobar que puede mover la cabeza libremente y levantarla de la cama. | J94: SI
B95: 71 | C95: =COUNTIF($J$24:J95,"NO") -> 48 | D95: PREVENCIÓN DE CAIDA DE PACIENTES Y CONTENCION MECÁNICA | F95: 0.1818181818 | G95: CN | H95: Si el paciente se encuentra en decúbito prono asegurar que las vías aéreas no están obstruidas en ningún momento y que la expansión pulmonar no se ve limitada. | J95: SI
B96: 72 | C96: =COUNTIF($J$24:J96,"NO") -> 49 | D96: PREVENCIÓN DE CAIDA DE PACIENTES Y CONTENCION MECÁNICA | F96: 0.1818181818 | G96: CO | H96: Evidencia de cambio periódico de la posición de la inmovilización y evaluación de las zonas cutáneas sometidas a presión. | J96: NO | K96: Falta poner en practica al menos para los adultos mayores
B97: 73 | C97: =COUNTIF($J$24:J97,"NO") -> 49 | D97: SEGURIDAD SEXUAL | F97: 0.3333333333 | G97: CP | H97: Evaluación del paciente a su ingreso y durante el mismo de los riesgos de ser víctimas o de cometer agresiones sexuales: desinhibiciones maníacas, trastornos de la personalidad, aislamiento, poca aceptación en su medio. | J97: SI
B98: 74 | C98: =COUNTIF($J$24:J98,"NO") -> 50 | D98: SEGURIDAD SEXUAL | F98: 0.3333333333 | G98: CQ | H98: Información disponible y clara referente a las consecuencias penales de las agresiones sexuales. | J98: NO | K98: Se brinda orientacion pero quienes resuelven el caso son de la fiscaia
B99: 75 | C99: =COUNTIF($J$24:J99,"NO") -> 51 | D99: SEGURIDAD SEXUAL | F99: 0.3333333333 | G99: CR | H99: El protocolo de recepción de un paciente establece la prohibición expresa de mantener relaciones sexuales durante la hospitalización. | J99: NO | K99: No se cuenta con un protocolo
B100: 76 | C100: =COUNTIF($J$24:J100,"NO") -> 52 | D100: SEGURIDAD SEXUAL | F100: 0.3333333333 | G100: CS | H100: Control de la entrada de pacientes a cualquier habitación que no sea la propia. | J100: NO | K100: No se cuenta con un personal exclusivo que controle
B101: 77 | C101: =COUNTIF($J$24:J101,"NO") -> 53 | D101: SEGURIDAD SEXUAL | F101: 0.3333333333 | G101: CT | H101: Al detectar conductas desinhibidas se comunicará al resto del equipo y se discutirán las medidas a tomar, que quedarán registradas en la hoja de recomendaciones terapéuticas. | J101: NO | K101: Falta implementar
B102: 78 | C102: =COUNTIF($J$24:J102,"NO") -> 53 | D102: SEGURIDAD SEXUAL | F102: 0.3333333333 | G102: CU | H102: Ante la sospecha de relaciones sexuales consumadas se aplicarán las medidas médicas y legales que resulten oportunas | J102: SI
B103: 79 | C103: =COUNTIF($J$24:J103,"NO") -> 54 | D103: PREVENCIÓN Y REDUCCIÓN DEL RIESGO DE LAS ÚLCERAS POR PRESIÓN | F103: 0.2857142857 | G103: CV | H103: Evaluación inicial del riesgo de úlceras por presión en todos los pacientes al ingreso a servicios de hospitalización | J103: NO | K103: No evaluan a los pacientes falta que apliquen dicha evaluacion
B104: 80 | C104: =COUNTIF($J$24:J104,"NO") -> 54 | D104: PREVENCIÓN Y REDUCCIÓN DEL RIESGO DE LAS ÚLCERAS POR PRESIÓN | F104: 0.2857142857 | G104: CW | H104: Valoración del estado de la piel para detectar la presencia de úlceras por presión previas. | J104: NO APLICA
B105: 81 | C105: =COUNTIF($J$24:J105,"NO") -> 54 | D105: PREVENCIÓN Y REDUCCIÓN DEL RIESGO DE LAS ÚLCERAS POR PRESIÓN | F105: 0.2857142857 | G105: CX | H105: Reevaluación periódica del riesgo, siempre que cambie la situación clínica basal del paciente. | J105: SI
B106: 82 | C106: =COUNTIF($J$24:J106,"NO") -> 55 | D106: PREVENCIÓN Y REDUCCIÓN DEL RIESGO DE LAS ÚLCERAS POR PRESIÓN | F106: 0.2857142857 | G106: CY | H106: Protocolización de la guía de atención para la prevención y control de úlceras por presión. | J106: NO | K106: No existe un protocolo o guia
B107: 83 | C107: =COUNTIF($J$24:J107,"NO") -> 55 | D107: PREVENCIÓN Y REDUCCIÓN DEL RIESGO DE LAS ÚLCERAS POR PRESIÓN | F107: 0.2857142857 | G107: CZ | H107: Educación al paciente y su familia para la prevención y cuidado de las úlceras por presión. | J107: SI
B108: 84 | C108: =COUNTIF($J$24:J108,"NO") -> 56 | D108: PREVENCIÓN Y REDUCCIÓN DEL RIESGO DE LAS ÚLCERAS POR PRESIÓN | F108: 0.2857142857 | G108: DA | H108: Planificación, ejecución y evaluación del programa educativo dirigido a paciente, su cuidador y la familia. | J108: NO | K108: No se cuenta con un plan
B109: 85 | C109: =COUNTIF($J$24:J109,"NO") -> 57 | D109: PREVENCIÓN Y REDUCCIÓN DEL RIESGO DE LAS ÚLCERAS POR PRESIÓN | F109: 0.2857142857 | G109: DB | H109: Notificación de úlceras por presión (incidencia y prevalencia) en un registro diario instaurado en los servicios de hospitalización. | J109: NO | K109: No se cuenta con registro para notificar
B110: 86 | C110: =COUNTIF($J$24:J110,"NO") -> 58 | D110: PREVENCIÓN Y REDUCCIÓN DEL RIESGO DE LAS ÚLCERAS POR PRESIÓN | F110: 0.2857142857 | G110: DC | H110: Aplicación de guía de curación de úlceras por presión según estadíos. | J110: NO | K110: No se cuenta con guias
B111: 87 | C111: =COUNTIF($J$24:J111,"NO") -> 58 | D111: PREVENCIÓN Y REDUCCIÓN DEL RIESGO DE LAS ÚLCERAS POR PRESIÓN | F111: 0.2857142857 | G111: DD | H111: Protocolizar el seguimiento de la evolución de los pacientes con úlceras por presión, tanto en pacientes hospitalizados como en aquellos atendidos en domicilio | J111: NO APLICA
B112: 88 | C112: =COUNTIF($J$24:J112,"NO") -> 58 | D112: PREVENCIÓN DEL SUICIDO Y LESIONES | F112: 0.7142857143 | G112: DE | H112: Identificación del Riesgo de Suicidio: antecedentes de enfermedad mental y/o abuso de sustancias, enfermedad somática grave crónica, antecedentes de conducta violenta o autolesiva, intentos suicidas previos, conductas suicidas en el entorno cercano. | J112: SI
B113: 89 | C113: =COUNTIF($J$24:J113,"NO") -> 58 | D113: PREVENCIÓN DEL SUICIDO Y LESIONES | F113: 0.7142857143 | G113: DF | H113: Identificación de un paciente en riesgo de suicidio debe poner en marcha estrategias específicas de abordaje (evaluación, monitorización y tratamiento específicos) | J113: SI
B114: 90 | C114: =COUNTIF($J$24:J114,"NO") -> 59 | D114: PREVENCIÓN DEL SUICIDO Y LESIONES | F114: 0.7142857143 | G114: DG | H114: Ubicar al paciente en el Servicio / Unidad más adecuada a sus necesidades y en función del riesgo detectado. | J114: NO | K114: Los pacientes no se encuentran bien ubicados
B115: 91 | C115: =COUNTIF($J$24:J115,"NO") -> 59 | D115: PREVENCIÓN DEL SUICIDO Y LESIONES | F115: 0.7142857143 | G115: DH | H115: Los pacientes y los familiares deben ser informados de la prohibición de introducir en el servicio elementos que puedan suponer un riesgo de auto o heteroagresividad. | J115: SI
B116: 92 | C116: =COUNTIF($J$24:J116,"NO") -> 59 | D116: PREVENCIÓN DEL SUICIDO Y LESIONES | F116: 0.7142857143 | G116: DI | H116: El botiquín / almacén de medicamentos del servicio permanece en todo momento cerrado bajo llave. La llave la custodiará el personal de enfermería. | J116: SI
B117: 93 | C117: =COUNTIF($J$24:J117,"NO") -> 59 | D117: PREVENCIÓN DEL SUICIDO Y LESIONES | F117: 0.7142857143 | G117: DJ | H117: El coche de limpieza transportará los productos peligrosos de la forma más inaccesible posible, sin dejarlo nunca sin supervisión o al alcance de los pacientes | J117: SI
B118: 94 | C118: =COUNTIF($J$24:J118,"NO") -> 59 | D118: PREVENCIÓN DEL SUICIDO Y LESIONES | F118: 0.7142857143 | G118: DK | H118: La entrega como la retirada de las comidas, el personal responsable procederán al recuento de las piezas de vajilla y cubiertos. Si se detecta la desaparición de alguna de ellas, se procederá al registro. | J118: NO APLICA
B119: 95 | C119: =COUNTIF($J$24:J119,"NO") -> 60 | D119: PREVENCIÓN DEL SUICIDO Y LESIONES | F119: 0.7142857143 | G119: DL | H119: El protocolo de prevención de conductas suicidas debe incluir correcta ubicación del paciente, la necesidad o no de sujeción mecánica, la supervisión así como la constancia en el registro de cualquier incidencia, el control de salidas y de visitas. | J119: NO | K119: No se cuenta con lo protocolos
B120: 96 | C120: =COUNTIF($J$24:J120,"NO") -> 61 | D120: COMUNICACIÓN EFECTIVA | F120: 0.9 | G120: DM | H120: La UPSS proporciona información sobre sus servicios, horarios de atención a pacientes y/o familiares y el proceso para obtener atención. | J120: NO | K120: No brinda la informacion completa
B121: 97 | C121: =COUNTIF($J$24:J121,"NO") -> 61 | D121: =IFERROR(VLOOKUP(B121,POR_UPSS,20,FALSE)," ") -> COMUNICACIÓN EFECTIVA | F121: =IFERROR(VLOOKUP(B121,POR_UPSS,23,FALSE)," ") -> 0.9 | G121: =IFERROR(VLOOKUP(B121,POR_UPSS,22,FALSE)," ") -> DN | H121: =IFERROR(VLOOKUP(B121,POR_UPSS,21,FALSE)," ") -> Los pacientes y las familias reciben información sobre cómo acceder a los servicios de la UPSS. | I121: =IFERROR(VLOOKUP(F121,POR_UPSS,19,FALSE)," ") ->  | J121: SI
B122: 98 | C122: =COUNTIF($J$24:J122,"NO") -> 61 | D122: COMUNICACIÓN EFECTIVA | F122: 0.9 | G122: DO | H122: La comunicación y la educación del paciente y de la familia se dan en un idioma comprensible y con palabras de comprensión común. | J122: SI
B123: 99 | C123: =COUNTIF($J$24:J123,"NO") -> 61 | D123: COMUNICACIÓN EFECTIVA | F123: 0.9 | G123: DP | H123: Se evidencian comunicaciones reciprocas entre el Jefe de la UPSS y la Dirección del Establecimiento tanto en temas clínicos como administrativos. | J123: SI
B124: 100 | C124: =COUNTIF($J$24:J124,"NO") -> 61 | D124: COMUNICACIÓN EFECTIVA | F124: 0.9 | G124: DQ | H124: Se evidencia comunicación (verbal, escrita o electrónica) e intercambio de información entre los profesionales médicos al momento de cambio de turno (cambio de guardia), relacionado al estado de salud de los pacientes, resumen de la atención prestada durante el turno (guardia) y la evolución de los pacientes. | J124: SI
B125: 101 | C125: =COUNTIF($J$24:J125,"NO") -> 61 | D125: COMUNICACIÓN EFECTIVA | F125: 0.9 | G125: DR | H125: Se evidencia comunicación (verbal, escrita o electrónica) e intercambio de información entre los profesionales encargados del cuidado del paciente al momento de cambio de turno (cambio de guardia), relacionado al estado de salud de los pacientes, resumen de la atención prestada durante el turno (guardia) y la evolución de los pacientes. | J125: SI
B126: 102 | C126: =COUNTIF($J$24:J126,"NO") -> 61 | D126: COMUNICACIÓN EFECTIVA | F126: 0.9 | G126: DS | H126: Las historias clínicas están a disposición de los profesionales de la salud que las necesitan para atender al paciente. | J126: SI
B127: 103 | C127: =COUNTIF($J$24:J127,"NO") -> 61 | D127: COMUNICACIÓN EFECTIVA | F127: 0.9 | G127: DT | H127: Las historias clínicas están actualizadas para asegurar la comunicación de la información más reciente. | J127: SI
B128: 104 | C128: =COUNTIF($J$24:J128,"NO") -> 61 | D128: COMUNICACIÓN EFECTIVA | F128: 0.9 | G128: DU | H128: La historia clínica del paciente o un resumen de información de su atención se transfiere junto al paciente a otro servicio o unidad dentro del establecimiento. | J128: SI
B129: 105 | C129: =COUNTIF($J$24:J129,"NO") -> 61 | D129: COMUNICACIÓN EFECTIVA | F129: 0.9 | G129: DV | H129: El resumen de la información del traslado de un paciente incluye: el motivo de admisión, los hallazgos relevantes, los diagnósticos, todos los procedimientos realizados, todos los medicamentos y demás tratamientos administrados, el estado del paciente al momento de la transferencia. | J129: SI
B130: 106 | C130: =COUNTIF($J$24:J130,"NO") -> 62 | D130: HIGIENE DE MANOS | F130: 0 | G130: DW | H130: Disponibilidad de dispensadores con preparados de base alcohólica para manos. | J130: NO | K130: Falta implementar en los diferentes areas del servico de emergencia
B131: 107 | C131: =COUNTIF($J$24:J131,"NO") -> 63 | D131: HIGIENE DE MANOS | F131: 0 | G131: DX | H131: Disponibilidad de lavamanos con suministro de agua y jabón. | J131: NO | K131: Falta implementar en los diferentes areas del servicio de emergencia
B132: 108 | C132: =COUNTIF($J$24:J132,"NO") -> 64 | D132: HIGIENE DE MANOS | F132: 0 | G132: DY | H132: Disponibilidad de papel toalla en todos los lavamanos. | J132: NO | K132: Falta implementar
B133: 109 | C133: =COUNTIF($J$24:J133,"NO") -> 65 | D133: HIGIENE DE MANOS | F133: 0 | G133: DZ | H133: Cumplimiento del ratio lavamanos/ paciente-cama de al menos 1:10 | J133: NO | K133: Por la demanda de pacientes no se cumple
B134: 110 | C134: =COUNTIF($J$24:J134,"NO") -> 66 | D134: HIGIENE DE MANOS | F134: 0 | G134: EA | H134: Cumplimiento de los 08 pasos de la desinfección de manos (pasos y tiempo). | J134: NO | K134: Nose cumple con los pasos y tiempo
B135: 111 | C135: =COUNTIF($J$24:J135,"NO") -> 67 | D135: HIGIENE DE MANOS | F135: 0 | G135: EB | H135: Cumplimiento de los 11 pasos del lavado de manos (pasos y tiempo). | J135: NO | K135: No se cumple con los pasos y tiempo
B136: 112 | C136: =COUNTIF($J$24:J136,"NO") -> 68 | D136: HIGIENE DE MANOS | F136: 0 | G136: EC | H136: Porcentaje de cumplimiento > 80%, del requisito de realizar la higiene de las manos durante su actividad asistencial de acuerdo con los cinco momentos de la higiene de manos. | J136: NO | K136: No se observa el cumplimiento
B137: 113 | C137: =COUNTIF($J$24:J137,"NO") -> 69 | D137: HIGIENE DE MANOS | F137: 0 | G137: ED | H137: Mensajes y dibujos que promueven la adherencia a la higiene de manos colocados en sitios estratégicos. | J137: NO | K137: No se cuenta en todos los sitios estrategicos
B138: 114 | C138: =COUNTIF($J$24:J138,"NO") -> 70 | D138: BIOSEGURIDAD | F138: 0.125 | G138: EE | H138: Disposición de residuos sólidos de acuerdo a las normas. | J138: NO | K138: No se estan de acuerdao a las normas
B139: 115 | C139: =COUNTIF($J$24:J139,"NO") -> 71 | D139: BIOSEGURIDAD | F139: 0.125 | G139: EF | H139: Eliminación de material punzo cortante y agujas de acuerdo a las normas. | J139: NO | K139: No se cumple de acuerdo a las normas
B140: 116 | C140: =COUNTIF($J$24:J140,"NO") -> 71 | D140: BIOSEGURIDAD | F140: 0.125 | G140: EG | H140: Cuidado y manejo de los catéteres se realiza de acuerdo a normas. | J140: SI
B141: 117 | C141: =COUNTIF($J$24:J141,"NO") -> 72 | D141: BIOSEGURIDAD | F141: 0.125 | G141: EH | H141: Cumplimiento de las medidas de aislamiento. | J141: NO | K141: Falta implementar
B142: 118 | C142: =COUNTIF($J$24:J142,"NO") -> 73 | D142: BIOSEGURIDAD | F142: 0.125 | G142: EI | H142: El servicio ha implementado el uso de 'Care Bundle" o Paquete de Medidas para la prevención de las IAAS basadas en evidencia médica. | J142: NO | K142: falta implementar
B143: 119 | C143: =COUNTIF($J$24:J143,"NO") -> 74 | D143: BIOSEGURIDAD | F143: 0.125 | G143: EJ | H143: Evidencia de desarrollo de actividades de vigilancia epidemiológica activa, selectiva y localizada de IAAS en la UPSS. | J143: NO | K143: Si se vigila pero falta implementar
B144: 120 | C144: =COUNTIF($J$24:J144,"NO") -> 75 | D144: BIOSEGURIDAD | F144: 0.125 | G144: EK | H144: Se observa si se encuentran señalizados las zonas rígidas y semirígidas de la Unidad Productora de Servicios de Salud. | J144: NO | K144: No se cuenta con señalizaciones
B145: 121 | C145: =COUNTIF($J$24:J145,"NO") -> 76 | D145: BIOSEGURIDAD | F145: 0.125 | G145: EL | H145: Se observa si se respetan las zonas rígidas y semirígidas de la Unidad Productora de Servicios de Salud. | J145: NO | K145: Falta implementar
B146: 122 | C146: =COUNTIF($J$24:J146,"NO") -> 77 | D146: FUNCIONAMIENTO Y MANEJO DE EQUIPOS | F146: 0 | G146: EM | H146: Equipos biomédicos accesibles según le corresponda a la UPSS y de acuerdo al nivel de complejidad | J146: NO | K146: Falta Implementar mas equipos
B147: 123 | C147: =COUNTIF($J$24:J147,"NO") -> 78 | D147: FUNCIONAMIENTO Y MANEJO DE EQUIPOS | F147: 0 | G147: EN | H147: Equipos biomédicos operativos según le corresponda a la UPSS y de acuerdo al nivel de complejidad | J147: NO | K147: Hay varios equipos inoperativos
B148: 124 | C148: =COUNTIF($J$24:J148,"NO") -> 79 | D148: FUNCIONAMIENTO Y MANEJO DE EQUIPOS | F148: 0 | G148: EO | H148: Verificación del conocimiento del personal sobre el funcionamiento de los equipos biomédicos, según responsabilidad. | J148: NO | K148: Falta conocimiento
B149: 125 | C149: =COUNTIF($J$24:J149,"NO") -> 80 | D149: FUNCIONAMIENTO Y MANEJO DE EQUIPOS | F149: 0 | G149: EP | H149: Verificación de que la UPSS cuenta con un Plan Anual de Mantenimiento Preventivo de todos sus equipo biomédicos (inclusive los nuevos). | J149: NO | K149: No se cuenta cuenta con plan
B150: 126 | C150: =COUNTIF($J$24:J150,"NO") -> 81 | D150: FUNCIONAMIENTO Y MANEJO DE EQUIPOS | F150: 0 | G150: EQ | H150: Verificación de que la UPSS cumple con ejecutar su Plan Anual de Mantenimiento Preventivo de todos sus equipo biomédicos (inclusive los nuevos), mediante la visualización de las respectivas tarjetas. | J150: NO | K150: No se cuenta con el plan anual de mantenimiento
B151: 127 | C151: =COUNTIF($J$24:J151,"NO") -> 81

Sheet FICHA OCULTA (hidden)
C2: OFICINA DE GESTIÓN DE LA CALIDAD Y DERECHOS DE LAS PERSONAS
C6: APLICATIVO GESTIÓN DEL RIESGO PARA LA SEGURIDAD DEL PACIENTE
C10: FICHA DE EVALUACIÓN
J11: IR A MENU
C14: ÓRGANO DESCONCENTRADO: | G14: ='MENU PRINCIPAL'!C20 -> INSTITUTO NACIONAL MATERNO PERINATAL | H14: TRIMESTRE: | I14: SELECCIONE | J14: AÑO: | K14: SELECCIONE
C15: ESTABLECIMIENTO DE SALUD: | H15: FECHA EJECUCIÓN: | K15: (DD/MM/AAAA)
C16: UPSS: | G16: CENTRO QUIRÚRGICO | H16: ESPECIALIDAD:
C17: DIRECTOR GEN/EJEC | G17: =IF('MENU PRINCIPAL'!C22=0," ",'MENU PRINCIPAL'!C22) -> Dr.EDWIN SOTO CCAYAHUALLPA | H17: JEFE DE LA UPSS:
C18: ADMINISTRADOR: | H18: JEF. OFICINA DE CALIDAD:
C19: JEF. ENFERMERÍA: | H19: OTRAS JEFATURAS:
C23: BUENAS PRÁCTICAS | E23: % | G23: VERIFICADOR | I23: CUMPLIMIENTO | J23: OBSERVACIONES
B25: =COUNTIF($I$24:I25,"NO") -> 0 | C25: REGISTRO EN LA HISTORIA CLINICA (Jefe de la UPSS) | E25: =IFERROR(I51," ") -> 0.5217391304 | F25: A | G25: Registro de la fecha y hora de atención en la Historia Clínica y/o Registros Médicos. | I25: =IFERROR(VLOOKUP(F25,PORC,4,FALSE),"ER") -> SI
B26: =COUNTIF($I$24:I26,"NO") -> 1 | F26: B | G26: Registro completo de la filiación del paciente: Datos del EESS, Nº de HCl, Nombres y Apellidos del Paciente, Lugar y fecha de nacimiento, Edad, Sexo, Domicilio, Procedencia, Teléfono, DNI, Seguro, Estado Civi, Instrucción, Ocupación, Religión, Acompañante o Responsable de ser el caso. | I26: NO
B27: =COUNTIF($I$24:I27,"NO") -> 1 | F27: C | G27: Registro de la enfermedad actual. | I27: SI
B28: =COUNTIF($I$24:I28,"NO") -> 2 | F28: D | G28: Registro de los antecedentes del paciente. | I28: NO
B29: =COUNTIF($I$24:I29,"NO") -> 3 | F29: E | G29: Registro de la Funciones Biológicas: apetito, sed, sueño, orina, deposiciones, estado de animo. | I29: NO
B30: =COUNTIF($I$24:I30,"NO") -> 3 | F30: F | G30: Registro completo del examen físico clínico general y regional de corresponder. | I30: SI
B31: =COUNTIF($I$24:I31,"NO") -> 3 | F31: G | G31: Registro de los diagnósticos con codificación CIE-10 ó DSM IV de corresponder (presuntivos o definitivos) | I31: SI
B32: =COUNTIF($I$24:I32,"NO") -> 4 | F32: H | G32: Registro de evolución del paciente: Fecha y hora de atención, Apreciación Subjetiva, Apreciación Objetiva, Tratamiento, Dieta, Interpretación de exámenes y comentario, terapeútica y Plan de trabajo, firma, sello y colegiatura del médico responsable. | I32: NO
B33: =COUNTIF($I$24:I33,"NO") -> 4 | F33: I | G33: Registro actualizado del Plan de Trabajo: Exámenes de Ayuda Diagnóstica, Procedimientos Médico-Quirúrgicos e Interconsultas. | I33: SI
B34: =COUNTIF($I$24:I34,"NO") -> 4 | F34: J | G34: Registro actualizado del tratamiento del paciente (medicamento, dosis, vía, periodicidad). | I34: SI
B35: =COUNTIF($I$24:I35,"NO") -> 5 | F35: K | G35: Registro y gráfico actualizado de la Funciones Vitales. | I35: NO
B36: =COUNTIF($I$24:I36,"NO") -> 6 | F36: L | G36: Registro de la Hoja de Balance hidro - electrolítico actualizado. | I36: NO
B37: =COUNTIF($I$24:I37,"NO") -> 7 | F37: M | G37: Registro e inclusión en la Historia Clínica de los resultados de examenes auxiliares y procedimientos del paciente. | I37: NO
B38: =COUNTIF($I$24:I38,"NO") -> 7 | F38: N | G38: Correspondencia entre el diagnóstico presuntivo y/o definitivo con el plan de trabajo en la última atención o evaluación realizada. | I38: SI
B39: =COUNTIF($I$24:I39,"NO") -> 7 | F39: O | G39: Correspondencia entre el plan de trabajo y los examenes de apoyo al diagnóstico solicitados en la última atención o evaluación realizada. | I39: SI
B40: =COUNTIF($I$24:I40,"NO") -> 7 | F40: P | G40: Registro del nombre del paciente en todas las hojas de la HCl. | I40: SI
B41: =COUNTIF($I$24:I41,"NO") -> 8 | F41: Q | G41: En caso de haberse producido un evento adverso, este ha sido registrado en la HCl o en algún medio de registro evidenciable. | I41: NO
B42: =COUNTIF($I$24:I42,"NO") -> 9 | F42: R | G42: Registro completo del Consentimiento Informado de acuerdo a la normatividad vigente. | I42: NO
B43: =COUNTIF($I$24:I43,"NO") -> 9 | F43: S | G43: Registro de la fecha y hora del alta del paciente | I43: SI
B44: =COUNTIF($I$24:I44,"NO") -> 9 | F44: T | G44: Registro de las indicaciones de alta del paciente además de la epicrisis, incluyendo diagnóstico definitivo. | I44: NO APLICA
B45: =COUNTIF($I$24:I45,"NO") -> 10 | F45: U | G45: Registro de los informes de los procedimientos realizados al paciente. | I45: NO
B46: =COUNTIF($I$24:I46,"NO") -> 10 | F46: V | G46: Registro de la Contrarreferencia del paciente | I46: SI
B47: =COUNTIF($I$24:I47,"NO") -> 11 | F47: W | G47: La letra de la Historia Clínica es legible | I47: NO
B48: =COUNTIF($I$24:I48,"NO") -> 11 | F48: X | G48: Historia clínica ordenada y limpia. | I48: SI
B49: =COUNTIF($I$24:I49,"NO") -> 11 | G49: TOTAL DE VERIFICADORES VALIDOS | I49: =COUNTIF(I25:I48,"SI")+COUNTIF(I25:I48,"NO") -> 23
B50: =COUNTIF($I$24:I50,"NO") -> 11 | G50: TOTAL DE VERIFICADORES POSITIVOS | I50: =COUNTIF(I25:I48,"SI") -> 12
B51: =COUNTIF($I$24:I51,"NO") -> 11 | G51: PORCENTAJE DE CUMPLIMIENTO | I51: =I50/I49 -> 0.5217391304
B52: =COUNTIF($I$24:I52,"NO") -> 11
B53: =COUNTIF($I$24:I53,"NO") -> 11 | C53: SEGURIDAD DEL PACIENTE EN LA UNIDAD PRODUCTORA DE SERVICIOS DE SALUD (Jefe de la UPSS) | E53: =IFERROR(I89," ") -> 0.4166666667 | F53: Y | G53: Las Interconsultas se gestionan oportunamente durante el turno. | I53: =IFERROR(VLOOKUP(F53,PORC,4,FALSE),"ER") -> SI
B54: =COUNTIF($I$24:I54,"NO") -> 11 | F54: Z | G54: La solicitud de procedimientos de ayuda al diagnóstico y tratamiento se gestionan oportunamente durante el turno. | I54: SI
B55: =COUNTIF($I$24:I55,"NO") -> 12 | F55: AA | G55: La solicitud de medicamentos e insumos se gestionan oportunamente durante el turno. | I55: NO
B56: =COUNTIF($I$24:I56,"NO") -> 12 | F56: AB | G56: Cumplimiento de las indicaciones de la dieta del paciente según indicación del médico tratante. | I56: SI
B57: =COUNTIF($I$24:I57,"NO") -> 12 | F57: AC | G57: Cumplimiento y verificación de la asistencia y permanencia del personal programado en el servicio para garantizar la atención oportuna de los pacientes. | I57: SI
B58: =COUNTIF($I$24:I58,"NO") -> 12 | F58: AD | G58: Mecanismo de reemplazo para cubrir la ausencia del personal programado en el servicio a fin de garantizar la atención de los pacientes. | I58: SI
B59: =COUNTIF($I$24:I59,"NO") -> 12 | F59: AE | G59: Personal en formación (internos, residentes, especialidad u otros) demuestran que tienen un personal asistencial que cumple el rol de tutoría y supervisión. | I59: NO APLICA
B60: =COUNTIF($I$24:I60,"NO") -> 13 | F60: AF | G60: Personal conoce del sistema de registro y notificación de incidentes y eventos adversos. | I60: NO
B61: =COUNTIF($I$24:I61,"NO") -> 14 | F61: AG | G61: Registro físico y/o virtual de los incidentes y eventos adversos en la UPSS. | I61: NO
B62: =COUNTIF($I$24:I62,"NO") -> 15 | F62: AH | G62: Análisis y plan de intervención sobre la información de los incidentes y eventos adversos. | I62: NO
B63: =COUNTIF($I$24:I63,"NO") -> 16 | F63: AI | G63: Registro físico o digital de notificación de accidentes de trabajo del personal asistencial. | I63: NO
B64: =COUNTIF($I$24:I64,"NO") -> 16 | F64: AJ | G64: Utilización del formato de consentimiento informado para actividades de docencia. | I64: NO APLICA
B65: =COUNTIF($I$24:I65,"NO") -> 17 | F65: AK | G65: Timbre o sistema de llamado se encuentra cerca del paciente y está operativo. | I65: NO
B66: =COUNTIF($I$24:I66,"NO") -> 18 | F66: AL | G66: Barandas de las camas funcionan y están levantadas para proteger al paciente. | I66: NO
B67: =COUNTIF($I$24:I67,"NO") -> 18 | F67: AM | G67: En Consultorio Obstetrico / Emergencia Obstétrica se evidencia el uso de gestogramas. | I67: ER
B68: =COUNTIF($I$24:I68,"NO") -> 18 | F68: AN | G68: En Centro Obstetrico se evidencia el uso de partogramas con línea de alerta. | I68: ER
B69: =COUNTIF($I$24:I69,"NO") -> 18 | F69: AO | G69: En Centro Obstetrico se evidencia que cuenta con Doppler fetal portátil operativo. | I69: ER
B70: =COUNTIF($I$24:I70,"NO") -> 18 | F70: AP | G70: En Centro Obstetrico se evidencia que cuenta con Monitor fetal o Cardiotocógrafo operativo. | I70: ER
B71: =COUNTIF($I$24:I71,"NO") -> 18 | F71: AQ | G71: En Centro Obstetrico se evidencia que cuenta con Ecógrafo operativo. | I71: ER
B72: =COUNTIF($I$24:I72,"NO") -> 18 | F72: AR | G72: En Centro Obstetrico se evidencia que la atención del parto se realiza en condiciones de asepsia (mandil y guantes estériles, mascarilla, gorro, lentes protectores). | I72: ER
B73: =COUNTIF($I$24:I73,"NO") -> 18 | F73: AS | G73: En Centro Obstetrico se evidencia que la parturienta tiene resultados de prueba rápida o ELISA para HIV-1 y HIV-2. | I73: ER
B74: =COUNTIF($I$24:I74,"NO") -> 18 | F74: AT | G74: En Centro Quirurgico se evidencia el último informe remitido a la Dirección sobre el proceso de implementación de la Lista de Verificación de Seguridad de la Cirugía a cargo del Equipo Conductor y/o Comité de Seguridad del Paciente | I74: ER
B75: =COUNTIF($I$24:I75,"NO") -> 18 | F75: AU | G75: En Centro Quirurgico se evidencia la última Encuesta Semestral remitida a la Dirección para evaluar el proceso de implementación de la Lista de Verificación de Seguridad de la Cirugía a cargo del Equipo Conductor y/o Comité de Seguridad del Paciente | I75: ER
B76: =COUNTIF($I$24:I76,"NO") -> 18 | F76: AV | G76: En Centro Quirurgico se evidencia que existe un(a) Coordinador de la Lista de Verificación de Seguridad de la Cirugía correspondiente al Turno Quirúrgico. | I76: ER
B77: =COUNTIF($I$24:I77,"NO") -> 18 | F77: AW | G77: En Centro Quirurgico se evidencia que el (la) Coordinador(a) aplica la Lista de Verificación de Seguridad de la Cirugía, en el periodo correspondiente a la ENTRADA. | I77: ER
B78: =COUNTIF($I$24:I78,"NO") -> 18 | F78: AX | G78: En Centro Quirurgico se evidencia que el (la) Coordinador(a) aplica la Lista de Verificación de Seguridad de la Cirugía, en el periodo correspondiente a la PAUSA. | I78: ER
B79: =COUNTIF($I$24:I79,"NO") -> 18 | F79: AY | G79: En Centro Quirurgico se evidencia que el (la) Coordinador(a) aplica la Lista de Verificación de Seguridad de la Cirugía, en el periodo correspondiente a la SALIDA. | I79: ER
B80: =COUNTIF($I$24:I80,"NO") -> 18 | F80: AZ | G80: En Centro Quirurgico se evidencia que cuenta con coche de intubación difícil operativo. | I80: ER
B81: =COUNTIF($I$24:I81,"NO") -> 18 | F81: BA | G81: En Centro Quirurgico se evidencia que cuenta con Unidad / Máquina de Anestesia operativo | I81: ER
B82: =COUNTIF($I$24:I82,"NO") -> 18 | F82: BB | G82: En Centro Quirurgico se evidencia que cuenta con Columna de Gases Clínicos / Monitor Multiparámetro (de 6 a 8). | I82: ER
B83: =COUNTIF($I$24:I83,"NO") -> 18 | F83: BC | G83: En Centro Quirurgico se evidencia que cuenta con bomba de perfusión operativa. | I83: ER
B84: =COUNTIF($I$24:I84,"NO") -> 18 | F84: BD | G84: En Centro Quirurgico se evidencia que cuenta con Cialítica Portátil con batería operativa. | I84: ER
B85: =COUNTIF($I$24:I85,"NO") -> 18 | F85: BE | G85: En Centro Quirurgico se evidencia que en recuperación, el paciente es recibido por la enfermera y el anestesiólogo. | I85: ER
B86: =COUNTIF($I$24:I86,"NO") -> 18 | F86: BF | G86: En Centro Quirurgico se evidencia que existe registro de la evaluación pre, durante y post-anestésica en cada paciente intervenido, con firma y sello del anestesiologo responsable. | I86: ER
B87: =COUNTIF($I$24:I87,"NO") -> 18 | G87: TOTAL DE VERIFICADORES VALIDOS | I87: =COUNTIF(I53:I86,"SI")+COUNTIF(I53:I86,"NO") -> 12
B88: =COUNTIF($I$24:I88,"NO") -> 18 | G88: TOTAL DE VERIFICADORES POSITIVOS | I88: =COUNTIF(I53:I86,"SI") -> 5
B89: =COUNTIF($I$24:I89,"NO") -> 18 | G89: PORCENTAJE DE CUMPLIMIENTO | I89: =I88/I87 -> 0.4166666667
B90: =COUNTIF($I$24:I90,"NO") -> 18
B91: =COUNTIF($I$24:I91,"NO") -> 19 | C91: IDENTIFICACIÓN CORRECTA DEL PACIENTE (Jefe de la Oficina de Calidad) | E91: =IFERROR(I101," ") -> 0 | F91: BG | G91: Paciente tiene brazalete de identificación y los datos registrados son correctos y completos. | I91: =IFERROR(VLOOKUP(F91,PORC,4,FALSE),"ER") -> NO
B92: =COUNTIF($I$24:I92,"NO") -> 20 | F92: BH | G92: Cartel visible que tenga registrado el nombre completo del paciente. | I92: NO
B93: =COUNTIF($I$24:I93,"NO") -> 21 | F93: BI | G93: Datos proporcionados por el paciente, son similares a los registrados en la historia clínica. | I93: NO
B94: =COUNTIF($I$24:I94,"NO") -> 22 | F94: BJ | G94: Verificación de la identidad del paciente con el brazalete antes de cualquier procedimiento. | I94: NO
B95: =COUNTIF($I$24:I95,"NO") -> 23 | F95: BK | G95: Identificación de riesgo de caidas del paciente tanto en el brazalete del paciente como en el cartel visible. | I95: NO
B96: =COUNTIF($I$24:I96,"NO") -> 23 | F96: BL | G96: Verificación de la identificación correcta de los paciente antes de realizar los examenes de laboratorio, radiológicos u otros. | I96: ER
B97: =COUNTIF($I$24:I97,"NO") -> 24 | F97: BM | G97: Conocimiento del paciente o familiar responsable sobre su enfermedad, su evolución y pronóstico del mismo, el cual debe concordar con la información registrada en la historia clínica. | I97: NO
B98: =COUNTIF($I$24:I98,"NO") -> 25 | F98: BN | G98: Paciente informado al que se le han aclado sus dudas y preguntas respecto a algún procedimiento o cirugía, evidenciandose la firma del Consentimiento respectivo. | I98: NO
B99: =COUNTIF($I$24:I99,"NO") -> 25 | G99: TOTAL DE VERIFICADORES VALIDOS | I99: =COUNTIF(I91:I98,"SI")+COUNTIF(I91:I98,"NO") -> 7
B100: =COUNTIF($I$24:I100,"NO") -> 25 | G100: TOTAL DE VERIFICADORES POSITIVOS | I100: =COUNTIF(I91:I98,"SI") -> 0
B101: =COUNTIF($I$24:I101,"NO") -> 25 | G101: PORCENTAJE DE CUMPLIMIENTO | I101: =I100/I99 -> 0
B102: =COUNTIF($I$24:I102,"NO") -> 25
B103: =COUNTIF($I$24:I103,"NO") -> 26 | C103: PREVENCIÓN DE LA FUGA DE PACIENTES (Jefe de la UPSS / Administrador) | E103: =IFERROR(I111," ") -> 0 | F103: BO | G103: Paciente cuenta con ropa de hospital facilmente identificable. | I103: =IFERROR(VLOOKUP(F103,PORC,4,FALSE),"ER") -> NO
B104: =COUNTIF($I$24:I104,"NO") -> 27 | F104: BP | G104: Vigilancia controla las pertenencias de los pacientes y las visitas para evitar el uso inadecuado de objetos potencialmente peligrosos. | I104: NO
B105: =COUNTIF($I$24:I105,"NO") -> 28 | F105: BQ | G105: Tienen un sistema efectivo de control de las salidas y entradas del servicio de hospitalización. | I105: NO
B106: =COUNTIF($I$24:I106,"NO") -> 29 | F106: BR | G106: Entrevistas con el paciente para valorar el riesgo potencial de fuga. Solo en casos de oposición activa y riesgo inminente de fuga se recurrirá a la contención mecánica. | I106: NO
B107: =COUNTIF($I$24:I107,"NO") -> 30 | F107: BS | G107: Registro en la hoja de recomendaciones terapéuticas el riesgo de fuga del paciente y la activación de las medidas de supervisión oportunas. | I107: NO
B108: =COUNTIF($I$24:I108,"NO") -> 31 | F108: BT | G108: Existencia de un procedimiento o protocolo que se active en caso de fuga de paciente. | I108: NO
B109: =COUNTIF($I$24:I109,"NO") -> 31 | G109: TOTAL DE VERIFICADORES VALIDOS | I109: =COUNTIF(I103:I108,"SI")+COUNTIF(I103:I108,"NO") -> 6
B110: =COUNTIF($I$24:I110,"NO") -> 31 | G110: TOTAL DE VERIFICADORES POSITIVOS | I110: =COUNTIF(I103:I108,"SI") -> 0
B111: =COUNTIF($I$24:I111,"NO") -> 31 | G111: PORCENTAJE DE CUMPLIMIENTO | I111: =I110/I109 -> 0
B112: =COUNTIF($I$24:I112,"NO") -> 31
B113: =COUNTIF($I$24:I113,"NO") -> 32 | C113: SEGURIDAD EN LA MEDICACIÓN (Jefe de Enfermería / Obstetricia / Farmacia) | E113: =IFERROR(I125," ") -> 0.1 | F113: BU | G113: Paciente conoce que medicamentos recibe y a que hora corresponde que se lo administren. | I113: =IFERROR(VLOOKUP(F113,PORC,4,FALSE),"ER") -> NO
B114: =COUNTIF($I$24:I114,"NO") -> 33 | F114: BV | G114: Paciente conoce los efectos secundarios que pueden producirle los medicamentos que recibe. | I114: NO
B115: =COUNTIF($I$24:I115,"NO") -> 34 | F115: BW | G115: Coche de paro cuenta con los insumos necesarios para atender situaciones críticas según normatividad vigente. | I115: NO
B116: =COUNTIF($I$24:I116,"NO") -> 35 | F116: BX | G116: Soluciones endovenosas se encuentran debidamente rotulados con la fecha y los componentes contenidas en ella. | I116: NO
B117: =COUNTIF($I$24:I117,"NO") -> 36 | F117: BY | G117: Almacenamiento ordenado de los medicamentos para evitar su confusión por su similitud de nombres o de presentación. | I117: NO
B118: =COUNTIF($I$24:I118,"NO") -> 36 | F118: BZ | G118: Medicamentos se encuentran adecuadamente rotulados en caso de requerirlos. | I118: SI
B119: =COUNTIF($I$24:I119,"NO") -> 37 | F119: CA | G119: Medicamentos se clasifican para su almacenamiento local según el nombre del paciente por dosis unitaria. | I119: NO
B120: =COUNTIF($I$24:I120,"NO") -> 38 | F120: CB | G120: Medicamentos e insumos médicos cuentan con un mecanismo efectivo de control de vencimiento / caducidad. | I120: NO
B121: =COUNTIF($I$24:I121,"NO") -> 39 | F121: CC | G121: Existencia de un registro de medicamentos controlados. | I121: NO
B122: =COUNTIF($I$24:I122,"NO") -> 40 | F122: CD | G122: Profesional encargado del cuidado de los pacientes verifica los 5 correctos para la administración correcta de medicamentos. | I122: NO
B123: =COUNTIF($I$24:I123,"NO") -> 40 | G123: TOTAL DE VERIFICADORES VALIDOS | I123: =COUNTIF(I113:I122,"SI")+COUNTIF(I113:I122,"NO") -> 10
B124: =COUNTIF($I$24:I124,"NO") -> 40 | G124: TOTAL DE VERIFICADORES POSITIVOS | I124: =COUNTIF(I113:I122,"SI") -> 1
B125: =COUNTIF($I$24:I125,"NO") -> 40 | G125: PORCENTAJE DE CUMPLIMIENTO | I125: =I124/I123 -> 0.1
B126: =COUNTIF($I$24:I126,"NO") -> 40
B127: =COUNTIF($I$24:I127,"NO") -> 41 | C127: PREVENCIÓN DE LA CAIDA DE PACIENTES Y CONTENCION MECÁNICA (Jefe de la UPSS / Jefe de Enfermería) | E127: =IFERROR(I140," ") -> 0.1818181818 | F127: CE | G127: Valoración del riesgo de caída de todo paciente que se hospitaliza. | I127: =IFERROR(VLOOKUP(F127,PORC,4,FALSE),"ER") -> NO
B128: =COUNTIF($I$24:I128,"NO") -> 42 | F128: CF | G128: Revaloración diaria de pacientes: ancianos, aquellos sometidos a polifarmacia, los drogodependientes y las personas con déficits neurológicos ‐ cognitivos. | I128: NO
B129: =COUNTIF($I$24:I129,"NO") -> 43 | F129: CG | G129: Información a los pacientes sobre los efectos secundarios de la medicación que pueden afectar la orientación y el sensorio. | I129: NO
B130: =COUNTIF($I$24:I130,"NO") -> 44 | F130: CH | G130: En casos de sedación y deterioro cognitivo severo se utilizarán barras de protección lateral o contención abdominal cuando el paciente se encuentre encamado. | I130: NO
B131: =COUNTIF($I$24:I131,"NO") -> 45 | F131: CI | G131: Comunicar al paciente temas relacionados al uso de los baños, uso de las duchas, uso de los lavaderos, cambios posturales periodicos, etc. | I131: NO
B132: =COUNTIF($I$24:I132,"NO") -> 46 | F132: CJ | G132: Protocolo que establezca población objetivo, indicaciones, medidas preventivas, profesionales responsables de la indicación y supervisión de los diversos mecanismos de sujeción mecanica. | I132: NO
B133: =COUNTIF($I$24:I133,"NO") -> 47 | F133: CK | G133: Sistemas de registro específicos de todo paciente con sujeción mecánica, el que se debe de reevaluar periódicamente la situación y el tiempo de sujeción. | I133: NO
B134: =COUNTIF($I$24:I134,"NO") -> 48 | F134: CL | G134: Asegurarse que las técnicas de inmovilización puedan ser retiradas fácilmente. | I134: NO
B135: =COUNTIF($I$24:I135,"NO") -> 48 | F135: CM | G135: Si el paciente se encuentra en posición supina, comprobar que puede mover la cabeza libremente y levantarla de la cama. | I135: SI
B136: =COUNTIF($I$24:I136,"NO") -> 48 | F136: CN | G136: Si el paciente se encuentra en decúbito prono asegurar que las vías aéreas no están obstruidas en ningún momento y que la expansión pulmonar no se ve limitada. | I136: SI
B137: =COUNTIF($I$24:I137,"NO") -> 49 | F137: CO | G137: Evidencia de cambio periódico de la posición de la inmovilización y evaluación de las zonas cutáneas sometidas a presión. | I137: NO
B138: =COUNTIF($I$24:I138,"NO") -> 49 | G138: TOTAL DE VERIFICADORES VALIDOS | I138: =COUNTIF(I127:I137,"SI")+COUNTIF(I127:I137,"NO") -> 11
B139: =COUNTIF($I$24:I139,"NO") -> 49 | G139: TOTAL DE VERIFICADORES POSITIVOS | I139: =COUNTIF(I127:I137,"SI") -> 2
B140: =COUNTIF($I$24:I140,"NO") -> 49 | G140: PORCENTAJE DE CUMPLIMIENTO | I140: =I139/I138 -> 0.1818181818
B141: =COUNTIF($I$24:I141,"NO") -> 49
B142: =COUNTIF($I$24:I142,"NO") -> 49 | C142: SEGURIDAD SEXUAL (Jefe de la UPSS / Administrador) | E142: =IFERROR(I150," ") -> 0.3333333333 | F142: CP | G142: Evaluación del paciente a su ingreso y durante el mismo de los riesgos de ser víctimas o de cometer agresiones sexuales: desinhibiciones maníacas, trastornos de la personalidad, aislamiento, poca aceptación en su medio. | I142: =IFERROR(VLOOKUP(F142,PORC,4,FALSE),"ER") -> SI
B143: =COUNTIF($I$24:I143,"NO") -> 50 | F143: CQ | G143: Información disponible y clara referente a las consecuencias penales de las agresiones sexuales. | I143: NO
B144: =COUNTIF($I$24:I144,"NO") -> 51 | F144: CR | G144: El protocolo de recepción de un paciente establece la prohibición expresa de mantener relaciones sexuales durante la hospitalización. | I144: NO
B145: =COUNTIF($I$24:I145,"NO") -> 52 | F145: CS | G145: Control de la entrada de pacientes a cualquier habitación que no sea la propia. | I145: NO
B146: =COUNTIF($I$24:I146,"NO") -> 53 | F146: CT | G146: Al detectar conductas desinhibidas se comunicará al resto del equipo y se discutirán las medidas a tomar, que quedarán registradas en la hoja de recomendaciones terapéuticas. | I146: NO
B147: =COUNTIF($I$24:I147,"NO") -> 53 | F147: CU | G147: Ante la sospecha de relaciones sexuales consumadas se aplicarán las medidas médicas y legales que resulten oportunas | I147: SI
B148: =COUNTIF($I$24:I148,"NO") -> 53 | G148: TOTAL DE VERIFICADORES VALIDOS | I148: =COUNTIF(I142:I147,"SI")+COUNTIF(I142:I147,"NO") -> 6
B149: =COUNTIF($I$24:I149,"NO") -> 53 | G149: TOTAL DE VERIFICADORES POSITIVOS | I149: =COUNTIF(I142:I147,"SI") -> 2
B150: =COUNTIF($I$24:I150,"NO") -> 53 | G150: PORCENTAJE DE CUMPLIMIENTO | I150: =I149/I148 -> 0.3333333333
B151: =COUNTIF($I$24:I151,"NO") -> 53
B152: =COUNTIF($I$24:I152,"NO") -> 54 | C152: PREVENCIÓN Y REDUCCIÓN DEL RIESGO DE LAS ÚLCERAS POR PRESIÓN (Jefe de la UPSS / Jefe de Enfermería) | E152: =IFERROR(I163," ") -> 0.2857142857 | F152: CV | G152: Evaluación inicial del riesgo de úlceras por presión en todos los pacientes al ingreso a servicios de hospitalización | I152: =IFERROR(VLOOKUP(F152,PORC,4,FALSE),"ER") -> NO
B153: =COUNTIF($I$24:I153,"NO") -> 54 | F153: CW | G153: Valoración del estado de la piel para detectar la presencia de úlceras por presión previas. | I153: NO APLICA
B154: =COUNTIF($I$24:I154,"NO") -> 54 | F154: CX | G154: Reevaluación periódica del riesgo, siempre que cambie la situación clínica basal del paciente. | I154: SI
B155: =COUNTIF($I$24:I155,"NO") -> 55 | F155: CY | G155: Protocolización de la guía de atención para la prevención y control de úlceras por presión. | I155: NO
B156: =COUNTIF($I$24:I156,"NO") -> 55 | F156: CZ | G156: Educación al paciente y su familia para la prevención y cuidado de las úlceras por presión. | I156: SI
B157: =COUNTIF($I$24:I157,"NO") -> 56 | F157: DA | G157: Planificación, ejecución y evaluación del programa educativo dirigido a paciente, su cuidador y la familia. | I157: NO
B158: =COUNTIF($I$24:I158,"NO") -> 57 | F158: DB | G158: Notificación de úlceras por presión (incidencia y prevalencia) en un registro diario instaurado en los servicios de hospitalización. | I158: NO
B159: =COUNTIF($I$24:I159,"NO") -> 58 | F159: DC | G159: Aplicación de guía de curación de úlceras por presión según estadíos. | I159: NO
B160: =COUNTIF($I$24:I160,"NO") -> 58 | F160: DD | G160: Protocolizar el seguimiento de la evolución de los pacientes con úlceras por presión, tanto en pacientes hospitalizados como en aquellos atendidos en domicilio | I160: NO APLICA
B161: =COUNTIF($I$24:I161,"NO") -> 58 | G161: TOTAL DE VERIFICADORES VALIDOS | I161: =COUNTIF(I152:I160,"SI")+COUNTIF(I152:I160,"NO") -> 7
B162: =COUNTIF($I$24:I162,"NO") -> 58 | G162: TOTAL DE VERIFICADORES POSITIVOS | I162: =COUNTIF(I152:I160,"SI") -> 2
B163: =COUNTIF($I$24:I163,"NO") -> 58 | G163: PORCENTAJE DE CUMPLIMIENTO | I163: =I162/I161 -> 0.2857142857
B164: =COUNTIF($I$24:I164,"NO") -> 58
B165: =COUNTIF($I$24:I165,"NO") -> 58 | C165: PREVENCIÓN DEL SUICIDO Y LESIONES (Jefe de la UPSS / Jefe de Enfermería) | E165: =IFERROR(I175," ") -> 0.7142857143 | F165: DE | G165: Identificación del Riesgo de Suicidio: antecedentes de enfermedad mental y/o abuso de sustancias, enfermedad somática grave crónica, antecedentes de conducta violenta o autolesiva, intentos suicidas previos, conductas suicidas en el entorno cercano. | I165: =IFERROR(VLOOKUP(F165,PORC,4,FALSE),"ER") -> SI
B166: =COUNTIF($I$24:I166,"NO") -> 58 | F166: DF | G166: Identificación de un paciente en riesgo de suicidio debe poner en marcha estrategias específicas de abordaje (evaluación, monitorización y tratamiento específicos) | I166: SI
B167: =COUNTIF($I$24:I167,"NO") -> 59 | F167: DG | G167: Ubicar al paciente en el Servicio / Unidad más adecuada a sus necesidades y en función del riesgo detectado. | I167: NO
B168: =COUNTIF($I$24:I168,"NO") -> 59 | F168: DH | G168: Los pacientes y los familiares deben ser informados de la prohibición de introducir en el servicio elementos que puedan suponer un riesgo de auto o heteroagresividad. | I168: SI
B169: =COUNTIF($I$24:I169,"NO") -> 59 | F169: DI | G169: El botiquín / almacén de medicamentos del servicio permanece en todo momento cerrado bajo llave. La llave la custodiará el personal de enfermería. | I169: SI
B170: =COUNTIF($I$24:I170,"NO") -> 59 | F170: DJ | G170: El coche de limpieza transportará los productos peligrosos de la forma más inaccesible posible, sin dejarlo nunca sin supervisión o al alcance de los pacientes | I170: SI
B171: =COUNTIF($I$24:I171,"NO") -> 59 | F171: DK | G171: La entrega como la retirada de las comidas, el personal responsable procederán al recuento de las piezas de vajilla y cubiertos. Si se detecta la desaparición de alguna de ellas, se procederá al registro. | I171: NO APLICA
B172: =COUNTIF($I$24:I172,"NO") -> 60 | F172: DL | G172: El protocolo de prevención de conductas suicidas debe incluir correcta ubicación del paciente, la necesidad o no de sujeción mecánica, la supervisión así como la constancia en el registro de cualquier incidencia, el control de salidas y de visitas. | I172: NO
B173: =COUNTIF($I$24:I173,"NO") -> 60 | G173: TOTAL DE VERIFICADORES VALIDOS | I173: =COUNTIF(I165:I172,"SI")+COUNTIF(I165:I172,"NO") -> 7
B174: =COUNTIF($I$24:I174,"NO") -> 60 | G174: TOTAL DE VERIFICADORES POSITIVOS | I174: =COUNTIF(I165:I172,"SI") -> 5
B175: =COUNTIF($I$24:I175,"NO") -> 60 | G175: PORCENTAJE DE CUMPLIMIENTO | I175: =I174/I173 -> 0.7142857143
B176: =COUNTIF($I$24:I176,"NO") -> 60
B177: =COUNTIF($I$24:I177,"NO") -> 61 | C177: COMUNICACIÓN EFECTIVA (Jefe de la UPSS / Jefe de Enfermería) | E177: =IFERROR(I189," ") -> 0.9 | F177: DM | G177: La UPSS proporciona información sobre sus servicios, horarios de atención a pacientes y/o familiares y el proceso para obtener atención. | I177: =IFERROR(VLOOKUP(F177,PORC,4,FALSE),"ER") -> NO
B178: =COUNTIF($I$24:I178,"NO") -> 61 | F178: DN | G178: Los pacientes y las familias reciben información sobre cómo acceder a los servicios de la UPSS. | I178: SI
B179: =COUNTIF($I$24:I179,"NO") -> 61 | F179: DO | G179: La comunicación y la educación del paciente y de la familia se dan en un idioma comprensible y con palabras de comprensión común. | I179: SI
B180: =COUNTIF($I$24:I180,"NO") -> 61 | F180: DP | G180: Se evidencian comunicaciones reciprocas entre el Jefe de la UPSS y la Dirección del Establecimiento tanto en temas clínicos como administrativos. | I180: SI
B181: =COUNTIF($I$24:I181,"NO") -> 61 | F181: DQ | G181: Se evidencia comunicación (verbal, escrita o electrónica) e intercambio de información entre los profesionales médicos al momento de cambio de turno (cambio de guardia), relacionado al estado de salud de los pacientes, resumen de la atención prestada durante el turno (guardia) y la evolución de los pacientes. | I181: SI
B182: =COUNTIF($I$24:I182,"NO") -> 61 | F182: DR | G182: Se evidencia comunicación (verbal, escrita o electrónica) e intercambio de información entre los profesionales encargados del cuidado del paciente al momento de cambio de turno (cambio de guardia), relacionado al estado de salud de los pacientes, resumen de la atención prestada durante el turno (guardia) y la evolución de los pacientes. | I182: SI
B183: =COUNTIF($I$24:I183,"NO") -> 61 | F183: DS | G183: Las historias clínicas están a disposición de los profesionales de la salud que las necesitan para atender al paciente. | I183: SI
B184: =COUNTIF($I$24:I184,"NO") -> 61 | F184: DT | G184: Las historias clínicas están actualizadas para asegurar la comunicación de la información más reciente. | I184: SI
B185: =COUNTIF($I$24:I185,"NO") -> 61 | F185: DU | G185: La historia clínica del paciente o un resumen de información de su atención se transfiere junto al paciente a otro servicio o unidad dentro del establecimiento. | I185: SI
B186: =COUNTIF($I$24:I186,"NO") -> 61 | F186: DV | G186: El resumen de la información del traslado de un paciente incluye: el motivo de admisión, los hallazgos relevantes, los diagnósticos, todos los procedimientos realizados, todos los medicamentos y demás tratamientos administrados, el estado del paciente al momento de la transferencia. | I186: SI
B187: =COUNTIF($I$24:I187,"NO") -> 61 | G187: TOTAL DE VERIFICADORES VALIDOS | I187: =COUNTIF(I177:I186,"SI")+COUNTIF(I177:I186,"NO") -> 10
B188: =COUNTIF($I$24:I188,"NO") -> 61 | G188: TOTAL DE VERIFICADORES POSITIVOS | I188: =COUNTIF(I177:I186,"SI") -> 9
B189: =COUNTIF($I$24:I189,"NO") -> 61 | G189: PORCENTAJE DE CUMPLIMIENTO | I189: =I188/I187 -> 0.9
B190: =COUNTIF($I$24:I190,"NO") -> 61
B191: =COUNTIF($I$24:I191,"NO") -> 62 | C191: HIGIENE DE MANOS (Jefe de Epidemiología / Inteligencia Sanitaria) | E191: =IFERROR(I201," ") -> 0 | F191: DW | G191: Disponibilidad de dispensadores con preparados de base alcohólica para manos. | I191: =IFERROR(VLOOKUP(F191,PORC,4,FALSE),"ER") -> NO
B192: =COUNTIF($I$24:I192,"NO") -> 63 | F192: DX | G192: Disponibilidad de lavamanos con suministro de agua y jabón. | I192: NO
B193: =COUNTIF($I$24:I193,"NO") -> 64 | F193: DY | G193: Disponibilidad de papel toalla en todos los lavamanos. | I193: NO
B194: =COUNTIF($I$24:I194,"NO") -> 65 | F194: DZ | G194: Cumplimiento del ratio lavamanos/ paciente-cama de al menos 1:10 | I194: NO
B195: =COUNTIF($I$24:I195,"NO") -> 66 | F195: EA | G195: Cumplimiento de los 08 pasos de la desinfección de manos (pasos y tiempo). | I195: NO
B196: =COUNTIF($I$24:I196,"NO") -> 67 | F196: EB | G196: Cumplimiento de los 11 pasos del lavado de manos (pasos y tiempo). | I196: NO
B197: =COUNTIF($I$24:I197,"NO") -> 68 | F197: EC | G197: Porcentaje de cumplimiento > 80%, del requisito de realizar la higiene de las manos durante su actividad asistencial de acuerdo con los cinco momentos de la higiene de manos. | I197: NO
B198: =COUNTIF($I$24:I198,"NO") -> 69 | F198: ED | G198: Mensajes y dibujos que promueven la adherencia a la higiene de manos colocados en sitios estratégicos. | I198: NO
B199: =COUNTIF($I$24:I199,"NO") -> 69 | G199: TOTAL DE VERIFICADORES VALIDOS | I199: =COUNTIF(I191:I198,"SI")+COUNTIF(I191:I198,"NO") -> 8
B200: =COUNTIF($I$24:I200,"NO") -> 69 | G200: TOTAL DE VERIFICADORES POSITIVOS | I200: =COUNTIF(I191:I198,"SI") -> 0
B201: =COUNTIF($I$24:I201,"NO") -> 69 | G201: PORCENTAJE DE CUMPLIMIENTO | I201: =I200/I199 -> 0
B202: =COUNTIF($I$24:I202,"NO") -> 69
B203: =COUNTIF($I$24:I203,"NO") -> 70 | C203: BIOSEGURIDAD (Jefe de Epidemiología / Jefe de la UPSS) | E203: =IFERROR(I213," ") -> 0.125 | F203: EE | G203: Disposición de residuos sólidos de acuerdo a las normas. | I203: =IFERROR(VLOOKUP(F203,PORC,4,FALSE),"ER") -> NO
B204: =COUNTIF($I$24:I204,"NO") -> 71 | F204: EF | G204: Eliminación de material punzo cortante y agujas de acuerdo a las normas. | I204: NO
B205: =COUNTIF($I$24:I205,"NO") -> 71 | F205: EG | G205: Cuidado y manejo de los catéteres se realiza de acuerdo a normas. | I205: SI
B206: =COUNTIF($I$24:I206,"NO") -> 72 | F206: EH | G206: Cumplimiento de las medidas de aislamiento. | I206: NO
B207: =COUNTIF($I$24:I207,"NO") -> 73 | F207: EI | G207: El servicio ha implementado el uso de 'Care Bundle" o Paquete de Medidas para la prevención de las IAAS basadas en evidencia médica. | I207: NO
B208: =COUNTIF($I$24:I208,"NO") -> 74 | F208: EJ | G208: Evidencia de desarrollo de actividades de vigilancia epidemiológica activa, selectiva y localizada de IAAS en la UPSS. | I208: NO
B209: =COUNTIF($I$24:I209,"NO") -> 75 | F209: EK | G209: Se observa si se encuentran señalizados las zonas rígidas y semirígidas de la Unidad Productora de Servicios de Salud. | I209: NO
B210: =COUNTIF($I$24:I210,"NO") -> 76 | F210: EL | G210: Se observa si se respetan las zonas rígidas y semirígidas de la Unidad Productora de Servicios de Salud. | I210: NO
B211: =COUNTIF($I$24:I211,"NO") -> 76 | G211: TOTAL DE VERIFICADORES VALIDOS | I211: =COUNTIF(I203:I210,"SI")+COUNTIF(I203:I210,"NO") -> 8
B212: =COUNTIF($I$24:I212,"NO") -> 76 | G212: TOTAL DE VERIFICADORES POSITIVOS | I212: =COUNTIF(I203:I210,"SI") -> 1
B213: =COUNTIF($I$24:I213,"NO") -> 76 | G213: PORCENTAJE DE CUMPLIMIENTO | I213: =I212/I211 -> 0.125
... 9 more rows

Sheet RESULTADOS EVALUACIÓN
B2: UNIDAD FUNCIONAL DE GESTIÓN DE LA CALIDAD EN SALUD
B6: =+'MENU PRINCIPAL'!B2 -> APLICATIVO DE RONDAS DE SEGURIDAD DEL PACIENTE PARA LA GESTIÓN DEL RIESGO EN LA ATENCION DE SALUD
B10: RESULTADOS DE EVALUACIÓN
I11: IR A MENU
B14: ÓRGANO DESCONCENTRADO: | F14: ='MENU PRINCIPAL'!C20 -> INSTITUTO NACIONAL MATERNO PERINATAL | G14: TRIMESTRE: | H14: ='FICHA EVALUACIÓN'!J14 -> I TRIMESTRE | I14: AÑO: | J14: ='FICHA EVALUACIÓN'!L14 -> 2023
B15: IPRESS: | F15: =IF('FICHA EVALUACIÓN'!H15=0," ",'FICHA EVALUACIÓN'!H15) -> HOSPITAL DE ESPINAR | G15: FECHA APLICACION: | I15: =IF('FICHA EVALUACIÓN'!K15=0," ",'FICHA EVALUACIÓN'!K15) -> 2023-03-29 | J15: (dd/mm/aaaa)
B16: UPSS: | F16: ='FICHA EVALUACIÓN'!H16 -> EMERGENCIA | G16: RESP.EPIDEMIOLOGIA: | H16: =IF('FICHA EVALUACIÓN'!J16=0," ",'FICHA EVALUACIÓN'!J16) -> LIC. ISABEL ROMERO JACHA
B17: TITULAR/RESPONSABLE IPRESS: | F17: =IF('MENU PRINCIPAL'!C22=0," ",'MENU PRINCIPAL'!C22) -> Dr.EDWIN SOTO CCAYAHUALLPA | G17: RESP. DE LA UPSS: | H17: =IF('FICHA EVALUACIÓN'!J17=0," ",'FICHA EVALUACIÓN'!J17) -> DR. EDINSON VALDERRAMA MAMANI
B18: RESP. DE ADMINISTRACION: | F18: =IF('FICHA EVALUACIÓN'!H18=0," ",'FICHA EVALUACIÓN'!H18) -> LIC. JUVENAL TAIRO ZAMBRANO | G18: RESP.OFIC./UNIDAD CALIDAD: | H18: =IF('FICHA EVALUACIÓN'!J18=0," ",'FICHA EVALUACIÓN'!J18) -> LIC. JUDITH K. CAHUATA TURO
B19: RESP. DPTO/SERVICIO ENFERMERÍA: | F19: =IF('FICHA EVALUACIÓN'!H19=0," ",'FICHA EVALUACIÓN'!H19) -> LIC. MARIO CHOQUE ROMERO. | G19: OTROS RESPONSABLES: | H19: =IF('FICHA EVALUACIÓN'!J19=0," ",'FICHA EVALUACIÓN'!J19) -> LIC. IRMA LUPACA JIHUAÑA
F24: BUENAS PRÁCTICAS EVALUADAS | G24: % CUMPLIMIENTO
E25: 1 | F25: =IFERROR(VLOOKUP(E25,RESULT,2,FALSE)," ") -> REGISTRO EN LA HISTORIA CLÍNICA | G25: =IFERROR(VLOOKUP(E25,RESULT,3,FALSE)," ") -> 0.5217391304
E26: 2 | F26: SEGURIDAD DEL PACIENTE EN LA UPSS | G26: 0.4166666667
E27: 3 | F27: IDENTIFICACIÓN CORRECTA | G27: 0 | U27: Etiquetas de fila | V27: Máx. de % CUMPLIMIENTO
E28: 4 | F28: PREVENCIÓN DE FUGA | G28: 0
E29: 5 | F29: SEGURIDAD EN LA MEDICACIÓN | G29: 0.1
E30: 6 | F30: PREVENCION DE CAIDAS Y CONTENCION MECANICA | G30: 0.1818181818
E31: 7 | F31: SEGURIDAD SEXUAL | G31: 0.3333333333
E32: 8 | F32: PREVENCIÓN Y REDUCCIÓN DEL RIESGO DE LAS UPP | G32: 0.2857142857
E33: 9 | F33: =IFERROR(VLOOKUP(E33,RESULT,2,FALSE)," ") -> PREVENCIÓN DEL SUICIDO Y LESIONES | G33: =IFERROR(VLOOKUP(E33,RESULT,3,FALSE),-1) -> 0.7142857143
E34: 10 | F34: COMUNICACIÓN EFECTIVA | G34: =IFERROR(VLOOKUP(E34,RESULT,3,FALSE),-1) -> 0.9
E35: 11 | F35: HIGIENE DE MANOS | G35: =IFERROR(VLOOKUP(E35,RESULT,3,FALSE),-1) -> 0
E36: 12 | F36: BIOSEGURIDAD | G36: =IFERROR(VLOOKUP(E36,RESULT,3,FALSE),-1) -> 0.125
E37: 13 | F37: FUNCIONAMIENTO Y MANEJO DE EQUIPOS | G37: =IFERROR(VLOOKUP(E37,RESULT,3,FALSE),-1) -> 0
F38: PROMEDIO | G38: =IFERROR('POR UPSS'!V180," ") -> 0.2752736394
F41: PROMEDIO DE CUMPLIMIENTO | G41: =IFERROR(G38," ") -> 0.2752736394

Sheet POR UPSS (hidden)
A7: =VLOOKUP('FICHA EVALUACIÓN'!H16,ULT,2,FALSE) -> E | B7: CONSULTA EXTERNA | C7: HOSPITALIZACIÓN | D7: EMERGENCIA | E7: CENTRO OBSTÉTRICO | F7: CENTRO QUIRÚRGICO | G7: CUIDADOS INTENSIVOS | H7: PATOLOGÍA CLÍNICA | I7: DIAGNÓSTICO POR IMÁGENES | J7: ANATOMÍA PATOLÓGICA | K7: FARMACIA | L7: CENTRAL DE ESTERILIZACIÓN | M7: MEDICINA DE REHABILITACIÓN | N7: HEMODIÁLISIS | O7: NUTRICIÓN Y DIETÉTICA | P7: RADIOTERAPIA | Q7: MEDICINA NUCLEAR | R7: CENTRO DE HEMOTERAPIA | S7: PRIMER NIVEL DE ATENCIÓN
A8: =IF($A$7="CE",COUNTIF(B$7:B8,"x"),IF($A$7="HOS",COUNTIF(C$7:C8,"x"),IF($A$7="E",COUNTIF(D$7:D8,"x"),IF($A$7="CEO",COUNTIF(E$7:E8,"x"),IF($A$7="CEQ",COUNTIF(F$7:F8,"x"),IF($A$7="CI",COUNTIF(G$7:G8,"x"),IF($A$7="PC",COUNTIF(H$7:H8,"x"),IF($A$7="DPI",COUNTIF(I$7:I8,"x"),IF($A$7="AP",COUNTIF(J$7:J8,"x"),IF($A$7="F",COUNTIF(K$7:K8,"x"),IF($A$7="CDE",COUNTIF(L$7:L8,"x"),IF($A$7="MR",COUNTIF(M$7:M8,"x"),IF($A$7="H",COUNTIF(N$7:N8,"x"),IF($A$7="NYD",COUNTIF(O$7:O8,"x"),IF($A$7="R",COUNTIF(P$7:P8,"x"),IF($A$7="MN",COUNTIF(Q$7:Q8,"x"),IF($A$7="CDH",COUNTIF(R$7:R8,"x"),IF($A$7="PNA",COUNTIF(S$7:S8,"x")," ")))))))))))))))))) -> 1 | B8: x | C8: x | D8: x | E8: x | F8: x | G8: x | H8: x | I8: x | J8: x | K8: x | M8: x | N8: x | O8: x | P8: x | Q8: x | R8: x | S8: x | T8: HISTORIA CLINICA | U8: ='FICHA OCULTA'!G25 -> Registro de la fecha y hora de atención en la Historia Clínica y/o Registros Médicos. | V8: A | W8: ='FICHA OCULTA'!$I$51 -> 0.5217391304
A9: =IF($A$7="CE",COUNTIF(B$7:B9,"x"),IF($A$7="HOS",COUNTIF(C$7:C9,"x"),IF($A$7="E",COUNTIF(D$7:D9,"x"),IF($A$7="CEO",COUNTIF(E$7:E9,"x"),IF($A$7="CEQ",COUNTIF(F$7:F9,"x"),IF($A$7="CI",COUNTIF(G$7:G9,"x"),IF($A$7="PC",COUNTIF(H$7:H9,"x"),IF($A$7="DPI",COUNTIF(I$7:I9,"x"),IF($A$7="AP",COUNTIF(J$7:J9,"x"),IF($A$7="F",COUNTIF(K$7:K9,"x"),IF($A$7="CDE",COUNTIF(L$7:L9,"x"),IF($A$7="MR",COUNTIF(M$7:M9,"x"),IF($A$7="H",COUNTIF(N$7:N9,"x"),IF($A$7="NYD",COUNTIF(O$7:O9,"x"),IF($A$7="R",COUNTIF(P$7:P9,"x"),IF($A$7="MN",COUNTIF(Q$7:Q9,"x"),IF($A$7="CDH",COUNTIF(R$7:R9,"x"),IF($A$7="PNA",COUNTIF(S$7:S9,"x")," ")))))))))))))))))) -> 2 | B9: x | C9: x | D9: x | E9: x | F9: x | G9: x | H9: x | I9: x | J9: x | K9: x | M9: x | N9: x | O9: x | P9: x | Q9: x | R9: x | S9: x | T9: HISTORIA CLINICA | U9: ='FICHA OCULTA'!G26 -> Registro completo de la filiación del paciente: Datos del EESS, Nº de HCl, Nombres y Apellidos del Paciente, Lugar y fecha de nacimiento, Edad, Sexo, Domicilio, Procedencia, Teléfono, DNI, Seguro, Estado Civi, Instrucción, Ocupación, Religión, Acompañante o Responsable de ser el caso. | V9: B | W9: ='FICHA OCULTA'!$I$51 -> 0.5217391304
A10: =IF($A$7="CE",COUNTIF(B$7:B10,"x"),IF($A$7="HOS",COUNTIF(C$7:C10,"x"),IF($A$7="E",COUNTIF(D$7:D10,"x"),IF($A$7="CEO",COUNTIF(E$7:E10,"x"),IF($A$7="CEQ",COUNTIF(F$7:F10,"x"),IF($A$7="CI",COUNTIF(G$7:G10,"x"),IF($A$7="PC",COUNTIF(H$7:H10,"x"),IF($A$7="DPI",COUNTIF(I$7:I10,"x"),IF($A$7="AP",COUNTIF(J$7:J10,"x"),IF($A$7="F",COUNTIF(K$7:K10,"x"),IF($A$7="CDE",COUNTIF(L$7:L10,"x"),IF($A$7="MR",COUNTIF(M$7:M10,"x"),IF($A$7="H",COUNTIF(N$7:N10,"x"),IF($A$7="NYD",COUNTIF(O$7:O10,"x"),IF($A$7="R",COUNTIF(P$7:P10,"x"),IF($A$7="MN",COUNTIF(Q$7:Q10,"x"),IF($A$7="CDH",COUNTIF(R$7:R10,"x"),IF($A$7="PNA",COUNTIF(S$7:S10,"x")," ")))))))))))))))))) -> 3 | B10: x | C10: x | D10: x | E10: x | F10: x | G10: x | H10: x | I10: x | J10: x | K10: x | M10: x | N10: x | O10: x | P10: x | Q10: x | S10: x | T10: HISTORIA CLINICA | U10: ='FICHA OCULTA'!G27 -> Registro de la enfermedad actual. | V10: C | W10: ='FICHA OCULTA'!$I$51 -> 0.5217391304
A11: =IF($A$7="CE",COUNTIF(B$7:B11,"x"),IF($A$7="HOS",COUNTIF(C$7:C11,"x"),IF($A$7="E",COUNTIF(D$7:D11,"x"),IF($A$7="CEO",COUNTIF(E$7:E11,"x"),IF($A$7="CEQ",COUNTIF(F$7:F11,"x"),IF($A$7="CI",COUNTIF(G$7:G11,"x"),IF($A$7="PC",COUNTIF(H$7:H11,"x"),IF($A$7="DPI",COUNTIF(I$7:I11,"x"),IF($A$7="AP",COUNTIF(J$7:J11,"x"),IF($A$7="F",COUNTIF(K$7:K11,"x"),IF($A$7="CDE",COUNTIF(L$7:L11,"x"),IF($A$7="MR",COUNTIF(M$7:M11,"x"),IF($A$7="H",COUNTIF(N$7:N11,"x"),IF($A$7="NYD",COUNTIF(O$7:O11,"x"),IF($A$7="R",COUNTIF(P$7:P11,"x"),IF($A$7="MN",COUNTIF(Q$7:Q11,"x"),IF($A$7="CDH",COUNTIF(R$7:R11,"x"),IF($A$7="PNA",COUNTIF(S$7:S11,"x")," ")))))))))))))))))) -> 4 | B11: x | C11: x | D11: x | E11: x | F11: x | G11: x | H11: x | I11: x | J11: x | M11: x | N11: x | S11: x | T11: HISTORIA CLINICA | U11: ='FICHA OCULTA'!G28 -> Registro de los antecedentes del paciente. | V11: D | W11: ='FICHA OCULTA'!$I$51 -> 0.5217391304
A12: =IF($A$7="CE",COUNTIF(B$7:B12,"x"),IF($A$7="HOS",COUNTIF(C$7:C12,"x"),IF($A$7="E",COUNTIF(D$7:D12,"x"),IF($A$7="CEO",COUNTIF(E$7:E12,"x"),IF($A$7="CEQ",COUNTIF(F$7:F12,"x"),IF($A$7="CI",COUNTIF(G$7:G12,"x"),IF($A$7="PC",COUNTIF(H$7:H12,"x"),IF($A$7="DPI",COUNTIF(I$7:I12,"x"),IF($A$7="AP",COUNTIF(J$7:J12,"x"),IF($A$7="F",COUNTIF(K$7:K12,"x"),IF($A$7="CDE",COUNTIF(L$7:L12,"x"),IF($A$7="MR",COUNTIF(M$7:M12,"x"),IF($A$7="H",COUNTIF(N$7:N12,"x"),IF($A$7="NYD",COUNTIF(O$7:O12,"x"),IF($A$7="R",COUNTIF(P$7:P12,"x"),IF($A$7="MN",COUNTIF(Q$7:Q12,"x"),IF($A$7="CDH",COUNTIF(R$7:R12,"x"),IF($A$7="PNA",COUNTIF(S$7:S12,"x")," ")))))))))))))))))) -> 5 | B12: x | C12: x | D12: x | E12: x | F12: x | G12: x | N12: x | S12: x | T12: HISTORIA CLINICA | U12: ='FICHA OCULTA'!G29 -> Registro de la Funciones Biológicas: apetito, sed, sueño, orina, deposiciones, estado de animo. | V12: E | W12: ='FICHA OCULTA'!$I$51 -> 0.5217391304
A13: =IF($A$7="CE",COUNTIF(B$7:B13,"x"),IF($A$7="HOS",COUNTIF(C$7:C13,"x"),IF($A$7="E",COUNTIF(D$7:D13,"x"),IF($A$7="CEO",COUNTIF(E$7:E13,"x"),IF($A$7="CEQ",COUNTIF(F$7:F13,"x"),IF($A$7="CI",COUNTIF(G$7:G13,"x"),IF($A$7="PC",COUNTIF(H$7:H13,"x"),IF($A$7="DPI",COUNTIF(I$7:I13,"x"),IF($A$7="AP",COUNTIF(J$7:J13,"x"),IF($A$7="F",COUNTIF(K$7:K13,"x"),IF($A$7="CDE",COUNTIF(L$7:L13,"x"),IF($A$7="MR",COUNTIF(M$7:M13,"x"),IF($A$7="H",COUNTIF(N$7:N13,"x"),IF($A$7="NYD",COUNTIF(O$7:O13,"x"),IF($A$7="R",COUNTIF(P$7:P13,"x"),IF($A$7="MN",COUNTIF(Q$7:Q13,"x"),IF($A$7="CDH",COUNTIF(R$7:R13,"x"),IF($A$7="PNA",COUNTIF(S$7:S13,"x")," ")))))))))))))))))) -> 6 | C13: x | D13: x | E13: x | F13: x | G13: x | N13: x | T13: HISTORIA CLINICA | U13: ='FICHA OCULTA'!G30 -> Registro completo del examen físico clínico general y regional de corresponder. | V13: F | W13: ='FICHA OCULTA'!$I$51 -> 0.5217391304
A14: =IF($A$7="CE",COUNTIF(B$7:B14,"x"),IF($A$7="HOS",COUNTIF(C$7:C14,"x"),IF($A$7="E",COUNTIF(D$7:D14,"x"),IF($A$7="CEO",COUNTIF(E$7:E14,"x"),IF($A$7="CEQ",COUNTIF(F$7:F14,"x"),IF($A$7="CI",COUNTIF(G$7:G14,"x"),IF($A$7="PC",COUNTIF(H$7:H14,"x"),IF($A$7="DPI",COUNTIF(I$7:I14,"x"),IF($A$7="AP",COUNTIF(J$7:J14,"x"),IF($A$7="F",COUNTIF(K$7:K14,"x"),IF($A$7="CDE",COUNTIF(L$7:L14,"x"),IF($A$7="MR",COUNTIF(M$7:M14,"x"),IF($A$7="H",COUNTIF(N$7:N14,"x"),IF($A$7="NYD",COUNTIF(O$7:O14,"x"),IF($A$7="R",COUNTIF(P$7:P14,"x"),IF($A$7="MN",COUNTIF(Q$7:Q14,"x"),IF($A$7="CDH",COUNTIF(R$7:R14,"x"),IF($A$7="PNA",COUNTIF(S$7:S14,"x")," ")))))))))))))))))) -> 7 | B14: x | C14: x | D14: x | E14: x | F14: x | G14: x | H14: x | I14: x | J14: x | K14: x | M14: x | N14: x | O14: x | P14: x | Q14: x | R14: x | S14: x | T14: HISTORIA CLINICA | U14: ='FICHA OCULTA'!G31 -> Registro de los diagnósticos con codificación CIE-10 ó DSM IV de corresponder (presuntivos o definitivos) | V14: G | W14: ='FICHA OCULTA'!$I$51 -> 0.5217391304
A15: =IF($A$7="CE",COUNTIF(B$7:B15,"x"),IF($A$7="HOS",COUNTIF(C$7:C15,"x"),IF($A$7="E",COUNTIF(D$7:D15,"x"),IF($A$7="CEO",COUNTIF(E$7:E15,"x"),IF($A$7="CEQ",COUNTIF(F$7:F15,"x"),IF($A$7="CI",COUNTIF(G$7:G15,"x"),IF($A$7="PC",COUNTIF(H$7:H15,"x"),IF($A$7="DPI",COUNTIF(I$7:I15,"x"),IF($A$7="AP",COUNTIF(J$7:J15,"x"),IF($A$7="F",COUNTIF(K$7:K15,"x"),IF($A$7="CDE",COUNTIF(L$7:L15,"x"),IF($A$7="MR",COUNTIF(M$7:M15,"x"),IF($A$7="H",COUNTIF(N$7:N15,"x"),IF($A$7="NYD",COUNTIF(O$7:O15,"x"),IF($A$7="R",COUNTIF(P$7:P15,"x"),IF($A$7="MN",COUNTIF(Q$7:Q15,"x"),IF($A$7="CDH",COUNTIF(R$7:R15,"x"),IF($A$7="PNA",COUNTIF(S$7:S15,"x")," ")))))))))))))))))) -> 8 | B15: x | C15: x | D15: x | E15: x | G15: x | O15: x | S15: x | T15: HISTORIA CLINICA | U15: ='FICHA OCULTA'!G32 -> Registro de evolución del paciente: Fecha y hora de atención, Apreciación Subjetiva, Apreciación Objetiva, Tratamiento, Dieta, Interpretación de exámenes y comentario, terapeútica y Plan de trabajo, firma, sello y colegiatura del médico responsable. | V15: H | W15: ='FICHA OCULTA'!$I$51 -> 0.5217391304
A16: =IF($A$7="CE",COUNTIF(B$7:B16,"x"),IF($A$7="HOS",COUNTIF(C$7:C16,"x"),IF($A$7="E",COUNTIF(D$7:D16,"x"),IF($A$7="CEO",COUNTIF(E$7:E16,"x"),IF($A$7="CEQ",COUNTIF(F$7:F16,"x"),IF($A$7="CI",COUNTIF(G$7:G16,"x"),IF($A$7="PC",COUNTIF(H$7:H16,"x"),IF($A$7="DPI",COUNTIF(I$7:I16,"x"),IF($A$7="AP",COUNTIF(J$7:J16,"x"),IF($A$7="F",COUNTIF(K$7:K16,"x"),IF($A$7="CDE",COUNTIF(L$7:L16,"x"),IF($A$7="MR",COUNTIF(M$7:M16,"x"),IF($A$7="H",COUNTIF(N$7:N16,"x"),IF($A$7="NYD",COUNTIF(O$7:O16,"x"),IF($A$7="R",COUNTIF(P$7:P16,"x"),IF($A$7="MN",COUNTIF(Q$7:Q16,"x"),IF($A$7="CDH",COUNTIF(R$7:R16,"x"),IF($A$7="PNA",COUNTIF(S$7:S16,"x")," ")))))))))))))))))) -> 9 | B16: x | C16: x | D16: x | E16: x | G16: x | S16: x | T16: HISTORIA CLINICA | U16: ='FICHA OCULTA'!G33 -> Registro actualizado del Plan de Trabajo: Exámenes de Ayuda Diagnóstica, Procedimientos Médico-Quirúrgicos e Interconsultas. | V16: I | W16: ='FICHA OCULTA'!$I$51 -> 0.5217391304
A17: =IF($A$7="CE",COUNTIF(B$7:B17,"x"),IF($A$7="HOS",COUNTIF(C$7:C17,"x"),IF($A$7="E",COUNTIF(D$7:D17,"x"),IF($A$7="CEO",COUNTIF(E$7:E17,"x"),IF($A$7="CEQ",COUNTIF(F$7:F17,"x"),IF($A$7="CI",COUNTIF(G$7:G17,"x"),IF($A$7="PC",COUNTIF(H$7:H17,"x"),IF($A$7="DPI",COUNTIF(I$7:I17,"x"),IF($A$7="AP",COUNTIF(J$7:J17,"x"),IF($A$7="F",COUNTIF(K$7:K17,"x"),IF($A$7="CDE",COUNTIF(L$7:L17,"x"),IF($A$7="MR",COUNTIF(M$7:M17,"x"),IF($A$7="H",COUNTIF(N$7:N17,"x"),IF($A$7="NYD",COUNTIF(O$7:O17,"x"),IF($A$7="R",COUNTIF(P$7:P17,"x"),IF($A$7="MN",COUNTIF(Q$7:Q17,"x"),IF($A$7="CDH",COUNTIF(R$7:R17,"x"),IF($A$7="PNA",COUNTIF(S$7:S17,"x")," ")))))))))))))))))) -> 10 | B17: x | C17: x | D17: x | E17: x | I17: x | K17: x | M17: x | N17: x | O17: x | S17: x | T17: HISTORIA CLINICA | U17: ='FICHA OCULTA'!G34 -> Registro actualizado del tratamiento del paciente (medicamento, dosis, vía, periodicidad). | V17: J | W17: ='FICHA OCULTA'!$I$51 -> 0.5217391304
A18: =IF($A$7="CE",COUNTIF(B$7:B18,"x"),IF($A$7="HOS",COUNTIF(C$7:C18,"x"),IF($A$7="E",COUNTIF(D$7:D18,"x"),IF($A$7="CEO",COUNTIF(E$7:E18,"x"),IF($A$7="CEQ",COUNTIF(F$7:F18,"x"),IF($A$7="CI",COUNTIF(G$7:G18,"x"),IF($A$7="PC",COUNTIF(H$7:H18,"x"),IF($A$7="DPI",COUNTIF(I$7:I18,"x"),IF($A$7="AP",COUNTIF(J$7:J18,"x"),IF($A$7="F",COUNTIF(K$7:K18,"x"),IF($A$7="CDE",COUNTIF(L$7:L18,"x"),IF($A$7="MR",COUNTIF(M$7:M18,"x"),IF($A$7="H",COUNTIF(N$7:N18,"x"),IF($A$7="NYD",COUNTIF(O$7:O18,"x"),IF($A$7="R",COUNTIF(P$7:P18,"x"),IF($A$7="MN",COUNTIF(Q$7:Q18,"x"),IF($A$7="CDH",COUNTIF(R$7:R18,"x"),IF($A$7="PNA",COUNTIF(S$7:S18,"x")," ")))))))))))))))))) -> 11 | C18: x | D18: x | E18: x | F18: x | G18: x | I18: x | N18: x | P18: x | Q18: x | R18: x | T18: HISTORIA CLINICA | U18: ='FICHA OCULTA'!G35 -> Registro y gráfico actualizado de la Funciones Vitales. | V18: K | W18: ='FICHA OCULTA'!$I$51 -> 0.5217391304
A19: =IF($A$7="CE",COUNTIF(B$7:B19,"x"),IF($A$7="HOS",COUNTIF(C$7:C19,"x"),IF($A$7="E",COUNTIF(D$7:D19,"x"),IF($A$7="CEO",COUNTIF(E$7:E19,"x"),IF($A$7="CEQ",COUNTIF(F$7:F19,"x"),IF($A$7="CI",COUNTIF(G$7:G19,"x"),IF($A$7="PC",COUNTIF(H$7:H19,"x"),IF($A$7="DPI",COUNTIF(I$7:I19,"x"),IF($A$7="AP",COUNTIF(J$7:J19,"x"),IF($A$7="F",COUNTIF(K$7:K19,"x"),IF($A$7="CDE",COUNTIF(L$7:L19,"x"),IF($A$7="MR",COUNTIF(M$7:M19,"x"),IF($A$7="H",COUNTIF(N$7:N19,"x"),IF($A$7="NYD",COUNTIF(O$7:O19,"x"),IF($A$7="R",COUNTIF(P$7:P19,"x"),IF($A$7="MN",COUNTIF(Q$7:Q19,"x"),IF($A$7="CDH",COUNTIF(R$7:R19,"x"),IF($A$7="PNA",COUNTIF(S$7:S19,"x")," ")))))))))))))))))) -> 12 | C19: x | D19: x | F19: x | G19: x | N19: x | T19: HISTORIA CLINICA | U19: ='FICHA OCULTA'!G36 -> Registro de la Hoja de Balance hidro - electrolítico actualizado. | V19: L | W19: ='FICHA OCULTA'!$I$51 -> 0.5217391304
A20: =IF($A$7="CE",COUNTIF(B$7:B20,"x"),IF($A$7="HOS",COUNTIF(C$7:C20,"x"),IF($A$7="E",COUNTIF(D$7:D20,"x"),IF($A$7="CEO",COUNTIF(E$7:E20,"x"),IF($A$7="CEQ",COUNTIF(F$7:F20,"x"),IF($A$7="CI",COUNTIF(G$7:G20,"x"),IF($A$7="PC",COUNTIF(H$7:H20,"x"),IF($A$7="DPI",COUNTIF(I$7:I20,"x"),IF($A$7="AP",COUNTIF(J$7:J20,"x"),IF($A$7="F",COUNTIF(K$7:K20,"x"),IF($A$7="CDE",COUNTIF(L$7:L20,"x"),IF($A$7="MR",COUNTIF(M$7:M20,"x"),IF($A$7="H",COUNTIF(N$7:N20,"x"),IF($A$7="NYD",COUNTIF(O$7:O20,"x"),IF($A$7="R",COUNTIF(P$7:P20,"x"),IF($A$7="MN",COUNTIF(Q$7:Q20,"x"),IF($A$7="CDH",COUNTIF(R$7:R20,"x"),IF($A$7="PNA",COUNTIF(S$7:S20,"x")," ")))))))))))))))))) -> 13 | B20: x | C20: x | D20: x | E20: x | F20: x | G20: x | H20: x | I20: x | J20: x | M20: x | N20: x | P20: x | Q20: x | R20: x | S20: x | T20: HISTORIA CLINICA | U20: ='FICHA OCULTA'!G37 -> Registro e inclusión en la Historia Clínica de los resultados de examenes auxiliares y procedimientos del paciente. | V20: M | W20: ='FICHA OCULTA'!$I$51 -> 0.5217391304
A21: =IF($A$7="CE",COUNTIF(B$7:B21,"x"),IF($A$7="HOS",COUNTIF(C$7:C21,"x"),IF($A$7="E",COUNTIF(D$7:D21,"x"),IF($A$7="CEO",COUNTIF(E$7:E21,"x"),IF($A$7="CEQ",COUNTIF(F$7:F21,"x"),IF($A$7="CI",COUNTIF(G$7:G21,"x"),IF($A$7="PC",COUNTIF(H$7:H21,"x"),IF($A$7="DPI",COUNTIF(I$7:I21,"x"),IF($A$7="AP",COUNTIF(J$7:J21,"x"),IF($A$7="F",COUNTIF(K$7:K21,"x"),IF($A$7="CDE",COUNTIF(L$7:L21,"x"),IF($A$7="MR",COUNTIF(M$7:M21,"x"),IF($A$7="H",COUNTIF(N$7:N21,"x"),IF($A$7="NYD",COUNTIF(O$7:O21,"x"),IF($A$7="R",COUNTIF(P$7:P21,"x"),IF($A$7="MN",COUNTIF(Q$7:Q21,"x"),IF($A$7="CDH",COUNTIF(R$7:R21,"x"),IF($A$7="PNA",COUNTIF(S$7:S21,"x")," ")))))))))))))))))) -> 14 | B21: x | C21: x | D21: x | E21: x | F21: x | G21: x | M21: x | N21: x | S21: x | T21: HISTORIA CLINICA | U21: ='FICHA OCULTA'!G38 -> Correspondencia entre el diagnóstico presuntivo y/o definitivo con el plan de trabajo en la última atención o evaluación realizada. | V21: N | W21: ='FICHA OCULTA'!$I$51 -> 0.5217391304
A22: =IF($A$7="CE",COUNTIF(B$7:B22,"x"),IF($A$7="HOS",COUNTIF(C$7:C22,"x"),IF($A$7="E",COUNTIF(D$7:D22,"x"),IF($A$7="CEO",COUNTIF(E$7:E22,"x"),IF($A$7="CEQ",COUNTIF(F$7:F22,"x"),IF($A$7="CI",COUNTIF(G$7:G22,"x"),IF($A$7="PC",COUNTIF(H$7:H22,"x"),IF($A$7="DPI",COUNTIF(I$7:I22,"x"),IF($A$7="AP",COUNTIF(J$7:J22,"x"),IF($A$7="F",COUNTIF(K$7:K22,"x"),IF($A$7="CDE",COUNTIF(L$7:L22,"x"),IF($A$7="MR",COUNTIF(M$7:M22,"x"),IF($A$7="H",COUNTIF(N$7:N22,"x"),IF($A$7="NYD",COUNTIF(O$7:O22,"x"),IF($A$7="R",COUNTIF(P$7:P22,"x"),IF($A$7="MN",COUNTIF(Q$7:Q22,"x"),IF($A$7="CDH",COUNTIF(R$7:R22,"x"),IF($A$7="PNA",COUNTIF(S$7:S22,"x")," ")))))))))))))))))) -> 15 | B22: x | C22: x | D22: x | E22: x | F22: x | G22: x | M22: x | N22: x | S22: x | T22: HISTORIA CLINICA | U22: ='FICHA OCULTA'!G39 -> Correspondencia entre el plan de trabajo y los examenes de apoyo al diagnóstico solicitados en la última atención o evaluación realizada. | V22: O | W22: ='FICHA OCULTA'!$I$51 -> 0.5217391304
A23: =IF($A$7="CE",COUNTIF(B$7:B23,"x"),IF($A$7="HOS",COUNTIF(C$7:C23,"x"),IF($A$7="E",COUNTIF(D$7:D23,"x"),IF($A$7="CEO",COUNTIF(E$7:E23,"x"),IF($A$7="CEQ",COUNTIF(F$7:F23,"x"),IF($A$7="CI",COUNTIF(G$7:G23,"x"),IF($A$7="PC",COUNTIF(H$7:H23,"x"),IF($A$7="DPI",COUNTIF(I$7:I23,"x"),IF($A$7="AP",COUNTIF(J$7:J23,"x"),IF($A$7="F",COUNTIF(K$7:K23,"x"),IF($A$7="CDE",COUNTIF(L$7:L23,"x"),IF($A$7="MR",COUNTIF(M$7:M23,"x"),IF($A$7="H",COUNTIF(N$7:N23,"x"),IF($A$7="NYD",COUNTIF(O$7:O23,"x"),IF($A$7="R",COUNTIF(P$7:P23,"x"),IF($A$7="MN",COUNTIF(Q$7:Q23,"x"),IF($A$7="CDH",COUNTIF(R$7:R23,"x"),IF($A$7="PNA",COUNTIF(S$7:S23,"x")," ")))))))))))))))))) -> 16 | B23: x | C23: x | D23: x | E23: x | F23: x | G23: x | H23: x | I23: x | J23: x | K23: x | M23: x | N23: x | O23: x | P23: x | Q23: x | R23: x | S23: x | T23: HISTORIA CLINICA | U23: ='FICHA OCULTA'!G40 -> Registro del nombre del paciente en todas las hojas de la HCl. | V23: P | W23: ='FICHA OCULTA'!$I$51 -> 0.5217391304
A24: =IF($A$7="CE",COUNTIF(B$7:B24,"x"),IF($A$7="HOS",COUNTIF(C$7:C24,"x"),IF($A$7="E",COUNTIF(D$7:D24,"x"),IF($A$7="CEO",COUNTIF(E$7:E24,"x"),IF($A$7="CEQ",COUNTIF(F$7:F24,"x"),IF($A$7="CI",COUNTIF(G$7:G24,"x"),IF($A$7="PC",COUNTIF(H$7:H24,"x"),IF($A$7="DPI",COUNTIF(I$7:I24,"x"),IF($A$7="AP",COUNTIF(J$7:J24,"x"),IF($A$7="F",COUNTIF(K$7:K24,"x"),IF($A$7="CDE",COUNTIF(L$7:L24,"x"),IF($A$7="MR",COUNTIF(M$7:M24,"x"),IF($A$7="H",COUNTIF(N$7:N24,"x"),IF($A$7="NYD",COUNTIF(O$7:O24,"x"),IF($A$7="R",COUNTIF(P$7:P24,"x"),IF($A$7="MN",COUNTIF(Q$7:Q24,"x"),IF($A$7="CDH",COUNTIF(R$7:R24,"x"),IF($A$7="PNA",COUNTIF(S$7:S24,"x")," ")))))))))))))))))) -> 17 | B24: x | C24: x | D24: x | E24: x | F24: x | G24: x | H24: x | I24: x | J24: x | K24: x | L24: x | M24: x | N24: x | O24: x | P24: x | Q24: x | R24: x | S24: x | T24: HISTORIA CLINICA | U24: ='FICHA OCULTA'!G41 -> En caso de haberse producido un evento adverso, este ha sido registrado en la HCl o en algún medio de registro evidenciable. | V24: Q | W24: ='FICHA OCULTA'!$I$51 -> 0.5217391304
A25: =IF($A$7="CE",COUNTIF(B$7:B25,"x"),IF($A$7="HOS",COUNTIF(C$7:C25,"x"),IF($A$7="E",COUNTIF(D$7:D25,"x"),IF($A$7="CEO",COUNTIF(E$7:E25,"x"),IF($A$7="CEQ",COUNTIF(F$7:F25,"x"),IF($A$7="CI",COUNTIF(G$7:G25,"x"),IF($A$7="PC",COUNTIF(H$7:H25,"x"),IF($A$7="DPI",COUNTIF(I$7:I25,"x"),IF($A$7="AP",COUNTIF(J$7:J25,"x"),IF($A$7="F",COUNTIF(K$7:K25,"x"),IF($A$7="CDE",COUNTIF(L$7:L25,"x"),IF($A$7="MR",COUNTIF(M$7:M25,"x"),IF($A$7="H",COUNTIF(N$7:N25,"x"),IF($A$7="NYD",COUNTIF(O$7:O25,"x"),IF($A$7="R",COUNTIF(P$7:P25,"x"),IF($A$7="MN",COUNTIF(Q$7:Q25,"x"),IF($A$7="CDH",COUNTIF(R$7:R25,"x"),IF($A$7="PNA",COUNTIF(S$7:S25,"x")," ")))))))))))))))))) -> 18 | B25: x | C25: x | D25: x | E25: x | F25: x | G25: x | H25: x | I25: x | J25: x | K25: x | M25: x | N25: x | O25: x | P25: x | Q25: x | R25: x | S25: x | T25: HISTORIA CLINICA | U25: ='FICHA OCULTA'!G42 -> Registro completo del Consentimiento Informado de acuerdo a la normatividad vigente. | V25: R | W25: ='FICHA OCULTA'!$I$51 -> 0.5217391304
A26: =IF($A$7="CE",COUNTIF(B$7:B26,"x"),IF($A$7="HOS",COUNTIF(C$7:C26,"x"),IF($A$7="E",COUNTIF(D$7:D26,"x"),IF($A$7="CEO",COUNTIF(E$7:E26,"x"),IF($A$7="CEQ",COUNTIF(F$7:F26,"x"),IF($A$7="CI",COUNTIF(G$7:G26,"x"),IF($A$7="PC",COUNTIF(H$7:H26,"x"),IF($A$7="DPI",COUNTIF(I$7:I26,"x"),IF($A$7="AP",COUNTIF(J$7:J26,"x"),IF($A$7="F",COUNTIF(K$7:K26,"x"),IF($A$7="CDE",COUNTIF(L$7:L26,"x"),IF($A$7="MR",COUNTIF(M$7:M26,"x"),IF($A$7="H",COUNTIF(N$7:N26,"x"),IF($A$7="NYD",COUNTIF(O$7:O26,"x"),IF($A$7="R",COUNTIF(P$7:P26,"x"),IF($A$7="MN",COUNTIF(Q$7:Q26,"x"),IF($A$7="CDH",COUNTIF(R$7:R26,"x"),IF($A$7="PNA",COUNTIF(S$7:S26,"x")," ")))))))))))))))))) -> 19 | C26: x | D26: x | T26: HISTORIA CLINICA | U26: ='FICHA OCULTA'!G43 -> Registro de la fecha y hora del alta del paciente | V26: S | W26: ='FICHA OCULTA'!$I$51 -> 0.5217391304
A27: =IF($A$7="CE",COUNTIF(B$7:B27,"x"),IF($A$7="HOS",COUNTIF(C$7:C27,"x"),IF($A$7="E",COUNTIF(D$7:D27,"x"),IF($A$7="CEO",COUNTIF(E$7:E27,"x"),IF($A$7="CEQ",COUNTIF(F$7:F27,"x"),IF($A$7="CI",COUNTIF(G$7:G27,"x"),IF($A$7="PC",COUNTIF(H$7:H27,"x"),IF($A$7="DPI",COUNTIF(I$7:I27,"x"),IF($A$7="AP",COUNTIF(J$7:J27,"x"),IF($A$7="F",COUNTIF(K$7:K27,"x"),IF($A$7="CDE",COUNTIF(L$7:L27,"x"),IF($A$7="MR",COUNTIF(M$7:M27,"x"),IF($A$7="H",COUNTIF(N$7:N27,"x"),IF($A$7="NYD",COUNTIF(O$7:O27,"x"),IF($A$7="R",COUNTIF(P$7:P27,"x"),IF($A$7="MN",COUNTIF(Q$7:Q27,"x"),IF($A$7="CDH",COUNTIF(R$7:R27,"x"),IF($A$7="PNA",COUNTIF(S$7:S27,"x")," ")))))))))))))))))) -> 20 | C27: x | D27: x | T27: HISTORIA CLINICA | U27: ='FICHA OCULTA'!G44 -> Registro de las indicaciones de alta del paciente además de la epicrisis, incluyendo diagnóstico definitivo. | V27: T | W27: ='FICHA OCULTA'!$I$51 -> 0.5217391304
A28: =IF($A$7="CE",COUNTIF(B$7:B28,"x"),IF($A$7="HOS",COUNTIF(C$7:C28,"x"),IF($A$7="E",COUNTIF(D$7:D28,"x"),IF($A$7="CEO",COUNTIF(E$7:E28,"x"),IF($A$7="CEQ",COUNTIF(F$7:F28,"x"),IF($A$7="CI",COUNTIF(G$7:G28,"x"),IF($A$7="PC",COUNTIF(H$7:H28,"x"),IF($A$7="DPI",COUNTIF(I$7:I28,"x"),IF($A$7="AP",COUNTIF(J$7:J28,"x"),IF($A$7="F",COUNTIF(K$7:K28,"x"),IF($A$7="CDE",COUNTIF(L$7:L28,"x"),IF($A$7="MR",COUNTIF(M$7:M28,"x"),IF($A$7="H",COUNTIF(N$7:N28,"x"),IF($A$7="NYD",COUNTIF(O$7:O28,"x"),IF($A$7="R",COUNTIF(P$7:P28,"x"),IF($A$7="MN",COUNTIF(Q$7:Q28,"x"),IF($A$7="CDH",COUNTIF(R$7:R28,"x"),IF($A$7="PNA",COUNTIF(S$7:S28,"x")," ")))))))))))))))))) -> 21 | B28: x | C28: x | D28: x | E28: x | F28: x | G28: x | H28: x | I28: x | J28: x | K28: x | M28: x | N28: x | O28: x | P28: x | Q28: x | R28: x | S28: x | T28: HISTORIA CLINICA | U28: ='FICHA OCULTA'!G45 -> Registro de los informes de los procedimientos realizados al paciente. | V28: U | W28: ='FICHA OCULTA'!$I$51 -> 0.5217391304
A29: =IF($A$7="CE",COUNTIF(B$7:B29,"x"),IF($A$7="HOS",COUNTIF(C$7:C29,"x"),IF($A$7="E",COUNTIF(D$7:D29,"x"),IF($A$7="CEO",COUNTIF(E$7:E29,"x"),IF($A$7="CEQ",COUNTIF(F$7:F29,"x"),IF($A$7="CI",COUNTIF(G$7:G29,"x"),IF($A$7="PC",COUNTIF(H$7:H29,"x"),IF($A$7="DPI",COUNTIF(I$7:I29,"x"),IF($A$7="AP",COUNTIF(J$7:J29,"x"),IF($A$7="F",COUNTIF(K$7:K29,"x"),IF($A$7="CDE",COUNTIF(L$7:L29,"x"),IF($A$7="MR",COUNTIF(M$7:M29,"x"),IF($A$7="H",COUNTIF(N$7:N29,"x"),IF($A$7="NYD",COUNTIF(O$7:O29,"x"),IF($A$7="R",COUNTIF(P$7:P29,"x"),IF($A$7="MN",COUNTIF(Q$7:Q29,"x"),IF($A$7="CDH",COUNTIF(R$7:R29,"x"),IF($A$7="PNA",COUNTIF(S$7:S29,"x")," ")))))))))))))))))) -> 22 | B29: x | C29: x | D29: x | S29: x | T29: HISTORIA CLINICA | U29: ='FICHA OCULTA'!G46 -> Registro de la Contrarreferencia del paciente | V29: V | W29: ='FICHA OCULTA'!$I$51 -> 0.5217391304
A30: =IF($A$7="CE",COUNTIF(B$7:B30,"x"),IF($A$7="HOS",COUNTIF(C$7:C30,"x"),IF($A$7="E",COUNTIF(D$7:D30,"x"),IF($A$7="CEO",COUNTIF(E$7:E30,"x"),IF($A$7="CEQ",COUNTIF(F$7:F30,"x"),IF($A$7="CI",COUNTIF(G$7:G30,"x"),IF($A$7="PC",COUNTIF(H$7:H30,"x"),IF($A$7="DPI",COUNTIF(I$7:I30,"x"),IF($A$7="AP",COUNTIF(J$7:J30,"x"),IF($A$7="F",COUNTIF(K$7:K30,"x"),IF($A$7="CDE",COUNTIF(L$7:L30,"x"),IF($A$7="MR",COUNTIF(M$7:M30,"x"),IF($A$7="H",COUNTIF(N$7:N30,"x"),IF($A$7="NYD",COUNTIF(O$7:O30,"x"),IF($A$7="R",COUNTIF(P$7:P30,"x"),IF($A$7="MN",COUNTIF(Q$7:Q30,"x"),IF($A$7="CDH",COUNTIF(R$7:R30,"x"),IF($A$7="PNA",COUNTIF(S$7:S30,"x")," ")))))))))))))))))) -> 23 | B30: x | C30: x | D30: x | E30: x | F30: x | G30: x | H30: x | I30: x | J30: x | K30: x | M30: x | N30: x | O30: x | P30: x | Q30: x | R30: x | S30: x | T30: HISTORIA CLINICA | U30: ='FICHA OCULTA'!G47 -> La letra de la Historia Clínica es legible | V30: W | W30: ='FICHA OCULTA'!$I$51 -> 0.5217391304
A31: =IF($A$7="CE",COUNTIF(B$7:B31,"x"),IF($A$7="HOS",COUNTIF(C$7:C31,"x"),IF($A$7="E",COUNTIF(D$7:D31,"x"),IF($A$7="CEO",COUNTIF(E$7:E31,"x"),IF($A$7="CEQ",COUNTIF(F$7:F31,"x"),IF($A$7="CI",COUNTIF(G$7:G31,"x"),IF($A$7="PC",COUNTIF(H$7:H31,"x"),IF($A$7="DPI",COUNTIF(I$7:I31,"x"),IF($A$7="AP",COUNTIF(J$7:J31,"x"),IF($A$7="F",COUNTIF(K$7:K31,"x"),IF($A$7="CDE",COUNTIF(L$7:L31,"x"),IF($A$7="MR",COUNTIF(M$7:M31,"x"),IF($A$7="H",COUNTIF(N$7:N31,"x"),IF($A$7="NYD",COUNTIF(O$7:O31,"x"),IF($A$7="R",COUNTIF(P$7:P31,"x"),IF($A$7="MN",COUNTIF(Q$7:Q31,"x"),IF($A$7="CDH",COUNTIF(R$7:R31,"x"),IF($A$7="PNA",COUNTIF(S$7:S31,"x")," ")))))))))))))))))) -> 24 | B31: x | C31: x | D31: x | E31: x | F31: x | G31: x | H31: x | I31: x | J31: x | K31: x | M31: x | N31: x | O31: x | P31: x | Q31: x | R31: x | S31: x | T31: HISTORIA CLINICA | U31: ='FICHA OCULTA'!G48 -> Historia clínica ordenada y limpia. | V31: X | W31: ='FICHA OCULTA'!$I$51 -> 0.5217391304
A32: =IF($A$7="CE",COUNTIF(B$7:B32,"x"),IF($A$7="HOS",COUNTIF(C$7:C32,"x"),IF($A$7="E",COUNTIF(D$7:D32,"x"),IF($A$7="CEO",COUNTIF(E$7:E32,"x"),IF($A$7="CEQ",COUNTIF(F$7:F32,"x"),IF($A$7="CI",COUNTIF(G$7:G32,"x"),IF($A$7="PC",COUNTIF(H$7:H32,"x"),IF($A$7="DPI",COUNTIF(I$7:I32,"x"),IF($A$7="AP",COUNTIF(J$7:J32,"x"),IF($A$7="F",COUNTIF(K$7:K32,"x"),IF($A$7="CDE",COUNTIF(L$7:L32,"x"),IF($A$7="MR",COUNTIF(M$7:M32,"x"),IF($A$7="H",COUNTIF(N$7:N32,"x"),IF($A$7="NYD",COUNTIF(O$7:O32,"x"),IF($A$7="R",COUNTIF(P$7:P32,"x"),IF($A$7="MN",COUNTIF(Q$7:Q32,"x"),IF($A$7="CDH",COUNTIF(R$7:R32,"x"),IF($A$7="PNA",COUNTIF(S$7:S32,"x")," ")))))))))))))))))) -> 25 | C32: x | D32: x | G32: x | T32: SEGURIDAD EN LA UPSS | U32: ='FICHA OCULTA'!G53 -> Las Interconsultas se gestionan oportunamente durante el turno. | V32: Y | W32: ='FICHA OCULTA'!$I$89 -> 0.4166666667
A33: =IF($A$7="CE",COUNTIF(B$7:B33,"x"),IF($A$7="HOS",COUNTIF(C$7:C33,"x"),IF($A$7="E",COUNTIF(D$7:D33,"x"),IF($A$7="CEO",COUNTIF(E$7:E33,"x"),IF($A$7="CEQ",COUNTIF(F$7:F33,"x"),IF($A$7="CI",COUNTIF(G$7:G33,"x"),IF($A$7="PC",COUNTIF(H$7:H33,"x"),IF($A$7="DPI",COUNTIF(I$7:I33,"x"),IF($A$7="AP",COUNTIF(J$7:J33,"x"),IF($A$7="F",COUNTIF(K$7:K33,"x"),IF($A$7="CDE",COUNTIF(L$7:L33,"x"),IF($A$7="MR",COUNTIF(M$7:M33,"x"),IF($A$7="H",COUNTIF(N$7:N33,"x"),IF($A$7="NYD",COUNTIF(O$7:O33,"x"),IF($A$7="R",COUNTIF(P$7:P33,"x"),IF($A$7="MN",COUNTIF(Q$7:Q33,"x"),IF($A$7="CDH",COUNTIF(R$7:R33,"x"),IF($A$7="PNA",COUNTIF(S$7:S33,"x")," ")))))))))))))))))) -> 26 | C33: x | D33: x | G33: x | T33: SEGURIDAD EN LA UPSS | U33: ='FICHA OCULTA'!G54 -> La solicitud de procedimientos de ayuda al diagnóstico y tratamiento se gestionan oportunamente durante el turno. | V33: Z | W33: ='FICHA OCULTA'!$I$89 -> 0.4166666667
A34: =IF($A$7="CE",COUNTIF(B$7:B34,"x"),IF($A$7="HOS",COUNTIF(C$7:C34,"x"),IF($A$7="E",COUNTIF(D$7:D34,"x"),IF($A$7="CEO",COUNTIF(E$7:E34,"x"),IF($A$7="CEQ",COUNTIF(F$7:F34,"x"),IF($A$7="CI",COUNTIF(G$7:G34,"x"),IF($A$7="PC",COUNTIF(H$7:H34,"x"),IF($A$7="DPI",COUNTIF(I$7:I34,"x"),IF($A$7="AP",COUNTIF(J$7:J34,"x"),IF($A$7="F",COUNTIF(K$7:K34,"x"),IF($A$7="CDE",COUNTIF(L$7:L34,"x"),IF($A$7="MR",COUNTIF(M$7:M34,"x"),IF($A$7="H",COUNTIF(N$7:N34,"x"),IF($A$7="NYD",COUNTIF(O$7:O34,"x"),IF($A$7="R",COUNTIF(P$7:P34,"x"),IF($A$7="MN",COUNTIF(Q$7:Q34,"x"),IF($A$7="CDH",COUNTIF(R$7:R34,"x"),IF($A$7="PNA",COUNTIF(S$7:S34,"x")," ")))))))))))))))))) -> 27 | C34: x | D34: x | G34: x | T34: SEGURIDAD EN LA UPSS | U34: ='FICHA OCULTA'!G55 -> La solicitud de medicamentos e insumos se gestionan oportunamente durante el turno. | V34: AA | W34: ='FICHA OCULTA'!$I$89 -> 0.4166666667
A35: =IF($A$7="CE",COUNTIF(B$7:B35,"x"),IF($A$7="HOS",COUNTIF(C$7:C35,"x"),IF($A$7="E",COUNTIF(D$7:D35,"x"),IF($A$7="CEO",COUNTIF(E$7:E35,"x"),IF($A$7="CEQ",COUNTIF(F$7:F35,"x"),IF($A$7="CI",COUNTIF(G$7:G35,"x"),IF($A$7="PC",COUNTIF(H$7:H35,"x"),IF($A$7="DPI",COUNTIF(I$7:I35,"x"),IF($A$7="AP",COUNTIF(J$7:J35,"x"),IF($A$7="F",COUNTIF(K$7:K35,"x"),IF($A$7="CDE",COUNTIF(L$7:L35,"x"),IF($A$7="MR",COUNTIF(M$7:M35,"x"),IF($A$7="H",COUNTIF(N$7:N35,"x"),IF($A$7="NYD",COUNTIF(O$7:O35,"x"),IF($A$7="R",COUNTIF(P$7:P35,"x"),IF($A$7="MN",COUNTIF(Q$7:Q35,"x"),IF($A$7="CDH",COUNTIF(R$7:R35,"x"),IF($A$7="PNA",COUNTIF(S$7:S35,"x")," ")))))))))))))))))) -> 28 | C35: x | D35: x | G35: x | O35: x | T35: SEGURIDAD EN LA UPSS | U35: ='FICHA OCULTA'!G56 -> Cumplimiento de las indicaciones de la dieta del paciente según indicación del médico tratante. | V35: AB | W35: ='FICHA OCULTA'!$I$89 -> 0.4166666667
A36: =IF($A$7="CE",COUNTIF(B$7:B36,"x"),IF($A$7="HOS",COUNTIF(C$7:C36,"x"),IF($A$7="E",COUNTIF(D$7:D36,"x"),IF($A$7="CEO",COUNTIF(E$7:E36,"x"),IF($A$7="CEQ",COUNTIF(F$7:F36,"x"),IF($A$7="CI",COUNTIF(G$7:G36,"x"),IF($A$7="PC",COUNTIF(H$7:H36,"x"),IF($A$7="DPI",COUNTIF(I$7:I36,"x"),IF($A$7="AP",COUNTIF(J$7:J36,"x"),IF($A$7="F",COUNTIF(K$7:K36,"x"),IF($A$7="CDE",COUNTIF(L$7:L36,"x"),IF($A$7="MR",COUNTIF(M$7:M36,"x"),IF($A$7="H",COUNTIF(N$7:N36,"x"),IF($A$7="NYD",COUNTIF(O$7:O36,"x"),IF($A$7="R",COUNTIF(P$7:P36,"x"),IF($A$7="MN",COUNTIF(Q$7:Q36,"x"),IF($A$7="CDH",COUNTIF(R$7:R36,"x"),IF($A$7="PNA",COUNTIF(S$7:S36,"x")," ")))))))))))))))))) -> 29 | B36: x | C36: x | D36: x | E36: x | F36: x | G36: x | H36: x | I36: x | J36: x | K36: x | L36: x | M36: x | N36: x | O36: x | P36: x | Q36: x | R36: x | T36: SEGURIDAD EN LA UPSS | U36: ='FICHA OCULTA'!G57 -> Cumplimiento y verificación de la asistencia y permanencia del personal programado en el servicio para garantizar la atención oportuna de los pacientes. | V36: AC | W36: ='FICHA OCULTA'!$I$89 -> 0.4166666667
A37: =IF($A$7="CE",COUNTIF(B$7:B37,"x"),IF($A$7="HOS",COUNTIF(C$7:C37,"x"),IF($A$7="E",COUNTIF(D$7:D37,"x"),IF($A$7="CEO",COUNTIF(E$7:E37,"x"),IF($A$7="CEQ",COUNTIF(F$7:F37,"x"),IF($A$7="CI",COUNTIF(G$7:G37,"x"),IF($A$7="PC",COUNTIF(H$7:H37,"x"),IF($A$7="DPI",COUNTIF(I$7:I37,"x"),IF($A$7="AP",COUNTIF(J$7:J37,"x"),IF($A$7="F",COUNTIF(K$7:K37,"x"),IF($A$7="CDE",COUNTIF(L$7:L37,"x"),IF($A$7="MR",COUNTIF(M$7:M37,"x"),IF($A$7="H",COUNTIF(N$7:N37,"x"),IF($A$7="NYD",COUNTIF(O$7:O37,"x"),IF($A$7="R",COUNTIF(P$7:P37,"x"),IF($A$7="MN",COUNTIF(Q$7:Q37,"x"),IF($A$7="CDH",COUNTIF(R$7:R37,"x"),IF($A$7="PNA",COUNTIF(S$7:S37,"x")," ")))))))))))))))))) -> 30 | B37: x | C37: x | D37: x | E37: x | F37: x | G37: x | H37: x | I37: x | J37: x | K37: x | L37: x | M37: x | N37: x | O37: x | P37: x | Q37: x | R37: x | S37: x | T37: SEGURIDAD EN LA UPSS | U37: ='FICHA OCULTA'!G58 -> Mecanismo de reemplazo para cubrir la ausencia del personal programado en el servicio a fin de garantizar la atención de los pacientes. | V37: AD | W37: ='FICHA OCULTA'!$I$89 -> 0.4166666667
A38: =IF($A$7="CE",COUNTIF(B$7:B38,"x"),IF($A$7="HOS",COUNTIF(C$7:C38,"x"),IF($A$7="E",COUNTIF(D$7:D38,"x"),IF($A$7="CEO",COUNTIF(E$7:E38,"x"),IF($A$7="CEQ",COUNTIF(F$7:F38,"x"),IF($A$7="CI",COUNTIF(G$7:G38,"x"),IF($A$7="PC",COUNTIF(H$7:H38,"x"),IF($A$7="DPI",COUNTIF(I$7:I38,"x"),IF($A$7="AP",COUNTIF(J$7:J38,"x"),IF($A$7="F",COUNTIF(K$7:K38,"x"),IF($A$7="CDE",COUNTIF(L$7:L38,"x"),IF($A$7="MR",COUNTIF(M$7:M38,"x"),IF($A$7="H",COUNTIF(N$7:N38,"x"),IF($A$7="NYD",COUNTIF(O$7:O38,"x"),IF($A$7="R",COUNTIF(P$7:P38,"x"),IF($A$7="MN",COUNTIF(Q$7:Q38,"x"),IF($A$7="CDH",COUNTIF(R$7:R38,"x"),IF($A$7="PNA",COUNTIF(S$7:S38,"x")," ")))))))))))))))))) -> 31 | B38: x | C38: x | D38: x | E38: x | F38: x | G38: x | H38: x | I38: x | J38: x | K38: x | L38: x | M38: x | N38: x | O38: x | P38: x | Q38: x | R38: x | S38: x | T38: SEGURIDAD EN LA UPSS | U38: ='FICHA OCULTA'!G59 -> Personal en formación (internos, residentes, especialidad u otros) demuestran que tienen un personal asistencial que cumple el rol de tutoría y supervisión. | V38: AE | W38: ='FICHA OCULTA'!$I$89 -> 0.4166666667
A39: =IF($A$7="CE",COUNTIF(B$7:B39,"x"),IF($A$7="HOS",COUNTIF(C$7:C39,"x"),IF($A$7="E",COUNTIF(D$7:D39,"x"),IF($A$7="CEO",COUNTIF(E$7:E39,"x"),IF($A$7="CEQ",COUNTIF(F$7:F39,"x"),IF($A$7="CI",COUNTIF(G$7:G39,"x"),IF($A$7="PC",COUNTIF(H$7:H39,"x"),IF($A$7="DPI",COUNTIF(I$7:I39,"x"),IF($A$7="AP",COUNTIF(J$7:J39,"x"),IF($A$7="F",COUNTIF(K$7:K39,"x"),IF($A$7="CDE",COUNTIF(L$7:L39,"x"),IF($A$7="MR",COUNTIF(M$7:M39,"x"),IF($A$7="H",COUNTIF(N$7:N39,"x"),IF($A$7="NYD",COUNTIF(O$7:O39,"x"),IF($A$7="R",COUNTIF(P$7:P39,"x"),IF($A$7="MN",COUNTIF(Q$7:Q39,"x"),IF($A$7="CDH",COUNTIF(R$7:R39,"x"),IF($A$7="PNA",COUNTIF(S$7:S39,"x")," ")))))))))))))))))) -> 32 | B39: x | C39: x | D39: x | E39: x | F39: x | G39: x | H39: x | I39: x | J39: x | K39: x | L39: x | M39: x | N39: x | O39: x | P39: x | Q39: x | R39: x | S39: x | T39: SEGURIDAD EN LA UPSS | U39: ='FICHA OCULTA'!G60 -> Personal conoce del sistema de registro y notificación de incidentes y eventos adversos. | V39: AF | W39: ='FICHA OCULTA'!$I$89 -> 0.4166666667
A40: =IF($A$7="CE",COUNTIF(B$7:B40,"x"),IF($A$7="HOS",COUNTIF(C$7:C40,"x"),IF($A$7="E",COUNTIF(D$7:D40,"x"),IF($A$7="CEO",COUNTIF(E$7:E40,"x"),IF($A$7="CEQ",COUNTIF(F$7:F40,"x"),IF($A$7="CI",COUNTIF(G$7:G40,"x"),IF($A$7="PC",COUNTIF(H$7:H40,"x"),IF($A$7="DPI",COUNTIF(I$7:I40,"x"),IF($A$7="AP",COUNTIF(J$7:J40,"x"),IF($A$7="F",COUNTIF(K$7:K40,"x"),IF($A$7="CDE",COUNTIF(L$7:L40,"x"),IF($A$7="MR",COUNTIF(M$7:M40,"x"),IF($A$7="H",COUNTIF(N$7:N40,"x"),IF($A$7="NYD",COUNTIF(O$7:O40,"x"),IF($A$7="R",COUNTIF(P$7:P40,"x"),IF($A$7="MN",COUNTIF(Q$7:Q40,"x"),IF($A$7="CDH",COUNTIF(R$7:R40,"x"),IF($A$7="PNA",COUNTIF(S$7:S40,"x")," ")))))))))))))))))) -> 33 | B40: x | C40: x | D40: x | E40: x | F40: x | G40: x | H40: x | I40: x | J40: x | K40: x | L40: x | M40: x | N40: x | O40: x | P40: x | Q40: x | R40: x | S40: x | T40: SEGURIDAD EN LA UPSS | U40: ='FICHA OCULTA'!G61 -> Registro físico y/o virtual de los incidentes y eventos adversos en la UPSS. | V40: AG | W40: ='FICHA OCULTA'!$I$89 -> 0.4166666667
A41: =IF($A$7="CE",COUNTIF(B$7:B41,"x"),IF($A$7="HOS",COUNTIF(C$7:C41,"x"),IF($A$7="E",COUNTIF(D$7:D41,"x"),IF($A$7="CEO",COUNTIF(E$7:E41,"x"),IF($A$7="CEQ",COUNTIF(F$7:F41,"x"),IF($A$7="CI",COUNTIF(G$7:G41,"x"),IF($A$7="PC",COUNTIF(H$7:H41,"x"),IF($A$7="DPI",COUNTIF(I$7:I41,"x"),IF($A$7="AP",COUNTIF(J$7:J41,"x"),IF($A$7="F",COUNTIF(K$7:K41,"x"),IF($A$7="CDE",COUNTIF(L$7:L41,"x"),IF($A$7="MR",COUNTIF(M$7:M41,"x"),IF($A$7="H",COUNTIF(N$7:N41,"x"),IF($A$7="NYD",COUNTIF(O$7:O41,"x"),IF($A$7="R",COUNTIF(P$7:P41,"x"),IF($A$7="MN",COUNTIF(Q$7:Q41,"x"),IF($A$7="CDH",COUNTIF(R$7:R41,"x"),IF($A$7="PNA",COUNTIF(S$7:S41,"x")," ")))))))))))))))))) -> 34 | B41: x | C41: x | D41: x | E41: x | F41: x | G41: x | H41: x | I41: x | J41: x | K41: x | L41: x | M41: x | N41: x | O41: x | P41: x | Q41: x | R41: x | S41: x | T41: SEGURIDAD EN LA UPSS | U41: ='FICHA OCULTA'!G62 -> Análisis y plan de intervención sobre la información de los incidentes y eventos adversos. | V41: AH | W41: ='FICHA OCULTA'!$I$89 -> 0.4166666667
A42: =IF($A$7="CE",COUNTIF(B$7:B42,"x"),IF($A$7="HOS",COUNTIF(C$7:C42,"x"),IF($A$7="E",COUNTIF(D$7:D42,"x"),IF($A$7="CEO",COUNTIF(E$7:E42,"x"),IF($A$7="CEQ",COUNTIF(F$7:F42,"x"),IF($A$7="CI",COUNTIF(G$7:G42,"x"),IF($A$7="PC",COUNTIF(H$7:H42,"x"),IF($A$7="DPI",COUNTIF(I$7:I42,"x"),IF($A$7="AP",COUNTIF(J$7:J42,"x"),IF($A$7="F",COUNTIF(K$7:K42,"x"),IF($A$7="CDE",COUNTIF(L$7:L42,"x"),IF($A$7="MR",COUNTIF(M$7:M42,"x"),IF($A$7="H",COUNTIF(N$7:N42,"x"),IF($A$7="NYD",COUNTIF(O$7:O42,"x"),IF($A$7="R",COUNTIF(P$7:P42,"x"),IF($A$7="MN",COUNTIF(Q$7:Q42,"x"),IF($A$7="CDH",COUNTIF(R$7:R42,"x"),IF($A$7="PNA",COUNTIF(S$7:S42,"x")," ")))))))))))))))))) -> 35 | B42: x | C42: x | D42: x | E42: x | F42: x | G42: x | H42: x | I42: x | J42: x | K42: x | L42: x | M42: x | N42: x | O42: x | P42: x | Q42: x | R42: x | S42: x | T42: SEGURIDAD EN LA UPSS | U42: ='FICHA OCULTA'!G63 -> Registro físico o digital de notificación de accidentes de trabajo del personal asistencial. | V42: AI | W42: ='FICHA OCULTA'!$I$89 -> 0.4166666667
A43: =IF($A$7="CE",COUNTIF(B$7:B43,"x"),IF($A$7="HOS",COUNTIF(C$7:C43,"x"),IF($A$7="E",COUNTIF(D$7:D43,"x"),IF($A$7="CEO",COUNTIF(E$7:E43,"x"),IF($A$7="CEQ",COUNTIF(F$7:F43,"x"),IF($A$7="CI",COUNTIF(G$7:G43,"x"),IF($A$7="PC",COUNTIF(H$7:H43,"x"),IF($A$7="DPI",COUNTIF(I$7:I43,"x"),IF($A$7="AP",COUNTIF(J$7:J43,"x"),IF($A$7="F",COUNTIF(K$7:K43,"x"),IF($A$7="CDE",COUNTIF(L$7:L43,"x"),IF($A$7="MR",COUNTIF(M$7:M43,"x"),IF($A$7="H",COUNTIF(N$7:N43,"x"),IF($A$7="NYD",COUNTIF(O$7:O43,"x"),IF($A$7="R",COUNTIF(P$7:P43,"x"),IF($A$7="MN",COUNTIF(Q$7:Q43,"x"),IF($A$7="CDH",COUNTIF(R$7:R43,"x"),IF($A$7="PNA",COUNTIF(S$7:S43,"x")," ")))))))))))))))))) -> 36 | B43: x | C43: x | D43: x | E43: x | F43: x | G43: x | H43: x | I43: x | J43: x | K43: x | L43: x | M43: x | N43: x | O43: x | P43: x | Q43: x | R43: x | S43: x | T43: SEGURIDAD EN LA UPSS | U43: ='FICHA OCULTA'!G64 -> Utilización del formato de consentimiento informado para actividades de docencia. | V43: AJ | W43: ='FICHA OCULTA'!$I$89 -> 0.4166666667
A44: =IF($A$7="CE",COUNTIF(B$7:B44,"x"),IF($A$7="HOS",COUNTIF(C$7:C44,"x"),IF($A$7="E",COUNTIF(D$7:D44,"x"),IF($A$7="CEO",COUNTIF(E$7:E44,"x"),IF($A$7="CEQ",COUNTIF(F$7:F44,"x"),IF($A$7="CI",COUNTIF(G$7:G44,"x"),IF($A$7="PC",COUNTIF(H$7:H44,"x"),IF($A$7="DPI",COUNTIF(I$7:I44,"x"),IF($A$7="AP",COUNTIF(J$7:J44,"x"),IF($A$7="F",COUNTIF(K$7:K44,"x"),IF($A$7="CDE",COUNTIF(L$7:L44,"x"),IF($A$7="MR",COUNTIF(M$7:M44,"x"),IF($A$7="H",COUNTIF(N$7:N44,"x"),IF($A$7="NYD",COUNTIF(O$7:O44,"x"),IF($A$7="R",COUNTIF(P$7:P44,"x"),IF($A$7="MN",COUNTIF(Q$7:Q44,"x"),IF($A$7="CDH",COUNTIF(R$7:R44,"x"),IF($A$7="PNA",COUNTIF(S$7:S44,"x")," ")))))))))))))))))) -> 37 | C44: x | D44: x | G44: x | T44: SEGURIDAD EN LA UPSS | U44: ='FICHA OCULTA'!G65 -> Timbre o sistema de llamado se encuentra cerca del paciente y está operativo. | V44: AK | W44: ='FICHA OCULTA'!$I$89 -> 0.4166666667
A45: =IF($A$7="CE",COUNTIF(B$7:B45,"x"),IF($A$7="HOS",COUNTIF(C$7:C45,"x"),IF($A$7="E",COUNTIF(D$7:D45,"x"),IF($A$7="CEO",COUNTIF(E$7:E45,"x"),IF($A$7="CEQ",COUNTIF(F$7:F45,"x"),IF($A$7="CI",COUNTIF(G$7:G45,"x"),IF($A$7="PC",COUNTIF(H$7:H45,"x"),IF($A$7="DPI",COUNTIF(I$7:I45,"x"),IF($A$7="AP",COUNTIF(J$7:J45,"x"),IF($A$7="F",COUNTIF(K$7:K45,"x"),IF($A$7="CDE",COUNTIF(L$7:L45,"x"),IF($A$7="MR",COUNTIF(M$7:M45,"x"),IF($A$7="H",COUNTIF(N$7:N45,"x"),IF($A$7="NYD",COUNTIF(O$7:O45,"x"),IF($A$7="R",COUNTIF(P$7:P45,"x"),IF($A$7="MN",COUNTIF(Q$7:Q45,"x"),IF($A$7="CDH",COUNTIF(R$7:R45,"x"),IF($A$7="PNA",COUNTIF(S$7:S45,"x")," ")))))))))))))))))) -> 38 | C45: x | D45: x | E45: x | F45: x | G45: x | I45: x | P45: x | Q45: x | R45: x | T45: SEGURIDAD EN LA UPSS | U45: ='FICHA OCULTA'!G66 -> Barandas de las camas funcionan y están levantadas para proteger al paciente. | V45: AL | W45: ='FICHA OCULTA'!$I$89 -> 0.4166666667
A46: =IF($A$7="CE",COUNTIF(B$7:B46,"x"),IF($A$7="HOS",COUNTIF(C$7:C46,"x"),IF($A$7="E",COUNTIF(D$7:D46,"x"),IF($A$7="CEO",COUNTIF(E$7:E46,"x"),IF($A$7="CEQ",COUNTIF(F$7:F46,"x"),IF($A$7="CI",COUNTIF(G$7:G46,"x"),IF($A$7="PC",COUNTIF(H$7:H46,"x"),IF($A$7="DPI",COUNTIF(I$7:I46,"x"),IF($A$7="AP",COUNTIF(J$7:J46,"x"),IF($A$7="F",COUNTIF(K$7:K46,"x"),IF($A$7="CDE",COUNTIF(L$7:L46,"x"),IF($A$7="MR",COUNTIF(M$7:M46,"x"),IF($A$7="H",COUNTIF(N$7:N46,"x"),IF($A$7="NYD",COUNTIF(O$7:O46,"x"),IF($A$7="R",COUNTIF(P$7:P46,"x"),IF($A$7="MN",COUNTIF(Q$7:Q46,"x"),IF($A$7="CDH",COUNTIF(R$7:R46,"x"),IF($A$7="PNA",COUNTIF(S$7:S46,"x")," ")))))))))))))))))) -> 38 | B46: x | S46: x | T46: SEGURIDAD EN LA UPSS | U46: ='FICHA OCULTA'!G67 -> En Consultorio Obstetrico / Emergencia Obstétrica se evidencia el uso de gestogramas. | V46: AM | W46: ='FICHA OCULTA'!$I$89 -> 0.4166666667
A47: =IF($A$7="CE",COUNTIF(B$7:B47,"x"),IF($A$7="HOS",COUNTIF(C$7:C47,"x"),IF($A$7="E",COUNTIF(D$7:D47,"x"),IF($A$7="CEO",COUNTIF(E$7:E47,"x"),IF($A$7="CEQ",COUNTIF(F$7:F47,"x"),IF($A$7="CI",COUNTIF(G$7:G47,"x"),IF($A$7="PC",COUNTIF(H$7:H47,"x"),IF($A$7="DPI",COUNTIF(I$7:I47,"x"),IF($A$7="AP",COUNTIF(J$7:J47,"x"),IF($A$7="F",COUNTIF(K$7:K47,"x"),IF($A$7="CDE",COUNTIF(L$7:L47,"x"),IF($A$7="MR",COUNTIF(M$7:M47,"x"),IF($A$7="H",COUNTIF(N$7:N47,"x"),IF($A$7="NYD",COUNTIF(O$7:O47,"x"),IF($A$7="R",COUNTIF(P$7:P47,"x"),IF($A$7="MN",COUNTIF(Q$7:Q47,"x"),IF($A$7="CDH",COUNTIF(R$7:R47,"x"),IF($A$7="PNA",COUNTIF(S$7:S47,"x")," ")))))))))))))))))) -> 38 | E47: x | T47: SEGURIDAD EN LA UPSS | U47: ='FICHA OCULTA'!G68 -> En Centro Obstetrico se evidencia el uso de partogramas con línea de alerta. | V47: AN | W47: ='FICHA OCULTA'!$I$89 -> 0.4166666667
A48: =IF($A$7="CE",COUNTIF(B$7:B48,"x"),IF($A$7="HOS",COUNTIF(C$7:C48,"x"),IF($A$7="E",COUNTIF(D$7:D48,"x"),IF($A$7="CEO",COUNTIF(E$7:E48,"x"),IF($A$7="CEQ",COUNTIF(F$7:F48,"x"),IF($A$7="CI",COUNTIF(G$7:G48,"x"),IF($A$7="PC",COUNTIF(H$7:H48,"x"),IF($A$7="DPI",COUNTIF(I$7:I48,"x"),IF($A$7="AP",COUNTIF(J$7:J48,"x"),IF($A$7="F",COUNTIF(K$7:K48,"x"),IF($A$7="CDE",COUNTIF(L$7:L48,"x"),IF($A$7="MR",COUNTIF(M$7:M48,"x"),IF($A$7="H",COUNTIF(N$7:N48,"x"),IF($A$7="NYD",COUNTIF(O$7:O48,"x"),IF($A$7="R",COUNTIF(P$7:P48,"x"),IF($A$7="MN",COUNTIF(Q$7:Q48,"x"),IF($A$7="CDH",COUNTIF(R$7:R48,"x"),IF($A$7="PNA",COUNTIF(S$7:S48,"x")," ")))))))))))))))))) -> 38 | E48: x | T48: SEGURIDAD EN LA UPSS | U48: ='FICHA OCULTA'!G69 -> En Centro Obstetrico se evidencia que cuenta con Doppler fetal portátil operativo. | V48: AO | W48: ='FICHA OCULTA'!$I$89 -> 0.4166666667
A49: =IF($A$7="CE",COUNTIF(B$7:B49,"x"),IF($A$7="HOS",COUNTIF(C$7:C49,"x"),IF($A$7="E",COUNTIF(D$7:D49,"x"),IF($A$7="CEO",COUNTIF(E$7:E49,"x"),IF($A$7="CEQ",COUNTIF(F$7:F49,"x"),IF($A$7="CI",COUNTIF(G$7:G49,"x"),IF($A$7="PC",COUNTIF(H$7:H49,"x"),IF($A$7="DPI",COUNTIF(I$7:I49,"x"),IF($A$7="AP",COUNTIF(J$7:J49,"x"),IF($A$7="F",COUNTIF(K$7:K49,"x"),IF($A$7="CDE",COUNTIF(L$7:L49,"x"),IF($A$7="MR",COUNTIF(M$7:M49,"x"),IF($A$7="H",COUNTIF(N$7:N49,"x"),IF($A$7="NYD",COUNTIF(O$7:O49,"x"),IF($A$7="R",COUNTIF(P$7:P49,"x"),IF($A$7="MN",COUNTIF(Q$7:Q49,"x"),IF($A$7="CDH",COUNTIF(R$7:R49,"x"),IF($A$7="PNA",COUNTIF(S$7:S49,"x")," ")))))))))))))))))) -> 38 | E49: x | T49: SEGURIDAD EN LA UPSS | U49: ='FICHA OCULTA'!G70 -> En Centro Obstetrico se evidencia que cuenta con Monitor fetal o Cardiotocógrafo operativo. | V49: AP | W49: ='FICHA OCULTA'!$I$89 -> 0.4166666667
A50: =IF($A$7="CE",COUNTIF(B$7:B50,"x"),IF($A$7="HOS",COUNTIF(C$7:C50,"x"),IF($A$7="E",COUNTIF(D$7:D50,"x"),IF($A$7="CEO",COUNTIF(E$7:E50,"x"),IF($A$7="CEQ",COUNTIF(F$7:F50,"x"),IF($A$7="CI",COUNTIF(G$7:G50,"x"),IF($A$7="PC",COUNTIF(H$7:H50,"x"),IF($A$7="DPI",COUNTIF(I$7:I50,"x"),IF($A$7="AP",COUNTIF(J$7:J50,"x"),IF($A$7="F",COUNTIF(K$7:K50,"x"),IF($A$7="CDE",COUNTIF(L$7:L50,"x"),IF($A$7="MR",COUNTIF(M$7:M50,"x"),IF($A$7="H",COUNTIF(N$7:N50,"x"),IF($A$7="NYD",COUNTIF(O$7:O50,"x"),IF($A$7="R",COUNTIF(P$7:P50,"x"),IF($A$7="MN",COUNTIF(Q$7:Q50,"x"),IF($A$7="CDH",COUNTIF(R$7:R50,"x"),IF($A$7="PNA",COUNTIF(S$7:S50,"x")," ")))))))))))))))))) -> 38 | E50: x | T50: SEGURIDAD EN LA UPSS | U50: ='FICHA OCULTA'!G71 -> En Centro Obstetrico se evidencia que cuenta con Ecógrafo operativo. | V50: AQ | W50: ='FICHA OCULTA'!$I$89 -> 0.4166666667
A51: =IF($A$7="CE",COUNTIF(B$7:B51,"x"),IF($A$7="HOS",COUNTIF(C$7:C51,"x"),IF($A$7="E",COUNTIF(D$7:D51,"x"),IF($A$7="CEO",COUNTIF(E$7:E51,"x"),IF($A$7="CEQ",COUNTIF(F$7:F51,"x"),IF($A$7="CI",COUNTIF(G$7:G51,"x"),IF($A$7="PC",COUNTIF(H$7:H51,"x"),IF($A$7="DPI",COUNTIF(I$7:I51,"x"),IF($A$7="AP",COUNTIF(J$7:J51,"x"),IF($A$7="F",COUNTIF(K$7:K51,"x"),IF($A$7="CDE",COUNTIF(L$7:L51,"x"),IF($A$7="MR",COUNTIF(M$7:M51,"x"),IF($A$7="H",COUNTIF(N$7:N51,"x"),IF($A$7="NYD",COUNTIF(O$7:O51,"x"),IF($A$7="R",COUNTIF(P$7:P51,"x"),IF($A$7="MN",COUNTIF(Q$7:Q51,"x"),IF($A$7="CDH",COUNTIF(R$7:R51,"x"),IF($A$7="PNA",COUNTIF(S$7:S51,"x")," ")))))))))))))))))) -> 38 | E51: x | T51: SEGURIDAD EN LA UPSS | U51: ='FICHA OCULTA'!G72 -> En Centro Obstetrico se evidencia que la atención del parto se realiza en condiciones de asepsia (mandil y guantes estériles, mascarilla, gorro, lentes protectores). | V51: AR | W51: ='FICHA OCULTA'!$I$89 -> 0.4166666667
A52: =IF($A$7="CE",COUNTIF(B$7:B52,"x"),IF($A$7="HOS",COUNTIF(C$7:C52,"x"),IF($A$7="E",COUNTIF(D$7:D52,"x"),IF($A$7="CEO",COUNTIF(E$7:E52,"x"),IF($A$7="CEQ",COUNTIF(F$7:F52,"x"),IF($A$7="CI",COUNTIF(G$7:G52,"x"),IF($A$7="PC",COUNTIF(H$7:H52,"x"),IF($A$7="DPI",COUNTIF(I$7:I52,"x"),IF($A$7="AP",COUNTIF(J$7:J52,"x"),IF($A$7="F",COUNTIF(K$7:K52,"x"),IF($A$7="CDE",COUNTIF(L$7:L52,"x"),IF($A$7="MR",COUNTIF(M$7:M52,"x"),IF($A$7="H",COUNTIF(N$7:N52,"x"),IF($A$7="NYD",COUNTIF(O$7:O52,"x"),IF($A$7="R",COUNTIF(P$7:P52,"x"),IF($A$7="MN",COUNTIF(Q$7:Q52,"x"),IF($A$7="CDH",COUNTIF(R$7:R52,"x"),IF($A$7="PNA",COUNTIF(S$7:S52,"x")," ")))))))))))))))))) -> 38 | E52: x | T52: SEGURIDAD EN LA UPSS | U52: ='FICHA OCULTA'!G73 -> En Centro Obstetrico se evidencia que la parturienta tiene resultados de prueba rápida o ELISA para HIV-1 y HIV-2. | V52: AS | W52: ='FICHA OCULTA'!$I$89 -> 0.4166666667
A53: =IF($A$7="CE",COUNTIF(B$7:B53,"x"),IF($A$7="HOS",COUNTIF(C$7:C53,"x"),IF($A$7="E",COUNTIF(D$7:D53,"x"),IF($A$7="CEO",COUNTIF(E$7:E53,"x"),IF($A$7="CEQ",COUNTIF(F$7:F53,"x"),IF($A$7="CI",COUNTIF(G$7:G53,"x"),IF($A$7="PC",COUNTIF(H$7:H53,"x"),IF($A$7="DPI",COUNTIF(I$7:I53,"x"),IF($A$7="AP",COUNTIF(J$7:J53,"x"),IF($A$7="F",COUNTIF(K$7:K53,"x"),IF($A$7="CDE",COUNTIF(L$7:L53,"x"),IF($A$7="MR",COUNTIF(M$7:M53,"x"),IF($A$7="H",COUNTIF(N$7:N53,"x"),IF($A$7="NYD",COUNTIF(O$7:O53,"x"),IF($A$7="R",COUNTIF(P$7:P53,"x"),IF($A$7="MN",COUNTIF(Q$7:Q53,"x"),IF($A$7="CDH",COUNTIF(R$7:R53,"x"),IF($A$7="PNA",COUNTIF(S$7:S53,"x")," ")))))))))))))))))) -> 38 | F53: x | T53: SEGURIDAD EN LA UPSS | U53: ='FICHA OCULTA'!G74 -> En Centro Quirurgico se evidencia el último informe remitido a la Dirección sobre el proceso de implementación de la Lista de Verificación de Seguridad de la Cirugía a cargo del Equipo Conductor y/o Comité de Seguridad del Paciente | V53: AT | W53: ='FICHA OCULTA'!$I$89 -> 0.4166666667
A54: =IF($A$7="CE",COUNTIF(B$7:B54,"x"),IF($A$7="HOS",COUNTIF(C$7:C54,"x"),IF($A$7="E",COUNTIF(D$7:D54,"x"),IF($A$7="CEO",COUNTIF(E$7:E54,"x"),IF($A$7="CEQ",COUNTIF(F$7:F54,"x"),IF($A$7="CI",COUNTIF(G$7:G54,"x"),IF($A$7="PC",COUNTIF(H$7:H54,"x"),IF($A$7="DPI",COUNTIF(I$7:I54,"x"),IF($A$7="AP",COUNTIF(J$7:J54,"x"),IF($A$7="F",COUNTIF(K$7:K54,"x"),IF($A$7="CDE",COUNTIF(L$7:L54,"x"),IF($A$7="MR",COUNTIF(M$7:M54,"x"),IF($A$7="H",COUNTIF(N$7:N54,"x"),IF($A$7="NYD",COUNTIF(O$7:O54,"x"),IF($A$7="R",COUNTIF(P$7:P54,"x"),IF($A$7="MN",COUNTIF(Q$7:Q54,"x"),IF($A$7="CDH",COUNTIF(R$7:R54,"x"),IF($A$7="PNA",COUNTIF(S$7:S54,"x")," ")))))))))))))))))) -> 38 | F54: x | T54: SEGURIDAD EN LA UPSS | U54: ='FICHA OCULTA'!G75 -> En Centro Quirurgico se evidencia la última Encuesta Semestral remitida a la Dirección para evaluar el proceso de implementación de la Lista de Verificación de Seguridad de la Cirugía a cargo del Equipo Conductor y/o Comité de Seguridad del Paciente | V54: AU | W54: ='FICHA OCULTA'!$I$89 -> 0.4166666667
A55: =IF($A$7="CE",COUNTIF(B$7:B55,"x"),IF($A$7="HOS",COUNTIF(C$7:C55,"x"),IF($A$7="E",COUNTIF(D$7:D55,"x"),IF($A$7="CEO",COUNTIF(E$7:E55,"x"),IF($A$7="CEQ",COUNTIF(F$7:F55,"x"),IF($A$7="CI",COUNTIF(G$7:G55,"x"),IF($A$7="PC",COUNTIF(H$7:H55,"x"),IF($A$7="DPI",COUNTIF(I$7:I55,"x"),IF($A$7="AP",COUNTIF(J$7:J55,"x"),IF($A$7="F",COUNTIF(K$7:K55,"x"),IF($A$7="CDE",COUNTIF(L$7:L55,"x"),IF($A$7="MR",COUNTIF(M$7:M55,"x"),IF($A$7="H",COUNTIF(N$7:N55,"x"),IF($A$7="NYD",COUNTIF(O$7:O55,"x"),IF($A$7="R",COUNTIF(P$7:P55,"x"),IF($A$7="MN",COUNTIF(Q$7:Q55,"x"),IF($A$7="CDH",COUNTIF(R$7:R55,"x"),IF($A$7="PNA",COUNTIF(S$7:S55,"x")," ")))))))))))))))))) -> 38 | F55: x | T55: SEGURIDAD EN LA UPSS | U55: ='FICHA OCULTA'!G76 -> En Centro Quirurgico se evidencia que existe un(a) Coordinador de la Lista de Verificación de Seguridad de la Cirugía correspondiente al Turno Quirúrgico. | V55: AV | W55: ='FICHA OCULTA'!$I$89 -> 0.4166666667
A56: =IF($A$7="CE",COUNTIF(B$7:B56,"x"),IF($A$7="HOS",COUNTIF(C$7:C56,"x"),IF($A$7="E",COUNTIF(D$7:D56,"x"),IF($A$7="CEO",COUNTIF(E$7:E56,"x"),IF($A$7="CEQ",COUNTIF(F$7:F56,"x"),IF($A$7="CI",COUNTIF(G$7:G56,"x"),IF($A$7="PC",COUNTIF(H$7:H56,"x"),IF($A$7="DPI",COUNTIF(I$7:I56,"x"),IF($A$7="AP",COUNTIF(J$7:J56,"x"),IF($A$7="F",COUNTIF(K$7:K56,"x"),IF($A$7="CDE",COUNTIF(L$7:L56,"x"),IF($A$7="MR",COUNTIF(M$7:M56,"x"),IF($A$7="H",COUNTIF(N$7:N56,"x"),IF($A$7="NYD",COUNTIF(O$7:O56,"x"),IF($A$7="R",COUNTIF(P$7:P56,"x"),IF($A$7="MN",COUNTIF(Q$7:Q56,"x"),IF($A$7="CDH",COUNTIF(R$7:R56,"x"),IF($A$7="PNA",COUNTIF(S$7:S56,"x")," ")))))))))))))))))) -> 38 | F56: x | T56: SEGURIDAD EN LA UPSS | U56: ='FICHA OCULTA'!G77 -> En Centro Quirurgico se evidencia que el (la) Coordinador(a) aplica la Lista de Verificación de Seguridad de la Cirugía, en el periodo correspondiente a la ENTRADA. | V56: AW | W56: ='FICHA OCULTA'!$I$89 -> 0.4166666667
A57: =IF($A$7="CE",COUNTIF(B$7:B57,"x"),IF($A$7="HOS",COUNTIF(C$7:C57,"x"),IF($A$7="E",COUNTIF(D$7:D57,"x"),IF($A$7="CEO",COUNTIF(E$7:E57,"x"),IF($A$7="CEQ",COUNTIF(F$7:F57,"x"),IF($A$7="CI",COUNTIF(G$7:G57,"x"),IF($A$7="PC",COUNTIF(H$7:H57,"x"),IF($A$7="DPI",COUNTIF(I$7:I57,"x"),IF($A$7="AP",COUNTIF(J$7:J57,"x"),IF($A$7="F",COUNTIF(K$7:K57,"x"),IF($A$7="CDE",COUNTIF(L$7:L57,"x"),IF($A$7="MR",COUNTIF(M$7:M57,"x"),IF($A$7="H",COUNTIF(N$7:N57,"x"),IF($A$7="NYD",COUNTIF(O$7:O57,"x"),IF($A$7="R",COUNTIF(P$7:P57,"x"),IF($A$7="MN",COUNTIF(Q$7:Q57,"x"),IF($A$7="CDH",COUNTIF(R$7:R57,"x"),IF($A$7="PNA",COUNTIF(S$7:S57,"x")," ")))))))))))))))))) -> 38 | F57: x | T57: SEGURIDAD EN LA UPSS | U57: ='FICHA OCULTA'!G78 -> En Centro Quirurgico se evidencia que el (la) Coordinador(a) aplica la Lista de Verificación de Seguridad de la Cirugía, en el periodo correspondiente a la PAUSA. | V57: AX | W57: ='FICHA OCULTA'!$I$89 -> 0.4166666667
A58: =IF($A$7="CE",COUNTIF(B$7:B58,"x"),IF($A$7="HOS",COUNTIF(C$7:C58,"x"),IF($A$7="E",COUNTIF(D$7:D58,"x"),IF($A$7="CEO",COUNTIF(E$7:E58,"x"),IF($A$7="CEQ",COUNTIF(F$7:F58,"x"),IF($A$7="CI",COUNTIF(G$7:G58,"x"),IF($A$7="PC",COUNTIF(H$7:H58,"x"),IF($A$7="DPI",COUNTIF(I$7:I58,"x"),IF($A$7="AP",COUNTIF(J$7:J58,"x"),IF($A$7="F",COUNTIF(K$7:K58,"x"),IF($A$7="CDE",COUNTIF(L$7:L58,"x"),IF($A$7="MR",COUNTIF(M$7:M58,"x"),IF($A$7="H",COUNTIF(N$7:N58,"x"),IF($A$7="NYD",COUNTIF(O$7:O58,"x"),IF($A$7="R",COUNTIF(P$7:P58,"x"),IF($A$7="MN",COUNTIF(Q$7:Q58,"x"),IF($A$7="CDH",COUNTIF(R$7:R58,"x"),IF($A$7="PNA",COUNTIF(S$7:S58,"x")," ")))))))))))))))))) -> 38 | F58: x | T58: SEGURIDAD EN LA UPSS | U58: ='FICHA OCULTA'!G79 -> En Centro Quirurgico se evidencia que el (la) Coordinador(a) aplica la Lista de Verificación de Seguridad de la Cirugía, en el periodo correspondiente a la SALIDA. | V58: AY | W58: ='FICHA OCULTA'!$I$89 -> 0.4166666667
A59: =IF($A$7="CE",COUNTIF(B$7:B59,"x"),IF($A$7="HOS",COUNTIF(C$7:C59,"x"),IF($A$7="E",COUNTIF(D$7:D59,"x"),IF($A$7="CEO",COUNTIF(E$7:E59,"x"),IF($A$7="CEQ",COUNTIF(F$7:F59,"x"),IF($A$7="CI",COUNTIF(G$7:G59,"x"),IF($A$7="PC",COUNTIF(H$7:H59,"x"),IF($A$7="DPI",COUNTIF(I$7:I59,"x"),IF($A$7="AP",COUNTIF(J$7:J59,"x"),IF($A$7="F",COUNTIF(K$7:K59,"x"),IF($A$7="CDE",COUNTIF(L$7:L59,"x"),IF($A$7="MR",COUNTIF(M$7:M59,"x"),IF($A$7="H",COUNTIF(N$7:N59,"x"),IF($A$7="NYD",COUNTIF(O$7:O59,"x"),IF($A$7="R",COUNTIF(P$7:P59,"x"),IF($A$7="MN",COUNTIF(Q$7:Q59,"x"),IF($A$7="CDH",COUNTIF(R$7:R59,"x"),IF($A$7="PNA",COUNTIF(S$7:S59,"x")," ")))))))))))))))))) -> 38 | F59: x | T59: SEGURIDAD EN LA UPSS | U59: ='FICHA OCULTA'!G80 -> En Centro Quirurgico se evidencia que cuenta con coche de intubación difícil operativo. | V59: AZ | W59: ='FICHA OCULTA'!$I$89 -> 0.4166666667
A60: =IF($A$7="CE",COUNTIF(B$7:B60,"x"),IF($A$7="HOS",COUNTIF(C$7:C60,"x"),IF($A$7="E",COUNTIF(D$7:D60,"x"),IF($A$7="CEO",COUNTIF(E$7:E60,"x"),IF($A$7="CEQ",COUNTIF(F$7:F60,"x"),IF($A$7="CI",COUNTIF(G$7:G60,"x"),IF($A$7="PC",COUNTIF(H$7:H60,"x"),IF($A$7="DPI",COUNTIF(I$7:I60,"x"),IF($A$7="AP",COUNTIF(J$7:J60,"x"),IF($A$7="F",COUNTIF(K$7:K60,"x"),IF($A$7="CDE",COUNTIF(L$7:L60,"x"),IF($A$7="MR",COUNTIF(M$7:M60,"x"),IF($A$7="H",COUNTIF(N$7:N60,"x"),IF($A$7="NYD",COUNTIF(O$7:O60,"x"),IF($A$7="R",COUNTIF(P$7:P60,"x"),IF($A$7="MN",COUNTIF(Q$7:Q60,"x"),IF($A$7="CDH",COUNTIF(R$7:R60,"x"),IF($A$7="PNA",COUNTIF(S$7:S60,"x")," ")))))))))))))))))) -> 38 | F60: x | T60: SEGURIDAD EN LA UPSS | U60: ='FICHA OCULTA'!G81 -> En Centro Quirurgico se evidencia que cuenta con Unidad / Máquina de Anestesia operativo | V60: BA | W60: ='FICHA OCULTA'!$I$89 -> 0.4166666667
A61: =IF($A$7="CE",COUNTIF(B$7:B61,"x"),IF($A$7="HOS",COUNTIF(C$7:C61,"x"),IF($A$7="E",COUNTIF(D$7:D61,"x"),IF($A$7="CEO",COUNTIF(E$7:E61,"x"),IF($A$7="CEQ",COUNTIF(F$7:F61,"x"),IF($A$7="CI",COUNTIF(G$7:G61,"x"),IF($A$7="PC",COUNTIF(H$7:H61,"x"),IF($A$7="DPI",COUNTIF(I$7:I61,"x"),IF($A$7="AP",COUNTIF(J$7:J61,"x"),IF($A$7="F",COUNTIF(K$7:K61,"x"),IF($A$7="CDE",COUNTIF(L$7:L61,"x"),IF($A$7="MR",COUNTIF(M$7:M61,"x"),IF($A$7="H",COUNTIF(N$7:N61,"x"),IF($A$7="NYD",COUNTIF(O$7:O61,"x"),IF($A$7="R",COUNTIF(P$7:P61,"x"),IF($A$7="MN",COUNTIF(Q$7:Q61,"x"),IF($A$7="CDH",COUNTIF(R$7:R61,"x"),IF($A$7="PNA",COUNTIF(S$7:S61,"x")," ")))))))))))))))))) -> 38 | F61: x | T61: SEGURIDAD EN LA UPSS | U61: ='FICHA OCULTA'!G82 -> En Centro Quirurgico se evidencia que cuenta con Columna de Gases Clínicos / Monitor Multiparámetro (de 6 a 8). | V61: BB | W61: ='FICHA OCULTA'!$I$89 -> 0.4166666667
A62: =IF($A$7="CE",COUNTIF(B$7:B62,"x"),IF($A$7="HOS",COUNTIF(C$7:C62,"x"),IF($A$7="E",COUNTIF(D$7:D62,"x"),IF($A$7="CEO",COUNTIF(E$7:E62,"x"),IF($A$7="CEQ",COUNTIF(F$7:F62,"x"),IF($A$7="CI",COUNTIF(G$7:G62,"x"),IF($A$7="PC",COUNTIF(H$7:H62,"x"),IF($A$7="DPI",COUNTIF(I$7:I62,"x"),IF($A$7="AP",COUNTIF(J$7:J62,"x"),IF($A$7="F",COUNTIF(K$7:K62,"x"),IF($A$7="CDE",COUNTIF(L$7:L62,"x"),IF($A$7="MR",COUNTIF(M$7:M62,"x"),IF($A$7="H",COUNTIF(N$7:N62,"x"),IF($A$7="NYD",COUNTIF(O$7:O62,"x"),IF($A$7="R",COUNTIF(P$7:P62,"x"),IF($A$7="MN",COUNTIF(Q$7:Q62,"x"),IF($A$7="CDH",COUNTIF(R$7:R62,"x"),IF($A$7="PNA",COUNTIF(S$7:S62,"x")," ")))))))))))))))))) -> 38 | F62: x | T62: SEGURIDAD EN LA UPSS | U62: ='FICHA OCULTA'!G83 -> En Centro Quirurgico se evidencia que cuenta con bomba de perfusión operativa. | V62: BC | W62: ='FICHA OCULTA'!$I$89 -> 0.4166666667
A63: =IF($A$7="CE",COUNTIF(B$7:B63,"x"),IF($A$7="HOS",COUNTIF(C$7:C63,"x"),IF($A$7="E",COUNTIF(D$7:D63,"x"),IF($A$7="CEO",COUNTIF(E$7:E63,"x"),IF($A$7="CEQ",COUNTIF(F$7:F63,"x"),IF($A$7="CI",COUNTIF(G$7:G63,"x"),IF($A$7="PC",COUNTIF(H$7:H63,"x"),IF($A$7="DPI",COUNTIF(I$7:I63,"x"),IF($A$7="AP",COUNTIF(J$7:J63,"x"),IF($A$7="F",COUNTIF(K$7:K63,"x"),IF($A$7="CDE",COUNTIF(L$7:L63,"x"),IF($A$7="MR",COUNTIF(M$7:M63,"x"),IF($A$7="H",COUNTIF(N$7:N63,"x"),IF($A$7="NYD",COUNTIF(O$7:O63,"x"),IF($A$7="R",COUNTIF(P$7:P63,"x"),IF($A$7="MN",COUNTIF(Q$7:Q63,"x"),IF($A$7="CDH",COUNTIF(R$7:R63,"x"),IF($A$7="PNA",COUNTIF(S$7:S63,"x")," ")))))))))))))))))) -> 38 | F63: x | T63: SEGURIDAD EN LA UPSS | U63: ='FICHA OCULTA'!G84 -> En Centro Quirurgico se evidencia que cuenta con Cialítica Portátil con batería operativa. | V63: BD | W63: ='FICHA OCULTA'!$I$89 -> 0.4166666667
A64: =IF($A$7="CE",COUNTIF(B$7:B64,"x"),IF($A$7="HOS",COUNTIF(C$7:C64,"x"),IF($A$7="E",COUNTIF(D$7:D64,"x"),IF($A$7="CEO",COUNTIF(E$7:E64,"x"),IF($A$7="CEQ",COUNTIF(F$7:F64,"x"),IF($A$7="CI",COUNTIF(G$7:G64,"x"),IF($A$7="PC",COUNTIF(H$7:H64,"x"),IF($A$7="DPI",COUNTIF(I$7:I64,"x"),IF($A$7="AP",COUNTIF(J$7:J64,"x"),IF($A$7="F",COUNTIF(K$7:K64,"x"),IF($A$7="CDE",COUNTIF(L$7:L64,"x"),IF($A$7="MR",COUNTIF(M$7:M64,"x"),IF($A$7="H",COUNTIF(N$7:N64,"x"),IF($A$7="NYD",COUNTIF(O$7:O64,"x"),IF($A$7="R",COUNTIF(P$7:P64,"x"),IF($A$7="MN",COUNTIF(Q$7:Q64,"x"),IF($A$7="CDH",COUNTIF(R$7:R64,"x"),IF($A$7="PNA",COUNTIF(S$7:S64,"x")," ")))))))))))))))))) -> 38 | F64: x | T64: SEGURIDAD EN LA UPSS | U64: ='FICHA OCULTA'!G85 -> En Centro Quirurgico se evidencia que en recuperación, el paciente es recibido por la enfermera y el anestesiólogo. | V64: BE | W64: ='FICHA OCULTA'!$I$89 -> 0.4166666667
A65: =IF($A$7="CE",COUNTIF(B$7:B65,"x"),IF($A$7="HOS",COUNTIF(C$7:C65,"x"),IF($A$7="E",COUNTIF(D$7:D65,"x"),IF($A$7="CEO",COUNTIF(E$7:E65,"x"),IF($A$7="CEQ",COUNTIF(F$7:F65,"x"),IF($A$7="CI",COUNTIF(G$7:G65,"x"),IF($A$7="PC",COUNTIF(H$7:H65,"x"),IF($A$7="DPI",COUNTIF(I$7:I65,"x"),IF($A$7="AP",COUNTIF(J$7:J65,"x"),IF($A$7="F",COUNTIF(K$7:K65,"x"),IF($A$7="CDE",COUNTIF(L$7:L65,"x"),IF($A$7="MR",COUNTIF(M$7:M65,"x"),IF($A$7="H",COUNTIF(N$7:N65,"x"),IF($A$7="NYD",COUNTIF(O$7:O65,"x"),IF($A$7="R",COUNTIF(P$7:P65,"x"),IF($A$7="MN",COUNTIF(Q$7:Q65,"x"),IF($A$7="CDH",COUNTIF(R$7:R65,"x"),IF($A$7="PNA",COUNTIF(S$7:S65,"x")," ")))))))))))))))))) -> 38 | F65: x | T65: SEGURIDAD EN LA UPSS | U65: ='FICHA OCULTA'!G86 -> En Centro Quirurgico se evidencia que existe registro de la evaluación pre, durante y post-anestésica en cada paciente intervenido, con firma y sello del anestesiologo responsable. | V65: BF | W65: ='FICHA OCULTA'!$I$89 -> 0.4166666667
A66: =IF($A$7="CE",COUNTIF(B$7:B66,"x"),IF($A$7="HOS",COUNTIF(C$7:C66,"x"),IF($A$7="E",COUNTIF(D$7:D66,"x"),IF($A$7="CEO",COUNTIF(E$7:E66,"x"),IF($A$7="CEQ",COUNTIF(F$7:F66,"x"),IF($A$7="CI",COUNTIF(G$7:G66,"x"),IF($A$7="PC",COUNTIF(H$7:H66,"x"),IF($A$7="DPI",COUNTIF(I$7:I66,"x"),IF($A$7="AP",COUNTIF(J$7:J66,"x"),IF($A$7="F",COUNTIF(K$7:K66,"x"),IF($A$7="CDE",COUNTIF(L$7:L66,"x"),IF($A$7="MR",COUNTIF(M$7:M66,"x"),IF($A$7="H",COUNTIF(N$7:N66,"x"),IF($A$7="NYD",COUNTIF(O$7:O66,"x"),IF($A$7="R",COUNTIF(P$7:P66,"x"),IF($A$7="MN",COUNTIF(Q$7:Q66,"x"),IF($A$7="CDH",COUNTIF(R$7:R66,"x"),IF($A$7="PNA",COUNTIF(S$7:S66,"x")," ")))))))))))))))))) -> 39 | C66: x | D66: x | E66: x | F66: x | G66: x | H66: x | I66: x | N66: x | P66: x | Q66: x | R66: x | T66: IDENTIFICACIÓN CORRECTA DEL PACIENTE | U66: ='FICHA OCULTA'!G91 -> Paciente tiene brazalete de identificación y los datos registrados son correctos y completos. | V66: BG | W66: ='FICHA OCULTA'!$I$101 -> 0
A67: =IF($A$7="CE",COUNTIF(B$7:B67,"x"),IF($A$7="HOS",COUNTIF(C$7:C67,"x"),IF($A$7="E",COUNTIF(D$7:D67,"x"),IF($A$7="CEO",COUNTIF(E$7:E67,"x"),IF($A$7="CEQ",COUNTIF(F$7:F67,"x"),IF($A$7="CI",COUNTIF(G$7:G67,"x"),IF($A$7="PC",COUNTIF(H$7:H67,"x"),IF($A$7="DPI",COUNTIF(I$7:I67,"x"),IF($A$7="AP",COUNTIF(J$7:J67,"x"),IF($A$7="F",COUNTIF(K$7:K67,"x"),IF($A$7="CDE",COUNTIF(L$7:L67,"x"),IF($A$7="MR",COUNTIF(M$7:M67,"x"),IF($A$7="H",COUNTIF(N$7:N67,"x"),IF($A$7="NYD",COUNTIF(O$7:O67,"x"),IF($A$7="R",COUNTIF(P$7:P67,"x"),IF($A$7="MN",COUNTIF(Q$7:Q67,"x"),IF($A$7="CDH",COUNTIF(R$7:R67,"x"),IF($A$7="PNA",COUNTIF(S$7:S67,"x")," ")))))))))))))))))) -> 40 | C67: x | D67: x | E67: x | G67: x | T67: IDENTIFICACIÓN CORRECTA DEL PACIENTE | U67: ='FICHA OCULTA'!G92 -> Cartel visible que tenga registrado el nombre completo del paciente. | V67: BH | W67: ='FICHA OCULTA'!$I$101 -> 0
A68: =IF($A$7="CE",COUNTIF(B$7:B68,"x"),IF($A$7="HOS",COUNTIF(C$7:C68,"x"),IF($A$7="E",COUNTIF(D$7:D68,"x"),IF($A$7="CEO",COUNTIF(E$7:E68,"x"),IF($A$7="CEQ",COUNTIF(F$7:F68,"x"),IF($A$7="CI",COUNTIF(G$7:G68,"x"),IF($A$7="PC",COUNTIF(H$7:H68,"x"),IF($A$7="DPI",COUNTIF(I$7:I68,"x"),IF($A$7="AP",COUNTIF(J$7:J68,"x"),IF($A$7="F",COUNTIF(K$7:K68,"x"),IF($A$7="CDE",COUNTIF(L$7:L68,"x"),IF($A$7="MR",COUNTIF(M$7:M68,"x"),IF($A$7="H",COUNTIF(N$7:N68,"x"),IF($A$7="NYD",COUNTIF(O$7:O68,"x"),IF($A$7="R",COUNTIF(P$7:P68,"x"),IF($A$7="MN",COUNTIF(Q$7:Q68,"x"),IF($A$7="CDH",COUNTIF(R$7:R68,"x"),IF($A$7="PNA",COUNTIF(S$7:S68,"x")," ")))))))))))))))))) -> 41 | C68: x | D68: x | E68: x | F68: x | G68: x | H68: x | I68: x | J68: x | N68: x | P68: x | Q68: x | R68: x | S68: x | T68: IDENTIFICACIÓN CORRECTA DEL PACIENTE | U68: ='FICHA OCULTA'!G93 -> Datos proporcionados por el paciente, son similares a los registrados en la historia clínica. | V68: BI | W68: ='FICHA OCULTA'!$I$101 -> 0
A69: =IF($A$7="CE",COUNTIF(B$7:B69,"x"),IF($A$7="HOS",COUNTIF(C$7:C69,"x"),IF($A$7="E",COUNTIF(D$7:D69,"x"),IF($A$7="CEO",COUNTIF(E$7:E69,"x"),IF($A$7="CEQ",COUNTIF(F$7:F69,"x"),IF($A$7="CI",COUNTIF(G$7:G69,"x"),IF($A$7="PC",COUNTIF(H$7:H69,"x"),IF($A$7="DPI",COUNTIF(I$7:I69,"x"),IF($A$7="AP",COUNTIF(J$7:J69,"x"),IF($A$7="F",COUNTIF(K$7:K69,"x"),IF($A$7="CDE",COUNTIF(L$7:L69,"x"),IF($A$7="MR",COUNTIF(M$7:M69,"x"),IF($A$7="H",COUNTIF(N$7:N69,"x"),IF($A$7="NYD",COUNTIF(O$7:O69,"x"),IF($A$7="R",COUNTIF(P$7:P69,"x"),IF($A$7="MN",COUNTIF(Q$7:Q69,"x"),IF($A$7="CDH",COUNTIF(R$7:R69,"x"),IF($A$7="PNA",COUNTIF(S$7:S69,"x")," ")))))))))))))))))) -> 42 | B69: x | C69: x | D69: x | E69: x | F69: x | G69: x | H69: x | I69: x | J69: x | N69: x | P69: x | Q69: x | R69: x | S69: x | T69: IDENTIFICACIÓN CORRECTA DEL PACIENTE | U69: ='FICHA OCULTA'!G94 -> Verificación de la identidad del paciente con el brazalete antes de cualquier procedimiento. | V69: BJ | W69: ='FICHA OCULTA'!$I$101 -> 0
A70: =IF($A$7="CE",COUNTIF(B$7:B70,"x"),IF($A$7="HOS",COUNTIF(C$7:C70,"x"),IF($A$7="E",COUNTIF(D$7:D70,"x"),IF($A$7="CEO",COUNTIF(E$7:E70,"x"),IF($A$7="CEQ",COUNTIF(F$7:F70,"x"),IF($A$7="CI",COUNTIF(G$7:G70,"x"),IF($A$7="PC",COUNTIF(H$7:H70,"x"),IF($A$7="DPI",COUNTIF(I$7:I70,"x"),IF($A$7="AP",COUNTIF(J$7:J70,"x"),IF($A$7="F",COUNTIF(K$7:K70,"x"),IF($A$7="CDE",COUNTIF(L$7:L70,"x"),IF($A$7="MR",COUNTIF(M$7:M70,"x"),IF($A$7="H",COUNTIF(N$7:N70,"x"),IF($A$7="NYD",COUNTIF(O$7:O70,"x"),IF($A$7="R",COUNTIF(P$7:P70,"x"),IF($A$7="MN",COUNTIF(Q$7:Q70,"x"),IF($A$7="CDH",COUNTIF(R$7:R70,"x"),IF($A$7="PNA",COUNTIF(S$7:S70,"x")," ")))))))))))))))))) -> 43 | C70: x | D70: x | E70: x | F70: x | G70: x | H70: x | I70: x | J70: x | N70: x | P70: x | Q70: x | R70: x | T70: IDENTIFICACIÓN CORRECTA DEL PACIENTE | U70: ='FICHA OCULTA'!G95 -> Identificación de riesgo de caidas del paciente tanto en el brazalete del paciente como en el cartel visible. | V70: BK | W70: ='FICHA OCULTA'!$I$101 -> 0
A71: =IF($A$7="CE",COUNTIF(B$7:B71,"x"),IF($A$7="HOS",COUNTIF(C$7:C71,"x"),IF($A$7="E",COUNTIF(D$7:D71,"x"),IF($A$7="CEO",COUNTIF(E$7:E71,"x"),IF($A$7="CEQ",COUNTIF(F$7:F71,"x"),IF($A$7="CI",COUNTIF(G$7:G71,"x"),IF($A$7="PC",COUNTIF(H$7:H71,"x"),IF($A$7="DPI",COUNTIF(I$7:I71,"x"),IF($A$7="AP",COUNTIF(J$7:J71,"x"),IF($A$7="F",COUNTIF(K$7:K71,"x"),IF($A$7="CDE",COUNTIF(L$7:L71,"x"),IF($A$7="MR",COUNTIF(M$7:M71,"x"),IF($A$7="H",COUNTIF(N$7:N71,"x"),IF($A$7="NYD",COUNTIF(O$7:O71,"x"),IF($A$7="R",COUNTIF(P$7:P71,"x"),IF($A$7="MN",COUNTIF(Q$7:Q71,"x"),IF($A$7="CDH",COUNTIF(R$7:R71,"x"),IF($A$7="PNA",COUNTIF(S$7:S71,"x")," ")))))))))))))))))) -> 43 | H71: x | I71: x | J71: x | S71: x | T71: IDENTIFICACIÓN CORRECTA DEL PACIENTE | U71: ='FICHA OCULTA'!G96 -> Verificación de la identificación correcta de los paciente antes de realizar los examenes de laboratorio, radiológicos u otros. | V71: BL | W71: ='FICHA OCULTA'!$I$101 -> 0
A72: =IF($A$7="CE",COUNTIF(B$7:B72,"x"),IF($A$7="HOS",COUNTIF(C$7:C72,"x"),IF($A$7="E",COUNTIF(D$7:D72,"x"),IF($A$7="CEO",COUNTIF(E$7:E72,"x"),IF($A$7="CEQ",COUNTIF(F$7:F72,"x"),IF($A$7="CI",COUNTIF(G$7:G72,"x"),IF($A$7="PC",COUNTIF(H$7:H72,"x"),IF($A$7="DPI",COUNTIF(I$7:I72,"x"),IF($A$7="AP",COUNTIF(J$7:J72,"x"),IF($A$7="F",COUNTIF(K$7:K72,"x"),IF($A$7="CDE",COUNTIF(L$7:L72,"x"),IF($A$7="MR",COUNTIF(M$7:M72,"x"),IF($A$7="H",COUNTIF(N$7:N72,"x"),IF($A$7="NYD",COUNTIF(O$7:O72,"x"),IF($A$7="R",COUNTIF(P$7:P72,"x"),IF($A$7="MN",COUNTIF(Q$7:Q72,"x"),IF($A$7="CDH",COUNTIF(R$7:R72,"x"),IF($A$7="PNA",COUNTIF(S$7:S72,"x")," ")))))))))))))))))) -> 44 | B72: x | C72: x | D72: x | E72: x | F72: x | G72: x | H72: x | I72: x | J72: x | K72: x | M72: x | N72: x | O72: x | P72: x | Q72: x | R72: x | T72: IDENTIFICACIÓN CORRECTA DEL PACIENTE | U72: ='FICHA OCULTA'!G97 -> Conocimiento del paciente o familiar responsable sobre su enfermedad, su evolución y pronóstico del mismo, el cual debe concordar con la información registrada en la historia clínica. | V72: BM | W72: ='FICHA OCULTA'!$I$101 -> 0
A73: =IF($A$7="CE",COUNTIF(B$7:B73,"x"),IF($A$7="HOS",COUNTIF(C$7:C73,"x"),IF($A$7="E",COUNTIF(D$7:D73,"x"),IF($A$7="CEO",COUNTIF(E$7:E73,"x"),IF($A$7="CEQ",COUNTIF(F$7:F73,"x"),IF($A$7="CI",COUNTIF(G$7:G73,"x"),IF($A$7="PC",COUNTIF(H$7:H73,"x"),IF($A$7="DPI",COUNTIF(I$7:I73,"x"),IF($A$7="AP",COUNTIF(J$7:J73,"x"),IF($A$7="F",COUNTIF(K$7:K73,"x"),IF($A$7="CDE",COUNTIF(L$7:L73,"x"),IF($A$7="MR",COUNTIF(M$7:M73,"x"),IF($A$7="H",COUNTIF(N$7:N73,"x"),IF($A$7="NYD",COUNTIF(O$7:O73,"x"),IF($A$7="R",COUNTIF(P$7:P73,"x"),IF($A$7="MN",COUNTIF(Q$7:Q73,"x"),IF($A$7="CDH",COUNTIF(R$7:R73,"x"),IF($A$7="PNA",COUNTIF(S$7:S73,"x")," ")))))))))))))))))) -> 45 | B73: x | C73: x | D73: x | E73: x | F73: x | G73: x | H73: x | I73: x | J73: x | K73: x | M73: x | N73: x | O73: x | P73: x | Q73: x | R73: x | T73: IDENTIFICACIÓN CORRECTA DEL PACIENTE | U73: ='FICHA OCULTA'!G98 -> Paciente informado al que se le han aclado sus dudas y preguntas respecto a algún procedimiento o cirugía, evidenciandose la firma del Consentimiento respectivo. | V73: BN | W73: ='FICHA OCULTA'!$I$101 -> 0
A74: =IF($A$7="CE",COUNTIF(B$7:B74,"x"),IF($A$7="HOS",COUNTIF(C$7:C74,"x"),IF($A$7="E",COUNTIF(D$7:D74,"x"),IF($A$7="CEO",COUNTIF(E$7:E74,"x"),IF($A$7="CEQ",COUNTIF(F$7:F74,"x"),IF($A$7="CI",COUNTIF(G$7:G74,"x"),IF($A$7="PC",COUNTIF(H$7:H74,"x"),IF($A$7="DPI",COUNTIF(I$7:I74,"x"),IF($A$7="AP",COUNTIF(J$7:J74,"x"),IF($A$7="F",COUNTIF(K$7:K74,"x"),IF($A$7="CDE",COUNTIF(L$7:L74,"x"),IF($A$7="MR",COUNTIF(M$7:M74,"x"),IF($A$7="H",COUNTIF(N$7:N74,"x"),IF($A$7="NYD",COUNTIF(O$7:O74,"x"),IF($A$7="R",COUNTIF(P$7:P74,"x"),IF($A$7="MN",COUNTIF(Q$7:Q74,"x"),IF($A$7="CDH",COUNTIF(R$7:R74,"x"),IF($A$7="PNA",COUNTIF(S$7:S74,"x")," ")))))))))))))))))) -> 46 | C74: x | D74: x | E74: x | F74: x | G74: x | H74: x | I74: x | N74: x | P74: x | Q74: x | R74: x | T74: PREVENCIÓN DE LA FUGA DE PACIENTES | U74: ='FICHA OCULTA'!G103 -> Paciente cuenta con ropa de hospital facilmente identificable. | V74: BO | W74: ='FICHA OCULTA'!$I$111 -> 0
A75: =IF($A$7="CE",COUNTIF(B$7:B75,"x"),IF($A$7="HOS",COUNTIF(C$7:C75,"x"),IF($A$7="E",COUNTIF(D$7:D75,"x"),IF($A$7="CEO",COUNTIF(E$7:E75,"x"),IF($A$7="CEQ",COUNTIF(F$7:F75,"x"),IF($A$7="CI",COUNTIF(G$7:G75,"x"),IF($A$7="PC",COUNTIF(H$7:H75,"x"),IF($A$7="DPI",COUNTIF(I$7:I75,"x"),IF($A$7="AP",COUNTIF(J$7:J75,"x"),IF($A$7="F",COUNTIF(K$7:K75,"x"),IF($A$7="CDE",COUNTIF(L$7:L75,"x"),IF($A$7="MR",COUNTIF(M$7:M75,"x"),IF($A$7="H",COUNTIF(N$7:N75,"x"),IF($A$7="NYD",COUNTIF(O$7:O75,"x"),IF($A$7="R",COUNTIF(P$7:P75,"x"),IF($A$7="MN",COUNTIF(Q$7:Q75,"x"),IF($A$7="CDH",COUNTIF(R$7:R75,"x"),IF($A$7="PNA",COUNTIF(S$7:S75,"x")," ")))))))))))))))))) -> 47 | C75: x | D75: x | E75: x | F75: x | G75: x | H75: x | I75: x | J75: x | M75: x | N75: x | P75: x | Q75: x | R75: x | S75: x | T75: PREVENCIÓN DE LA FUGA DE PACIENTES | U75: ='FICHA OCULTA'!G104 -> Vigilancia controla las pertenencias de los pacientes y las visitas para evitar el uso inadecuado de objetos potencialmente peligrosos. | V75: BP | W75: ='FICHA OCULTA'!$I$111 -> 0
A76: =IF($A$7="CE",COUNTIF(B$7:B76,"x"),IF($A$7="HOS",COUNTIF(C$7:C76,"x"),IF($A$7="E",COUNTIF(D$7:D76,"x"),IF($A$7="CEO",COUNTIF(E$7:E76,"x"),IF($A$7="CEQ",COUNTIF(F$7:F76,"x"),IF($A$7="CI",COUNTIF(G$7:G76,"x"),IF($A$7="PC",COUNTIF(H$7:H76,"x"),IF($A$7="DPI",COUNTIF(I$7:I76,"x"),IF($A$7="AP",COUNTIF(J$7:J76,"x"),IF($A$7="F",COUNTIF(K$7:K76,"x"),IF($A$7="CDE",COUNTIF(L$7:L76,"x"),IF($A$7="MR",COUNTIF(M$7:M76,"x"),IF($A$7="H",COUNTIF(N$7:N76,"x"),IF($A$7="NYD",COUNTIF(O$7:O76,"x"),IF($A$7="R",COUNTIF(P$7:P76,"x"),IF($A$7="MN",COUNTIF(Q$7:Q76,"x"),IF($A$7="CDH",COUNTIF(R$7:R76,"x"),IF($A$7="PNA",COUNTIF(S$7:S76,"x")," ")))))))))))))))))) -> 48 | C76: x | D76: x | E76: x | F76: x | G76: x | I76: x | N76: x | P76: x | Q76: x | R76: x | T76: PREVENCIÓN DE LA FUGA DE PACIENTES | U76: ='FICHA OCULTA'!G105 -> Tienen un sistema efectivo de control de las salidas y entradas del servicio de hospitalización. | V76: BQ | W76: ='FICHA OCULTA'!$I$111 -> 0
A77: =IF($A$7="CE",COUNTIF(B$7:B77,"x"),IF($A$7="HOS",COUNTIF(C$7:C77,"x"),IF($A$7="E",COUNTIF(D$7:D77,"x"),IF($A$7="CEO",COUNTIF(E$7:E77,"x"),IF($A$7="CEQ",COUNTIF(F$7:F77,"x"),IF($A$7="CI",COUNTIF(G$7:G77,"x"),IF($A$7="PC",COUNTIF(H$7:H77,"x"),IF($A$7="DPI",COUNTIF(I$7:I77,"x"),IF($A$7="AP",COUNTIF(J$7:J77,"x"),IF($A$7="F",COUNTIF(K$7:K77,"x"),IF($A$7="CDE",COUNTIF(L$7:L77,"x"),IF($A$7="MR",COUNTIF(M$7:M77,"x"),IF($A$7="H",COUNTIF(N$7:N77,"x"),IF($A$7="NYD",COUNTIF(O$7:O77,"x"),IF($A$7="R",COUNTIF(P$7:P77,"x"),IF($A$7="MN",COUNTIF(Q$7:Q77,"x"),IF($A$7="CDH",COUNTIF(R$7:R77,"x"),IF($A$7="PNA",COUNTIF(S$7:S77,"x")," ")))))))))))))))))) -> 49 | C77: x | D77: x | E77: x | F77: x | G77: x | I77: x | N77: x | P77: x | Q77: x | R77: x | T77: PREVENCIÓN DE LA FUGA DE PACIENTES | U77: ='FICHA OCULTA'!G106 -> Entrevistas con el paciente para valorar el riesgo potencial de fuga. Solo en casos de oposición activa y riesgo inminente de fuga se recurrirá a la contención mecánica. | V77: BR | W77: ='FICHA OCULTA'!$I$111 -> 0
A78: =IF($A$7="CE",COUNTIF(B$7:B78,"x"),IF($A$7="HOS",COUNTIF(C$7:C78,"x"),IF($A$7="E",COUNTIF(D$7:D78,"x"),IF($A$7="CEO",COUNTIF(E$7:E78,"x"),IF($A$7="CEQ",COUNTIF(F$7:F78,"x"),IF($A$7="CI",COUNTIF(G$7:G78,"x"),IF($A$7="PC",COUNTIF(H$7:H78,"x"),IF($A$7="DPI",COUNTIF(I$7:I78,"x"),IF($A$7="AP",COUNTIF(J$7:J78,"x"),IF($A$7="F",COUNTIF(K$7:K78,"x"),IF($A$7="CDE",COUNTIF(L$7:L78,"x"),IF($A$7="MR",COUNTIF(M$7:M78,"x"),IF($A$7="H",COUNTIF(N$7:N78,"x"),IF($A$7="NYD",COUNTIF(O$7:O78,"x"),IF($A$7="R",COUNTIF(P$7:P78,"x"),IF($A$7="MN",COUNTIF(Q$7:Q78,"x"),IF($A$7="CDH",COUNTIF(R$7:R78,"x"),IF($A$7="PNA",COUNTIF(S$7:S78,"x")," ")))))))))))))))))) -> 50 | C78: x | D78: x | E78: x | F78: x | G78: x | I78: x | N78: x | P78: x | Q78: x | R78: x | T78: PREVENCIÓN DE LA FUGA DE PACIENTES | U78: ='FICHA OCULTA'!G107 -> Registro en la hoja de recomendaciones terapéuticas el riesgo de fuga del paciente y la activación de las medidas de supervisión oportunas. | V78: BS | W78: ='FICHA OCULTA'!$I$111 -> 0
A79: =IF($A$7="CE",COUNTIF(B$7:B79,"x"),IF($A$7="HOS",COUNTIF(C$7:C79,"x"),IF($A$7="E",COUNTIF(D$7:D79,"x"),IF($A$7="CEO",COUNTIF(E$7:E79,"x"),IF($A$7="CEQ",COUNTIF(F$7:F79,"x"),IF($A$7="CI",COUNTIF(G$7:G79,"x"),IF($A$7="PC",COUNTIF(H$7:H79,"x"),IF($A$7="DPI",COUNTIF(I$7:I79,"x"),IF($A$7="AP",COUNTIF(J$7:J79,"x"),IF($A$7="F",COUNTIF(K$7:K79,"x"),IF($A$7="CDE",COUNTIF(L$7:L79,"x"),IF($A$7="MR",COUNTIF(M$7:M79,"x"),IF($A$7="H",COUNTIF(N$7:N79,"x"),IF($A$7="NYD",COUNTIF(O$7:O79,"x"),IF($A$7="R",COUNTIF(P$7:P79,"x"),IF($A$7="MN",COUNTIF(Q$7:Q79,"x"),IF($A$7="CDH",COUNTIF(R$7:R79,"x"),IF($A$7="PNA",COUNTIF(S$7:S79,"x")," ")))))))))))))))))) -> 51 | C79: x | D79: x | E79: x | F79: x | G79: x | I79: x | N79: x | P79: x | Q79: x | R79: x | T79: PREVENCIÓN DE LA FUGA DE PACIENTES | U79: ='FICHA OCULTA'!G108 -> Existencia de un procedimiento o protocolo que se active en caso de fuga de paciente. | V79: BT | W79: ='FICHA OCULTA'!$I$111 -> 0
A80: =IF($A$7="CE",COUNTIF(B$7:B80,"x"),IF($A$7="HOS",COUNTIF(C$7:C80,"x"),IF($A$7="E",COUNTIF(D$7:D80,"x"),IF($A$7="CEO",COUNTIF(E$7:E80,"x"),IF($A$7="CEQ",COUNTIF(F$7:F80,"x"),IF($A$7="CI",COUNTIF(G$7:G80,"x"),IF($A$7="PC",COUNTIF(H$7:H80,"x"),IF($A$7="DPI",COUNTIF(I$7:I80,"x"),IF($A$7="AP",COUNTIF(J$7:J80,"x"),IF($A$7="F",COUNTIF(K$7:K80,"x"),IF($A$7="CDE",COUNTIF(L$7:L80,"x"),IF($A$7="MR",COUNTIF(M$7:M80,"x"),IF($A$7="H",COUNTIF(N$7:N80,"x"),IF($A$7="NYD",COUNTIF(O$7:O80,"x"),IF($A$7="R",COUNTIF(P$7:P80,"x"),IF($A$7="MN",COUNTIF(Q$7:Q80,"x"),IF($A$7="CDH",COUNTIF(R$7:R80,"x"),IF($A$7="PNA",COUNTIF(S$7:S80,"x")," ")))))))))))))))))) -> 52 | B80: x | C80: x | D80: x | E80: x | N80: x | S80: x | T80: SEGURIDAD EN LA MEDICACIÓN | U80: ='FICHA OCULTA'!G113 -> Paciente conoce que medicamentos recibe y a que hora corresponde que se lo administren. | V80: BU | W80: ='FICHA OCULTA'!$I$125 -> 0.1
A81: =IF($A$7="CE",COUNTIF(B$7:B81,"x"),IF($A$7="HOS",COUNTIF(C$7:C81,"x"),IF($A$7="E",COUNTIF(D$7:D81,"x"),IF($A$7="CEO",COUNTIF(E$7:E81,"x"),IF($A$7="CEQ",COUNTIF(F$7:F81,"x"),IF($A$7="CI",COUNTIF(G$7:G81,"x"),IF($A$7="PC",COUNTIF(H$7:H81,"x"),IF($A$7="DPI",COUNTIF(I$7:I81,"x"),IF($A$7="AP",COUNTIF(J$7:J81,"x"),IF($A$7="F",COUNTIF(K$7:K81,"x"),IF($A$7="CDE",COUNTIF(L$7:L81,"x"),IF($A$7="MR",COUNTIF(M$7:M81,"x"),IF($A$7="H",COUNTIF(N$7:N81,"x"),IF($A$7="NYD",COUNTIF(O$7:O81,"x"),IF($A$7="R",COUNTIF(P$7:P81,"x"),IF($A$7="MN",COUNTIF(Q$7:Q81,"x"),IF($A$7="CDH",COUNTIF(R$7:R81,"x"),IF($A$7="PNA",COUNTIF(S$7:S81,"x")," ")))))))))))))))))) -> 53 | B81: x | C81: x | D81: x | E81: x | N81: x | S81: x | T81: SEGURIDAD EN LA MEDICACIÓN | U81: ='FICHA OCULTA'!G114 -> Paciente conoce los efectos secundarios que pueden producirle los medicamentos que recibe. | V81: BV | W81: ='FICHA OCULTA'!$I$125 -> 0.1
A82: =IF($A$7="CE",COUNTIF(B$7:B82,"x"),IF($A$7="HOS",COUNTIF(C$7:C82,"x"),IF($A$7="E",COUNTIF(D$7:D82,"x"),IF($A$7="CEO",COUNTIF(E$7:E82,"x"),IF($A$7="CEQ",COUNTIF(F$7:F82,"x"),IF($A$7="CI",COUNTIF(G$7:G82,"x"),IF($A$7="PC",COUNTIF(H$7:H82,"x"),IF($A$7="DPI",COUNTIF(I$7:I82,"x"),IF($A$7="AP",COUNTIF(J$7:J82,"x"),IF($A$7="F",COUNTIF(K$7:K82,"x"),IF($A$7="CDE",COUNTIF(L$7:L82,"x"),IF($A$7="MR",COUNTIF(M$7:M82,"x"),IF($A$7="H",COUNTIF(N$7:N82,"x"),IF($A$7="NYD",COUNTIF(O$7:O82,"x"),IF($A$7="R",COUNTIF(P$7:P82,"x"),IF($A$7="MN",COUNTIF(Q$7:Q82,"x"),IF($A$7="CDH",COUNTIF(R$7:R82,"x"),IF($A$7="PNA",COUNTIF(S$7:S82,"x")," ")))))))))))))))))) -> 54 | B82: x | C82: x | D82: x | E82: x | F82: x | G82: x | I82: x | M82: x | N82: x | P82: x | Q82: x | R82: x | S82: x | T82: SEGURIDAD EN LA MEDICACIÓN | U82: ='FICHA OCULTA'!G115 -> Coche de paro cuenta con los insumos necesarios para atender situaciones críticas según normatividad vigente. | V82: BW | W82: ='FICHA OCULTA'!$I$125 -> 0.1
A83: =IF($A$7="CE",COUNTIF(B$7:B83,"x"),IF($A$7="HOS",COUNTIF(C$7:C83,"x"),IF($A$7="E",COUNTIF(D$7:D83,"x"),IF($A$7="CEO",COUNTIF(E$7:E83,"x"),IF($A$7="CEQ",COUNTIF(F$7:F83,"x"),IF($A$7="CI",COUNTIF(G$7:G83,"x"),IF($A$7="PC",COUNTIF(H$7:H83,"x"),IF($A$7="DPI",COUNTIF(I$7:I83,"x"),IF($A$7="AP",COUNTIF(J$7:J83,"x"),IF($A$7="F",COUNTIF(K$7:K83,"x"),IF($A$7="CDE",COUNTIF(L$7:L83,"x"),IF($A$7="MR",COUNTIF(M$7:M83,"x"),IF($A$7="H",COUNTIF(N$7:N83,"x"),IF($A$7="NYD",COUNTIF(O$7:O83,"x"),IF($A$7="R",COUNTIF(P$7:P83,"x"),IF($A$7="MN",COUNTIF(Q$7:Q83,"x"),IF($A$7="CDH",COUNTIF(R$7:R83,"x"),IF($A$7="PNA",COUNTIF(S$7:S83,"x")," ")))))))))))))))))) -> 55 | B83: x | C83: x | D83: x | E83: x | F83: x | G83: x | I83: x | N83: x | P83: x | Q83: x | R83: x | S83: x | T83: SEGURIDAD EN LA MEDICACIÓN | U83: ='FICHA OCULTA'!G116 -> Soluciones endovenosas se encuentran debidamente rotulados con la fecha y los componentes contenidas en ella. | V83: BX | W83: ='FICHA OCULTA'!$I$125 -> 0.1
A84: =IF($A$7="CE",COUNTIF(B$7:B84,"x"),IF($A$7="HOS",COUNTIF(C$7:C84,"x"),IF($A$7="E",COUNTIF(D$7:D84,"x"),IF($A$7="CEO",COUNTIF(E$7:E84,"x"),IF($A$7="CEQ",COUNTIF(F$7:F84,"x"),IF($A$7="CI",COUNTIF(G$7:G84,"x"),IF($A$7="PC",COUNTIF(H$7:H84,"x"),IF($A$7="DPI",COUNTIF(I$7:I84,"x"),IF($A$7="AP",COUNTIF(J$7:J84,"x"),IF($A$7="F",COUNTIF(K$7:K84,"x"),IF($A$7="CDE",COUNTIF(L$7:L84,"x"),IF($A$7="MR",COUNTIF(M$7:M84,"x"),IF($A$7="H",COUNTIF(N$7:N84,"x"),IF($A$7="NYD",COUNTIF(O$7:O84,"x"),IF($A$7="R",COUNTIF(P$7:P84,"x"),IF($A$7="MN",COUNTIF(Q$7:Q84,"x"),IF($A$7="CDH",COUNTIF(R$7:R84,"x"),IF($A$7="PNA",COUNTIF(S$7:S84,"x")," ")))))))))))))))))) -> 56 | B84: x | C84: x | D84: x | E84: x | F84: x | G84: x | H84: x | I84: x | J84: x | K84: x | M84: x | N84: x | P84: x | Q84: x | R84: x | S84: x | T84: SEGURIDAD EN LA MEDICACIÓN | U84: ='FICHA OCULTA'!G117 -> Almacenamiento ordenado de los medicamentos para evitar su confusión por su similitud de nombres o de presentación. | V84: BY | W84: ='FICHA OCULTA'!$I$125 -> 0.1
A85: =IF($A$7="CE",COUNTIF(B$7:B85,"x"),IF($A$7="HOS",COUNTIF(C$7:C85,"x"),IF($A$7="E",COUNTIF(D$7:D85,"x"),IF($A$7="CEO",COUNTIF(E$7:E85,"x"),IF($A$7="CEQ",COUNTIF(F$7:F85,"x"),IF($A$7="CI",COUNTIF(G$7:G85,"x"),IF($A$7="PC",COUNTIF(H$7:H85,"x"),IF($A$7="DPI",COUNTIF(I$7:I85,"x"),IF($A$7="AP",COUNTIF(J$7:J85,"x"),IF($A$7="F",COUNTIF(K$7:K85,"x"),IF($A$7="CDE",COUNTIF(L$7:L85,"x"),IF($A$7="MR",COUNTIF(M$7:M85,"x"),IF($A$7="H",COUNTIF(N$7:N85,"x"),IF($A$7="NYD",COUNTIF(O$7:O85,"x"),IF($A$7="R",COUNTIF(P$7:P85,"x"),IF($A$7="MN",COUNTIF(Q$7:Q85,"x"),IF($A$7="CDH",COUNTIF(R$7:R85,"x"),IF($A$7="PNA",COUNTIF(S$7:S85,"x")," ")))))))))))))))))) -> 57 | B85: x | C85: x | D85: x | E85: x | F85: x | G85: x | H85: x | I85: x | J85: x | K85: x | M85: x | N85: x | P85: x | Q85: x | R85: x | S85: x | T85: SEGURIDAD EN LA MEDICACIÓN | U85: ='FICHA OCULTA'!G118 -> Medicamentos se encuentran adecuadamente rotulados en caso de requerirlos. | V85: BZ | W85: ='FICHA OCULTA'!$I$125 -> 0.1
A86: =IF($A$7="CE",COUNTIF(B$7:B86,"x"),IF($A$7="HOS",COUNTIF(C$7:C86,"x"),IF($A$7="E",COUNTIF(D$7:D86,"x"),IF($A$7="CEO",COUNTIF(E$7:E86,"x"),IF($A$7="CEQ",COUNTIF(F$7:F86,"x"),IF($A$7="CI",COUNTIF(G$7:G86,"x"),IF($A$7="PC",COUNTIF(H$7:H86,"x"),IF($A$7="DPI",COUNTIF(I$7:I86,"x"),IF($A$7="AP",COUNTIF(J$7:J86,"x"),IF($A$7="F",COUNTIF(K$7:K86,"x"),IF($A$7="CDE",COUNTIF(L$7:L86,"x"),IF($A$7="MR",COUNTIF(M$7:M86,"x"),IF($A$7="H",COUNTIF(N$7:N86,"x"),IF($A$7="NYD",COUNTIF(O$7:O86,"x"),IF($A$7="R",COUNTIF(P$7:P86,"x"),IF($A$7="MN",COUNTIF(Q$7:Q86,"x"),IF($A$7="CDH",COUNTIF(R$7:R86,"x"),IF($A$7="PNA",COUNTIF(S$7:S86,"x")," ")))))))))))))))))) -> 58 | C86: x | D86: x | E86: x | F86: x | G86: x | N86: x | P86: x | Q86: x | S86: x | T86: SEGURIDAD EN LA MEDICACIÓN | U86: ='FICHA OCULTA'!G119 -> Medicamentos se clasifican para su almacenamiento local según el nombre del paciente por dosis unitaria. | V86: CA | W86: ='FICHA OCULTA'!$I$125 -> 0.1
A87: =IF($A$7="CE",COUNTIF(B$7:B87,"x"),IF($A$7="HOS",COUNTIF(C$7:C87,"x"),IF($A$7="E",COUNTIF(D$7:D87,"x"),IF($A$7="CEO",COUNTIF(E$7:E87,"x"),IF($A$7="CEQ",COUNTIF(F$7:F87,"x"),IF($A$7="CI",COUNTIF(G$7:G87,"x"),IF($A$7="PC",COUNTIF(H$7:H87,"x"),IF($A$7="DPI",COUNTIF(I$7:I87,"x"),IF($A$7="AP",COUNTIF(J$7:J87,"x"),IF($A$7="F",COUNTIF(K$7:K87,"x"),IF($A$7="CDE",COUNTIF(L$7:L87,"x"),IF($A$7="MR",COUNTIF(M$7:M87,"x"),IF($A$7="H",COUNTIF(N$7:N87,"x"),IF($A$7="NYD",COUNTIF(O$7:O87,"x"),IF($A$7="R",COUNTIF(P$7:P87,"x"),IF($A$7="MN",COUNTIF(Q$7:Q87,"x"),IF($A$7="CDH",COUNTIF(R$7:R87,"x"),IF($A$7="PNA",COUNTIF(S$7:S87,"x")," ")))))))))))))))))) -> 59 | B87: x | C87: x | D87: x | E87: x | F87: x | G87: x | H87: x | I87: x | J87: x | K87: x | M87: x | N87: x | P87: x | Q87: x | R87: x | S87: x | T87: SEGURIDAD EN LA MEDICACIÓN | U87: ='FICHA OCULTA'!G120 -> Medicamentos e insumos médicos cuentan con un mecanismo efectivo de control de vencimiento / caducidad. | V87: CB | W87: ='FICHA OCULTA'!$I$125 -> 0.1
A88: =IF($A$7="CE",COUNTIF(B$7:B88,"x"),IF($A$7="HOS",COUNTIF(C$7:C88,"x"),IF($A$7="E",COUNTIF(D$7:D88,"x"),IF($A$7="CEO",COUNTIF(E$7:E88,"x"),IF($A$7="CEQ",COUNTIF(F$7:F88,"x"),IF($A$7="CI",COUNTIF(G$7:G88,"x"),IF($A$7="PC",COUNTIF(H$7:H88,"x"),IF($A$7="DPI",COUNTIF(I$7:I88,"x"),IF($A$7="AP",COUNTIF(J$7:J88,"x"),IF($A$7="F",COUNTIF(K$7:K88,"x"),IF($A$7="CDE",COUNTIF(L$7:L88,"x"),IF($A$7="MR",COUNTIF(M$7:M88,"x"),IF($A$7="H",COUNTIF(N$7:N88,"x"),IF($A$7="NYD",COUNTIF(O$7:O88,"x"),IF($A$7="R",COUNTIF(P$7:P88,"x"),IF($A$7="MN",COUNTIF(Q$7:Q88,"x"),IF($A$7="CDH",COUNTIF(R$7:R88,"x"),IF($A$7="PNA",COUNTIF(S$7:S88,"x")," ")))))))))))))))))) -> 60 | C88: x | D88: x | E88: x | F88: x | G88: x | N88: x | P88: x | Q88: x | S88: x | T88: SEGURIDAD EN LA MEDICACIÓN | U88: ='FICHA OCULTA'!G121 -> Existencia de un registro de medicamentos controlados. | V88: CC | W88: ='FICHA OCULTA'!$I$125 -> 0.1
A89: =IF($A$7="CE",COUNTIF(B$7:B89,"x"),IF($A$7="HOS",COUNTIF(C$7:C89,"x"),IF($A$7="E",COUNTIF(D$7:D89,"x"),IF($A$7="CEO",COUNTIF(E$7:E89,"x"),IF($A$7="CEQ",COUNTIF(F$7:F89,"x"),IF($A$7="CI",COUNTIF(G$7:G89,"x"),IF($A$7="PC",COUNTIF(H$7:H89,"x"),IF($A$7="DPI",COUNTIF(I$7:I89,"x"),IF($A$7="AP",COUNTIF(J$7:J89,"x"),IF($A$7="F",COUNTIF(K$7:K89,"x"),IF($A$7="CDE",COUNTIF(L$7:L89,"x"),IF($A$7="MR",COUNTIF(M$7:M89,"x"),IF($A$7="H",COUNTIF(N$7:N89,"x"),IF($A$7="NYD",COUNTIF(O$7:O89,"x"),IF($A$7="R",COUNTIF(P$7:P89,"x"),IF($A$7="MN",COUNTIF(Q$7:Q89,"x"),IF($A$7="CDH",COUNTIF(R$7:R89,"x"),IF($A$7="PNA",COUNTIF(S$7:S89,"x")," ")))))))))))))))))) -> 61 | B89: x | C89: x | D89: x | E89: x | F89: x | G89: x | H89: x | I89: x | J89: x | K89: x | M89: x | N89: x | P89: x | Q89: x | R89: x | S89: x | T89: SEGURIDAD EN LA MEDICACIÓN | U89: ='FICHA OCULTA'!G122 -> Profesional encargado del cuidado de los pacientes verifica los 5 correctos para la administración correcta de medicamentos. | V89: CD | W89: ='FICHA OCULTA'!$I$125 -> 0.1
A90: =IF($A$7="CE",COUNTIF(B$7:B90,"x"),IF($A$7="HOS",COUNTIF(C$7:C90,"x"),IF($A$7="E",COUNTIF(D$7:D90,"x"),IF($A$7="CEO",COUNTIF(E$7:E90,"x"),IF($A$7="CEQ",COUNTIF(F$7:F90,"x"),IF($A$7="CI",COUNTIF(G$7:G90,"x"),IF($A$7="PC",COUNTIF(H$7:H90,"x"),IF($A$7="DPI",COUNTIF(I$7:I90,"x"),IF($A$7="AP",COUNTIF(J$7:J90,"x"),IF($A$7="F",COUNTIF(K$7:K90,"x"),IF($A$7="CDE",COUNTIF(L$7:L90,"x"),IF($A$7="MR",COUNTIF(M$7:M90,"x"),IF($A$7="H",COUNTIF(N$7:N90,"x"),IF($A$7="NYD",COUNTIF(O$7:O90,"x"),IF($A$7="R",COUNTIF(P$7:P90,"x"),IF($A$7="MN",COUNTIF(Q$7:Q90,"x"),IF($A$7="CDH",COUNTIF(R$7:R90,"x"),IF($A$7="PNA",COUNTIF(S$7:S90,"x")," ")))))))))))))))))) -> 62 | B90: x | C90: x | D90: x | E90: x | T90: PREVENCIÓN DE CAIDA DE PACIENTES Y CONTENCION MECÁNICA | U90: ='FICHA OCULTA'!G127 -> Valoración del riesgo de caída de todo paciente que se hospitaliza. | V90: CE | W90: ='FICHA OCULTA'!$I$140 -> 0.1818181818
A91: =IF($A$7="CE",COUNTIF(B$7:B91,"x"),IF($A$7="HOS",COUNTIF(C$7:C91,"x"),IF($A$7="E",COUNTIF(D$7:D91,"x"),IF($A$7="CEO",COUNTIF(E$7:E91,"x"),IF($A$7="CEQ",COUNTIF(F$7:F91,"x"),IF($A$7="CI",COUNTIF(G$7:G91,"x"),IF($A$7="PC",COUNTIF(H$7:H91,"x"),IF($A$7="DPI",COUNTIF(I$7:I91,"x"),IF($A$7="AP",COUNTIF(J$7:J91,"x"),IF($A$7="F",COUNTIF(K$7:K91,"x"),IF($A$7="CDE",COUNTIF(L$7:L91,"x"),IF($A$7="MR",COUNTIF(M$7:M91,"x"),IF($A$7="H",COUNTIF(N$7:N91,"x"),IF($A$7="NYD",COUNTIF(O$7:O91,"x"),IF($A$7="R",COUNTIF(P$7:P91,"x"),IF($A$7="MN",COUNTIF(Q$7:Q91,"x"),IF($A$7="CDH",COUNTIF(R$7:R91,"x"),IF($A$7="PNA",COUNTIF(S$7:S91,"x")," ")))))))))))))))))) -> 63 | B91: x | C91: x | D91: x | E91: x | G91: x | N91: x | P91: x | Q91: x | R91: x | T91: PREVENCIÓN DE CAIDA DE PACIENTES Y CONTENCION MECÁNICA | U91: ='FICHA OCULTA'!G128 -> Revaloración diaria de pacientes: ancianos, aquellos sometidos a polifarmacia, los drogodependientes y las personas con déficits neurológicos ‐ cognitivos. | V91: CF | W91: ='FICHA OCULTA'!$I$140 -> 0.1818181818
A92: =IF($A$7="CE",COUNTIF(B$7:B92,"x"),IF($A$7="HOS",COUNTIF(C$7:C92,"x"),IF($A$7="E",COUNTIF(D$7:D92,"x"),IF($A$7="CEO",COUNTIF(E$7:E92,"x"),IF($A$7="CEQ",COUNTIF(F$7:F92,"x"),IF($A$7="CI",COUNTIF(G$7:G92,"x"),IF($A$7="PC",COUNTIF(H$7:H92,"x"),IF($A$7="DPI",COUNTIF(I$7:I92,"x"),IF($A$7="AP",COUNTIF(J$7:J92,"x"),IF($A$7="F",COUNTIF(K$7:K92,"x"),IF($A$7="CDE",COUNTIF(L$7:L92,"x"),IF($A$7="MR",COUNTIF(M$7:M92,"x"),IF($A$7="H",COUNTIF(N$7:N92,"x"),IF($A$7="NYD",COUNTIF(O$7:O92,"x"),IF($A$7="R",COUNTIF(P$7:P92,"x"),IF($A$7="MN",COUNTIF(Q$7:Q92,"x"),IF($A$7="CDH",COUNTIF(R$7:R92,"x"),IF($A$7="PNA",COUNTIF(S$7:S92,"x")," ")))))))))))))))))) -> 64 | C92: x | D92: x | E92: x | G92: x | T92: PREVENCIÓN DE CAIDA DE PACIENTES Y CONTENCION MECÁNICA | U92: ='FICHA OCULTA'!G129 -> Información a los pacientes sobre los efectos secundarios de la medicación que pueden afectar la orientación y el sensorio. | V92: CG | W92: ='FICHA OCULTA'!$I$140 -> 0.1818181818
A93: =IF($A$7="CE",COUNTIF(B$7:B93,"x"),IF($A$7="HOS",COUNTIF(C$7:C93,"x"),IF($A$7="E",COUNTIF(D$7:D93,"x"),IF($A$7="CEO",COUNTIF(E$7:E93,"x"),IF($A$7="CEQ",COUNTIF(F$7:F93,"x"),IF($A$7="CI",COUNTIF(G$7:G93,"x"),IF($A$7="PC",COUNTIF(H$7:H93,"x"),IF($A$7="DPI",COUNTIF(I$7:I93,"x"),IF($A$7="AP",COUNTIF(J$7:J93,"x"),IF($A$7="F",COUNTIF(K$7:K93,"x"),IF($A$7="CDE",COUNTIF(L$7:L93,"x"),IF($A$7="MR",COUNTIF(M$7:M93,"x"),IF($A$7="H",COUNTIF(N$7:N93,"x"),IF($A$7="NYD",COUNTIF(O$7:O93,"x"),IF($A$7="R",COUNTIF(P$7:P93,"x"),IF($A$7="MN",COUNTIF(Q$7:Q93,"x"),IF($A$7="CDH",COUNTIF(R$7:R93,"x"),IF($A$7="PNA",COUNTIF(S$7:S93,"x")," ")))))))))))))))))) -> 65 | B93: x | C93: x | D93: x | E93: x | F93: x | G93: x | H93: x | I93: x | J93: x | M93: x | N93: x | P93: x | Q93: x | R93: x | T93: PREVENCIÓN DE CAIDA DE PACIENTES Y CONTENCION MECÁNICA | U93: ='FICHA OCULTA'!G130 -> En casos de sedación y deterioro cognitivo severo se utilizarán barras de protección lateral o contención abdominal cuando el paciente se encuentre encamado. | V93: CH | W93: ='FICHA OCULTA'!$I$140 -> 0.1818181818
A94: =IF($A$7="CE",COUNTIF(B$7:B94,"x"),IF($A$7="HOS",COUNTIF(C$7:C94,"x"),IF($A$7="E",COUNTIF(D$7:D94,"x"),IF($A$7="CEO",COUNTIF(E$7:E94,"x"),IF($A$7="CEQ",COUNTIF(F$7:F94,"x"),IF($A$7="CI",COUNTIF(G$7:G94,"x"),IF($A$7="PC",COUNTIF(H$7:H94,"x"),IF($A$7="DPI",COUNTIF(I$7:I94,"x"),IF($A$7="AP",COUNTIF(J$7:J94,"x"),IF($A$7="F",COUNTIF(K$7:K94,"x"),IF($A$7="CDE",COUNTIF(L$7:L94,"x"),IF($A$7="MR",COUNTIF(M$7:M94,"x"),IF($A$7="H",COUNTIF(N$7:N94,"x"),IF($A$7="NYD",COUNTIF(O$7:O94,"x"),IF($A$7="R",COUNTIF(P$7:P94,"x"),IF($A$7="MN",COUNTIF(Q$7:Q94,"x"),IF($A$7="CDH",COUNTIF(R$7:R94,"x"),IF($A$7="PNA",COUNTIF(S$7:S94,"x")," ")))))))))))))))))) -> 66 | C94: x | D94: x | E94: x | G94: x | T94: PREVENCIÓN DE CAIDA DE PACIENTES Y CONTENCION MECÁNICA | U94: ='FICHA OCULTA'!G131 -> Comunicar al paciente temas relacionados al uso de los baños, uso de las duchas, uso de los lavaderos, cambios posturales periodicos, etc. | V94: CI | W94: ='FICHA OCULTA'!$I$140 -> 0.1818181818
A95: =IF($A$7="CE",COUNTIF(B$7:B95,"x"),IF($A$7="HOS",COUNTIF(C$7:C95,"x"),IF($A$7="E",COUNTIF(D$7:D95,"x"),IF($A$7="CEO",COUNTIF(E$7:E95,"x"),IF($A$7="CEQ",COUNTIF(F$7:F95,"x"),IF($A$7="CI",COUNTIF(G$7:G95,"x"),IF($A$7="PC",COUNTIF(H$7:H95,"x"),IF($A$7="DPI",COUNTIF(I$7:I95,"x"),IF($A$7="AP",COUNTIF(J$7:J95,"x"),IF($A$7="F",COUNTIF(K$7:K95,"x"),IF($A$7="CDE",COUNTIF(L$7:L95,"x"),IF($A$7="MR",COUNTIF(M$7:M95,"x"),IF($A$7="H",COUNTIF(N$7:N95,"x"),IF($A$7="NYD",COUNTIF(O$7:O95,"x"),IF($A$7="R",COUNTIF(P$7:P95,"x"),IF($A$7="MN",COUNTIF(Q$7:Q95,"x"),IF($A$7="CDH",COUNTIF(R$7:R95,"x"),IF($A$7="PNA",COUNTIF(S$7:S95,"x")," ")))))))))))))))))) -> 67 | C95: x | D95: x | E95: x | F95: x | G95: x | P95: x | Q95: x | R95: x | T95: PREVENCIÓN DE CAIDA DE PACIENTES Y CONTENCION MECÁNICA | U95: ='FICHA OCULTA'!G132 -> Protocolo que establezca población objetivo, indicaciones, medidas preventivas, profesionales responsables de la indicación y supervisión de los diversos mecanismos de sujeción mecanica. | V95: CJ | W95: ='FICHA OCULTA'!$I$140 -> 0.1818181818
A96: =IF($A$7="CE",COUNTIF(B$7:B96,"x"),IF($A$7="HOS",COUNTIF(C$7:C96,"x"),IF($A$7="E",COUNTIF(D$7:D96,"x"),IF($A$7="CEO",COUNTIF(E$7:E96,"x"),IF($A$7="CEQ",COUNTIF(F$7:F96,"x"),IF($A$7="CI",COUNTIF(G$7:G96,"x"),IF($A$7="PC",COUNTIF(H$7:H96,"x"),IF($A$7="DPI",COUNTIF(I$7:I96,"x"),IF($A$7="AP",COUNTIF(J$7:J96,"x"),IF($A$7="F",COUNTIF(K$7:K96,"x"),IF($A$7="CDE",COUNTIF(L$7:L96,"x"),IF($A$7="MR",COUNTIF(M$7:M96,"x"),IF($A$7="H",COUNTIF(N$7:N96,"x"),IF($A$7="NYD",COUNTIF(O$7:O96,"x"),IF($A$7="R",COUNTIF(P$7:P96,"x"),IF($A$7="MN",COUNTIF(Q$7:Q96,"x"),IF($A$7="CDH",COUNTIF(R$7:R96,"x"),IF($A$7="PNA",COUNTIF(S$7:S96,"x")," ")))))))))))))))))) -> 68 | C96: x | D96: x | E96: x | F96: x | G96: x | P96: x | Q96: x | R96: x | T96: PREVENCIÓN DE CAIDA DE PACIENTES Y CONTENCION MECÁNICA | U96: ='FICHA OCULTA'!G133 -> Sistemas de registro específicos de todo paciente con sujeción mecánica, el que se debe de reevaluar periódicamente la situación y el tiempo de sujeción. | V96: CK | W96: ='FICHA OCULTA'!$I$140 -> 0.1818181818
A97: =IF($A$7="CE",COUNTIF(B$7:B97,"x"),IF($A$7="HOS",COUNTIF(C$7:C97,"x"),IF($A$7="E",COUNTIF(D$7:D97,"x"),IF($A$7="CEO",COUNTIF(E$7:E97,"x"),IF($A$7="CEQ",COUNTIF(F$7:F97,"x"),IF($A$7="CI",COUNTIF(G$7:G97,"x"),IF($A$7="PC",COUNTIF(H$7:H97,"x"),IF($A$7="DPI",COUNTIF(I$7:I97,"x"),IF($A$7="AP",COUNTIF(J$7:J97,"x"),IF($A$7="F",COUNTIF(K$7:K97,"x"),IF($A$7="CDE",COUNTIF(L$7:L97,"x"),IF($A$7="MR",COUNTIF(M$7:M97,"x"),IF($A$7="H",COUNTIF(N$7:N97,"x"),IF($A$7="NYD",COUNTIF(O$7:O97,"x"),IF($A$7="R",COUNTIF(P$7:P97,"x"),IF($A$7="MN",COUNTIF(Q$7:Q97,"x"),IF($A$7="CDH",COUNTIF(R$7:R97,"x"),IF($A$7="PNA",COUNTIF(S$7:S97,"x")," ")))))))))))))))))) -> 69 | C97: x | D97: x | E97: x | G97: x | P97: x | Q97: x | R97: x | T97: PREVENCIÓN DE CAIDA DE PACIENTES Y CONTENCION MECÁNICA | U97: ='FICHA OCULTA'!G134 -> Asegurarse que las técnicas de inmovilización puedan ser retiradas fácilmente. | V97: CL | W97: ='FICHA OCULTA'!$I$140 -> 0.1818181818
A98: =IF($A$7="CE",COUNTIF(B$7:B98,"x"),IF($A$7="HOS",COUNTIF(C$7:C98,"x"),IF($A$7="E",COUNTIF(D$7:D98,"x"),IF($A$7="CEO",COUNTIF(E$7:E98,"x"),IF($A$7="CEQ",COUNTIF(F$7:F98,"x"),IF($A$7="CI",COUNTIF(G$7:G98,"x"),IF($A$7="PC",COUNTIF(H$7:H98,"x"),IF($A$7="DPI",COUNTIF(I$7:I98,"x"),IF($A$7="AP",COUNTIF(J$7:J98,"x"),IF($A$7="F",COUNTIF(K$7:K98,"x"),IF($A$7="CDE",COUNTIF(L$7:L98,"x"),IF($A$7="MR",COUNTIF(M$7:M98,"x"),IF($A$7="H",COUNTIF(N$7:N98,"x"),IF($A$7="NYD",COUNTIF(O$7:O98,"x"),IF($A$7="R",COUNTIF(P$7:P98,"x"),IF($A$7="MN",COUNTIF(Q$7:Q98,"x"),IF($A$7="CDH",COUNTIF(R$7:R98,"x"),IF($A$7="PNA",COUNTIF(S$7:S98,"x")," ")))))))))))))))))) -> 70 | C98: x | D98: x | E98: x | G98: x | P98: x | Q98: x | R98: x | T98: PREVENCIÓN DE CAIDA DE PACIENTES Y CONTENCION MECÁNICA | U98: ='FICHA OCULTA'!G135 -> Si el paciente se encuentra en posición supina, comprobar que puede mover la cabeza libremente y levantarla de la cama. | V98: CM | W98: ='FICHA OCULTA'!$I$140 -> 0.1818181818
A99: =IF($A$7="CE",COUNTIF(B$7:B99,"x"),IF($A$7="HOS",COUNTIF(C$7:C99,"x"),IF($A$7="E",COUNTIF(D$7:D99,"x"),IF($A$7="CEO",COUNTIF(E$7:E99,"x"),IF($A$7="CEQ",COUNTIF(F$7:F99,"x"),IF($A$7="CI",COUNTIF(G$7:G99,"x"),IF($A$7="PC",COUNTIF(H$7:H99,"x"),IF($A$7="DPI",COUNTIF(I$7:I99,"x"),IF($A$7="AP",COUNTIF(J$7:J99,"x"),IF($A$7="F",COUNTIF(K$7:K99,"x"),IF($A$7="CDE",COUNTIF(L$7:L99,"x"),IF($A$7="MR",COUNTIF(M$7:M99,"x"),IF($A$7="H",COUNTIF(N$7:N99,"x"),IF($A$7="NYD",COUNTIF(O$7:O99,"x"),IF($A$7="R",COUNTIF(P$7:P99,"x"),IF($A$7="MN",COUNTIF(Q$7:Q99,"x"),IF($A$7="CDH",COUNTIF(R$7:R99,"x"),IF($A$7="PNA",COUNTIF(S$7:S99,"x")," ")))))))))))))))))) -> 71 | C99: x | D99: x | E99: x | G99: x | P99: x | Q99: x | R99: x | T99: PREVENCIÓN DE CAIDA DE PACIENTES Y CONTENCION MECÁNICA | U99: ='FICHA OCULTA'!G136 -> Si el paciente se encuentra en decúbito prono asegurar que las vías aéreas no están obstruidas en ningún momento y que la expansión pulmonar no se ve limitada. | V99: CN | W99: ='FICHA OCULTA'!$I$140 -> 0.1818181818
A100: =IF($A$7="CE",COUNTIF(B$7:B100,"x"),IF($A$7="HOS",COUNTIF(C$7:C100,"x"),IF($A$7="E",COUNTIF(D$7:D100,"x"),IF($A$7="CEO",COUNTIF(E$7:E100,"x"),IF($A$7="CEQ",COUNTIF(F$7:F100,"x"),IF($A$7="CI",COUNTIF(G$7:G100,"x"),IF($A$7="PC",COUNTIF(H$7:H100,"x"),IF($A$7="DPI",COUNTIF(I$7:I100,"x"),IF($A$7="AP",COUNTIF(J$7:J100,"x"),IF($A$7="F",COUNTIF(K$7:K100,"x"),IF($A$7="CDE",COUNTIF(L$7:L100,"x"),IF($A$7="MR",COUNTIF(M$7:M100,"x"),IF($A$7="H",COUNTIF(N$7:N100,"x"),IF($A$7="NYD",COUNTIF(O$7:O100,"x"),IF($A$7="R",COUNTIF(P$7:P100,"x"),IF($A$7="MN",COUNTIF(Q$7:Q100,"x"),IF($A$7="CDH",COUNTIF(R$7:R100,"x"),IF($A$7="PNA",COUNTIF(S$7:S100,"x")," ")))))))))))))))))) -> 72 | C100: x | D100: x | E100: x | G100: x | T100: PREVENCIÓN DE CAIDA DE PACIENTES Y CONTENCION MECÁNICA | U100: ='FICHA OCULTA'!G137 -> Evidencia de cambio periódico de la posición de la inmovilización y evaluación de las zonas cutáneas sometidas a presión. | V100: CO | W100: ='FICHA OCULTA'!$I$140 -> 0.1818181818
A101: =IF($A$7="CE",COUNTIF(B$7:B101,"x"),IF($A$7="HOS",COUNTIF(C$7:C101,"x"),IF($A$7="E",COUNTIF(D$7:D101,"x"),IF($A$7="CEO",COUNTIF(E$7:E101,"x"),IF($A$7="CEQ",COUNTIF(F$7:F101,"x"),IF($A$7="CI",COUNTIF(G$7:G101,"x"),IF($A$7="PC",COUNTIF(H$7:H101,"x"),IF($A$7="DPI",COUNTIF(I$7:I101,"x"),IF($A$7="AP",COUNTIF(J$7:J101,"x"),IF($A$7="F",COUNTIF(K$7:K101,"x"),IF($A$7="CDE",COUNTIF(L$7:L101,"x"),IF($A$7="MR",COUNTIF(M$7:M101,"x"),IF($A$7="H",COUNTIF(N$7:N101,"x"),IF($A$7="NYD",COUNTIF(O$7:O101,"x"),IF($A$7="R",COUNTIF(P$7:P101,"x"),IF($A$7="MN",COUNTIF(Q$7:Q101,"x"),IF($A$7="CDH",COUNTIF(R$7:R101,"x"),IF($A$7="PNA",COUNTIF(S$7:S101,"x")," ")))))))))))))))))) -> 73 | C101: x | D101: x | E101: x | G101: x | T101: SEGURIDAD SEXUAL | U101: ='FICHA OCULTA'!G142 -> Evaluación del paciente a su ingreso y durante el mismo de los riesgos de ser víctimas o de cometer agresiones sexuales: desinhibiciones maníacas, trastornos de la personalidad, aislamiento, poca aceptación en su medio. | V101: CP | W101: ='FICHA OCULTA'!$I$150 -> 0.3333333333
A102: =IF($A$7="CE",COUNTIF(B$7:B102,"x"),IF($A$7="HOS",COUNTIF(C$7:C102,"x"),IF($A$7="E",COUNTIF(D$7:D102,"x"),IF($A$7="CEO",COUNTIF(E$7:E102,"x"),IF($A$7="CEQ",COUNTIF(F$7:F102,"x"),IF($A$7="CI",COUNTIF(G$7:G102,"x"),IF($A$7="PC",COUNTIF(H$7:H102,"x"),IF($A$7="DPI",COUNTIF(I$7:I102,"x"),IF($A$7="AP",COUNTIF(J$7:J102,"x"),IF($A$7="F",COUNTIF(K$7:K102,"x"),IF($A$7="CDE",COUNTIF(L$7:L102,"x"),IF($A$7="MR",COUNTIF(M$7:M102,"x"),IF($A$7="H",COUNTIF(N$7:N102,"x"),IF($A$7="NYD",COUNTIF(O$7:O102,"x"),IF($A$7="R",COUNTIF(P$7:P102,"x"),IF($A$7="MN",COUNTIF(Q$7:Q102,"x"),IF($A$7="CDH",COUNTIF(R$7:R102,"x"),IF($A$7="PNA",COUNTIF(S$7:S102,"x")," ")))))))))))))))))) -> 74 | B102: x | C102: x | D102: x | E102: x | F102: x | G102: x | H102: x | I102: x | J102: x | K102: x | M102: x | N102: x | O102: x | P102: x | Q102: x | R102: x | S102: x | T102: SEGURIDAD SEXUAL | U102: ='FICHA OCULTA'!G143 -> Información disponible y clara referente a las consecuencias penales de las agresiones sexuales. | V102: CQ | W102: ='FICHA OCULTA'!$I$150 -> 0.3333333333
A103: =IF($A$7="CE",COUNTIF(B$7:B103,"x"),IF($A$7="HOS",COUNTIF(C$7:C103,"x"),IF($A$7="E",COUNTIF(D$7:D103,"x"),IF($A$7="CEO",COUNTIF(E$7:E103,"x"),IF($A$7="CEQ",COUNTIF(F$7:F103,"x"),IF($A$7="CI",COUNTIF(G$7:G103,"x"),IF($A$7="PC",COUNTIF(H$7:H103,"x"),IF($A$7="DPI",COUNTIF(I$7:I103,"x"),IF($A$7="AP",COUNTIF(J$7:J103,"x"),IF($A$7="F",COUNTIF(K$7:K103,"x"),IF($A$7="CDE",COUNTIF(L$7:L103,"x"),IF($A$7="MR",COUNTIF(M$7:M103,"x"),IF($A$7="H",COUNTIF(N$7:N103,"x"),IF($A$7="NYD",COUNTIF(O$7:O103,"x"),IF($A$7="R",COUNTIF(P$7:P103,"x"),IF($A$7="MN",COUNTIF(Q$7:Q103,"x"),IF($A$7="CDH",COUNTIF(R$7:R103,"x"),IF($A$7="PNA",COUNTIF(S$7:S103,"x")," ")))))))))))))))))) -> 75 | C103: x | D103: x | E103: x | G103: x | T103: SEGURIDAD SEXUAL | U103: ='FICHA OCULTA'!G144 -> El protocolo de recepción de un paciente establece la prohibición expresa de mantener relaciones sexuales durante la hospitalización. | V103: CR | W103: ='FICHA OCULTA'!$I$150 -> 0.3333333333
A104: =IF($A$7="CE",COUNTIF(B$7:B104,"x"),IF($A$7="HOS",COUNTIF(C$7:C104,"x"),IF($A$7="E",COUNTIF(D$7:D104,"x"),IF($A$7="CEO",COUNTIF(E$7:E104,"x"),IF($A$7="CEQ",COUNTIF(F$7:F104,"x"),IF($A$7="CI",COUNTIF(G$7:G104,"x"),IF($A$7="PC",COUNTIF(H$7:H104,"x"),IF($A$7="DPI",COUNTIF(I$7:I104,"x"),IF($A$7="AP",COUNTIF(J$7:J104,"x"),IF($A$7="F",COUNTIF(K$7:K104,"x"),IF($A$7="CDE",COUNTIF(L$7:L104,"x"),IF($A$7="MR",COUNTIF(M$7:M104,"x"),IF($A$7="H",COUNTIF(N$7:N104,"x"),IF($A$7="NYD",COUNTIF(O$7:O104,"x"),IF($A$7="R",COUNTIF(P$7:P104,"x"),IF($A$7="MN",COUNTIF(Q$7:Q104,"x"),IF($A$7="CDH",COUNTIF(R$7:R104,"x"),IF($A$7="PNA",COUNTIF(S$7:S104,"x")," ")))))))))))))))))) -> 76 | C104: x | D104: x | E104: x | G104: x | T104: SEGURIDAD SEXUAL | U104: ='FICHA OCULTA'!G145 -> Control de la entrada de pacientes a cualquier habitación que no sea la propia. | V104: CS | W104: ='FICHA OCULTA'!$I$150 -> 0.3333333333
A105: =IF($A$7="CE",COUNTIF(B$7:B105,"x"),IF($A$7="HOS",COUNTIF(C$7:C105,"x"),IF($A$7="E",COUNTIF(D$7:D105,"x"),IF($A$7="CEO",COUNTIF(E$7:E105,"x"),IF($A$7="CEQ",COUNTIF(F$7:F105,"x"),IF($A$7="CI",COUNTIF(G$7:G105,"x"),IF($A$7="PC",COUNTIF(H$7:H105,"x"),IF($A$7="DPI",COUNTIF(I$7:I105,"x"),IF($A$7="AP",COUNTIF(J$7:J105,"x"),IF($A$7="F",COUNTIF(K$7:K105,"x"),IF($A$7="CDE",COUNTIF(L$7:L105,"x"),IF($A$7="MR",COUNTIF(M$7:M105,"x"),IF($A$7="H",COUNTIF(N$7:N105,"x"),IF($A$7="NYD",COUNTIF(O$7:O105,"x"),IF($A$7="R",COUNTIF(P$7:P105,"x"),IF($A$7="MN",COUNTIF(Q$7:Q105,"x"),IF($A$7="CDH",COUNTIF(R$7:R105,"x"),IF($A$7="PNA",COUNTIF(S$7:S105,"x")," ")))))))))))))))))) -> 77 | C105: x | D105: x | E105: x | G105: x | T105: SEGURIDAD SEXUAL | U105: ='FICHA OCULTA'!G146 -> Al detectar conductas desinhibidas se comunicará al resto del equipo y se discutirán las medidas a tomar, que quedarán registradas en la hoja de recomendaciones terapéuticas. | V105: CT | W105: ='FICHA OCULTA'!$I$150 -> 0.3333333333
A106: =IF($A$7="CE",COUNTIF(B$7:B106,"x"),IF($A$7="HOS",COUNTIF(C$7:C106,"x"),IF($A$7="E",COUNTIF(D$7:D106,"x"),IF($A$7="CEO",COUNTIF(E$7:E106,"x"),IF($A$7="CEQ",COUNTIF(F$7:F106,"x"),IF($A$7="CI",COUNTIF(G$7:G106,"x"),IF($A$7="PC",COUNTIF(H$7:H106,"x"),IF($A$7="DPI",COUNTIF(I$7:I106,"x"),IF($A$7="AP",COUNTIF(J$7:J106,"x"),IF($A$7="F",COUNTIF(K$7:K106,"x"),IF($A$7="CDE",COUNTIF(L$7:L106,"x"),IF($A$7="MR",COUNTIF(M$7:M106,"x"),IF($A$7="H",COUNTIF(N$7:N106,"x"),IF($A$7="NYD",COUNTIF(O$7:O106,"x"),IF($A$7="R",COUNTIF(P$7:P106,"x"),IF($A$7="MN",COUNTIF(Q$7:Q106,"x"),IF($A$7="CDH",COUNTIF(R$7:R106,"x"),IF($A$7="PNA",COUNTIF(S$7:S106,"x")," ")))))))))))))))))) -> 78 | C106: x | D106: x | E106: x | G106: x | T106: SEGURIDAD SEXUAL | U106: ='FICHA OCULTA'!G147 -> Ante la sospecha de relaciones sexuales consumadas se aplicarán las medidas médicas y legales que resulten oportunas | V106: CU | W106: ='FICHA OCULTA'!$I$150 -> 0.3333333333
A107: =IF($A$7="CE",COUNTIF(B$7:B107,"x"),IF($A$7="HOS",COUNTIF(C$7:C107,"x"),IF($A$7="E",COUNTIF(D$7:D107,"x"),IF($A$7="CEO",COUNTIF(E$7:E107,"x"),IF($A$7="CEQ",COUNTIF(F$7:F107,"x"),IF($A$7="CI",COUNTIF(G$7:G107,"x"),IF($A$7="PC",COUNTIF(H$7:H107,"x"),IF($A$7="DPI",COUNTIF(I$7:I107,"x"),IF($A$7="AP",COUNTIF(J$7:J107,"x"),IF($A$7="F",COUNTIF(K$7:K107,"x"),IF($A$7="CDE",COUNTIF(L$7:L107,"x"),IF($A$7="MR",COUNTIF(M$7:M107,"x"),IF($A$7="H",COUNTIF(N$7:N107,"x"),IF($A$7="NYD",COUNTIF(O$7:O107,"x"),IF($A$7="R",COUNTIF(P$7:P107,"x"),IF($A$7="MN",COUNTIF(Q$7:Q107,"x"),IF($A$7="CDH",COUNTIF(R$7:R107,"x"),IF($A$7="PNA",COUNTIF(S$7:S107,"x")," ")))))))))))))))))) -> 79 | C107: x | D107: x | G107: x | T107: PREVENCIÓN Y REDUCCIÓN DEL RIESGO DE LAS ÚLCERAS POR PRESIÓN | U107: ='FICHA OCULTA'!G152 -> Evaluación inicial del riesgo de úlceras por presión en todos los pacientes al ingreso a servicios de hospitalización | V107: CV | W107: ='FICHA OCULTA'!$I$163 -> 0.2857142857
A108: =IF($A$7="CE",COUNTIF(B$7:B108,"x"),IF($A$7="HOS",COUNTIF(C$7:C108,"x"),IF($A$7="E",COUNTIF(D$7:D108,"x"),IF($A$7="CEO",COUNTIF(E$7:E108,"x"),IF($A$7="CEQ",COUNTIF(F$7:F108,"x"),IF($A$7="CI",COUNTIF(G$7:G108,"x"),IF($A$7="PC",COUNTIF(H$7:H108,"x"),IF($A$7="DPI",COUNTIF(I$7:I108,"x"),IF($A$7="AP",COUNTIF(J$7:J108,"x"),IF($A$7="F",COUNTIF(K$7:K108,"x"),IF($A$7="CDE",COUNTIF(L$7:L108,"x"),IF($A$7="MR",COUNTIF(M$7:M108,"x"),IF($A$7="H",COUNTIF(N$7:N108,"x"),IF($A$7="NYD",COUNTIF(O$7:O108,"x"),IF($A$7="R",COUNTIF(P$7:P108,"x"),IF($A$7="MN",COUNTIF(Q$7:Q108,"x"),IF($A$7="CDH",COUNTIF(R$7:R108,"x"),IF($A$7="PNA",COUNTIF(S$7:S108,"x")," ")))))))))))))))))) -> 80 | C108: x | D108: x | G108: x | T108: PREVENCIÓN Y REDUCCIÓN DEL RIESGO DE LAS ÚLCERAS POR PRESIÓN | U108: ='FICHA OCULTA'!G153 -> Valoración del estado de la piel para detectar la presencia de úlceras por presión previas. | V108: CW | W108: ='FICHA OCULTA'!$I$163 -> 0.2857142857
A109: =IF($A$7="CE",COUNTIF(B$7:B109,"x"),IF($A$7="HOS",COUNTIF(C$7:C109,"x"),IF($A$7="E",COUNTIF(D$7:D109,"x"),IF($A$7="CEO",COUNTIF(E$7:E109,"x"),IF($A$7="CEQ",COUNTIF(F$7:F109,"x"),IF($A$7="CI",COUNTIF(G$7:G109,"x"),IF($A$7="PC",COUNTIF(H$7:H109,"x"),IF($A$7="DPI",COUNTIF(I$7:I109,"x"),IF($A$7="AP",COUNTIF(J$7:J109,"x"),IF($A$7="F",COUNTIF(K$7:K109,"x"),IF($A$7="CDE",COUNTIF(L$7:L109,"x"),IF($A$7="MR",COUNTIF(M$7:M109,"x"),IF($A$7="H",COUNTIF(N$7:N109,"x"),IF($A$7="NYD",COUNTIF(O$7:O109,"x"),IF($A$7="R",COUNTIF(P$7:P109,"x"),IF($A$7="MN",COUNTIF(Q$7:Q109,"x"),IF($A$7="CDH",COUNTIF(R$7:R109,"x"),IF($A$7="PNA",COUNTIF(S$7:S109,"x")," ")))))))))))))))))) -> 81 | C109: x | D109: x | G109: x | T109: PREVENCIÓN Y REDUCCIÓN DEL RIESGO DE LAS ÚLCERAS POR PRESIÓN | U109: ='FICHA OCULTA'!G154 -> Reevaluación periódica del riesgo, siempre que cambie la situación clínica basal del paciente. | V109: CX | W109: ='FICHA OCULTA'!$I$163 -> 0.2857142857
A110: =IF($A$7="CE",COUNTIF(B$7:B110,"x"),IF($A$7="HOS",COUNTIF(C$7:C110,"x"),IF($A$7="E",COUNTIF(D$7:D110,"x"),IF($A$7="CEO",COUNTIF(E$7:E110,"x"),IF($A$7="CEQ",COUNTIF(F$7:F110,"x"),IF($A$7="CI",COUNTIF(G$7:G110,"x"),IF($A$7="PC",COUNTIF(H$7:H110,"x"),IF($A$7="DPI",COUNTIF(I$7:I110,"x"),IF($A$7="AP",COUNTIF(J$7:J110,"x"),IF($A$7="F",COUNTIF(K$7:K110,"x"),IF($A$7="CDE",COUNTIF(L$7:L110,"x"),IF($A$7="MR",COUNTIF(M$7:M110,"x"),IF($A$7="H",COUNTIF(N$7:N110,"x"),IF($A$7="NYD",COUNTIF(O$7:O110,"x"),IF($A$7="R",COUNTIF(P$7:P110,"x"),IF($A$7="MN",COUNTIF(Q$7:Q110,"x"),IF($A$7="CDH",COUNTIF(R$7:R110,"x"),IF($A$7="PNA",COUNTIF(S$7:S110,"x")," ")))))))))))))))))) -> 82 | B110: x | C110: x | D110: x | G110: x | M110: x | O110: x | T110: PREVENCIÓN Y REDUCCIÓN DEL RIESGO DE LAS ÚLCERAS POR PRESIÓN | U110: ='FICHA OCULTA'!G155 -> Protocolización de la guía de atención para la prevención y control de úlceras por presión. | V110: CY | W110: ='FICHA OCULTA'!$I$163 -> 0.2857142857
A111: =IF($A$7="CE",COUNTIF(B$7:B111,"x"),IF($A$7="HOS",COUNTIF(C$7:C111,"x"),IF($A$7="E",COUNTIF(D$7:D111,"x"),IF($A$7="CEO",COUNTIF(E$7:E111,"x"),IF($A$7="CEQ",COUNTIF(F$7:F111,"x"),IF($A$7="CI",COUNTIF(G$7:G111,"x"),IF($A$7="PC",COUNTIF(H$7:H111,"x"),IF($A$7="DPI",COUNTIF(I$7:I111,"x"),IF($A$7="AP",COUNTIF(J$7:J111,"x"),IF($A$7="F",COUNTIF(K$7:K111,"x"),IF($A$7="CDE",COUNTIF(L$7:L111,"x"),IF($A$7="MR",COUNTIF(M$7:M111,"x"),IF($A$7="H",COUNTIF(N$7:N111,"x"),IF($A$7="NYD",COUNTIF(O$7:O111,"x"),IF($A$7="R",COUNTIF(P$7:P111,"x"),IF($A$7="MN",COUNTIF(Q$7:Q111,"x"),IF($A$7="CDH",COUNTIF(R$7:R111,"x"),IF($A$7="PNA",COUNTIF(S$7:S111,"x")," ")))))))))))))))))) -> 83 | B111: x | C111: x | D111: x | G111: x | M111: x | O111: x | T111: PREVENCIÓN Y REDUCCIÓN DEL RIESGO DE LAS ÚLCERAS POR PRESIÓN | U111: ='FICHA OCULTA'!G156 -> Educación al paciente y su familia para la prevención y cuidado de las úlceras por presión. | V111: CZ | W111: ='FICHA OCULTA'!$I$163 -> 0.2857142857
A112: =IF($A$7="CE",COUNTIF(B$7:B112,"x"),IF($A$7="HOS",COUNTIF(C$7:C112,"x"),IF($A$7="E",COUNTIF(D$7:D112,"x"),IF($A$7="CEO",COUNTIF(E$7:E112,"x"),IF($A$7="CEQ",COUNTIF(F$7:F112,"x"),IF($A$7="CI",COUNTIF(G$7:G112,"x"),IF($A$7="PC",COUNTIF(H$7:H112,"x"),IF($A$7="DPI",COUNTIF(I$7:I112,"x"),IF($A$7="AP",COUNTIF(J$7:J112,"x"),IF($A$7="F",COUNTIF(K$7:K112,"x"),IF($A$7="CDE",COUNTIF(L$7:L112,"x"),IF($A$7="MR",COUNTIF(M$7:M112,"x"),IF($A$7="H",COUNTIF(N$7:N112,"x"),IF($A$7="NYD",COUNTIF(O$7:O112,"x"),IF($A$7="R",COUNTIF(P$7:P112,"x"),IF($A$7="MN",COUNTIF(Q$7:Q112,"x"),IF($A$7="CDH",COUNTIF(R$7:R112,"x"),IF($A$7="PNA",COUNTIF(S$7:S112,"x")," ")))))))))))))))))) -> 84 | B112: x | C112: x | D112: x | G112: x | M112: x | O112: x | T112: PREVENCIÓN Y REDUCCIÓN DEL RIESGO DE LAS ÚLCERAS POR PRESIÓN | U112: ='FICHA OCULTA'!G157 -> Planificación, ejecución y evaluación del programa educativo dirigido a paciente, su cuidador y la familia. | V112: DA | W112: ='FICHA OCULTA'!$I$163 -> 0.2857142857
A113: =IF($A$7="CE",COUNTIF(B$7:B113,"x"),IF($A$7="HOS",COUNTIF(C$7:C113,"x"),IF($A$7="E",COUNTIF(D$7:D113,"x"),IF($A$7="CEO",COUNTIF(E$7:E113,"x"),IF($A$7="CEQ",COUNTIF(F$7:F113,"x"),IF($A$7="CI",COUNTIF(G$7:G113,"x"),IF($A$7="PC",COUNTIF(H$7:H113,"x"),IF($A$7="DPI",COUNTIF(I$7:I113,"x"),IF($A$7="AP",COUNTIF(J$7:J113,"x"),IF($A$7="F",COUNTIF(K$7:K113,"x"),IF($A$7="CDE",COUNTIF(L$7:L113,"x"),IF($A$7="MR",COUNTIF(M$7:M113,"x"),IF($A$7="H",COUNTIF(N$7:N113,"x"),IF($A$7="NYD",COUNTIF(O$7:O113,"x"),IF($A$7="R",COUNTIF(P$7:P113,"x"),IF($A$7="MN",COUNTIF(Q$7:Q113,"x"),IF($A$7="CDH",COUNTIF(R$7:R113,"x"),IF($A$7="PNA",COUNTIF(S$7:S113,"x")," ")))))))))))))))))) -> 85 | B113: x | C113: x | D113: x | G113: x | T113: PREVENCIÓN Y REDUCCIÓN DEL RIESGO DE LAS ÚLCERAS POR PRESIÓN | U113: ='FICHA OCULTA'!G158 -> Notificación de úlceras por presión (incidencia y prevalencia) en un registro diario instaurado en los servicios de hospitalización. | V113: DB | W113: ='FICHA OCULTA'!$I$163 -> 0.2857142857
A114: =IF($A$7="CE",COUNTIF(B$7:B114,"x"),IF($A$7="HOS",COUNTIF(C$7:C114,"x"),IF($A$7="E",COUNTIF(D$7:D114,"x"),IF($A$7="CEO",COUNTIF(E$7:E114,"x"),IF($A$7="CEQ",COUNTIF(F$7:F114,"x"),IF($A$7="CI",COUNTIF(G$7:G114,"x"),IF($A$7="PC",COUNTIF(H$7:H114,"x"),IF($A$7="DPI",COUNTIF(I$7:I114,"x"),IF($A$7="AP",COUNTIF(J$7:J114,"x"),IF($A$7="F",COUNTIF(K$7:K114,"x"),IF($A$7="CDE",COUNTIF(L$7:L114,"x"),IF($A$7="MR",COUNTIF(M$7:M114,"x"),IF($A$7="H",COUNTIF(N$7:N114,"x"),IF($A$7="NYD",COUNTIF(O$7:O114,"x"),IF($A$7="R",COUNTIF(P$7:P114,"x"),IF($A$7="MN",COUNTIF(Q$7:Q114,"x"),IF($A$7="CDH",COUNTIF(R$7:R114,"x"),IF($A$7="PNA",COUNTIF(S$7:S114,"x")," ")))))))))))))))))) -> 86 | B114: x | C114: x | D114: x | G114: x | T114: PREVENCIÓN Y REDUCCIÓN DEL RIESGO DE LAS ÚLCERAS POR PRESIÓN | U114: ='FICHA OCULTA'!G159 -> Aplicación de guía de curación de úlceras por presión según estadíos. | V114: DC | W114: ='FICHA OCULTA'!$I$163 -> 0.2857142857
A115: =IF($A$7="CE",COUNTIF(B$7:B115,"x"),IF($A$7="HOS",COUNTIF(C$7:C115,"x"),IF($A$7="E",COUNTIF(D$7:D115,"x"),IF($A$7="CEO",COUNTIF(E$7:E115,"x"),IF($A$7="CEQ",COUNTIF(F$7:F115,"x"),IF($A$7="CI",COUNTIF(G$7:G115,"x"),IF($A$7="PC",COUNTIF(H$7:H115,"x"),IF($A$7="DPI",COUNTIF(I$7:I115,"x"),IF($A$7="AP",COUNTIF(J$7:J115,"x"),IF($A$7="F",COUNTIF(K$7:K115,"x"),IF($A$7="CDE",COUNTIF(L$7:L115,"x"),IF($A$7="MR",COUNTIF(M$7:M115,"x"),IF($A$7="H",COUNTIF(N$7:N115,"x"),IF($A$7="NYD",COUNTIF(O$7:O115,"x"),IF($A$7="R",COUNTIF(P$7:P115,"x"),IF($A$7="MN",COUNTIF(Q$7:Q115,"x"),IF($A$7="CDH",COUNTIF(R$7:R115,"x"),IF($A$7="PNA",COUNTIF(S$7:S115,"x")," ")))))))))))))))))) -> 87 | B115: x | C115: x | D115: x | G115: x | T115: PREVENCIÓN Y REDUCCIÓN DEL RIESGO DE LAS ÚLCERAS POR PRESIÓN | U115: ='FICHA OCULTA'!G160 -> Protocolizar el seguimiento de la evolución de los pacientes con úlceras por presión, tanto en pacientes hospitalizados como en aquellos atendidos en domicilio | V115: DD | W115: ='FICHA OCULTA'!$I$163 -> 0.2857142857
A116: =IF($A$7="CE",COUNTIF(B$7:B116,"x"),IF($A$7="HOS",COUNTIF(C$7:C116,"x"),IF($A$7="E",COUNTIF(D$7:D116,"x"),IF($A$7="CEO",COUNTIF(E$7:E116,"x"),IF($A$7="CEQ",COUNTIF(F$7:F116,"x"),IF($A$7="CI",COUNTIF(G$7:G116,"x"),IF($A$7="PC",COUNTIF(H$7:H116,"x"),IF($A$7="DPI",COUNTIF(I$7:I116,"x"),IF($A$7="AP",COUNTIF(J$7:J116,"x"),IF($A$7="F",COUNTIF(K$7:K116,"x"),IF($A$7="CDE",COUNTIF(L$7:L116,"x"),IF($A$7="MR",COUNTIF(M$7:M116,"x"),IF($A$7="H",COUNTIF(N$7:N116,"x"),IF($A$7="NYD",COUNTIF(O$7:O116,"x"),IF($A$7="R",COUNTIF(P$7:P116,"x"),IF($A$7="MN",COUNTIF(Q$7:Q116,"x"),IF($A$7="CDH",COUNTIF(R$7:R116,"x"),IF($A$7="PNA",COUNTIF(S$7:S116,"x")," ")))))))))))))))))) -> 88 | B116: x | C116: x | D116: x | G116: x | T116: PREVENCIÓN DEL SUICIDO Y LESIONES | U116: ='FICHA OCULTA'!G165 -> Identificación del Riesgo de Suicidio: antecedentes de enfermedad mental y/o abuso de sustancias, enfermedad somática grave crónica, antecedentes de conducta violenta o autolesiva, intentos suicidas previos, conductas suicidas en el entorno cercano. | V116: DE | W116: ='FICHA OCULTA'!$I$175 -> 0.7142857143
A117: =IF($A$7="CE",COUNTIF(B$7:B117,"x"),IF($A$7="HOS",COUNTIF(C$7:C117,"x"),IF($A$7="E",COUNTIF(D$7:D117,"x"),IF($A$7="CEO",COUNTIF(E$7:E117,"x"),IF($A$7="CEQ",COUNTIF(F$7:F117,"x"),IF($A$7="CI",COUNTIF(G$7:G117,"x"),IF($A$7="PC",COUNTIF(H$7:H117,"x"),IF($A$7="DPI",COUNTIF(I$7:I117,"x"),IF($A$7="AP",COUNTIF(J$7:J117,"x"),IF($A$7="F",COUNTIF(K$7:K117,"x"),IF($A$7="CDE",COUNTIF(L$7:L117,"x"),IF($A$7="MR",COUNTIF(M$7:M117,"x"),IF($A$7="H",COUNTIF(N$7:N117,"x"),IF($A$7="NYD",COUNTIF(O$7:O117,"x"),IF($A$7="R",COUNTIF(P$7:P117,"x"),IF($A$7="MN",COUNTIF(Q$7:Q117,"x"),IF($A$7="CDH",COUNTIF(R$7:R117,"x"),IF($A$7="PNA",COUNTIF(S$7:S117,"x")," ")))))))))))))))))) -> 89 | B117: x | C117: x | D117: x | G117: x | T117: PREVENCIÓN DEL SUICIDO Y LESIONES | U117: ='FICHA OCULTA'!G166 -> Identificación de un paciente en riesgo de suicidio debe poner en marcha estrategias específicas de abordaje (evaluación, monitorización y tratamiento específicos) | V117: DF | W117: ='FICHA OCULTA'!$I$175 -> 0.7142857143
A118: =IF($A$7="CE",COUNTIF(B$7:B118,"x"),IF($A$7="HOS",COUNTIF(C$7:C118,"x"),IF($A$7="E",COUNTIF(D$7:D118,"x"),IF($A$7="CEO",COUNTIF(E$7:E118,"x"),IF($A$7="CEQ",COUNTIF(F$7:F118,"x"),IF($A$7="CI",COUNTIF(G$7:G118,"x"),IF($A$7="PC",COUNTIF(H$7:H118,"x"),IF($A$7="DPI",COUNTIF(I$7:I118,"x"),IF($A$7="AP",COUNTIF(J$7:J118,"x"),IF($A$7="F",COUNTIF(K$7:K118,"x"),IF($A$7="CDE",COUNTIF(L$7:L118,"x"),IF($A$7="MR",COUNTIF(M$7:M118,"x"),IF($A$7="H",COUNTIF(N$7:N118,"x"),IF($A$7="NYD",COUNTIF(O$7:O118,"x"),IF($A$7="R",COUNTIF(P$7:P118,"x"),IF($A$7="MN",COUNTIF(Q$7:Q118,"x"),IF($A$7="CDH",COUNTIF(R$7:R118,"x"),IF($A$7="PNA",COUNTIF(S$7:S118,"x")," ")))))))))))))))))) -> 90 | B118: x | C118: x | D118: x | G118: x | T118: PREVENCIÓN DEL SUICIDO Y LESIONES | U118: ='FICHA OCULTA'!G167 -> Ubicar al paciente en el Servicio / Unidad más adecuada a sus necesidades y en función del riesgo detectado. | V118: DG | W118: ='FICHA OCULTA'!$I$175 -> 0.7142857143
A119: =IF($A$7="CE",COUNTIF(B$7:B119,"x"),IF($A$7="HOS",COUNTIF(C$7:C119,"x"),IF($A$7="E",COUNTIF(D$7:D119,"x"),IF($A$7="CEO",COUNTIF(E$7:E119,"x"),IF($A$7="CEQ",COUNTIF(F$7:F119,"x"),IF($A$7="CI",COUNTIF(G$7:G119,"x"),IF($A$7="PC",COUNTIF(H$7:H119,"x"),IF($A$7="DPI",COUNTIF(I$7:I119,"x"),IF($A$7="AP",COUNTIF(J$7:J119,"x"),IF($A$7="F",COUNTIF(K$7:K119,"x"),IF($A$7="CDE",COUNTIF(L$7:L119,"x"),IF($A$7="MR",COUNTIF(M$7:M119,"x"),IF($A$7="H",COUNTIF(N$7:N119,"x"),IF($A$7="NYD",COUNTIF(O$7:O119,"x"),IF($A$7="R",COUNTIF(P$7:P119,"x"),IF($A$7="MN",COUNTIF(Q$7:Q119,"x"),IF($A$7="CDH",COUNTIF(R$7:R119,"x"),IF($A$7="PNA",COUNTIF(S$7:S119,"x")," ")))))))))))))))))) -> 91 | B119: x | C119: x | D119: x | G119: x | T119: PREVENCIÓN DEL SUICIDO Y LESIONES | U119: ='FICHA OCULTA'!G168 -> Los pacientes y los familiares deben ser informados de la prohibición de introducir en el servicio elementos que puedan suponer un riesgo de auto o heteroagresividad. | V119: DH | W119: ='FICHA OCULTA'!$I$175 -> 0.7142857143
A120: =IF($A$7="CE",COUNTIF(B$7:B120,"x"),IF($A$7="HOS",COUNTIF(C$7:C120,"x"),IF($A$7="E",COUNTIF(D$7:D120,"x"),IF($A$7="CEO",COUNTIF(E$7:E120,"x"),IF($A$7="CEQ",COUNTIF(F$7:F120,"x"),IF($A$7="CI",COUNTIF(G$7:G120,"x"),IF($A$7="PC",COUNTIF(H$7:H120,"x"),IF($A$7="DPI",COUNTIF(I$7:I120,"x"),IF($A$7="AP",COUNTIF(J$7:J120,"x"),IF($A$7="F",COUNTIF(K$7:K120,"x"),IF($A$7="CDE",COUNTIF(L$7:L120,"x"),IF($A$7="MR",COUNTIF(M$7:M120,"x"),IF($A$7="H",COUNTIF(N$7:N120,"x"),IF($A$7="NYD",COUNTIF(O$7:O120,"x"),IF($A$7="R",COUNTIF(P$7:P120,"x"),IF($A$7="MN",COUNTIF(Q$7:Q120,"x"),IF($A$7="CDH",COUNTIF(R$7:R120,"x"),IF($A$7="PNA",COUNTIF(S$7:S120,"x")," ")))))))))))))))))) -> 92 | B120: x | C120: x | D120: x | G120: x | T120: PREVENCIÓN DEL SUICIDO Y LESIONES | U120: ='FICHA OCULTA'!G169 -> El botiquín / almacén de medicamentos del servicio permanece en todo momento cerrado bajo llave. La llave la custodiará el personal de enfermería. | V120: DI | W120: ='FICHA OCULTA'!$I$175 -> 0.7142857143
A121: =IF($A$7="CE",COUNTIF(B$7:B121,"x"),IF($A$7="HOS",COUNTIF(C$7:C121,"x"),IF($A$7="E",COUNTIF(D$7:D121,"x"),IF($A$7="CEO",COUNTIF(E$7:E121,"x"),IF($A$7="CEQ",COUNTIF(F$7:F121,"x"),IF($A$7="CI",COUNTIF(G$7:G121,"x"),IF($A$7="PC",COUNTIF(H$7:H121,"x"),IF($A$7="DPI",COUNTIF(I$7:I121,"x"),IF($A$7="AP",COUNTIF(J$7:J121,"x"),IF($A$7="F",COUNTIF(K$7:K121,"x"),IF($A$7="CDE",COUNTIF(L$7:L121,"x"),IF($A$7="MR",COUNTIF(M$7:M121,"x"),IF($A$7="H",COUNTIF(N$7:N121,"x"),IF($A$7="NYD",COUNTIF(O$7:O121,"x"),IF($A$7="R",COUNTIF(P$7:P121,"x"),IF($A$7="MN",COUNTIF(Q$7:Q121,"x"),IF($A$7="CDH",COUNTIF(R$7:R121,"x"),IF($A$7="PNA",COUNTIF(S$7:S121,"x")," ")))))))))))))))))) -> 93 | B121: x | C121: x | D121: x | G121: x | T121: PREVENCIÓN DEL SUICIDO Y LESIONES | U121: ='FICHA OCULTA'!G170 -> El coche de limpieza transportará los productos peligrosos de la forma más inaccesible posible, sin dejarlo nunca sin supervisión o al alcance de los pacientes | V121: DJ | W121: ='FICHA OCULTA'!$I$175 -> 0.7142857143
A122: =IF($A$7="CE",COUNTIF(B$7:B122,"x"),IF($A$7="HOS",COUNTIF(C$7:C122,"x"),IF($A$7="E",COUNTIF(D$7:D122,"x"),IF($A$7="CEO",COUNTIF(E$7:E122,"x"),IF($A$7="CEQ",COUNTIF(F$7:F122,"x"),IF($A$7="CI",COUNTIF(G$7:G122,"x"),IF($A$7="PC",COUNTIF(H$7:H122,"x"),IF($A$7="DPI",COUNTIF(I$7:I122,"x"),IF($A$7="AP",COUNTIF(J$7:J122,"x"),IF($A$7="F",COUNTIF(K$7:K122,"x"),IF($A$7="CDE",COUNTIF(L$7:L122,"x"),IF($A$7="MR",COUNTIF(M$7:M122,"x"),IF($A$7="H",COUNTIF(N$7:N122,"x"),IF($A$7="NYD",COUNTIF(O$7:O122,"x"),IF($A$7="R",COUNTIF(P$7:P122,"x"),IF($A$7="MN",COUNTIF(Q$7:Q122,"x"),IF($A$7="CDH",COUNTIF(R$7:R122,"x"),IF($A$7="PNA",COUNTIF(S$7:S122,"x")," ")))))))))))))))))) -> 94 | C122: x | D122: x | G122: x | O122: x | T122: PREVENCIÓN DEL SUICIDO Y LESIONES | U122: ='FICHA OCULTA'!G171 -> La entrega como la retirada de las comidas, el personal responsable procederán al recuento de las piezas de vajilla y cubiertos. Si se detecta la desaparición de alguna de ellas, se procederá al registro. | V122: DK | W122: ='FICHA OCULTA'!$I$175 -> 0.7142857143
A123: =IF($A$7="CE",COUNTIF(B$7:B123,"x"),IF($A$7="HOS",COUNTIF(C$7:C123,"x"),IF($A$7="E",COUNTIF(D$7:D123,"x"),IF($A$7="CEO",COUNTIF(E$7:E123,"x"),IF($A$7="CEQ",COUNTIF(F$7:F123,"x"),IF($A$7="CI",COUNTIF(G$7:G123,"x"),IF($A$7="PC",COUNTIF(H$7:H123,"x"),IF($A$7="DPI",COUNTIF(I$7:I123,"x"),IF($A$7="AP",COUNTIF(J$7:J123,"x"),IF($A$7="F",COUNTIF(K$7:K123,"x"),IF($A$7="CDE",COUNTIF(L$7:L123,"x"),IF($A$7="MR",COUNTIF(M$7:M123,"x"),IF($A$7="H",COUNTIF(N$7:N123,"x"),IF($A$7="NYD",COUNTIF(O$7:O123,"x"),IF($A$7="R",COUNTIF(P$7:P123,"x"),IF($A$7="MN",COUNTIF(Q$7:Q123,"x"),IF($A$7="CDH",COUNTIF(R$7:R123,"x"),IF($A$7="PNA",COUNTIF(S$7:S123,"x")," ")))))))))))))))))) -> 95 | C123: x | D123: x | G123: x | T123: PREVENCIÓN DEL SUICIDO Y LESIONES | U123: ='FICHA OCULTA'!G172 -> El protocolo de prevención de conductas suicidas debe incluir correcta ubicación del paciente, la necesidad o no de sujeción mecánica, la supervisión así como la constancia en el registro de cualquier incidencia, el control de salidas y de visitas. | V123: DL | W123: ='FICHA OCULTA'!$I$175 -> 0.7142857143
A124: =IF($A$7="CE",COUNTIF(B$7:B124,"x"),IF($A$7="HOS",COUNTIF(C$7:C124,"x"),IF($A$7="E",COUNTIF(D$7:D124,"x"),IF($A$7="CEO",COUNTIF(E$7:E124,"x"),IF($A$7="CEQ",COUNTIF(F$7:F124,"x"),IF($A$7="CI",COUNTIF(G$7:G124,"x"),IF($A$7="PC",COUNTIF(H$7:H124,"x"),IF($A$7="DPI",COUNTIF(I$7:I124,"x"),IF($A$7="AP",COUNTIF(J$7:J124,"x"),IF($A$7="F",COUNTIF(K$7:K124,"x"),IF($A$7="CDE",COUNTIF(L$7:L124,"x"),IF($A$7="MR",COUNTIF(M$7:M124,"x"),IF($A$7="H",COUNTIF(N$7:N124,"x"),IF($A$7="NYD",COUNTIF(O$7:O124,"x"),IF($A$7="R",COUNTIF(P$7:P124,"x"),IF($A$7="MN",COUNTIF(Q$7:Q124,"x"),IF($A$7="CDH",COUNTIF(R$7:R124,"x"),IF($A$7="PNA",COUNTIF(S$7:S124,"x")," ")))))))))))))))))) -> 96 | B124: x | C124: x | D124: x | E124: x | F124: x | G124: x | H124: x | I124: x | J124: x | K124: x | M124: x | N124: x | O124: x | P124: x | Q124: x | R124: x | S124: x | T124: COMUNICACIÓN EFECTIVA | U124: ='FICHA OCULTA'!G177 -> La UPSS proporciona información sobre sus servicios, horarios de atención a pacientes y/o familiares y el proceso para obtener atención. | V124: DM | W124: ='FICHA OCULTA'!$I$189 -> 0.9
A125: =IF($A$7="CE",COUNTIF(B$7:B125,"x"),IF($A$7="HOS",COUNTIF(C$7:C125,"x"),IF($A$7="E",COUNTIF(D$7:D125,"x"),IF($A$7="CEO",COUNTIF(E$7:E125,"x"),IF($A$7="CEQ",COUNTIF(F$7:F125,"x"),IF($A$7="CI",COUNTIF(G$7:G125,"x"),IF($A$7="PC",COUNTIF(H$7:H125,"x"),IF($A$7="DPI",COUNTIF(I$7:I125,"x"),IF($A$7="AP",COUNTIF(J$7:J125,"x"),IF($A$7="F",COUNTIF(K$7:K125,"x"),IF($A$7="CDE",COUNTIF(L$7:L125,"x"),IF($A$7="MR",COUNTIF(M$7:M125,"x"),IF($A$7="H",COUNTIF(N$7:N125,"x"),IF($A$7="NYD",COUNTIF(O$7:O125,"x"),IF($A$7="R",COUNTIF(P$7:P125,"x"),IF($A$7="MN",COUNTIF(Q$7:Q125,"x"),IF($A$7="CDH",COUNTIF(R$7:R125,"x"),IF($A$7="PNA",COUNTIF(S$7:S125,"x")," ")))))))))))))))))) -> 97 | B125: x | C125: x | D125: x | E125: x | F125: x | G125: x | H125: x | I125: x | J125: x | K125: x | M125: x | N125: x | O125: x | P125: x | Q125: x | R125: x | S125: x | T125: COMUNICACIÓN EFECTIVA | U125: ='FICHA OCULTA'!G178 -> Los pacientes y las familias reciben información sobre cómo acceder a los servicios de la UPSS. | V125: DN | W125: ='FICHA OCULTA'!$I$189 -> 0.9
A126: =IF($A$7="CE",COUNTIF(B$7:B126,"x"),IF($A$7="HOS",COUNTIF(C$7:C126,"x"),IF($A$7="E",COUNTIF(D$7:D126,"x"),IF($A$7="CEO",COUNTIF(E$7:E126,"x"),IF($A$7="CEQ",COUNTIF(F$7:F126,"x"),IF($A$7="CI",COUNTIF(G$7:G126,"x"),IF($A$7="PC",COUNTIF(H$7:H126,"x"),IF($A$7="DPI",COUNTIF(I$7:I126,"x"),IF($A$7="AP",COUNTIF(J$7:J126,"x"),IF($A$7="F",COUNTIF(K$7:K126,"x"),IF($A$7="CDE",COUNTIF(L$7:L126,"x"),IF($A$7="MR",COUNTIF(M$7:M126,"x"),IF($A$7="H",COUNTIF(N$7:N126,"x"),IF($A$7="NYD",COUNTIF(O$7:O126,"x"),IF($A$7="R",COUNTIF(P$7:P126,"x"),IF($A$7="MN",COUNTIF(Q$7:Q126,"x"),IF($A$7="CDH",COUNTIF(R$7:R126,"x"),IF($A$7="PNA",COUNTIF(S$7:S126,"x")," ")))))))))))))))))) -> 98 | B126: x | C126: x | D126: x | E126: x | F126: x | G126: x | H126: x | I126: x | J126: x | K126: x | M126: x | N126: x | O126: x | P126: x | Q126: x | R126: x | S126: x | T126: COMUNICACIÓN EFECTIVA | U126: ='FICHA OCULTA'!G179 -> La comunicación y la educación del paciente y de la familia se dan en un idioma comprensible y con palabras de comprensión común. | V126: DO | W126: ='FICHA OCULTA'!$I$189 -> 0.9
A127: =IF($A$7="CE",COUNTIF(B$7:B127,"x"),IF($A$7="HOS",COUNTIF(C$7:C127,"x"),IF($A$7="E",COUNTIF(D$7:D127,"x"),IF($A$7="CEO",COUNTIF(E$7:E127,"x"),IF($A$7="CEQ",COUNTIF(F$7:F127,"x"),IF($A$7="CI",COUNTIF(G$7:G127,"x"),IF($A$7="PC",COUNTIF(H$7:H127,"x"),IF($A$7="DPI",COUNTIF(I$7:I127,"x"),IF($A$7="AP",COUNTIF(J$7:J127,"x"),IF($A$7="F",COUNTIF(K$7:K127,"x"),IF($A$7="CDE",COUNTIF(L$7:L127,"x"),IF($A$7="MR",COUNTIF(M$7:M127,"x"),IF($A$7="H",COUNTIF(N$7:N127,"x"),IF($A$7="NYD",COUNTIF(O$7:O127,"x"),IF($A$7="R",COUNTIF(P$7:P127,"x"),IF($A$7="MN",COUNTIF(Q$7:Q127,"x"),IF($A$7="CDH",COUNTIF(R$7:R127,"x"),IF($A$7="PNA",COUNTIF(S$7:S127,"x")," ")))))))))))))))))) -> 99 | B127: x | C127: x | D127: x | E127: x | F127: x | G127: x | H127: x | I127: x | J127: x | K127: x | M127: x | N127: x | O127: x | P127: x | Q127: x | R127: x | S127: x | T127: COMUNICACIÓN EFECTIVA | U127: ='FICHA OCULTA'!G180 -> Se evidencian comunicaciones reciprocas entre el Jefe de la UPSS y la Dirección del Establecimiento tanto en temas clínicos como administrativos. | V127: DP | W127: ='FICHA OCULTA'!$I$189 -> 0.9
A128: =IF($A$7="CE",COUNTIF(B$7:B128,"x"),IF($A$7="HOS",COUNTIF(C$7:C128,"x"),IF($A$7="E",COUNTIF(D$7:D128,"x"),IF($A$7="CEO",COUNTIF(E$7:E128,"x"),IF($A$7="CEQ",COUNTIF(F$7:F128,"x"),IF($A$7="CI",COUNTIF(G$7:G128,"x"),IF($A$7="PC",COUNTIF(H$7:H128,"x"),IF($A$7="DPI",COUNTIF(I$7:I128,"x"),IF($A$7="AP",COUNTIF(J$7:J128,"x"),IF($A$7="F",COUNTIF(K$7:K128,"x"),IF($A$7="CDE",COUNTIF(L$7:L128,"x"),IF($A$7="MR",COUNTIF(M$7:M128,"x"),IF($A$7="H",COUNTIF(N$7:N128,"x"),IF($A$7="NYD",COUNTIF(O$7:O128,"x"),IF($A$7="R",COUNTIF(P$7:P128,"x"),IF($A$7="MN",COUNTIF(Q$7:Q128,"x"),IF($A$7="CDH",COUNTIF(R$7:R128,"x"),IF($A$7="PNA",COUNTIF(S$7:S128,"x")," ")))))))))))))))))) -> 100 | C128: x | D128: x | E128: x | F128: x | G128: x | S128: x | T128: COMUNICACIÓN EFECTIVA | U128: ='FICHA OCULTA'!G181 -> Se evidencia comunicación (verbal, escrita o electrónica) e intercambio de información entre los profesionales médicos al momento de cambio de turno (cambio de guardia), relacionado al estado de salud de los pacientes, resumen de la atención prestada durante el turno (guardia) y la evolución de los pacientes. | V128: DQ | W128: ='FICHA OCULTA'!$I$189 -> 0.9
A129: =IF($A$7="CE",COUNTIF(B$7:B129,"x"),IF($A$7="HOS",COUNTIF(C$7:C129,"x"),IF($A$7="E",COUNTIF(D$7:D129,"x"),IF($A$7="CEO",COUNTIF(E$7:E129,"x"),IF($A$7="CEQ",COUNTIF(F$7:F129,"x"),IF($A$7="CI",COUNTIF(G$7:G129,"x"),IF($A$7="PC",COUNTIF(H$7:H129,"x"),IF($A$7="DPI",COUNTIF(I$7:I129,"x"),IF($A$7="AP",COUNTIF(J$7:J129,"x"),IF($A$7="F",COUNTIF(K$7:K129,"x"),IF($A$7="CDE",COUNTIF(L$7:L129,"x"),IF($A$7="MR",COUNTIF(M$7:M129,"x"),IF($A$7="H",COUNTIF(N$7:N129,"x"),IF($A$7="NYD",COUNTIF(O$7:O129,"x"),IF($A$7="R",COUNTIF(P$7:P129,"x"),IF($A$7="MN",COUNTIF(Q$7:Q129,"x"),IF($A$7="CDH",COUNTIF(R$7:R129,"x"),IF($A$7="PNA",COUNTIF(S$7:S129,"x")," ")))))))))))))))))) -> 101 | C129: x | D129: x | E129: x | F129: x | G129: x | S129: x | T129: COMUNICACIÓN EFECTIVA | U129: ='FICHA OCULTA'!G182 -> Se evidencia comunicación (verbal, escrita o electrónica) e intercambio de información entre los profesionales encargados del cuidado del paciente al momento de cambio de turno (cambio de guardia), relacionado al estado de salud de los pacientes, resumen de la atención prestada durante el turno (guardia) y la evolución de los pacientes. | V129: DR | W129: ='FICHA OCULTA'!$I$189 -> 0.9
A130: =IF($A$7="CE",COUNTIF(B$7:B130,"x"),IF($A$7="HOS",COUNTIF(C$7:C130,"x"),IF($A$7="E",COUNTIF(D$7:D130,"x"),IF($A$7="CEO",COUNTIF(E$7:E130,"x"),IF($A$7="CEQ",COUNTIF(F$7:F130,"x"),IF($A$7="CI",COUNTIF(G$7:G130,"x"),IF($A$7="PC",COUNTIF(H$7:H130,"x"),IF($A$7="DPI",COUNTIF(I$7:I130,"x"),IF($A$7="AP",COUNTIF(J$7:J130,"x"),IF($A$7="F",COUNTIF(K$7:K130,"x"),IF($A$7="CDE",COUNTIF(L$7:L130,"x"),IF($A$7="MR",COUNTIF(M$7:M130,"x"),IF($A$7="H",COUNTIF(N$7:N130,"x"),IF($A$7="NYD",COUNTIF(O$7:O130,"x"),IF($A$7="R",COUNTIF(P$7:P130,"x"),IF($A$7="MN",COUNTIF(Q$7:Q130,"x"),IF($A$7="CDH",COUNTIF(R$7:R130,"x"),IF($A$7="PNA",COUNTIF(S$7:S130,"x")," ")))))))))))))))))) -> 102 | B130: x | C130: x | D130: x | E130: x | F130: x | G130: x | H130: x | I130: x | J130: x | M130: x | N130: x | O130: x | P130: x | Q130: x | R130: x | S130: x | T130: COMUNICACIÓN EFECTIVA | U130: ='FICHA OCULTA'!G183 -> Las historias clínicas están a disposición de los profesionales de la salud que las necesitan para atender al paciente. | V130: DS | W130: ='FICHA OCULTA'!$I$189 -> 0.9
A131: =IF($A$7="CE",COUNTIF(B$7:B131,"x"),IF($A$7="HOS",COUNTIF(C$7:C131,"x"),IF($A$7="E",COUNTIF(D$7:D131,"x"),IF($A$7="CEO",COUNTIF(E$7:E131,"x"),IF($A$7="CEQ",COUNTIF(F$7:F131,"x"),IF($A$7="CI",COUNTIF(G$7:G131,"x"),IF($A$7="PC",COUNTIF(H$7:H131,"x"),IF($A$7="DPI",COUNTIF(I$7:I131,"x"),IF($A$7="AP",COUNTIF(J$7:J131,"x"),IF($A$7="F",COUNTIF(K$7:K131,"x"),IF($A$7="CDE",COUNTIF(L$7:L131,"x"),IF($A$7="MR",COUNTIF(M$7:M131,"x"),IF($A$7="H",COUNTIF(N$7:N131,"x"),IF($A$7="NYD",COUNTIF(O$7:O131,"x"),IF($A$7="R",COUNTIF(P$7:P131,"x"),IF($A$7="MN",COUNTIF(Q$7:Q131,"x"),IF($A$7="CDH",COUNTIF(R$7:R131,"x"),IF($A$7="PNA",COUNTIF(S$7:S131,"x")," ")))))))))))))))))) -> 103 | B131: x | C131: x | D131: x | E131: x | F131: x | G131: x | H131: x | I131: x | J131: x | M131: x | N131: x | O131: x | P131: x | Q131: x | R131: x | S131: x | T131: COMUNICACIÓN EFECTIVA | U131: ='FICHA OCULTA'!G184 -> Las historias clínicas están actualizadas para asegurar la comunicación de la información más reciente. | V131: DT | W131: ='FICHA OCULTA'!$I$189 -> 0.9
A132: =IF($A$7="CE",COUNTIF(B$7:B132,"x"),IF($A$7="HOS",COUNTIF(C$7:C132,"x"),IF($A$7="E",COUNTIF(D$7:D132,"x"),IF($A$7="CEO",COUNTIF(E$7:E132,"x"),IF($A$7="CEQ",COUNTIF(F$7:F132,"x"),IF($A$7="CI",COUNTIF(G$7:G132,"x"),IF($A$7="PC",COUNTIF(H$7:H132,"x"),IF($A$7="DPI",COUNTIF(I$7:I132,"x"),IF($A$7="AP",COUNTIF(J$7:J132,"x"),IF($A$7="F",COUNTIF(K$7:K132,"x"),IF($A$7="CDE",COUNTIF(L$7:L132,"x"),IF($A$7="MR",COUNTIF(M$7:M132,"x"),IF($A$7="H",COUNTIF(N$7:N132,"x"),IF($A$7="NYD",COUNTIF(O$7:O132,"x"),IF($A$7="R",COUNTIF(P$7:P132,"x"),IF($A$7="MN",COUNTIF(Q$7:Q132,"x"),IF($A$7="CDH",COUNTIF(R$7:R132,"x"),IF($A$7="PNA",COUNTIF(S$7:S132,"x")," ")))))))))))))))))) -> 104 | B132: x | C132: x | D132: x | E132: x | F132: x | G132: x | N132: x | P132: x | Q132: x | R132: x | S132: x | T132: COMUNICACIÓN EFECTIVA | U132: ='FICHA OCULTA'!G185 -> La historia clínica del paciente o un resumen de información de su atención se transfiere junto al paciente a otro servicio o unidad dentro del establecimiento. | V132: DU | W132: ='FICHA OCULTA'!$I$189 -> 0.9
A133: =IF($A$7="CE",COUNTIF(B$7:B133,"x"),IF($A$7="HOS",COUNTIF(C$7:C133,"x"),IF($A$7="E",COUNTIF(D$7:D133,"x"),IF($A$7="CEO",COUNTIF(E$7:E133,"x"),IF($A$7="CEQ",COUNTIF(F$7:F133,"x"),IF($A$7="CI",COUNTIF(G$7:G133,"x"),IF($A$7="PC",COUNTIF(H$7:H133,"x"),IF($A$7="DPI",COUNTIF(I$7:I133,"x"),IF($A$7="AP",COUNTIF(J$7:J133,"x"),IF($A$7="F",COUNTIF(K$7:K133,"x"),IF($A$7="CDE",COUNTIF(L$7:L133,"x"),IF($A$7="MR",COUNTIF(M$7:M133,"x"),IF($A$7="H",COUNTIF(N$7:N133,"x"),IF($A$7="NYD",COUNTIF(O$7:O133,"x"),IF($A$7="R",COUNTIF(P$7:P133,"x"),IF($A$7="MN",COUNTIF(Q$7:Q133,"x"),IF($A$7="CDH",COUNTIF(R$7:R133,"x"),IF($A$7="PNA",COUNTIF(S$7:S133,"x")," ")))))))))))))))))) -> 105 | C133: x | D133: x | E133: x | F133: x | G133: x | S133: x | T133: COMUNICACIÓN EFECTIVA | U133: ='FICHA OCULTA'!G186 -> El resumen de la información del traslado de un paciente incluye: el motivo de admisión, los hallazgos relevantes, los diagnósticos, todos los procedimientos realizados, todos los medicamentos y demás tratamientos administrados, el estado del paciente al momento de la transferencia. | V133: DV | W133: ='FICHA OCULTA'!$I$189 -> 0.9
A134: =IF($A$7="CE",COUNTIF(B$7:B134,"x"),IF($A$7="HOS",COUNTIF(C$7:C134,"x"),IF($A$7="E",COUNTIF(D$7:D134,"x"),IF($A$7="CEO",COUNTIF(E$7:E134,"x"),IF($A$7="CEQ",COUNTIF(F$7:F134,"x"),IF($A$7="CI",COUNTIF(G$7:G134,"x"),IF($A$7="PC",COUNTIF(H$7:H134,"x"),IF($A$7="DPI",COUNTIF(I$7:I134,"x"),IF($A$7="AP",COUNTIF(J$7:J134,"x"),IF($A$7="F",COUNTIF(K$7:K134,"x"),IF($A$7="CDE",COUNTIF(L$7:L134,"x"),IF($A$7="MR",COUNTIF(M$7:M134,"x"),IF($A$7="H",COUNTIF(N$7:N134,"x"),IF($A$7="NYD",COUNTIF(O$7:O134,"x"),IF($A$7="R",COUNTIF(P$7:P134,"x"),IF($A$7="MN",COUNTIF(Q$7:Q134,"x"),IF($A$7="CDH",COUNTIF(R$7:R134,"x"),IF($A$7="PNA",COUNTIF(S$7:S134,"x")," ")))))))))))))))))) -> 106 | B134: x | C134: x | D134: x | E134: x | F134: x | G134: x | H134: x | I134: x | J134: x | K134: x | L134: x | M134: x | N134: x | O134: x | P134: x | Q134: x | R134: x | S134: x | T134: HIGIENE DE MANOS | U134: ='FICHA OCULTA'!G191 -> Disponibilidad de dispensadores con preparados de base alcohólica para manos. | V134: DW | W134: ='FICHA OCULTA'!$I$201 -> 0
A135: =IF($A$7="CE",COUNTIF(B$7:B135,"x"),IF($A$7="HOS",COUNTIF(C$7:C135,"x"),IF($A$7="E",COUNTIF(D$7:D135,"x"),IF($A$7="CEO",COUNTIF(E$7:E135,"x"),IF($A$7="CEQ",COUNTIF(F$7:F135,"x"),IF($A$7="CI",COUNTIF(G$7:G135,"x"),IF($A$7="PC",COUNTIF(H$7:H135,"x"),IF($A$7="DPI",COUNTIF(I$7:I135,"x"),IF($A$7="AP",COUNTIF(J$7:J135,"x"),IF($A$7="F",COUNTIF(K$7:K135,"x"),IF($A$7="CDE",COUNTIF(L$7:L135,"x"),IF($A$7="MR",COUNTIF(M$7:M135,"x"),IF($A$7="H",COUNTIF(N$7:N135,"x"),IF($A$7="NYD",COUNTIF(O$7:O135,"x"),IF($A$7="R",COUNTIF(P$7:P135,"x"),IF($A$7="MN",COUNTIF(Q$7:Q135,"x"),IF($A$7="CDH",COUNTIF(R$7:R135,"x"),IF($A$7="PNA",COUNTIF(S$7:S135,"x")," ")))))))))))))))))) -> 107 | B135: x | C135: x | D135: x | E135: x | F135: x | G135: x | H135: x | I135: x | J135: x | K135: x | L135: x | M135: x | N135: x | O135: x | P135: x | Q135: x | R135: x | S135: x | T135: HIGIENE DE MANOS | U135: ='FICHA OCULTA'!G192 -> Disponibilidad de lavamanos con suministro de agua y jabón. | V135: DX | W135: ='FICHA OCULTA'!$I$201 -> 0
A136: =IF($A$7="CE",COUNTIF(B$7:B136,"x"),IF($A$7="HOS",COUNTIF(C$7:C136,"x"),IF($A$7="E",COUNTIF(D$7:D136,"x"),IF($A$7="CEO",COUNTIF(E$7:E136,"x"),IF($A$7="CEQ",COUNTIF(F$7:F136,"x"),IF($A$7="CI",COUNTIF(G$7:G136,"x"),IF($A$7="PC",COUNTIF(H$7:H136,"x"),IF($A$7="DPI",COUNTIF(I$7:I136,"x"),IF($A$7="AP",COUNTIF(J$7:J136,"x"),IF($A$7="F",COUNTIF(K$7:K136,"x"),IF($A$7="CDE",COUNTIF(L$7:L136,"x"),IF($A$7="MR",COUNTIF(M$7:M136,"x"),IF($A$7="H",COUNTIF(N$7:N136,"x"),IF($A$7="NYD",COUNTIF(O$7:O136,"x"),IF($A$7="R",COUNTIF(P$7:P136,"x"),IF($A$7="MN",COUNTIF(Q$7:Q136,"x"),IF($A$7="CDH",COUNTIF(R$7:R136,"x"),IF($A$7="PNA",COUNTIF(S$7:S136,"x")," ")))))))))))))))))) -> 108 | B136: x | C136: x | D136: x | E136: x | F136: x | G136: x | H136: x | I136: x | J136: x | K136: x | L136: x | M136: x | N136: x | O136: x | P136: x | Q136: x | R136: x | S136: x | T136: HIGIENE DE MANOS | U136: ='FICHA OCULTA'!G193 -> Disponibilidad de papel toalla en todos los lavamanos. | V136: DY | W136: ='FICHA OCULTA'!$I$201 -> 0
A137: =IF($A$7="CE",COUNTIF(B$7:B137,"x"),IF($A$7="HOS",COUNTIF(C$7:C137,"x"),IF($A$7="E",COUNTIF(D$7:D137,"x"),IF($A$7="CEO",COUNTIF(E$7:E137,"x"),IF($A$7="CEQ",COUNTIF(F$7:F137,"x"),IF($A$7="CI",COUNTIF(G$7:G137,"x"),IF($A$7="PC",COUNTIF(H$7:H137,"x"),IF($A$7="DPI",COUNTIF(I$7:I137,"x"),IF($A$7="AP",COUNTIF(J$7:J137,"x"),IF($A$7="F",COUNTIF(K$7:K137,"x"),IF($A$7="CDE",COUNTIF(L$7:L137,"x"),IF($A$7="MR",COUNTIF(M$7:M137,"x"),IF($A$7="H",COUNTIF(N$7:N137,"x"),IF($A$7="NYD",COUNTIF(O$7:O137,"x"),IF($A$7="R",COUNTIF(P$7:P137,"x"),IF($A$7="MN",COUNTIF(Q$7:Q137,"x"),IF($A$7="CDH",COUNTIF(R$7:R137,"x"),IF($A$7="PNA",COUNTIF(S$7:S137,"x")," ")))))))))))))))))) -> 109 | C137: x | D137: x | G137: x | N137: x | T137: HIGIENE DE MANOS | U137: ='FICHA OCULTA'!G194 -> Cumplimiento del ratio lavamanos/ paciente-cama de al menos 1:10 | V137: DZ | W137: ='FICHA OCULTA'!$I$201 -> 0
A138: =IF($A$7="CE",COUNTIF(B$7:B138,"x"),IF($A$7="HOS",COUNTIF(C$7:C138,"x"),IF($A$7="E",COUNTIF(D$7:D138,"x"),IF($A$7="CEO",COUNTIF(E$7:E138,"x"),IF($A$7="CEQ",COUNTIF(F$7:F138,"x"),IF($A$7="CI",COUNTIF(G$7:G138,"x"),IF($A$7="PC",COUNTIF(H$7:H138,"x"),IF($A$7="DPI",COUNTIF(I$7:I138,"x"),IF($A$7="AP",COUNTIF(J$7:J138,"x"),IF($A$7="F",COUNTIF(K$7:K138,"x"),IF($A$7="CDE",COUNTIF(L$7:L138,"x"),IF($A$7="MR",COUNTIF(M$7:M138,"x"),IF($A$7="H",COUNTIF(N$7:N138,"x"),IF($A$7="NYD",COUNTIF(O$7:O138,"x"),IF($A$7="R",COUNTIF(P$7:P138,"x"),IF($A$7="MN",COUNTIF(Q$7:Q138,"x"),IF($A$7="CDH",COUNTIF(R$7:R138,"x"),IF($A$7="PNA",COUNTIF(S$7:S138,"x")," ")))))))))))))))))) -> 110 | B138: x | C138: x | D138: x | E138: x | F138: x | G138: x | H138: x | I138: x | J138: x | K138: x | L138: x | M138: x | N138: x | O138: x | P138: x | Q138: x | R138: x | S138: x | T138: HIGIENE DE MANOS | U138: ='FICHA OCULTA'!G195 -> Cumplimiento de los 08 pasos de la desinfección de manos (pasos y tiempo). | V138: EA | W138: ='FICHA OCULTA'!$I$201 -> 0
A139: =IF($A$7="CE",COUNTIF(B$7:B139,"x"),IF($A$7="HOS",COUNTIF(C$7:C139,"x"),IF($A$7="E",COUNTIF(D$7:D139,"x"),IF($A$7="CEO",COUNTIF(E$7:E139,"x"),IF($A$7="CEQ",COUNTIF(F$7:F139,"x"),IF($A$7="CI",COUNTIF(G$7:G139,"x"),IF($A$7="PC",COUNTIF(H$7:H139,"x"),IF($A$7="DPI",COUNTIF(I$7:I139,"x"),IF($A$7="AP",COUNTIF(J$7:J139,"x"),IF($A$7="F",COUNTIF(K$7:K139,"x"),IF($A$7="CDE",COUNTIF(L$7:L139,"x"),IF($A$7="MR",COUNTIF(M$7:M139,"x"),IF($A$7="H",COUNTIF(N$7:N139,"x"),IF($A$7="NYD",COUNTIF(O$7:O139,"x"),IF($A$7="R",COUNTIF(P$7:P139,"x"),IF($A$7="MN",COUNTIF(Q$7:Q139,"x"),IF($A$7="CDH",COUNTIF(R$7:R139,"x"),IF($A$7="PNA",COUNTIF(S$7:S139,"x")," ")))))))))))))))))) -> 111 | B139: x | C139: x | D139: x | E139: x | F139: x | G139: x | H139: x | I139: x | J139: x | K139: x | L139: x | M139: x | N139: x | O139: x | P139: x | Q139: x | R139: x | S139: x | T139: HIGIENE DE MANOS | U139: ='FICHA OCULTA'!G196 -> Cumplimiento de los 11 pasos del lavado de manos (pasos y tiempo). | V139: EB | W139: ='FICHA OCULTA'!$I$201 -> 0
A140: =IF($A$7="CE",COUNTIF(B$7:B140,"x"),IF($A$7="HOS",COUNTIF(C$7:C140,"x"),IF($A$7="E",COUNTIF(D$7:D140,"x"),IF($A$7="CEO",COUNTIF(E$7:E140,"x"),IF($A$7="CEQ",COUNTIF(F$7:F140,"x"),IF($A$7="CI",COUNTIF(G$7:G140,"x"),IF($A$7="PC",COUNTIF(H$7:H140,"x"),IF($A$7="DPI",COUNTIF(I$7:I140,"x"),IF($A$7="AP",COUNTIF(J$7:J140,"x"),IF($A$7="F",COUNTIF(K$7:K140,"x"),IF($A$7="CDE",COUNTIF(L$7:L140,"x"),IF($A$7="MR",COUNTIF(M$7:M140,"x"),IF($A$7="H",COUNTIF(N$7:N140,"x"),IF($A$7="NYD",COUNTIF(O$7:O140,"x"),IF($A$7="R",COUNTIF(P$7:P140,"x"),IF($A$7="MN",COUNTIF(Q$7:Q140,"x"),IF($A$7="CDH",COUNTIF(R$7:R140,"x"),IF($A$7="PNA",COUNTIF(S$7:S140,"x")," ")))))))))))))))))) -> 112 | B140: x | C140: x | D140: x | E140: x | F140: x | G140: x | H140: x | I140: x | J140: x | K140: x | L140: x | M140: x | N140: x | O140: x | P140: x | Q140: x | R140: x | S140: x | T140: HIGIENE DE MANOS | U140: ='FICHA OCULTA'!G197 -> Porcentaje de cumplimiento > 80%, del requisito de realizar la higiene de las manos durante su actividad asistencial de acuerdo con los cinco momentos de la higiene de manos. | V140: EC | W140: ='FICHA OCULTA'!$I$201 -> 0
A141: =IF($A$7="CE",COUNTIF(B$7:B141,"x"),IF($A$7="HOS",COUNTIF(C$7:C141,"x"),IF($A$7="E",COUNTIF(D$7:D141,"x"),IF($A$7="CEO",COUNTIF(E$7:E141,"x"),IF($A$7="CEQ",COUNTIF(F$7:F141,"x"),IF($A$7="CI",COUNTIF(G$7:G141,"x"),IF($A$7="PC",COUNTIF(H$7:H141,"x"),IF($A$7="DPI",COUNTIF(I$7:I141,"x"),IF($A$7="AP",COUNTIF(J$7:J141,"x"),IF($A$7="F",COUNTIF(K$7:K141,"x"),IF($A$7="CDE",COUNTIF(L$7:L141,"x"),IF($A$7="MR",COUNTIF(M$7:M141,"x"),IF($A$7="H",COUNTIF(N$7:N141,"x"),IF($A$7="NYD",COUNTIF(O$7:O141,"x"),IF($A$7="R",COUNTIF(P$7:P141,"x"),IF($A$7="MN",COUNTIF(Q$7:Q141,"x"),IF($A$7="CDH",COUNTIF(R$7:R141,"x"),IF($A$7="PNA",COUNTIF(S$7:S141,"x")," ")))))))))))))))))) -> 113 | B141: x | C141: x | D141: x | E141: x | F141: x | G141: x | H141: x | I141: x | J141: x | K141: x | L141: x | M141: x | N141: x | O141: x | P141: x | Q141: x | R141: x | S141: x | T141: HIGIENE DE MANOS | U141: ='FICHA OCULTA'!G198 -> Mensajes y dibujos que promueven la adherencia a la higiene de manos colocados en sitios estratégicos. | V141: ED | W141: ='FICHA OCULTA'!$I$201 -> 0
A142: =IF($A$7="CE",COUNTIF(B$7:B142,"x"),IF($A$7="HOS",COUNTIF(C$7:C142,"x"),IF($A$7="E",COUNTIF(D$7:D142,"x"),IF($A$7="CEO",COUNTIF(E$7:E142,"x"),IF($A$7="CEQ",COUNTIF(F$7:F142,"x"),IF($A$7="CI",COUNTIF(G$7:G142,"x"),IF($A$7="PC",COUNTIF(H$7:H142,"x"),IF($A$7="DPI",COUNTIF(I$7:I142,"x"),IF($A$7="AP",COUNTIF(J$7:J142,"x"),IF($A$7="F",COUNTIF(K$7:K142,"x"),IF($A$7="CDE",COUNTIF(L$7:L142,"x"),IF($A$7="MR",COUNTIF(M$7:M142,"x"),IF($A$7="H",COUNTIF(N$7:N142,"x"),IF($A$7="NYD",COUNTIF(O$7:O142,"x"),IF($A$7="R",COUNTIF(P$7:P142,"x"),IF($A$7="MN",COUNTIF(Q$7:Q142,"x"),IF($A$7="CDH",COUNTIF(R$7:R142,"x"),IF($A$7="PNA",COUNTIF(S$7:S142,"x")," ")))))))))))))))))) -> 114 | B142: x | C142: x | D142: x | E142: x | F142: x | G142: x | H142: x | I142: x | J142: x | K142: x | L142: x | M142: x | N142: x | O142: x | P142: x | Q142: x | R142: x | S142: x | T142: BIOSEGURIDAD | U142: ='FICHA OCULTA'!G203 -> Disposición de residuos sólidos de acuerdo a las normas. | V142: EE | W142: ='FICHA OCULTA'!$I$213 -> 0.125
A143: =IF($A$7="CE",COUNTIF(B$7:B143,"x"),IF($A$7="HOS",COUNTIF(C$7:C143,"x"),IF($A$7="E",COUNTIF(D$7:D143,"x"),IF($A$7="CEO",COUNTIF(E$7:E143,"x"),IF($A$7="CEQ",COUNTIF(F$7:F143,"x"),IF($A$7="CI",COUNTIF(G$7:G143,"x"),IF($A$7="PC",COUNTIF(H$7:H143,"x"),IF($A$7="DPI",COUNTIF(I$7:I143,"x"),IF($A$7="AP",COUNTIF(J$7:J143,"x"),IF($A$7="F",COUNTIF(K$7:K143,"x"),IF($A$7="CDE",COUNTIF(L$7:L143,"x"),IF($A$7="MR",COUNTIF(M$7:M143,"x"),IF($A$7="H",COUNTIF(N$7:N143,"x"),IF($A$7="NYD",COUNTIF(O$7:O143,"x"),IF($A$7="R",COUNTIF(P$7:P143,"x"),IF($A$7="MN",COUNTIF(Q$7:Q143,"x"),IF($A$7="CDH",COUNTIF(R$7:R143,"x"),IF($A$7="PNA",COUNTIF(S$7:S143,"x")," ")))))))))))))))))) -> 115 | B143: x | C143: x | D143: x | E143: x | F143: x | G143: x | H143: x | I143: x | J143: x | K143: x | L143: x | M143: x | N143: x | O143: x | P143: x | Q143: x | R143: x | S143: x | T143: BIOSEGURIDAD | U143: ='FICHA OCULTA'!G204 -> Eliminación de material punzo cortante y agujas de acuerdo a las normas. | V143: EF | W143: ='FICHA OCULTA'!$I$213 -> 0.125
A144: =IF($A$7="CE",COUNTIF(B$7:B144,"x"),IF($A$7="HOS",COUNTIF(C$7:C144,"x"),IF($A$7="E",COUNTIF(D$7:D144,"x"),IF($A$7="CEO",COUNTIF(E$7:E144,"x"),IF($A$7="CEQ",COUNTIF(F$7:F144,"x"),IF($A$7="CI",COUNTIF(G$7:G144,"x"),IF($A$7="PC",COUNTIF(H$7:H144,"x"),IF($A$7="DPI",COUNTIF(I$7:I144,"x"),IF($A$7="AP",COUNTIF(J$7:J144,"x"),IF($A$7="F",COUNTIF(K$7:K144,"x"),IF($A$7="CDE",COUNTIF(L$7:L144,"x"),IF($A$7="MR",COUNTIF(M$7:M144,"x"),IF($A$7="H",COUNTIF(N$7:N144,"x"),IF($A$7="NYD",COUNTIF(O$7:O144,"x"),IF($A$7="R",COUNTIF(P$7:P144,"x"),IF($A$7="MN",COUNTIF(Q$7:Q144,"x"),IF($A$7="CDH",COUNTIF(R$7:R144,"x"),IF($A$7="PNA",COUNTIF(S$7:S144,"x")," ")))))))))))))))))) -> 116 | B144: x | C144: x | D144: x | E144: x | F144: x | G144: x | H144: x | I144: x | J144: x | M144: x | N144: x | P144: x | Q144: x | R144: x | S144: x | T144: BIOSEGURIDAD | U144: ='FICHA OCULTA'!G205 -> Cuidado y manejo de los catéteres se realiza de acuerdo a normas. | V144: EG | W144: ='FICHA OCULTA'!$I$213 -> 0.125
A145: =IF($A$7="CE",COUNTIF(B$7:B145,"x"),IF($A$7="HOS",COUNTIF(C$7:C145,"x"),IF($A$7="E",COUNTIF(D$7:D145,"x"),IF($A$7="CEO",COUNTIF(E$7:E145,"x"),IF($A$7="CEQ",COUNTIF(F$7:F145,"x"),IF($A$7="CI",COUNTIF(G$7:G145,"x"),IF($A$7="PC",COUNTIF(H$7:H145,"x"),IF($A$7="DPI",COUNTIF(I$7:I145,"x"),IF($A$7="AP",COUNTIF(J$7:J145,"x"),IF($A$7="F",COUNTIF(K$7:K145,"x"),IF($A$7="CDE",COUNTIF(L$7:L145,"x"),IF($A$7="MR",COUNTIF(M$7:M145,"x"),IF($A$7="H",COUNTIF(N$7:N145,"x"),IF($A$7="NYD",COUNTIF(O$7:O145,"x"),IF($A$7="R",COUNTIF(P$7:P145,"x"),IF($A$7="MN",COUNTIF(Q$7:Q145,"x"),IF($A$7="CDH",COUNTIF(R$7:R145,"x"),IF($A$7="PNA",COUNTIF(S$7:S145,"x")," ")))))))))))))))))) -> 117 | B145: x | C145: x | D145: x | E145: x | F145: x | G145: x | H145: x | I145: x | J145: x | M145: x | N145: x | P145: x | Q145: x | R145: x | S145: x | T145: BIOSEGURIDAD | U145: ='FICHA OCULTA'!G206 -> Cumplimiento de las medidas de aislamiento. | V145: EH | W145: ='FICHA OCULTA'!$I$213 -> 0.125
A146: =IF($A$7="CE",COUNTIF(B$7:B146,"x"),IF($A$7="HOS",COUNTIF(C$7:C146,"x"),IF($A$7="E",COUNTIF(D$7:D146,"x"),IF($A$7="CEO",COUNTIF(E$7:E146,"x"),IF($A$7="CEQ",COUNTIF(F$7:F146,"x"),IF($A$7="CI",COUNTIF(G$7:G146,"x"),IF($A$7="PC",COUNTIF(H$7:H146,"x"),IF($A$7="DPI",COUNTIF(I$7:I146,"x"),IF($A$7="AP",COUNTIF(J$7:J146,"x"),IF($A$7="F",COUNTIF(K$7:K146,"x"),IF($A$7="CDE",COUNTIF(L$7:L146,"x"),IF($A$7="MR",COUNTIF(M$7:M146,"x"),IF($A$7="H",COUNTIF(N$7:N146,"x"),IF($A$7="NYD",COUNTIF(O$7:O146,"x"),IF($A$7="R",COUNTIF(P$7:P146,"x"),IF($A$7="MN",COUNTIF(Q$7:Q146,"x"),IF($A$7="CDH",COUNTIF(R$7:R146,"x"),IF($A$7="PNA",COUNTIF(S$7:S146,"x")," ")))))))))))))))))) -> 118 | B146: x | C146: x | D146: x | E146: x | F146: x | G146: x | H146: x | I146: x | J146: x | M146: x | N146: x | P146: x | Q146: x | R146: x | S146: x | T146: BIOSEGURIDAD | U146: ='FICHA OCULTA'!G207 -> El servicio ha implementado el uso de 'Care Bundle" o Paquete de Medidas para la prevención de las IAAS basadas en evidencia médica. | V146: EI | W146: ='FICHA OCULTA'!$I$213 -> 0.125
A147: =IF($A$7="CE",COUNTIF(B$7:B147,"x"),IF($A$7="HOS",COUNTIF(C$7:C147,"x"),IF($A$7="E",COUNTIF(D$7:D147,"x"),IF($A$7="CEO",COUNTIF(E$7:E147,"x"),IF($A$7="CEQ",COUNTIF(F$7:F147,"x"),IF($A$7="CI",COUNTIF(G$7:G147,"x"),IF($A$7="PC",COUNTIF(H$7:H147,"x"),IF($A$7="DPI",COUNTIF(I$7:I147,"x"),IF($A$7="AP",COUNTIF(J$7:J147,"x"),IF($A$7="F",COUNTIF(K$7:K147,"x"),IF($A$7="CDE",COUNTIF(L$7:L147,"x"),IF($A$7="MR",COUNTIF(M$7:M147,"x"),IF($A$7="H",COUNTIF(N$7:N147,"x"),IF($A$7="NYD",COUNTIF(O$7:O147,"x"),IF($A$7="R",COUNTIF(P$7:P147,"x"),IF($A$7="MN",COUNTIF(Q$7:Q147,"x"),IF($A$7="CDH",COUNTIF(R$7:R147,"x"),IF($A$7="PNA",COUNTIF(S$7:S147,"x")," ")))))))))))))))))) -> 119 | B147: x | C147: x | D147: x | E147: x | F147: x | G147: x | H147: x | I147: x | J147: x | M147: x | N147: x | P147: x | Q147: x | R147: x | S147: x | T147: BIOSEGURIDAD | U147: ='FICHA OCULTA'!G208 -> Evidencia de desarrollo de actividades de vigilancia epidemiológica activa, selectiva y localizada de IAAS en la UPSS. | V147: EJ | W147: ='FICHA OCULTA'!$I$213 -> 0.125
A148: =IF($A$7="CE",COUNTIF(B$7:B148,"x"),IF($A$7="HOS",COUNTIF(C$7:C148,"x"),IF($A$7="E",COUNTIF(D$7:D148,"x"),IF($A$7="CEO",COUNTIF(E$7:E148,"x"),IF($A$7="CEQ",COUNTIF(F$7:F148,"x"),IF($A$7="CI",COUNTIF(G$7:G148,"x"),IF($A$7="PC",COUNTIF(H$7:H148,"x"),IF($A$7="DPI",COUNTIF(I$7:I148,"x"),IF($A$7="AP",COUNTIF(J$7:J148,"x"),IF($A$7="F",COUNTIF(K$7:K148,"x"),IF($A$7="CDE",COUNTIF(L$7:L148,"x"),IF($A$7="MR",COUNTIF(M$7:M148,"x"),IF($A$7="H",COUNTIF(N$7:N148,"x"),IF($A$7="NYD",COUNTIF(O$7:O148,"x"),IF($A$7="R",COUNTIF(P$7:P148,"x"),IF($A$7="MN",COUNTIF(Q$7:Q148,"x"),IF($A$7="CDH",COUNTIF(R$7:R148,"x"),IF($A$7="PNA",COUNTIF(S$7:S148,"x")," ")))))))))))))))))) -> 120 | B148: x | C148: x | D148: x | E148: x | F148: x | G148: x | H148: x | I148: x | J148: x | M148: x | N148: x | P148: x | Q148: x | R148: x | S148: x | T148: BIOSEGURIDAD | U148: ='FICHA OCULTA'!G209 -> Se observa si se encuentran señalizados las zonas rígidas y semirígidas de la Unidad Productora de Servicios de Salud. | V148: EK | W148: ='FICHA OCULTA'!$I$213 -> 0.125
A149: =IF($A$7="CE",COUNTIF(B$7:B149,"x"),IF($A$7="HOS",COUNTIF(C$7:C149,"x"),IF($A$7="E",COUNTIF(D$7:D149,"x"),IF($A$7="CEO",COUNTIF(E$7:E149,"x"),IF($A$7="CEQ",COUNTIF(F$7:F149,"x"),IF($A$7="CI",COUNTIF(G$7:G149,"x"),IF($A$7="PC",COUNTIF(H$7:H149,"x"),IF($A$7="DPI",COUNTIF(I$7:I149,"x"),IF($A$7="AP",COUNTIF(J$7:J149,"x"),IF($A$7="F",COUNTIF(K$7:K149,"x"),IF($A$7="CDE",COUNTIF(L$7:L149,"x"),IF($A$7="MR",COUNTIF(M$7:M149,"x"),IF($A$7="H",COUNTIF(N$7:N149,"x"),IF($A$7="NYD",COUNTIF(O$7:O149,"x"),IF($A$7="R",COUNTIF(P$7:P149,"x"),IF($A$7="MN",COUNTIF(Q$7:Q149,"x"),IF($A$7="CDH",COUNTIF(R$7:R149,"x"),IF($A$7="PNA",COUNTIF(S$7:S149,"x")," ")))))))))))))))))) -> 121 | B149: x | C149: x | D149: x | E149: x | F149: x | G149: x | H149: x | I149: x | J149: x | M149: x | N149: x | P149: x | Q149: x | R149: x | S149: x | T149: BIOSEGURIDAD | U149: ='FICHA OCULTA'!G210 -> Se observa si se respetan las zonas rígidas y semirígidas de la Unidad Productora de Servicios de Salud. | V149: EL | W149: ='FICHA OCULTA'!$I$213 -> 0.125
A150: =IF($A$7="CE",COUNTIF(B$7:B150,"x"),IF($A$7="HOS",COUNTIF(C$7:C150,"x"),IF($A$7="E",COUNTIF(D$7:D150,"x"),IF($A$7="CEO",COUNTIF(E$7:E150,"x"),IF($A$7="CEQ",COUNTIF(F$7:F150,"x"),IF($A$7="CI",COUNTIF(G$7:G150,"x"),IF($A$7="PC",COUNTIF(H$7:H150,"x"),IF($A$7="DPI",COUNTIF(I$7:I150,"x"),IF($A$7="AP",COUNTIF(J$7:J150,"x"),IF($A$7="F",COUNTIF(K$7:K150,"x"),IF($A$7="CDE",COUNTIF(L$7:L150,"x"),IF($A$7="MR",COUNTIF(M$7:M150,"x"),IF($A$7="H",COUNTIF(N$7:N150,"x"),IF($A$7="NYD",COUNTIF(O$7:O150,"x"),IF($A$7="R",COUNTIF(P$7:P150,"x"),IF($A$7="MN",COUNTIF(Q$7:Q150,"x"),IF($A$7="CDH",COUNTIF(R$7:R150,"x"),IF($A$7="PNA",COUNTIF(S$7:S150,"x")," ")))))))))))))))))) -> 122 | B150: x | C150: x | D150: x | E150: x | F150: x | G150: x | H150: x | I150: x | J150: x | K150: x | L150: x | M150: x | N150: x | O150: x | P150: x | Q150: x | R150: x | S150: x | T150: FUNCIONAMIENTO Y MANEJO DE EQUIPOS | U150: ='FICHA OCULTA'!G215 -> Equipos biomédicos accesibles según le corresponda a la UPSS y de acuerdo al nivel de complejidad | V150: EM | W150: ='FICHA OCULTA'!$I$222 -> 0
A151: =IF($A$7="CE",COUNTIF(B$7:B151,"x"),IF($A$7="HOS",COUNTIF(C$7:C151,"x"),IF($A$7="E",COUNTIF(D$7:D151,"x"),IF($A$7="CEO",COUNTIF(E$7:E151,"x"),IF($A$7="CEQ",COUNTIF(F$7:F151,"x"),IF($A$7="CI",COUNTIF(G$7:G151,"x"),IF($A$7="PC",COUNTIF(H$7:H151,"x"),IF($A$7="DPI",COUNTIF(I$7:I151,"x"),IF($A$7="AP",COUNTIF(J$7:J151,"x"),IF($A$7="F",COUNTIF(K$7:K151,"x"),IF($A$7="CDE",COUNTIF(L$7:L151,"x"),IF($A$7="MR",COUNTIF(M$7:M151,"x"),IF($A$7="H",COUNTIF(N$7:N151,"x"),IF($A$7="NYD",COUNTIF(O$7:O151,"x"),IF($A$7="R",COUNTIF(P$7:P151,"x"),IF($A$7="MN",COUNTIF(Q$7:Q151,"x"),IF($A$7="CDH",COUNTIF(R$7:R151,"x"),IF($A$7="PNA",COUNTIF(S$7:S151,"x")," ")))))))))))))))))) -> 123 | B151: x | C151: x | D151: x | E151: x | F151: x | G151: x | H151: x | I151: x | J151: x | K151: x | L151: x | M151: x | N151: x | O151: x | P151: x | Q151: x | R151: x | S151: x | T151: FUNCIONAMIENTO Y MANEJO DE EQUIPOS | U151: ='FICHA OCULTA'!G216 -> Equipos biomédicos operativos según le corresponda a la UPSS y de acuerdo al nivel de complejidad | V151: EN | W151: ='FICHA OCULTA'!$I$222 -> 0
A152: =IF($A$7="CE",COUNTIF(B$7:B152,"x"),IF($A$7="HOS",COUNTIF(C$7:C152,"x"),IF($A$7="E",COUNTIF(D$7:D152,"x"),IF($A$7="CEO",COUNTIF(E$7:E152,"x"),IF($A$7="CEQ",COUNTIF(F$7:F152,"x"),IF($A$7="CI",COUNTIF(G$7:G152,"x"),IF($A$7="PC",COUNTIF(H$7:H152,"x"),IF($A$7="DPI",COUNTIF(I$7:I152,"x"),IF($A$7="AP",COUNTIF(J$7:J152,"x"),IF($A$7="F",COUNTIF(K$7:K152,"x"),IF($A$7="CDE",COUNTIF(L$7:L152,"x"),IF($A$7="MR",COUNTIF(M$7:M152,"x"),IF($A$7="H",COUNTIF(N$7:N152,"x"),IF($A$7="NYD",COUNTIF(O$7:O152,"x"),IF($A$7="R",COUNTIF(P$7:P152,"x"),IF($A$7="MN",COUNTIF(Q$7:Q152,"x"),IF($A$7="CDH",COUNTIF(R$7:R152,"x"),IF($A$7="PNA",COUNTIF(S$7:S152,"x")," ")))))))))))))))))) -> 124 | B152: x | C152: x | D152: x | E152: x | F152: x | G152: x | H152: x | I152: x | J152: x | K152: x | L152: x | M152: x | N152: x | O152: x | P152: x | Q152: x | R152: x | S152: x | T152: FUNCIONAMIENTO Y MANEJO DE EQUIPOS | U152: ='FICHA OCULTA'!G217 -> Verificación del conocimiento del personal sobre el funcionamiento de los equipos biomédicos, según responsabilidad. | V152: EO | W152: ='FICHA OCULTA'!$I$222 -> 0
A153: =IF($A$7="CE",COUNTIF(B$7:B153,"x"),IF($A$7="HOS",COUNTIF(C$7:C153,"x"),IF($A$7="E",COUNTIF(D$7:D153,"x"),IF($A$7="CEO",COUNTIF(E$7:E153,"x"),IF($A$7="CEQ",COUNTIF(F$7:F153,"x"),IF($A$7="CI",COUNTIF(G$7:G153,"x"),IF($A$7="PC",COUNTIF(H$7:H153,"x"),IF($A$7="DPI",COUNTIF(I$7:I153,"x"),IF($A$7="AP",COUNTIF(J$7:J153,"x"),IF($A$7="F",COUNTIF(K$7:K153,"x"),IF($A$7="CDE",COUNTIF(L$7:L153,"x"),IF($A$7="MR",COUNTIF(M$7:M153,"x"),IF($A$7="H",COUNTIF(N$7:N153,"x"),IF($A$7="NYD",COUNTIF(O$7:O153,"x"),IF($A$7="R",COUNTIF(P$7:P153,"x"),IF($A$7="MN",COUNTIF(Q$7:Q153,"x"),IF($A$7="CDH",COUNTIF(R$7:R153,"x"),IF($A$7="PNA",COUNTIF(S$7:S153,"x")," ")))))))))))))))))) -> 125 | B153: x | C153: x | D153: x | E153: x | F153: x | G153: x | H153: x | I153: x | J153: x | K153: x | L153: x | M153: x | N153: x | O153: x | P153: x | Q153: x | R153: x | S153: x | T153: FUNCIONAMIENTO Y MANEJO DE EQUIPOS | U153: ='FICHA OCULTA'!G218 -> Verificación de que la UPSS cuenta con un Plan Anual de Mantenimiento Preventivo de todos sus equipo biomédicos (inclusive los nuevos). | V153: EP | W153: ='FICHA OCULTA'!$I$222 -> 0
A154: =IF($A$7="CE",COUNTIF(B$7:B154,"x"),IF($A$7="HOS",COUNTIF(C$7:C154,"x"),IF($A$7="E",COUNTIF(D$7:D154,"x"),IF($A$7="CEO",COUNTIF(E$7:E154,"x"),IF($A$7="CEQ",COUNTIF(F$7:F154,"x"),IF($A$7="CI",COUNTIF(G$7:G154,"x"),IF($A$7="PC",COUNTIF(H$7:H154,"x"),IF($A$7="DPI",COUNTIF(I$7:I154,"x"),IF($A$7="AP",COUNTIF(J$7:J154,"x"),IF($A$7="F",COUNTIF(K$7:K154,"x"),IF($A$7="CDE",COUNTIF(L$7:L154,"x"),IF($A$7="MR",COUNTIF(M$7:M154,"x"),IF($A$7="H",COUNTIF(N$7:N154,"x"),IF($A$7="NYD",COUNTIF(O$7:O154,"x"),IF($A$7="R",COUNTIF(P$7:P154,"x"),IF($A$7="MN",COUNTIF(Q$7:Q154,"x"),IF($A$7="CDH",COUNTIF(R$7:R154,"x"),IF($A$7="PNA",COUNTIF(S$7:S154,"x")," ")))))))))))))))))) -> 126 | B154: x | C154: x | D154: x | E154: x | F154: x | G154: x | H154: x | I154: x | J154: x | K154: x | L154: x | M154: x | N154: x | O154: x | P154: x | Q154: x | R154: x | S154: x | T154: FUNCIONAMIENTO Y MANEJO DE EQUIPOS | U154: ='FICHA OCULTA'!G219 -> Verificación de que la UPSS cumple con ejecutar su Plan Anual de Mantenimiento Preventivo de todos sus equipo biomédicos (inclusive los nuevos), mediante la visualización de las respectivas tarjetas. | V154: EQ | W154: ='FICHA OCULTA'!$I$222 -> 0
B155: =COUNTA(B8:B154) -> 82 | C155: =COUNTA(C8:C154) -> 126 | D155: 126 | E155: 105 | F155: 94 | G155: 119 | H155: 61 | I155: 70 | J155: 59 | K155: 44 | L155: 23 | M155: 62 | N155: 80 | O155: 48 | P155: 76 | Q155: 76 | R155: 73 | S155: 72
T166: B | U166: BUENAS PRÁCTICAS EVALUADAS | V166: % CUMPLIMIENTO
T167: =COUNTIF(W$166:W167,$T$166) -> 1 | U167: REGISTRO EN LA HISTORIA CLÍNICA | V167: ='FICHA OCULTA'!I51 -> 0.5217391304 | W167: =IF(V167>=0,"B"," ") -> B
T168: =COUNTIF(W$166:W168,$T$166) -> 2 | U168: SEGURIDAD DEL PACIENTE EN LA UPSS | V168: ='FICHA OCULTA'!I89 -> 0.4166666667 | W168: B
T169: =COUNTIF(W$166:W169,$T$166) -> 3 | U169: IDENTIFICACIÓN CORRECTA | V169: ='FICHA OCULTA'!I101 -> 0 | W169: B
T170: =COUNTIF(W$166:W170,$T$166) -> 4 | U170: PREVENCIÓN DE FUGA | V170: ='FICHA OCULTA'!I111 -> 0 | W170: B
T171: =COUNTIF(W$166:W171,$T$166) -> 5 | U171: SEGURIDAD EN LA MEDICACIÓN | V171: ='FICHA OCULTA'!I125 -> 0.1 | W171: B
T172: =COUNTIF(W$166:W172,$T$166) -> 6 | U172: PREVENCION DE CAIDAS Y CONTENCION MECANICA | V172: ='FICHA OCULTA'!I140 -> 0.1818181818 | W172: B
T173: =COUNTIF(W$166:W173,$T$166) -> 7 | U173: SEGURIDAD SEXUAL | V173: ='FICHA OCULTA'!I150 -> 0.3333333333 | W173: B
T174: =COUNTIF(W$166:W174,$T$166) -> 8 | U174: PREVENCIÓN Y REDUCCIÓN DEL RIESGO DE LAS UPP | V174: ='FICHA OCULTA'!I163 -> 0.2857142857 | W174: B
T175: =COUNTIF(W$166:W175,$T$166) -> 9 | U175: PREVENCIÓN DEL SUICIDO Y LESIONES | V175: ='FICHA OCULTA'!I175 -> 0.7142857143 | W175: B
T176: =COUNTIF(W$166:W176,$T$166) -> 10 | U176: COMUNICACIÓN EFECTIVA | V176: ='FICHA OCULTA'!I189 -> 0.9 | W176: B
T177: =COUNTIF(W$166:W177,$T$166) -> 11 | U177: HIGIENE DE MANOS | V177: ='FICHA OCULTA'!I201 -> 0 | W177: B
T178: =COUNTIF(W$166:W178,$T$166) -> 12 | U178: BIOSEGURIDAD | V178: ='FICHA OCULTA'!I213 -> 0.125 | W178: B
T179: =COUNTIF(W$166:W179,$T$166) -> 13 | U179: FUNCIONAMIENTO Y MANEJO DE EQUIPOS | V179: ='FICHA OCULTA'!I222 -> 0 | W179: B
V180: =AVERAGEIF(W167:W179,"B",V167:V179) -> 0.2752736394

Sheet MATRIZ DE RIESGOS
D2: UNIDAD FUNCIONAL DE GESTIÓN DE LA CALIDAD EN SALUD
D6: =+'MENU PRINCIPAL'!B2 -> APLICATIVO DE RONDAS DE SEGURIDAD DEL PACIENTE PARA LA GESTIÓN DEL RIESGO EN LA ATENCION DE SALUD
D10: MATRIZ DE RIESGOS
J11: IR A MENU
D14: ÓRGANO DESCONCENTRADO: | G14: ='MENU PRINCIPAL'!C20 -> INSTITUTO NACIONAL MATERNO PERINATAL | H14: TRIMESTRE: | I14: ='FICHA EVALUACIÓN'!J14 -> I TRIMESTRE | J14: AÑO: | K14: ='FICHA EVALUACIÓN'!L14 -> 2023
D15: IPRESS: | G15: =IF('FICHA EVALUACIÓN'!H15=0," ",'FICHA EVALUACIÓN'!H15) -> HOSPITAL DE ESPINAR | H15: FECHA APLICACION: | J15: =IF('FICHA EVALUACIÓN'!K15=0," ",'FICHA EVALUACIÓN'!K15) -> 2023-03-29 | K15: (DD/MM/AAAA)
D16: UPSS: | G16: ='FICHA EVALUACIÓN'!H16 -> EMERGENCIA | H16: RESP.EPIDEMIOLOGIA: | I16: =IF('FICHA EVALUACIÓN'!J16=0," ",'FICHA EVALUACIÓN'!J16) -> LIC. ISABEL ROMERO JACHA
D17: TITULAR/RESPONSABLE IPRESS: | G17: =IF('MENU PRINCIPAL'!C22=0," ",'MENU PRINCIPAL'!C22) -> Dr.EDWIN SOTO CCAYAHUALLPA | H17: RESP. DE LA UPSS: | I17: =IF('FICHA EVALUACIÓN'!J17=0," ",'FICHA EVALUACIÓN'!J17) -> DR. EDINSON VALDERRAMA MAMANI
D18: RESP. DE ADMINISTRACION: | G18: =IF('FICHA EVALUACIÓN'!H18=0," ",'FICHA EVALUACIÓN'!H18) -> LIC. JUVENAL TAIRO ZAMBRANO | H18: RESP.OFIC./UNIDAD CALIDAD: | I18: =IF('FICHA EVALUACIÓN'!J18=0," ",'FICHA EVALUACIÓN'!J18) -> LIC. JUDITH K. CAHUATA TURO
D19: RESP.DPTO/SERVICIO ENFERMERÍA: | G19: =IF('FICHA EVALUACIÓN'!H19=0," ",'FICHA EVALUACIÓN'!H19) -> LIC. MARIO CHOQUE ROMERO. | H19: OTROS RESPONSABLES: | I19: =IF('FICHA EVALUACIÓN'!J19=0," ",'FICHA EVALUACIÓN'!J19) -> LIC. IRMA LUPACA JIHUAÑA
C35: BUENAS PRÁCTICAS | F35: % | G35: VERIFICADOR | I35: CUMPLIMIENTO | J35: PROBABILIDAD | K35: GRAVEDAD / IMPACTO | L35: VALORACIÓN DEL RIESGO
B36: 1 | C36: =IFERROR(VLOOKUP(B36,ma_no,2,FALSE)," ") -> HISTORIA CLINICA | F36: =IFERROR(VLOOKUP(B36,ma_no,4,FALSE)," ") -> 0.5217391304 | G36: =IFERROR(VLOOKUP(B36,ma_no,6,FALSE)," ") -> Registro completo de la filiación del paciente: Datos del EESS, Nº de HCl, Nombres y Apellidos del Paciente, Lugar y fecha de nacimiento, Edad, Sexo, Domicilio, Procedencia, Teléfono, DNI, Seguro, Estado Civi, Instrucción, Ocupación, Religión, Acompañante o Responsable de ser el caso. | I36: =IFERROR(VLOOKUP(B36,ma_no,8,FALSE)," ") -> NO | J36: 4 | K36: 7 | L36: =IFERROR(J36*K36," ") -> 28
B37: 2 | C37: HISTORIA CLINICA | F37: 0.5217391304 | G37: =IFERROR(VLOOKUP(B37,ma_no,6,FALSE)," ") -> Registro de los antecedentes del paciente. | I37: NO | J37: 4 | K37: 7 | L37: =IFERROR(J37*K37," ") -> 28 | N37: 2
B38: 3 | C38: HISTORIA CLINICA | F38: 0.5217391304 | G38: Registro de la Funciones Biológicas: apetito, sed, sueño, orina, deposiciones, estado de animo. | I38: NO | J38: 4 | K38: 7 | L38: 28
B39: 4 | C39: HISTORIA CLINICA | F39: 0.5217391304 | G39: Registro de evolución del paciente: Fecha y hora de atención, Apreciación Subjetiva, Apreciación Objetiva, Tratamiento, Dieta, Interpretación de exámenes y comentario, terapeútica y Plan de trabajo, firma, sello y colegiatura del médico responsable. | I39: NO | J39: 4 | K39: 7 | L39: 28
B40: 5 | C40: HISTORIA CLINICA | F40: 0.5217391304 | G40: Registro y gráfico actualizado de la Funciones Vitales. | I40: NO | J40: 4 | K40: 7 | L40: 28
B41: 6 | C41: HISTORIA CLINICA | F41: 0.5217391304 | G41: Registro de la Hoja de Balance hidro - electrolítico actualizado. | I41: NO | J41: 3 | K41: 4 | L41: 12
B42: 7 | C42: HISTORIA CLINICA | F42: 0.5217391304 | G42: Registro e inclusión en la Historia Clínica de los resultados de examenes auxiliares y procedimientos del paciente. | I42: NO | J42: 4 | K42: 7 | L42: 28
B43: 8 | C43: HISTORIA CLINICA | F43: 0.5217391304 | G43: En caso de haberse producido un evento adverso, este ha sido registrado en la HCl o en algún medio de registro evidenciable. | I43: NO | J43: 4 | K43: 7 | L43: 28
B44: 9 | C44: HISTORIA CLINICA | F44: 0.5217391304 | G44: Registro completo del Consentimiento Informado de acuerdo a la normatividad vigente. | I44: NO | J44: 4 | K44: 7 | L44: 28
B45: 10 | C45: HISTORIA CLINICA | F45: 0.5217391304 | G45: Registro de los informes de los procedimientos realizados al paciente. | I45: NO | J45: 4 | K45: 7 | L45: 28
B46: 11 | C46: HISTORIA CLINICA | F46: 0.5217391304 | G46: La letra de la Historia Clínica es legible | I46: NO | J46: 4 | K46: 7 | L46: 28
B47: 12 | C47: SEGURIDAD EN LA UPSS | F47: 0.4166666667 | G47: La solicitud de medicamentos e insumos se gestionan oportunamente durante el turno. | I47: NO | J47: 4 | K47: 7 | L47: 28
B48: 13 | C48: SEGURIDAD EN LA UPSS | F48: 0.4166666667 | G48: Personal conoce del sistema de registro y notificación de incidentes y eventos adversos. | I48: NO | J48: 4 | K48: 7 | L48: 28
B49: 14 | C49: SEGURIDAD EN LA UPSS | F49: 0.4166666667 | G49: Registro físico y/o virtual de los incidentes y eventos adversos en la UPSS. | I49: NO | J49: 4 | K49: 7 | L49: 28
B50: 15 | C50: SEGURIDAD EN LA UPSS | F50: 0.4166666667 | G50: Análisis y plan de intervención sobre la información de los incidentes y eventos adversos. | I50: NO | J50: 4 | K50: 7 | L50: 28
B51: 16 | C51: SEGURIDAD EN LA UPSS | F51: 0.4166666667 | G51: Registro físico o digital de notificación de accidentes de trabajo del personal asistencial. | I51: NO | J51: 4 | K51: 7 | L51: 28
B52: 17 | C52: SEGURIDAD EN LA UPSS | F52: 0.4166666667 | G52: Timbre o sistema de llamado se encuentra cerca del paciente y está operativo. | I52: NO | J52: 3 | K52: 4 | L52: 12
B53: 18 | C53: SEGURIDAD EN LA UPSS | F53: 0.4166666667 | G53: Barandas de las camas funcionan y están levantadas para proteger al paciente. | I53: NO | J53: 4 | K53: 7 | L53: 28
B54: 19 | C54: IDENTIFICACIÓN CORRECTA DEL PACIENTE | F54: 0 | G54: Paciente tiene brazalete de identificación y los datos registrados son correctos y completos. | I54: NO | J54: 4 | K54: 7 | L54: 28
B55: 20 | C55: IDENTIFICACIÓN CORRECTA DEL PACIENTE | F55: 0 | G55: Cartel visible que tenga registrado el nombre completo del paciente. | I55: NO | J55: 4 | K55: 7 | L55: 28
B56: 21 | C56: IDENTIFICACIÓN CORRECTA DEL PACIENTE | F56: 0 | G56: Datos proporcionados por el paciente, son similares a los registrados en la historia clínica. | I56: NO | J56: 4 | K56: 7 | L56: 28
B57: 22 | C57: IDENTIFICACIÓN CORRECTA DEL PACIENTE | F57: 0 | G57: Verificación de la identidad del paciente con el brazalete antes de cualquier procedimiento. | I57: NO | J57: 4 | K57: 7 | L57: 28
B58: 23 | C58: IDENTIFICACIÓN CORRECTA DEL PACIENTE | F58: 0 | G58: Identificación de riesgo de caidas del paciente tanto en el brazalete del paciente como en el cartel visible. | I58: NO | J58: 4 | K58: 7 | L58: 28
B59: 24 | C59: IDENTIFICACIÓN CORRECTA DEL PACIENTE | F59: 0 | G59: Conocimiento del paciente o familiar responsable sobre su enfermedad, su evolución y pronóstico del mismo, el cual debe concordar con la información registrada en la historia clínica. | I59: NO | J59: 4 | K59: 7 | L59: 28
B60: 25 | C60: IDENTIFICACIÓN CORRECTA DEL PACIENTE | F60: 0 | G60: Paciente informado al que se le han aclado sus dudas y preguntas respecto a algún procedimiento o cirugía, evidenciandose la firma del Consentimiento respectivo. | I60: NO | J60: 4 | K60: 7 | L60: 28
B61: 26 | C61: PREVENCIÓN DE LA FUGA DE PACIENTES | F61: 0 | G61: Paciente cuenta con ropa de hospital facilmente identificable. | I61: NO | J61: 4 | K61: 7 | L61: 28
B62: 27 | C62: PREVENCIÓN DE LA FUGA DE PACIENTES | F62: 0 | G62: Vigilancia controla las pertenencias de los pacientes y las visitas para evitar el uso inadecuado de objetos potencialmente peligrosos. | I62: NO | J62: 4 | K62: 7 | L62: 28
B63: 28 | C63: PREVENCIÓN DE LA FUGA DE PACIENTES | F63: 0 | G63: Tienen un sistema efectivo de control de las salidas y entradas del servicio de hospitalización. | I63: NO | J63: 4 | K63: 7 | L63: 28
B64: 29 | C64: PREVENCIÓN DE LA FUGA DE PACIENTES | F64: 0 | G64: Entrevistas con el paciente para valorar el riesgo potencial de fuga. Solo en casos de oposición activa y riesgo inminente de fuga se recurrirá a la contención mecánica. | I64: NO | J64: 4 | K64: 7 | L64: 28
B65: 30 | C65: PREVENCIÓN DE LA FUGA DE PACIENTES | F65: 0 | G65: Registro en la hoja de recomendaciones terapéuticas el riesgo de fuga del paciente y la activación de las medidas de supervisión oportunas. | I65: NO | J65: 4 | K65: 7 | L65: 28
B66: 31 | C66: PREVENCIÓN DE LA FUGA DE PACIENTES | F66: 0 | G66: Existencia de un procedimiento o protocolo que se active en caso de fuga de paciente. | I66: NO | J66: 3 | K66: 4 | L66: 12
B67: 32 | C67: SEGURIDAD EN LA MEDICACIÓN | F67: 0.1 | G67: Paciente conoce que medicamentos recibe y a que hora corresponde que se lo administren. | I67: NO | J67: 4 | K67: 7 | L67: 28
B68: 33 | C68: =IFERROR(VLOOKUP(B68,ma_no,2,FALSE)," ") -> SEGURIDAD EN LA MEDICACIÓN | F68: =IFERROR(VLOOKUP(B68,ma_no,4,FALSE)," ") -> 0.1 | G68: =IFERROR(VLOOKUP(B68,ma_no,6,FALSE)," ") -> Paciente conoce los efectos secundarios que pueden producirle los medicamentos que recibe. | I68: =IFERROR(VLOOKUP(B68,ma_no,8,FALSE)," ") -> NO | J68: 4 | K68: 7 | L68: 28
B69: 34 | C69: SEGURIDAD EN LA MEDICACIÓN | F69: 0.1 | G69: Coche de paro cuenta con los insumos necesarios para atender situaciones críticas según normatividad vigente. | I69: NO | J69: 4 | K69: 7 | L69: 28
B70: 35 | C70: SEGURIDAD EN LA MEDICACIÓN | F70: 0.1 | G70: Soluciones endovenosas se encuentran debidamente rotulados con la fecha y los componentes contenidas en ella. | I70: NO | J70: 4 | K70: 7 | L70: 28
B71: 36 | C71: SEGURIDAD EN LA MEDICACIÓN | F71: 0.1 | G71: Almacenamiento ordenado de los medicamentos para evitar su confusión por su similitud de nombres o de presentación. | I71: NO | J71: 4 | K71: 7 | L71: 28
B72: 37 | C72: SEGURIDAD EN LA MEDICACIÓN | F72: 0.1 | G72: Medicamentos se clasifican para su almacenamiento local según el nombre del paciente por dosis unitaria. | I72: NO | J72: 4 | K72: 7 | L72: 28
B73: 38 | C73: SEGURIDAD EN LA MEDICACIÓN | F73: 0.1 | G73: Medicamentos e insumos médicos cuentan con un mecanismo efectivo de control de vencimiento / caducidad. | I73: NO | J73: 4 | K73: 7 | L73: 28
B74: 39 | C74: SEGURIDAD EN LA MEDICACIÓN | F74: 0.1 | G74: Existencia de un registro de medicamentos controlados. | I74: NO | J74: 4 | K74: 7 | L74: 28
B75: 40 | C75: SEGURIDAD EN LA MEDICACIÓN | F75: 0.1 | G75: Profesional encargado del cuidado de los pacientes verifica los 5 correctos para la administración correcta de medicamentos. | I75: NO | J75: 4 | K75: 7 | L75: 28
B76: 41 | C76: PREVENCIÓN DE CAIDA DE PACIENTES Y CONTENCION MECÁNICA | F76: 0.1818181818 | G76: Valoración del riesgo de caída de todo paciente que se hospitaliza. | I76: NO | J76: 4 | K76: 7 | L76: 28
B77: 42 | C77: PREVENCIÓN DE CAIDA DE PACIENTES Y CONTENCION MECÁNICA | F77: 0.1818181818 | G77: Revaloración diaria de pacientes: ancianos, aquellos sometidos a polifarmacia, los drogodependientes y las personas con déficits neurológicos ‐ cognitivos. | I77: NO | J77: 4 | K77: 7 | L77: 28
B78: 43 | C78: PREVENCIÓN DE CAIDA DE PACIENTES Y CONTENCION MECÁNICA | F78: 0.1818181818 | G78: Información a los pacientes sobre los efectos secundarios de la medicación que pueden afectar la orientación y el sensorio. | I78: NO | J78: 4 | K78: 7 | L78: 28
B79: 44 | C79: PREVENCIÓN DE CAIDA DE PACIENTES Y CONTENCION MECÁNICA | F79: 0.1818181818 | G79: En casos de sedación y deterioro cognitivo severo se utilizarán barras de protección lateral o contención abdominal cuando el paciente se encuentre encamado. | I79: NO | J79: 4 | K79: 7 | L79: 28
B80: 45 | C80: PREVENCIÓN DE CAIDA DE PACIENTES Y CONTENCION MECÁNICA | F80: 0.1818181818 | G80: Comunicar al paciente temas relacionados al uso de los baños, uso de las duchas, uso de los lavaderos, cambios posturales periodicos, etc. | I80: NO | J80: 4 | K80: 7 | L80: 28
B81: 46 | C81: PREVENCIÓN DE CAIDA DE PACIENTES Y CONTENCION MECÁNICA | F81: 0.1818181818 | G81: Protocolo que establezca población objetivo, indicaciones, medidas preventivas, profesionales responsables de la indicación y supervisión de los diversos mecanismos de sujeción mecanica. | I81: NO | J81: 4 | K81: 7 | L81: 28
B82: 47 | C82: PREVENCIÓN DE CAIDA DE PACIENTES Y CONTENCION MECÁNICA | F82: 0.1818181818 | G82: Sistemas de registro específicos de todo paciente con sujeción mecánica, el que se debe de reevaluar periódicamente la situación y el tiempo de sujeción. | I82: NO | J82: 4 | K82: 7 | L82: 28
B83: 48 | C83: PREVENCIÓN DE CAIDA DE PACIENTES Y CONTENCION MECÁNICA | F83: 0.1818181818 | G83: Asegurarse que las técnicas de inmovilización puedan ser retiradas fácilmente. | I83: NO | J83: 3 | K83: 4 | L83: 12
B84: 49 | C84: PREVENCIÓN DE CAIDA DE PACIENTES Y CONTENCION MECÁNICA | F84: 0.1818181818 | G84: Evidencia de cambio periódico de la posición de la inmovilización y evaluación de las zonas cutáneas sometidas a presión. | I84: NO | J84: 3 | K84: 4 | L84: 12
B85: 50 | C85: SEGURIDAD SEXUAL | F85: 0.3333333333 | G85: Información disponible y clara referente a las consecuencias penales de las agresiones sexuales. | I85: NO | J85: 4 | K85: 7 | L85: 28
B86: 51 | C86: SEGURIDAD SEXUAL | F86: 0.3333333333 | G86: El protocolo de recepción de un paciente establece la prohibición expresa de mantener relaciones sexuales durante la hospitalización. | I86: NO | J86: 4 | K86: 7 | L86: 28
B87: 52 | C87: SEGURIDAD SEXUAL | F87: 0.3333333333 | G87: Control de la entrada de pacientes a cualquier habitación que no sea la propia. | I87: NO | J87: 4 | K87: 7 | L87: 28
B88: 53 | C88: SEGURIDAD SEXUAL | F88: 0.3333333333 | G88: Al detectar conductas desinhibidas se comunicará al resto del equipo y se discutirán las medidas a tomar, que quedarán registradas en la hoja de recomendaciones terapéuticas. | I88: NO | J88: 4 | K88: 7 | L88: 28
B89: 54 | C89: PREVENCIÓN Y REDUCCIÓN DEL RIESGO DE LAS ÚLCERAS POR PRESIÓN | F89: 0.2857142857 | G89: Evaluación inicial del riesgo de úlceras por presión en todos los pacientes al ingreso a servicios de hospitalización | I89: NO | J89: 4 | K89: 7 | L89: 28
B90: 55 | C90: PREVENCIÓN Y REDUCCIÓN DEL RIESGO DE LAS ÚLCERAS POR PRESIÓN | F90: 0.2857142857 | G90: Protocolización de la guía de atención para la prevención y control de úlceras por presión. | I90: NO | J90: 4 | K90: 7 | L90: 28
B91: 56 | C91: PREVENCIÓN Y REDUCCIÓN DEL RIESGO DE LAS ÚLCERAS POR PRESIÓN | F91: 0.2857142857 | G91: Planificación, ejecución y evaluación del programa educativo dirigido a paciente, su cuidador y la familia. | I91: NO | J91: 4 | K91: 7 | L91: 28
B92: 57 | C92: PREVENCIÓN Y REDUCCIÓN DEL RIESGO DE LAS ÚLCERAS POR PRESIÓN | F92: 0.2857142857 | G92: Notificación de úlceras por presión (incidencia y prevalencia) en un registro diario instaurado en los servicios de hospitalización. | I92: NO | J92: 4 | K92: 7 | L92: 28
B93: 58 | C93: PREVENCIÓN Y REDUCCIÓN DEL RIESGO DE LAS ÚLCERAS POR PRESIÓN | F93: 0.2857142857 | G93: Aplicación de guía de curación de úlceras por presión según estadíos. | I93: NO | J93: 4 | K93: 7 | L93: 28
B94: 59 | C94: PREVENCIÓN DEL SUICIDO Y LESIONES | F94: 0.7142857143 | G94: Ubicar al paciente en el Servicio / Unidad más adecuada a sus necesidades y en función del riesgo detectado. | I94: NO | J94: 4 | K94: 7 | L94: 28
B95: 60 | C95: PREVENCIÓN DEL SUICIDO Y LESIONES | F95: 0.7142857143 | G95: El protocolo de prevención de conductas suicidas debe incluir correcta ubicación del paciente, la necesidad o no de sujeción mecánica, la supervisión así como la constancia en el registro de cualquier incidencia, el control de salidas y de visitas. | I95: NO | J95: 4 | K95: 7 | L95: 28
B96: 61 | C96: COMUNICACIÓN EFECTIVA | F96: 0.9 | G96: La UPSS proporciona información sobre sus servicios, horarios de atención a pacientes y/o familiares y el proceso para obtener atención. | I96: NO | J96: 4 | K96: 7 | L96: 28
B97: 62 | C97: HIGIENE DE MANOS | F97: 0 | G97: Disponibilidad de dispensadores con preparados de base alcohólica para manos. | I97: NO | J97: 4 | K97: 7 | L97: 28
B98: 63 | C98: HIGIENE DE MANOS | F98: 0 | G98: Disponibilidad de lavamanos con suministro de agua y jabón. | I98: NO | J98: 4 | K98: 7 | L98: 28
B99: 64 | C99: HIGIENE DE MANOS | F99: 0 | G99: Disponibilidad de papel toalla en todos los lavamanos. | I99: NO | J99: 4 | K99: 7 | L99: 28
B100: 65 | C100: =IFERROR(VLOOKUP(B100,ma_no,2,FALSE)," ") -> HIGIENE DE MANOS | F100: =IFERROR(VLOOKUP(B100,ma_no,4,FALSE)," ") -> 0 | G100: =IFERROR(VLOOKUP(B100,ma_no,6,FALSE)," ") -> Cumplimiento del ratio lavamanos/ paciente-cama de al menos 1:10 | I100: =IFERROR(VLOOKUP(B100,ma_no,8,FALSE)," ") -> NO | J100: 4 | K100: 7 | L100: 28
B101: 66 | C101: HIGIENE DE MANOS | F101: 0 | G101: Cumplimiento de los 08 pasos de la desinfección de manos (pasos y tiempo). | I101: NO | J101: 4 | K101: 7 | L101: =IFERROR(J101*K101," ") -> 28
B102: 67 | C102: HIGIENE DE MANOS | F102: 0 | G102: Cumplimiento de los 11 pasos del lavado de manos (pasos y tiempo). | I102: NO | J102: 4 | K102: 7 | L102: 28
B103: 68 | C103: HIGIENE DE MANOS | F103: 0 | G103: Porcentaje de cumplimiento > 80%, del requisito de realizar la higiene de las manos durante su actividad asistencial de acuerdo con los cinco momentos de la higiene de manos. | I103: NO | J103: 4 | K103: 7 | L103: 28
B104: 69 | C104: HIGIENE DE MANOS | F104: 0 | G104: Mensajes y dibujos que promueven la adherencia a la higiene de manos colocados en sitios estratégicos. | I104: NO | J104: 4 | K104: 7 | L104: 28
B105: 70 | C105: BIOSEGURIDAD | F105: 0.125 | G105: Disposición de residuos sólidos de acuerdo a las normas. | I105: NO | J105: 4 | K105: 7 | L105: 28
B106: 71 | C106: BIOSEGURIDAD | F106: 0.125 | G106: Eliminación de material punzo cortante y agujas de acuerdo a las normas. | I106: NO | J106: 4 | K106: 7 | L106: 28
B107: 72 | C107: BIOSEGURIDAD | F107: 0.125 | G107: Cumplimiento de las medidas de aislamiento. | I107: NO | J107: 3 | K107: 4 | L107: 12
B108: 73 | C108: BIOSEGURIDAD | F108: 0.125 | G108: El servicio ha implementado el uso de 'Care Bundle" o Paquete de Medidas para la prevención de las IAAS basadas en evidencia médica. | I108: NO | J108: 4 | K108: 7 | L108: 28
B109: 74 | C109: BIOSEGURIDAD | F109: 0.125 | G109: Evidencia de desarrollo de actividades de vigilancia epidemiológica activa, selectiva y localizada de IAAS en la UPSS. | I109: NO | J109: 4 | K109: 7 | L109: 28
B110: 75 | C110: BIOSEGURIDAD | F110: 0.125 | G110: Se observa si se encuentran señalizados las zonas rígidas y semirígidas de la Unidad Productora de Servicios de Salud. | I110: NO | J110: 3 | K110: 4 | L110: 12
B111: 76 | C111: BIOSEGURIDAD | F111: 0.125 | G111: Se observa si se respetan las zonas rígidas y semirígidas de la Unidad Productora de Servicios de Salud. | I111: NO | J111: 3 | K111: 4 | L111: 12
B112: 77 | C112: FUNCIONAMIENTO Y MANEJO DE EQUIPOS | F112: 0 | G112: Equipos biomédicos accesibles según le corresponda a la UPSS y de acuerdo al nivel de complejidad | I112: NO | J112: 4 | K112: 7 | L112: 28
B113: 78 | C113: FUNCIONAMIENTO Y MANEJO DE EQUIPOS | F113: 0 | G113: Equipos biomédicos operativos según le corresponda a la UPSS y de acuerdo al nivel de complejidad | I113: NO | J113: 4 | K113: 7 | L113: 28
B114: 79 | C114: FUNCIONAMIENTO Y MANEJO DE EQUIPOS | F114: 0 | G114: Verificación del conocimiento del personal sobre el funcionamiento de los equipos biomédicos, según responsabilidad. | I114: NO | J114: 4 | K114: 7 | L114: 28
B115: 80 | C115: FUNCIONAMIENTO Y MANEJO DE EQUIPOS | F115: 0 | G115: Verificación de que la UPSS cuenta con un Plan Anual de Mantenimiento Preventivo de todos sus equipo biomédicos (inclusive los nuevos). | I115: NO | J115: 4 | K115: 7 | L115: 28
B116: 81 | C116: FUNCIONAMIENTO Y MANEJO DE EQUIPOS | F116: 0 | G116: Verificación de que la UPSS cumple con ejecutar su Plan Anual de Mantenimiento Preventivo de todos sus equipo biomédicos (inclusive los nuevos), mediante la visualización de las respectivas tarjetas. | I116: NO | J116: 4 | K116: 7 | L116: 28
B117: 82 | J117: SELECCIONE | K117: SELECCIONE
B118: 83 | J118: SELECCIONE | K118: SELECCIONE
B119: 84 | J119: SELECCIONE | K119: SELECCIONE
B120: 85 | J120: SELECCIONE | K120: SELECCIONE
B121: 86 | J121: SELECCIONE | K121: SELECCIONE
B122: 87 | J122: SELECCIONE | K122: SELECCIONE
B123: 88 | J123: SELECCIONE | K123: SELECCIONE
B124: 89 | J124: SELECCIONE | K124: SELECCIONE
B125: 90 | J125: SELECCIONE | K125: SELECCIONE
B126: 91 | J126: SELECCIONE | K126: SELECCIONE
B127: 92 | J127: SELECCIONE | K127: SELECCIONE
B128: 93 | J128: SELECCIONE | K128: SELECCIONE
B129: 94 | J129: SELECCIONE | K129: SELECCIONE
B130: 95 | J130: SELECCIONE | K130: SELECCIONE
B131: 96 | J131: SELECCIONE | K131: SELECCIONE
B132: 97 | C132: =IFERROR(VLOOKUP(B132,ma_no,2,FALSE)," ") ->  | F132: =IFERROR(VLOOKUP(B132,ma_no,4,FALSE)," ") ->  | G132: =IFERROR(VLOOKUP(B132,ma_no,6,FALSE)," ") ->  | I132: =IFERROR(VLOOKUP(B132,ma_no,8,FALSE)," ") ->  | J132: SELECCIONE | K132: SELECCIONE
B133: 98 | J133: SELECCIONE | K133: SELECCIONE
B134: 99 | J134: SELECCIONE | K134: SELECCIONE
B135: 100 | J135: SELECCIONE | K135: SELECCIONE
B136: 101 | J136: SELECCIONE | K136: SELECCIONE
B137: 102 | J137: SELECCIONE | K137: SELECCIONE
B138: 103 | J138: SELECCIONE | K138: SELECCIONE
B139: 104 | J139: SELECCIONE | K139: SELECCIONE
B140: 105 | J140: SELECCIONE | K140: SELECCIONE
B141: 106 | J141: SELECCIONE | K141: SELECCIONE
B142: 107 | J142: SELECCIONE | K142: SELECCIONE
B143: 108 | J143: SELECCIONE | K143: SELECCIONE
B144: 109 | J144: SELECCIONE | K144: SELECCIONE
B145: 110 | J145: SELECCIONE | K145: SELECCIONE
B146: 111 | J146: SELECCIONE | K146: SELECCIONE
B147: 112 | J147: SELECCIONE | K147: SELECCIONE
B148: 113 | J148: SELECCIONE | K148: SELECCIONE
B149: 114 | J149: SELECCIONE | K149: SELECCIONE
B150: 115 | J150: SELECCIONE | K150: SELECCIONE
B151: 116 | J151: SELECCIONE | K151: SELECCIONE
B152: 117 | J152: SELECCIONE | K152: SELECCIONE
B153: 118 | J153: SELECCIONE | K153: SELECCIONE | L153: =IFERROR(J153*K153," ") -> 
B154: 119 | J154: SELECCIONE | K154: SELECCIONE
B155: 120 | J155: SELECCIONE | K155: SELECCIONE
B156: 121 | J156: SELECCIONE | K156: SELECCIONE
B157: 122 | C157: =IFERROR(VLOOKUP(B157,ma_no,2,FALSE)," ") ->  | F157: =IFERROR(VLOOKUP(B157,ma_no,4,FALSE)," ") ->  | G157: =IFERROR(VLOOKUP(B157,ma_no,6,FALSE)," ") ->  | I157: =IFERROR(VLOOKUP(B157,ma_no,8,FALSE)," ") ->  | J157: SELECCIONE | K157: SELECCIONE
B158: 123 | J158: SELECCIONE | K158: SELECCIONE
B159: 124 | J159: SELECCIONE | K159: SELECCIONE
B160: 125 | J160: SELECCIONE | K160: SELECCIONE
B161: 126 | J161: SELECCIONE | K161: SELECCIONE
B162: 127 | J162: SELECCIONE | K162: SELECCIONE

Sheet PLAN DE ACCIÓN
C2: UNIDAD FUNCIONAL DE GESTIÓN DE LA CALIDAD EN SALUD
C6: =+'MENU PRINCIPAL'!B2 -> APLICATIVO DE RONDAS DE SEGURIDAD DEL PACIENTE PARA LA GESTIÓN DEL RIESGO EN LA ATENCION DE SALUD
C10: PLAN DE ACCIÓN
H11: IR A MENU
C14: ÓRGANO DESCONCENTRADO: | E14: ='MENU PRINCIPAL'!C20 -> INSTITUTO NACIONAL MATERNO PERINATAL | F14: TRIMESTRE: | G14: ='FICHA EVALUACIÓN'!J14 -> I TRIMESTRE | H14: AÑO: | I14: ='FICHA EVALUACIÓN'!L14 -> 2023
C15: IPRESS: | E15: =IF('FICHA EVALUACIÓN'!H15=0," ",'FICHA EVALUACIÓN'!H15) -> HOSPITAL DE ESPINAR | F15: FECHA APLICACION: | H15: =IF('FICHA EVALUACIÓN'!K15=0," ",'FICHA EVALUACIÓN'!K15) -> 2023-03-29 | I15: (DD/MM/AAAA)
C16: UPSS: | E16: ='FICHA EVALUACIÓN'!H16 -> EMERGENCIA | F16: RESP.EPIDEMIOLOGIA: | G16: =IF('FICHA EVALUACIÓN'!J16=0," ",'FICHA EVALUACIÓN'!J16) -> LIC. ISABEL ROMERO JACHA
C17: TITULAR/RESPONSABLE IPRESS: | E17: =IF('MENU PRINCIPAL'!C22=0," ",'MENU PRINCIPAL'!C22) -> Dr.EDWIN SOTO CCAYAHUALLPA | F17: RESP. DE LA UPSS: | G17: =IF('FICHA EVALUACIÓN'!J17=0," ",'FICHA EVALUACIÓN'!J17) -> DR. EDINSON VALDERRAMA MAMANI
C18: RESP. DE ADMINISTRACION: | E18: =IF('FICHA EVALUACIÓN'!H18=0," ",'FICHA EVALUACIÓN'!H18) -> LIC. JUVENAL TAIRO ZAMBRANO | F18: RESP.OFIC./UNIDAD CALIDAD: | G18: =IF('FICHA EVALUACIÓN'!J18=0," ",'FICHA EVALUACIÓN'!J18) -> LIC. JUDITH K. CAHUATA TURO
C19: RESP. DPTO/SERVICIO ENFERMERÍA: | E19: =IF('FICHA EVALUACIÓN'!H19=0," ",'FICHA EVALUACIÓN'!H19) -> LIC. MARIO CHOQUE ROMERO. | F19: OTROS RESPONSABLES: | G19: =IF('FICHA EVALUACIÓN'!J19=0," ",'FICHA EVALUACIÓN'!J19) -> LIC. IRMA LUPACA JIHUAÑA
C25: PRIORIDAD | D25: BUENAS PRÁCTICAS | E25: VERIFICADOR INSEGURO | F25: ACCIONES CORRECTIVAS | I25: RESPONSABLE (CARGO) | L25: PLAZO (dd/mm/aaaa)
C26: ='PRIORIDAD DE INTERVENCIÓN'!J37 -> 56 | D26: ='PRIORIDAD DE INTERVENCIÓN'!B37 -> HISTORIA CLINICA | E26: ='PRIORIDAD DE INTERVENCIÓN'!E37:F37 -> Registro de los antecedentes del paciente. | F26: Se recomienda que todas las Historias clinicas deben ser bien llenadas con los anatecedentes | I26: DR. Edinson Valderrama Mamani. | L26: 2023-05-05
C27: ='PRIORIDAD DE INTERVENCIÓN'!J36 -> 28 | D27: ='PRIORIDAD DE INTERVENCIÓN'!B36 -> HISTORIA CLINICA | E27: ='PRIORIDAD DE INTERVENCIÓN'!E36:F36 -> Registro completo de la filiación del paciente: Datos del EESS, Nº de HCl, Nombres y Apellidos del Paciente, Lugar y fecha de nacimiento, Edad, Sexo, Domicilio, Procedencia, Teléfono, DNI, Seguro, Estado Civi, Instrucción, Ocupación, Religión, Acompañante o Responsable de ser el caso. | F27: Se recomienda que todas las Historias clinicas deben ser bien llenadas con los datos completos esto con el fin de tener mas informacion sobre el paciente | I27: DR. Edinson Valderrama Mamani. | L27: 2023-05-05
C28: ='PRIORIDAD DE INTERVENCIÓN'!J42 -> 84 | D28: ='PRIORIDAD DE INTERVENCIÓN'!B42 -> HISTORIA CLINICA | E28: ='PRIORIDAD DE INTERVENCIÓN'!E42:F42 -> Registro e inclusión en la Historia Clínica de los resultados de examenes auxiliares y procedimientos del paciente. | F28: Se recomienda que las historias clinicas deben estar completas con sus examenes auxiliares para evaluar mas pronto al paciente | I28: DR. Edinson Valderrama Mamani. | L28: 2023-05-05
C29: ='PRIORIDAD DE INTERVENCIÓN'!J40 -> 28 | D29: ='PRIORIDAD DE INTERVENCIÓN'!B40 -> HISTORIA CLINICA | E29: ='PRIORIDAD DE INTERVENCIÓN'!E40:F40 -> Registro y gráfico actualizado de la Funciones Vitales. | F29: Se recomienda que implementen la hoja grafica de funciones vitales y sean registrados para tener un control mejor del paciente | I29: DR. Edinson Valderrama Mamani. | L29: 2023-05-05
C30: ='PRIORIDAD DE INTERVENCIÓN'!J38 -> 56 | D30: ='PRIORIDAD DE INTERVENCIÓN'!B38 -> HISTORIA CLINICA | E30: ='PRIORIDAD DE INTERVENCIÓN'!E38:F38 -> Registro de la Funciones Biológicas: apetito, sed, sueño, orina, deposiciones, estado de animo. | F30: Se recomienda registrar en la hisctoria clinica todas estas funciones biologicas para de acuerso a eso realizar un adecuado balance hirdrico del paciente | I30: DR. Edinson Valderrama Mamani. | L30: 2023-05-05
C31: ='PRIORIDAD DE INTERVENCIÓN'!J41 -> 12 | D31: ='PRIORIDAD DE INTERVENCIÓN'!B41 -> HISTORIA CLINICA | E31: ='PRIORIDAD DE INTERVENCIÓN'!E41:F41 -> Registro de la Hoja de Balance hidro - electrolítico actualizado. | F31: Se recomienda implementar la hoja de balance hidrico pa ra controlar adecuadamente el ingreso y egreso de electrolitos | I31: DR. Edinson Valderrama Mamani. | L31: 2023-05-05
C32: ='PRIORIDAD DE INTERVENCIÓN'!J39 -> 28 | D32: ='PRIORIDAD DE INTERVENCIÓN'!B39 -> HISTORIA CLINICA | E32: ='PRIORIDAD DE INTERVENCIÓN'!E39:F39 -> Registro de evolución del paciente: Fecha y hora de atención, Apreciación Subjetiva, Apreciación Objetiva, Tratamiento, Dieta, Interpretación de exámenes y comentario, terapeútica y Plan de trabajo, firma, sello y colegiatura del médico responsable. | F32: Se recomienda a los Señores Medicos hacer la evolucion del paciente despues de tener los resultados de los examenes | I32: DR. Edinson Valderrama Mamani. | L32: 2023-05-05
C33: ='PRIORIDAD DE INTERVENCIÓN'!J43 -> 84 | D33: ='PRIORIDAD DE INTERVENCIÓN'!B43 -> HISTORIA CLINICA | E33: ='PRIORIDAD DE INTERVENCIÓN'!E43:F43 -> En caso de haberse producido un evento adverso, este ha sido registrado en la HCl o en algún medio de registro evidenciable. | F33: Se recomienda implementar el registro de eventos adversos en la historia clinica | I33: DR. Edinson Valderrama Mamani. | L33: 2023-05-05
C34: ='PRIORIDAD DE INTERVENCIÓN'!J50 -> 84 | D34: ='PRIORIDAD DE INTERVENCIÓN'!B50 -> SEGURIDAD EN LA UPSS | E34: ='PRIORIDAD DE INTERVENCIÓN'!E50:F50 -> Análisis y plan de intervención sobre la información de los incidentes y eventos adversos. | F34: Se recomienda implementar el plan y anlisis de eventos adversos | I34: DR. Edinson Valderrama Mamani. | L34: 2023-05-05
C35: ='PRIORIDAD DE INTERVENCIÓN'!J46 -> 84 | D35: ='PRIORIDAD DE INTERVENCIÓN'!B46 -> HISTORIA CLINICA | E35: ='PRIORIDAD DE INTERVENCIÓN'!E46:F46 -> La letra de la Historia Clínica es legible | F35: Se recomienda que la letra de la historia clinica debe ser legible ya que aveces solicitan informacion los pacientes y no se entiende lo que esta escrito en la historia | I35: DR. Edinson Valderrama Mamani. | L35: 2023-05-05
C36: ='PRIORIDAD DE INTERVENCIÓN'!J47 -> 84 | D36: ='PRIORIDAD DE INTERVENCIÓN'!B47 -> SEGURIDAD EN LA UPSS | E36: ='PRIORIDAD DE INTERVENCIÓN'!E47:F47 -> La solicitud de medicamentos e insumos se gestionan oportunamente durante el turno. | F36: Se recomienda que deben implementar un kit de medicamentos para las emergencias para no tener problemas con farmacia al momento de cambio de turno | I36: DR. Edinson Valderrama Mamani. | L36: 2023-05-05
C37: ='PRIORIDAD DE INTERVENCIÓN'!J49 -> 84 | D37: ='PRIORIDAD DE INTERVENCIÓN'!B49 -> SEGURIDAD EN LA UPSS | E37: ='PRIORIDAD DE INTERVENCIÓN'!E49:F49 -> Registro físico y/o virtual de los incidentes y eventos adversos en la UPSS. | F37: Se recomienda implementar un registro fisico o virtual de los incidentes o eventos adversos | I37: DR. Edinson Valderrama Mamani. | L37: 2023-05-05
C38: ='PRIORIDAD DE INTERVENCIÓN'!J44 -> 84 | D38: ='PRIORIDAD DE INTERVENCIÓN'!B44 -> HISTORIA CLINICA | E38: ='PRIORIDAD DE INTERVENCIÓN'!E44:F44 -> Registro completo del Consentimiento Informado de acuerdo a la normatividad vigente. | F38: Se recomienda implementar la hoja de consentimiento informado para que el paciente tenga onocimiento de todo la atencion que se le ralizara | I38: DR. Edinson Valderrama Mamani. | L38: 2023-05-05
C39: ='PRIORIDAD DE INTERVENCIÓN'!J48 -> 84 | D39: ='PRIORIDAD DE INTERVENCIÓN'!B48 -> SEGURIDAD EN LA UPSS | E39: ='PRIORIDAD DE INTERVENCIÓN'!E48:F48 -> Personal conoce del sistema de registro y notificación de incidentes y eventos adversos. | F39: Se recomienda socializar e implementar registro y notificacion de eventos adversos | I39: DR. Edinson Valderrama Mamani. | L39: 2023-05-05
C40: ='PRIORIDAD DE INTERVENCIÓN'!J45 -> 84 | D40: ='PRIORIDAD DE INTERVENCIÓN'!B45 -> HISTORIA CLINICA | E40: ='PRIORIDAD DE INTERVENCIÓN'!E45:F45 -> Registro de los informes de los procedimientos realizados al paciente. | F40: Se recomienda implementar un cuaderno de procedimientos y con eso dar una buena informacion al paciente de todos los procedimientos realizados | I40: DR. Edinson Valderrama Mamani. | L40: 2023-05-05
C41: ='PRIORIDAD DE INTERVENCIÓN'!J51 -> 84 | D41: ='PRIORIDAD DE INTERVENCIÓN'!B51 -> SEGURIDAD EN LA UPSS | E41: ='PRIORIDAD DE INTERVENCIÓN'!E51:F51 -> Registro físico o digital de notificación de accidentes de trabajo del personal asistencial. | F41: Se recomienda implementar un registro fisico o digital de notificacion de accidentes de trabajo | I41: DR. Edinson Valderrama Mamani. | L41: 2023-05-05
C42: ='PRIORIDAD DE INTERVENCIÓN'!J52 -> 36 | D42: ='PRIORIDAD DE INTERVENCIÓN'!B52 -> SEGURIDAD EN LA UPSS | E42: ='PRIORIDAD DE INTERVENCIÓN'!E52:F52 -> Timbre o sistema de llamado se encuentra cerca del paciente y está operativo. | F42: Se sugiere que debe implementarse un timbre para que el paciente pueda llamar mas rapido al personal para su atencion pero no se cuenta con ambientes propios | I42: DR. Edinson Valderrama Mamani. | L42: 2023-05-05
C43: ='PRIORIDAD DE INTERVENCIÓN'!J53 -> 84 | D43: ='PRIORIDAD DE INTERVENCIÓN'!B53 -> SEGURIDAD EN LA UPSS | E43: ='PRIORIDAD DE INTERVENCIÓN'!E53:F53 -> Barandas de las camas funcionan y están levantadas para proteger al paciente. | F43: Se recomienda siempre subir las barandas de las camillas y camas para evitar las caidas de los pacientes | I43: DR. Edinson Valderrama Mamani. | L43: 2023-05-05
C44: ='PRIORIDAD DE INTERVENCIÓN'!J54 -> 84 | D44: ='PRIORIDAD DE INTERVENCIÓN'!B54 -> IDENTIFICACIÓN CORRECTA DEL PACIENTE | E44: ='PRIORIDAD DE INTERVENCIÓN'!E54:F54 -> Paciente tiene brazalete de identificación y los datos registrados son correctos y completos. | F44: Se recomienda que todos los pacientes si o si deben tener sus brazaletes de identificacion para poder identificarlos con facilidad | I44: DR. Edinson Valderrama Mamani. | L44: 2023-05-05
C45: ='PRIORIDAD DE INTERVENCIÓN'!J55 -> 84 | D45: ='PRIORIDAD DE INTERVENCIÓN'!B55 -> IDENTIFICACIÓN CORRECTA DEL PACIENTE | E45: ='PRIORIDAD DE INTERVENCIÓN'!E55:F55 -> Cartel visible que tenga registrado el nombre completo del paciente. | F45: Se recomienda que todos los carteles deben estar visibles con sus datos completos del paciente para poner el tratamiento correcto al paciente | I45: DR. Edinson Valderrama Mamani. | L45: 2023-05-05
C46: ='PRIORIDAD DE INTERVENCIÓN'!J56 -> 84 | D46: ='PRIORIDAD DE INTERVENCIÓN'!B56 -> IDENTIFICACIÓN CORRECTA DEL PACIENTE | E46: ='PRIORIDAD DE INTERVENCIÓN'!E56:F56 -> Datos proporcionados por el paciente, son similares a los registrados en la historia clínica. | F46: Se recomienda que los datos del paciente sean bien registrados en la historia clinica esto con el fin de dar el tratamiento correcto | I46: DR. Edinson Valderrama Mamani. | L46: 2023-05-05
C47: ='PRIORIDAD DE INTERVENCIÓN'!J57 -> 84 | D47: ='PRIORIDAD DE INTERVENCIÓN'!B57 -> IDENTIFICACIÓN CORRECTA DEL PACIENTE | E47: ='PRIORIDAD DE INTERVENCIÓN'!E57:F57 -> Verificación de la identidad del paciente con el brazalete antes de cualquier procedimiento. | F47: Se recomienda que todos los pacientes deben contar con sus brazalestes para realizarles sus procedimientos | I47: DR. Edinson Valderrama Mamani. | L47: 2023-05-05
C48: ='PRIORIDAD DE INTERVENCIÓN'!J58 -> 84 | D48: ='PRIORIDAD DE INTERVENCIÓN'!B58 -> IDENTIFICACIÓN CORRECTA DEL PACIENTE | E48: ='PRIORIDAD DE INTERVENCIÓN'!E58:F58 -> Identificación de riesgo de caidas del paciente tanto en el brazalete del paciente como en el cartel visible. | F48: Se recomienda implementar los brazaletes de identificacion | I48: DR. Edinson Valderrama Mamani. | L48: 2023-05-05
C49: ='PRIORIDAD DE INTERVENCIÓN'!J59 -> 84 | D49: ='PRIORIDAD DE INTERVENCIÓN'!B59 -> IDENTIFICACIÓN CORRECTA DEL PACIENTE | E49: ='PRIORIDAD DE INTERVENCIÓN'!E59:F59 -> Conocimiento del paciente o familiar responsable sobre su enfermedad, su evolución y pronóstico del mismo, el cual debe concordar con la información registrada en la historia clínica. | F49: Se recomienda brindar informacion a sus familiares sobre la enfermedad de su familiar para que este enterado sobre el tratamiento que debe recibir | I49: DR. Edinson Valderrama Mamani. | L49: 2023-05-05
C50: ='PRIORIDAD DE INTERVENCIÓN'!J60 -> 84 | D50: ='PRIORIDAD DE INTERVENCIÓN'!B60 -> IDENTIFICACIÓN CORRECTA DEL PACIENTE | E50: ='PRIORIDAD DE INTERVENCIÓN'!E60:F60 -> Paciente informado al que se le han aclado sus dudas y preguntas respecto a algún procedimiento o cirugía, evidenciandose la firma del Consentimiento respectivo. | F50: Se recomienda que se brinde informacion sobre todos los procedimientos que se le realizara al paciente para que tenga conocimiento | I50: DR. Edinson Valderrama Mamani. | L50: 2023-05-05
C51: ='PRIORIDAD DE INTERVENCIÓN'!J61 -> 84 | D51: ='PRIORIDAD DE INTERVENCIÓN'!B61 -> PREVENCIÓN DE LA FUGA DE PACIENTES | E51: ='PRIORIDAD DE INTERVENCIÓN'!E61:F61 -> Paciente cuenta con ropa de hospital facilmente identificable. | F51: Se recomienda que soliciten la compra de pijamas para todos los pacientes para poder identificarlos | I51: DR. Edinson Valderrama Mamani. | L51: 2023-05-05
C52: ='PRIORIDAD DE INTERVENCIÓN'!J62 -> 84 | D52: ='PRIORIDAD DE INTERVENCIÓN'!B62 -> PREVENCIÓN DE LA FUGA DE PACIENTES | E52: ='PRIORIDAD DE INTERVENCIÓN'!E62:F62 -> Vigilancia controla las pertenencias de los pacientes y las visitas para evitar el uso inadecuado de objetos potencialmente peligrosos. | F52: Se recomienda que soliciten vigilancia en el hospital ya que no se cuenta con vigilantes | I52: DR. Edinson Valderrama Mamani. | L52: 2023-05-05
C53: ='PRIORIDAD DE INTERVENCIÓN'!J63 -> 84 | D53: ='PRIORIDAD DE INTERVENCIÓN'!B63 -> PREVENCIÓN DE LA FUGA DE PACIENTES | E53: ='PRIORIDAD DE INTERVENCIÓN'!E63:F63 -> Tienen un sistema efectivo de control de las salidas y entradas del servicio de hospitalización. | F53: Se recomienda poner un Vigilante para que haga un control exclusivo | I53: DR. Edinson Valderrama Mamani. | L53: 2023-05-05
C54: ='PRIORIDAD DE INTERVENCIÓN'!J64 -> 84 | D54: ='PRIORIDAD DE INTERVENCIÓN'!B64 -> PREVENCIÓN DE LA FUGA DE PACIENTES | E54: ='PRIORIDAD DE INTERVENCIÓN'!E64:F64 -> Entrevistas con el paciente para valorar el riesgo potencial de fuga. Solo en casos de oposición activa y riesgo inminente de fuga se recurrirá a la contención mecánica. | F54: Se recomienda que se tenga un vigilante para que este pendiente de la fuga de los pacientes | I54: DR. Edinson Valderrama Mamani. | L54: 2023-05-05
C55: ='PRIORIDAD DE INTERVENCIÓN'!J65 -> 84 | D55: ='PRIORIDAD DE INTERVENCIÓN'!B65 -> PREVENCIÓN DE LA FUGA DE PACIENTES | E55: ='PRIORIDAD DE INTERVENCIÓN'!E65:F65 -> Registro en la hoja de recomendaciones terapéuticas el riesgo de fuga del paciente y la activación de las medidas de supervisión oportunas. | F55: Se recomienda implementar un cuaderno de recomendaciones terapeuticas y asi mismo hacer las cordinaciones con el vigilante | I55: DR. Edinson Valderrama Mamani. | L55: 2023-05-05
C56: ='PRIORIDAD DE INTERVENCIÓN'!J66 -> 36 | D56: ='PRIORIDAD DE INTERVENCIÓN'!B66 -> PREVENCIÓN DE LA FUGA DE PACIENTES | E56: ='PRIORIDAD DE INTERVENCIÓN'!E66:F66 -> Existencia de un procedimiento o protocolo que se active en caso de fuga de paciente. | F56: Es recomendable tener un protocolo que se active en caso de fuga de los pacientes | I56: DR. Edinson Valderrama Mamani. | L56: 2023-05-05
C57: ='PRIORIDAD DE INTERVENCIÓN'!J67 -> 84 | D57: ='PRIORIDAD DE INTERVENCIÓN'!B67 -> SEGURIDAD EN LA MEDICACIÓN | E57: ='PRIORIDAD DE INTERVENCIÓN'!E67:F67 -> Paciente conoce que medicamentos recibe y a que hora corresponde que se lo administren. | F57: Se recomienda que se brinde informacion y consejeria en el tratamiento que se administre al paciente | I57: DR. Edinson Valderrama Mamani. | L57: 2023-05-05
C58: ='PRIORIDAD DE INTERVENCIÓN'!J68 -> 84 | D58: ='PRIORIDAD DE INTERVENCIÓN'!B68 -> SEGURIDAD EN LA MEDICACIÓN | E58: ='PRIORIDAD DE INTERVENCIÓN'!E68:F68 -> Paciente conoce los efectos secundarios que pueden producirle los medicamentos que recibe. | F58: Se recomienda que brinden la informacion de los efectos secundarios que pueden producir los medicamentos | I58: DR. Edinson Valderrama Mamani. | L58: 2023-05-05
C59: ='PRIORIDAD DE INTERVENCIÓN'!J69 -> 84 | D59: ='PRIORIDAD DE INTERVENCIÓN'!B69 -> SEGURIDAD EN LA MEDICACIÓN | E59: ='PRIORIDAD DE INTERVENCIÓN'!E69:F69 -> Coche de paro cuenta con los insumos necesarios para atender situaciones críticas según normatividad vigente. | F59: Se recomienda que cuenten con un coche de paro esto con el fin de que ante cualquier emergencia tengan con que atender | I59: DR. Edinson Valderrama Mamani. | L59: 2023-05-05
C60: ='PRIORIDAD DE INTERVENCIÓN'!J70 -> 84 | D60: ='PRIORIDAD DE INTERVENCIÓN'!B70 -> SEGURIDAD EN LA MEDICACIÓN | E60: ='PRIORIDAD DE INTERVENCIÓN'!E70:F70 -> Soluciones endovenosas se encuentran debidamente rotulados con la fecha y los componentes contenidas en ella. | F60: Se recomienda rotular las soluciones endovenosas para saber que solucion le estan poniendo, asi mismo acon que medicamentos mas , el goteo , nombre y fecha del paciente para que no se confunda con el tratamiento de otros poacientes | I60: DR. Edinson Valderrama Mamani. | L60: 2023-05-05
C61: ='PRIORIDAD DE INTERVENCIÓN'!J71 -> 84 | D61: ='PRIORIDAD DE INTERVENCIÓN'!B71 -> SEGURIDAD EN LA MEDICACIÓN | E61: ='PRIORIDAD DE INTERVENCIÓN'!E71:F71 -> Almacenamiento ordenado de los medicamentos para evitar su confusión por su similitud de nombres o de presentación. | F61: Es recomendable que el almacenamiento de medicamentos esten separados y rotulados para evitar confusiones | I61: DR. Edinson Valderrama Mamani. | L61: 2023-05-05
C62: ='PRIORIDAD DE INTERVENCIÓN'!J72 -> 84 | D62: ='PRIORIDAD DE INTERVENCIÓN'!B72 -> SEGURIDAD EN LA MEDICACIÓN | E62: ='PRIORIDAD DE INTERVENCIÓN'!E72:F72 -> Medicamentos se clasifican para su almacenamiento local según el nombre del paciente por dosis unitaria. | F62: Se recomienda implementar un coche para clasificar la medicacion de cada paciente | I62: DR. Edinson Valderrama Mamani. | L62: 2023-05-05
C63: ='PRIORIDAD DE INTERVENCIÓN'!J127 -> 0 | D63: ='PRIORIDAD DE INTERVENCIÓN'!B127 ->  | E63: ='PRIORIDAD DE INTERVENCIÓN'!E127:F127 -> 
C64: ='PRIORIDAD DE INTERVENCIÓN'!J161 -> 0 | D64: ='PRIORIDAD DE INTERVENCIÓN'!B161 ->  | E64: ='PRIORIDAD DE INTERVENCIÓN'!E161:F161 -> 
C65: ='PRIORIDAD DE INTERVENCIÓN'!J73 -> 0 | D65: ='PRIORIDAD DE INTERVENCIÓN'!B73 -> SEGURIDAD EN LA MEDICACIÓN | E65: ='PRIORIDAD DE INTERVENCIÓN'!E73:F73 -> Medicamentos e insumos médicos cuentan con un mecanismo efectivo de control de vencimiento / caducidad. | F65: Se recomienda implementar un cuaderno para controlar las fechas de vencimientos de los medicamentos | I65: DR. Edinson Valderrama Mamani. | L65: 2023-05-05
C66: ='PRIORIDAD DE INTERVENCIÓN'!J74 -> 0 | D66: ='PRIORIDAD DE INTERVENCIÓN'!B74 -> SEGURIDAD EN LA MEDICACIÓN | E66: ='PRIORIDAD DE INTERVENCIÓN'!E74:F74 -> Existencia de un registro de medicamentos controlados. | F66: Se recomienda implementar un cuaderno exclusivo para los medicamentos controlados | I66: DR. Edinson Valderrama Mamani. | L66: 2023-05-05
C67: ='PRIORIDAD DE INTERVENCIÓN'!J75 -> 0 | D67: ='PRIORIDAD DE INTERVENCIÓN'!B75 -> SEGURIDAD EN LA MEDICACIÓN | E67: ='PRIORIDAD DE INTERVENCIÓN'!E75:F75 -> Profesional encargado del cuidado de los pacientes verifica los 5 correctos para la administración correcta de medicamentos. | F67: Se recomienda al personal del servicio que deben poner en practica los 5 correctos | I67: DR. Edinson Valderrama Mamani. | L67: 2023-05-05
C68: ='PRIORIDAD DE INTERVENCIÓN'!J76 -> 0 | D68: ='PRIORIDAD DE INTERVENCIÓN'!B76 -> PREVENCIÓN DE CAIDA DE PACIENTES Y CONTENCION MECÁNICA | E68: ='PRIORIDAD DE INTERVENCIÓN'!E76:F76 -> Valoración del riesgo de caída de todo paciente que se hospitaliza. | F68: Se recomienda al que deben poner en practica la valoracion de caidas en todo paciente | I68: DR. Edinson Valderrama Mamani. | L68: 2023-05-05
C69: ='PRIORIDAD DE INTERVENCIÓN'!J77 -> 0 | D69: ='PRIORIDAD DE INTERVENCIÓN'!B77 -> PREVENCIÓN DE CAIDA DE PACIENTES Y CONTENCION MECÁNICA | E69: ='PRIORIDAD DE INTERVENCIÓN'!E77:F77 -> Revaloración diaria de pacientes: ancianos, aquellos sometidos a polifarmacia, los drogodependientes y las personas con déficits neurológicos ‐ cognitivos. | F69: Se recomienda siempre que deben evaluar a los pacientes ancianos para evitar efectos secundarios por los medicamentos | I69: DR. Edinson Valderrama Mamani. | L69: 2023-05-05
C70: ='PRIORIDAD DE INTERVENCIÓN'!J78 -> 0 | D70: ='PRIORIDAD DE INTERVENCIÓN'!B78 -> PREVENCIÓN DE CAIDA DE PACIENTES Y CONTENCION MECÁNICA | E70: ='PRIORIDAD DE INTERVENCIÓN'!E78:F78 -> Información a los pacientes sobre los efectos secundarios de la medicación que pueden afectar la orientación y el sensorio. | F70: Se recomienda que a todo paciente que ingrese al servicio de emergencia le brinden informacion sobre los efectos secundarios de la medicacion al administrarle o darle un tratamiento | I70: DR. Edinson Valderrama Mamani. | L70: 2023-05-05
C71: ='PRIORIDAD DE INTERVENCIÓN'!J79 -> 0 | D71: ='PRIORIDAD DE INTERVENCIÓN'!B79 -> PREVENCIÓN DE CAIDA DE PACIENTES Y CONTENCION MECÁNICA | E71: ='PRIORIDAD DE INTERVENCIÓN'!E79:F79 -> En casos de sedación y deterioro cognitivo severo se utilizarán barras de protección lateral o contención abdominal cuando el paciente se encuentre encamado. | F71: Se recomienda siempre brindar proteccion al paciente ante la administracion de sedantes para evitar caidas | I71: DR. Edinson Valderrama Mamani. | L71: 2023-05-05
C72: ='PRIORIDAD DE INTERVENCIÓN'!J80 -> 0 | D72: ='PRIORIDAD DE INTERVENCIÓN'!B80 -> PREVENCIÓN DE CAIDA DE PACIENTES Y CONTENCION MECÁNICA | E72: ='PRIORIDAD DE INTERVENCIÓN'!E80:F80 -> Comunicar al paciente temas relacionados al uso de los baños, uso de las duchas, uso de los lavaderos, cambios posturales periodicos, etc. | F72: Se debe recomendar a los pacientes sobre el uso de baños o duchas para evitar daños al paciente | I72: DR. Edinson Valderrama Mamani. | L72: 2023-05-05
C73: ='PRIORIDAD DE INTERVENCIÓN'!J81 -> 0 | D73: ='PRIORIDAD DE INTERVENCIÓN'!B81 -> PREVENCIÓN DE CAIDA DE PACIENTES Y CONTENCION MECÁNICA | E73: ='PRIORIDAD DE INTERVENCIÓN'!E81:F81 -> Protocolo que establezca población objetivo, indicaciones, medidas preventivas, profesionales responsables de la indicación y supervisión de los diversos mecanismos de sujeción mecanica. | F73: Se sugiere que implementen un protocolo para evitar accidentes o medidads preventivas dentro del servicio | I73: DR. Edinson Valderrama Mamani. | L73: 2023-05-05
C74: ='PRIORIDAD DE INTERVENCIÓN'!J82 -> 0 | D74: ='PRIORIDAD DE INTERVENCIÓN'!B82 -> PREVENCIÓN DE CAIDA DE PACIENTES Y CONTENCION MECÁNICA | E74: ='PRIORIDAD DE INTERVENCIÓN'!E82:F82 -> Sistemas de registro específicos de todo paciente con sujeción mecánica, el que se debe de reevaluar periódicamente la situación y el tiempo de sujeción. | F74: Se recomienda implementar registros para todo paciente con sujecion mecanica | I74: DR. Edinson Valderrama Mamani. | L74: 2023-05-05
C75: ='PRIORIDAD DE INTERVENCIÓN'!J83 -> 0 | D75: ='PRIORIDAD DE INTERVENCIÓN'!B83 -> PREVENCIÓN DE CAIDA DE PACIENTES Y CONTENCION MECÁNICA | E75: ='PRIORIDAD DE INTERVENCIÓN'!E83:F83 -> Asegurarse que las técnicas de inmovilización puedan ser retiradas fácilmente. | F75: Se recomienda siempre retirar las tecnicas de inmovilizacion con mucho cuidado | I75: DR. Edinson Valderrama Mamani. | L75: 2023-05-05
C76: ='PRIORIDAD DE INTERVENCIÓN'!J84 -> 0 | D76: ='PRIORIDAD DE INTERVENCIÓN'!B84 -> PREVENCIÓN DE CAIDA DE PACIENTES Y CONTENCION MECÁNICA | E76: ='PRIORIDAD DE INTERVENCIÓN'!E84:F84 -> Evidencia de cambio periódico de la posición de la inmovilización y evaluación de las zonas cutáneas sometidas a presión. | F76: Se recomienda cada 2 horas cambio de posicion para evitar las ulceras por decubito al menos en las personas adultas mayores | I76: DR. Edinson Valderrama Mamani. | L76: 2023-05-05
C77: ='PRIORIDAD DE INTERVENCIÓN'!J85 -> 0 | D77: ='PRIORIDAD DE INTERVENCIÓN'!B85 -> SEGURIDAD SEXUAL | E77: ='PRIORIDAD DE INTERVENCIÓN'!E85:F85 -> Información disponible y clara referente a las consecuencias penales de las agresiones sexuales. | F77: Se recomienda brindar orientacion para que sean atendidos en la fiscalia | I77: DR. Edinson Valderrama Mamani. | L77: 2023-05-05
C78: ='PRIORIDAD DE INTERVENCIÓN'!J86 -> 0 | D78: ='PRIORIDAD DE INTERVENCIÓN'!B86 -> SEGURIDAD SEXUAL | E78: ='PRIORIDAD DE INTERVENCIÓN'!E86:F86 -> El protocolo de recepción de un paciente establece la prohibición expresa de mantener relaciones sexuales durante la hospitalización. | F78: Se recomienda solo brindar la informacion necesaria ante estos casos | I78: DR. Edinson Valderrama Mamani. | L78: 2023-05-05
C79: ='PRIORIDAD DE INTERVENCIÓN'!J87 -> 0 | D79: ='PRIORIDAD DE INTERVENCIÓN'!B87 -> SEGURIDAD SEXUAL | E79: ='PRIORIDAD DE INTERVENCIÓN'!E87:F87 -> Control de la entrada de pacientes a cualquier habitación que no sea la propia. | F79: Se recomienda que el personal este pendiente en los servicos y el vigilante en la puerta | I79: DR. Edinson Valderrama Mamani. | L79: 2023-05-05
C80: ='PRIORIDAD DE INTERVENCIÓN'!J88 -> 0 | D80: ='PRIORIDAD DE INTERVENCIÓN'!B88 -> SEGURIDAD SEXUAL | E80: ='PRIORIDAD DE INTERVENCIÓN'!E88:F88 -> Al detectar conductas desinhibidas se comunicará al resto del equipo y se discutirán las medidas a tomar, que quedarán registradas en la hoja de recomendaciones terapéuticas. | F80: Se recomienda estar pendientes y si se diera el caso tratar de resolver con mucha delicadesa | I80: DR. Edinson Valderrama Mamani. | L80: 2023-05-05
C81: ='PRIORIDAD DE INTERVENCIÓN'!J89 -> 0 | D81: ='PRIORIDAD DE INTERVENCIÓN'!B89 -> PREVENCIÓN Y REDUCCIÓN DEL RIESGO DE LAS ÚLCERAS POR PRESIÓN | E81: ='PRIORIDAD DE INTERVENCIÓN'!E89:F89 -> Evaluación inicial del riesgo de úlceras por presión en todos los pacientes al ingreso a servicios de hospitalización | F81: Se recomienda evaluar a los pacientes, asi mismo brindar informacion para la prevencion de ulceras por presion | I81: DR. Edinson Valderrama Mamani. | L81: 2023-05-05
C82: ='PRIORIDAD DE INTERVENCIÓN'!J90 -> 0 | D82: ='PRIORIDAD DE INTERVENCIÓN'!B90 -> PREVENCIÓN Y REDUCCIÓN DEL RIESGO DE LAS ÚLCERAS POR PRESIÓN | E82: ='PRIORIDAD DE INTERVENCIÓN'!E90:F90 -> Protocolización de la guía de atención para la prevención y control de úlceras por presión. | F82: Se recomienda implementar un protocolo de atencion para la prevencion de ulceras por presion | I82: DR. Edinson Valderrama Mamani. | L82: 2023-05-05
C83: ='PRIORIDAD DE INTERVENCIÓN'!J91 -> 0 | D83: ='PRIORIDAD DE INTERVENCIÓN'!B91 -> PREVENCIÓN Y REDUCCIÓN DEL RIESGO DE LAS ÚLCERAS POR PRESIÓN | E83: ='PRIORIDAD DE INTERVENCIÓN'!E91:F91 -> Planificación, ejecución y evaluación del programa educativo dirigido a paciente, su cuidador y la familia. | F83: Se recomienda implementar un plan educativo para brindar informacion a sus familiares y cuidadores para que prevengan un ulcera por presion en sus pacientes | I83: DR. Edinson Valderrama Mamani. | L83: 2023-05-05
C84: ='PRIORIDAD DE INTERVENCIÓN'!J92 -> 0 | D84: ='PRIORIDAD DE INTERVENCIÓN'!B92 -> PREVENCIÓN Y REDUCCIÓN DEL RIESGO DE LAS ÚLCERAS POR PRESIÓN | E84: ='PRIORIDAD DE INTERVENCIÓN'!E92:F92 -> Notificación de úlceras por presión (incidencia y prevalencia) en un registro diario instaurado en los servicios de hospitalización. | F84: Se recomienda implementar un cuaderno para notificar o un registro para los pacientes para saber la incidencia y prevalencia de las ulceras por presion | I84: DR. Edinson Valderrama Mamani. | L84: 2023-05-05
C85: ='PRIORIDAD DE INTERVENCIÓN'!J93 -> 0 | D85: ='PRIORIDAD DE INTERVENCIÓN'!B93 -> PREVENCIÓN Y REDUCCIÓN DEL RIESGO DE LAS ÚLCERAS POR PRESIÓN | E85: ='PRIORIDAD DE INTERVENCIÓN'!E93:F93 -> Aplicación de guía de curación de úlceras por presión según estadíos. | F85: Se recomienda implementar unguia de curacion de ulceras para que el personal tenga conovcimiento sobre como realizar las curaciones | I85: DR. Edinson Valderrama Mamani. | L85: 2023-05-05
C86: ='PRIORIDAD DE INTERVENCIÓN'!J94 -> 0 | D86: ='PRIORIDAD DE INTERVENCIÓN'!B94 -> PREVENCIÓN DEL SUICIDO Y LESIONES | E86: ='PRIORIDAD DE INTERVENCIÓN'!E94:F94 -> Ubicar al paciente en el Servicio / Unidad más adecuada a sus necesidades y en función del riesgo detectado. | F86: Se recomienda al personal estar pendientes de los pacientes deprimidos o ansiosos para evitar suicidios o lesiones | I86: DR. Edinson Valderrama Mamani. | L86: 2023-05-05
C87: ='PRIORIDAD DE INTERVENCIÓN'!J95 -> 0 | D87: ='PRIORIDAD DE INTERVENCIÓN'!B95 -> PREVENCIÓN DEL SUICIDO Y LESIONES | E87: ='PRIORIDAD DE INTERVENCIÓN'!E95:F95 -> El protocolo de prevención de conductas suicidas debe incluir correcta ubicación del paciente, la necesidad o no de sujeción mecánica, la supervisión así como la constancia en el registro de cualquier incidencia, el control de salidas y de visitas. | F87: Se recomienda implementar un protocolo de atencion par evitar cualquier situacion que puedan afectar a los pacientes | I87: DR. Edinson Valderrama Mamani. | L87: 2023-05-05
C88: ='PRIORIDAD DE INTERVENCIÓN'!J96 -> 0 | D88: ='PRIORIDAD DE INTERVENCIÓN'!B96 -> COMUNICACIÓN EFECTIVA | E88: ='PRIORIDAD DE INTERVENCIÓN'!E96:F96 -> La UPSS proporciona información sobre sus servicios, horarios de atención a pacientes y/o familiares y el proceso para obtener atención. | F88: Se recomienda al servicio que deben poner letreros de horarios de atencion y brindar informacion sobre toda la atencion que se brinda | I88: DR. Edinson Valderrama Mamani. | L88: 2023-05-05
C89: ='PRIORIDAD DE INTERVENCIÓN'!J97 -> 0 | D89: ='PRIORIDAD DE INTERVENCIÓN'!B97 -> HIGIENE DE MANOS | E89: ='PRIORIDAD DE INTERVENCIÓN'!E97:F97 -> Disponibilidad de dispensadores con preparados de base alcohólica para manos. | F89: Se recomienda implementar mas dispensadores con base alcoholica para las areas del servicio de emergencia | I89: DR. Edinson Valderrama Mamani. | L89: 2023-05-05
C90: ='PRIORIDAD DE INTERVENCIÓN'!J98 -> 0 | D90: ='PRIORIDAD DE INTERVENCIÓN'!B98 -> HIGIENE DE MANOS | E90: ='PRIORIDAD DE INTERVENCIÓN'!E98:F98 -> Disponibilidad de lavamanos con suministro de agua y jabón. | F90: Se recomienda implentar lavamanos para que todo el personal de salud y pacientes puedan hacer su higiene de manos | I90: DR. Edinson Valderrama Mamani. | L90: 2023-05-05
C91: ='PRIORIDAD DE INTERVENCIÓN'!J99 -> 0 | D91: ='PRIORIDAD DE INTERVENCIÓN'!B99 -> HIGIENE DE MANOS | E91: ='PRIORIDAD DE INTERVENCIÓN'!E99:F99 -> Disponibilidad de papel toalla en todos los lavamanos. | F91: Se recomienda hacer su requermiento de papel toalla asi mismo poner en todas las areas del servicio que este al alcance de todos | I91: DR. Edinson Valderrama Mamani. | L91: 2023-05-05
C92: ='PRIORIDAD DE INTERVENCIÓN'!J100 -> 0 | D92: ='PRIORIDAD DE INTERVENCIÓN'!B100 -> HIGIENE DE MANOS | E92: ='PRIORIDAD DE INTERVENCIÓN'!E100:F100 -> Cumplimiento del ratio lavamanos/ paciente-cama de al menos 1:10 | F92: Se recomienda poner en practica el cumplimiento de la higiene de manos | I92: DR. Edinson Valderrama Mamani. | L92: 2023-05-05
C93: ='PRIORIDAD DE INTERVENCIÓN'!J101 -> 0 | D93: ='PRIORIDAD DE INTERVENCIÓN'!B101 -> HIGIENE DE MANOS | E93: ='PRIORIDAD DE INTERVENCIÓN'!E101:F101 -> Cumplimiento de los 08 pasos de la desinfección de manos (pasos y tiempo). | F93: Se recomienda poner en practica los 8 pasos de la desinfeccion con base alcoholica | I93: DR. Edinson Valderrama Mamani. | L93: 2023-05-05
C94: ='PRIORIDAD DE INTERVENCIÓN'!J102 -> 0 | D94: ='PRIORIDAD DE INTERVENCIÓN'!B102 -> HIGIENE DE MANOS | E94: ='PRIORIDAD DE INTERVENCIÓN'!E102:F102 -> Cumplimiento de los 11 pasos del lavado de manos (pasos y tiempo). | F94: se recomienda cumplir con los 11 pasos de lavado de manos para todos los procedimientos | I94: DR. Edinson Valderrama Mamani. | L94: 2023-05-05
C95: ='PRIORIDAD DE INTERVENCIÓN'!J103 -> 0 | D95: ='PRIORIDAD DE INTERVENCIÓN'!B103 -> HIGIENE DE MANOS | E95: ='PRIORIDAD DE INTERVENCIÓN'!E103:F103 -> Porcentaje de cumplimiento > 80%, del requisito de realizar la higiene de las manos durante su actividad asistencial de acuerdo con los cinco momentos de la higiene de manos. | F95: Se recomienda socilizar los pasos del lavado de manos y ponerlos en practica en todo momento | I95: DR. Edinson Valderrama Mamani. | L95: 2023-05-05
C96: ='PRIORIDAD DE INTERVENCIÓN'!J104 -> 0 | D96: ='PRIORIDAD DE INTERVENCIÓN'!B104 -> HIGIENE DE MANOS | E96: ='PRIORIDAD DE INTERVENCIÓN'!E104:F104 -> Mensajes y dibujos que promueven la adherencia a la higiene de manos colocados en sitios estratégicos. | F96: S e recomienda imcrementar mas dibujos la promover la higine de manos | I96: DR. Edinson Valderrama Mamani. | L96: 2023-05-05
C97: ='PRIORIDAD DE INTERVENCIÓN'!J105 -> 0 | D97: ='PRIORIDAD DE INTERVENCIÓN'!B105 -> BIOSEGURIDAD | E97: ='PRIORIDAD DE INTERVENCIÓN'!E105:F105 -> Disposición de residuos sólidos de acuerdo a las normas. | F97: Se recomienda siempre maneja los residuos solidos según normas tecnicas | I97: DR. Edinson Valderrama Mamani. | L97: 2023-05-05
C98: ='PRIORIDAD DE INTERVENCIÓN'!J106 -> 0 | D98: ='PRIORIDAD DE INTERVENCIÓN'!B106 -> BIOSEGURIDAD | E98: ='PRIORIDAD DE INTERVENCIÓN'!E106:F106 -> Eliminación de material punzo cortante y agujas de acuerdo a las normas. | F98: Se recomienda eliminar el material punzo cortante y agujas de acuerdo a las normas | I98: DR. Edinson Valderrama Mamani. | L98: 2023-05-05
C99: ='PRIORIDAD DE INTERVENCIÓN'!J107 -> 0 | D99: ='PRIORIDAD DE INTERVENCIÓN'!B107 -> BIOSEGURIDAD | E99: ='PRIORIDAD DE INTERVENCIÓN'!E107:F107 -> Cumplimiento de las medidas de aislamiento. | F99: S e recomienda implementar las medidas de aislamiento | I99: DR. Edinson Valderrama Mamani. | L99: 2023-05-05
C100: ='PRIORIDAD DE INTERVENCIÓN'!J108 -> 0 | D100: ='PRIORIDAD DE INTERVENCIÓN'!B108 -> BIOSEGURIDAD | E100: ='PRIORIDAD DE INTERVENCIÓN'!E108:F108 -> El servicio ha implementado el uso de 'Care Bundle" o Paquete de Medidas para la prevención de las IAAS basadas en evidencia médica. | F100: S e recomienda implementar la medidas de prevencion de la IAAS | I100: DR. Edinson Valderrama Mamani. | L100: 2023-05-05
C101: ='PRIORIDAD DE INTERVENCIÓN'!J109 -> 0 | D101: ='PRIORIDAD DE INTERVENCIÓN'!B109 -> BIOSEGURIDAD | E101: ='PRIORIDAD DE INTERVENCIÓN'!E109:F109 -> Evidencia de desarrollo de actividades de vigilancia epidemiológica activa, selectiva y localizada de IAAS en la UPSS. | F101: Se recomienda implementar un cuaderno para anotar las actividades de vigilancia epidemiologica | I101: DR. Edinson Valderrama Mamani. | L101: 2023-05-05
C102: ='PRIORIDAD DE INTERVENCIÓN'!J110 -> 0 | D102: ='PRIORIDAD DE INTERVENCIÓN'!B110 -> BIOSEGURIDAD | E102: ='PRIORIDAD DE INTERVENCIÓN'!E110:F110 -> Se observa si se encuentran señalizados las zonas rígidas y semirígidas de la Unidad Productora de Servicios de Salud. | F102: Se recomienda implementar señalizaciones de atencion del servicio | I102: DR. Edinson Valderrama Mamani. | L102: 2023-05-05
C103: ='PRIORIDAD DE INTERVENCIÓN'!J111 -> 0 | D103: ='PRIORIDAD DE INTERVENCIÓN'!B111 -> BIOSEGURIDAD | E103: ='PRIORIDAD DE INTERVENCIÓN'!E111:F111 -> Se observa si se respetan las zonas rígidas y semirígidas de la Unidad Productora de Servicios de Salud. | F103: Se sugiere verificar si se respetan las zonas rigidas o semirigidas del servicio | I103: DR. Edinson Valderrama Mamani. | L103: 2023-05-05
C104: ='PRIORIDAD DE INTERVENCIÓN'!J112 -> 0 | D104: ='PRIORIDAD DE INTERVENCIÓN'!B112 -> FUNCIONAMIENTO Y MANEJO DE EQUIPOS | E104: ='PRIORIDAD DE INTERVENCIÓN'!E112:F112 -> Equipos biomédicos accesibles según le corresponda a la UPSS y de acuerdo al nivel de complejidad | F104: Se sugiere implementar ekl servicio con mas equipos que ayuden a mejorar la atencion de los pacientes | I104: DR. Edinson Valderrama Mamani. | L104: 2023-05-05
C105: ='PRIORIDAD DE INTERVENCIÓN'!J113 -> 0 | D105: ='PRIORIDAD DE INTERVENCIÓN'!B113 -> FUNCIONAMIENTO Y MANEJO DE EQUIPOS | E105: ='PRIORIDAD DE INTERVENCIÓN'!E113:F113 -> Equipos biomédicos operativos según le corresponda a la UPSS y de acuerdo al nivel de complejidad | F105: Se sugiere siempre contar con equipos biomedicos operativos ante vcualquier emergencia | I105: DR. Edinson Valderrama Mamani. | L105: 2023-05-05
C106: ='PRIORIDAD DE INTERVENCIÓN'!J114 -> 0 | D106: ='PRIORIDAD DE INTERVENCIÓN'!B114 -> FUNCIONAMIENTO Y MANEJO DE EQUIPOS | E106: ='PRIORIDAD DE INTERVENCIÓN'!E114:F114 -> Verificación del conocimiento del personal sobre el funcionamiento de los equipos biomédicos, según responsabilidad. | F106: Se recomienda al tener euipos biomedicos nuevos solicitar capacitacion del funcionamiento de los equipos | I106: DR. Edinson Valderrama Mamani. | L106: 2023-05-05
C107: ='PRIORIDAD DE INTERVENCIÓN'!J115 -> 0 | D107: ='PRIORIDAD DE INTERVENCIÓN'!B115 -> FUNCIONAMIENTO Y MANEJO DE EQUIPOS | E107: ='PRIORIDAD DE INTERVENCIÓN'!E115:F115 -> Verificación de que la UPSS cuenta con un Plan Anual de Mantenimiento Preventivo de todos sus equipo biomédicos (inclusive los nuevos). | F107: Se recomienda implementar un plan para el mantenimiento de todos los equipos biomedicos | I107: DR. Edinson Valderrama Mamani. | L107: 2023-05-05
C108: ='PRIORIDAD DE INTERVENCIÓN'!J116 -> 0 | D108: ='PRIORIDAD DE INTERVENCIÓN'!B116 -> FUNCIONAMIENTO Y MANEJO DE EQUIPOS | E108: ='PRIORIDAD DE INTERVENCIÓN'!E116:F116 -> Verificación de que la UPSS cumple con ejecutar su Plan Anual de Mantenimiento Preventivo de todos sus equipo biomédicos (inclusive los nuevos), mediante la visualización de las respectivas tarjetas. | F108: Se recomienda una vez aprobado el plan ponerlo en ejecucion para el mantenimiento de todos los equipos | I108: DR. Edinson Valderrama Mamani. | L108: 2023-05-05
C109: ='PRIORIDAD DE INTERVENCIÓN'!J117 -> 0 | D109: ='PRIORIDAD DE INTERVENCIÓN'!B117 ->  | E109: ='PRIORIDAD DE INTERVENCIÓN'!E117:F117 -> 
C110: ='PRIORIDAD DE INTERVENCIÓN'!J119 -> 0 | D110: ='PRIORIDAD DE INTERVENCIÓN'!B119 ->  | E110: ='PRIORIDAD DE INTERVENCIÓN'!E119:F119 -> 
C111: ='PRIORIDAD DE INTERVENCIÓN'!J120 -> 0 | D111: ='PRIORIDAD DE INTERVENCIÓN'!B120 ->  | E111: ='PRIORIDAD DE INTERVENCIÓN'!E120:F120 -> 
C112: ='PRIORIDAD DE INTERVENCIÓN'!J121 -> 0 | D112: ='PRIORIDAD DE INTERVENCIÓN'!B121 ->  | E112: ='PRIORIDAD DE INTERVENCIÓN'!E121:F121 -> 
C113: ='PRIORIDAD DE INTERVENCIÓN'!J122 -> 0 | D113: ='PRIORIDAD DE INTERVENCIÓN'!B122 ->  | E113: ='PRIORIDAD DE INTERVENCIÓN'!E122:F122 -> 
C114: ='PRIORIDAD DE INTERVENCIÓN'!J123 -> 0 | D114: ='PRIORIDAD DE INTERVENCIÓN'!B123 ->  | E114: ='PRIORIDAD DE INTERVENCIÓN'!E123:F123 -> 
C115: ='PRIORIDAD DE INTERVENCIÓN'!J124 -> 0 | D115: ='PRIORIDAD DE INTERVENCIÓN'!B124 ->  | E115: ='PRIORIDAD DE INTERVENCIÓN'!E124:F124 -> 
C116: ='PRIORIDAD DE INTERVENCIÓN'!J125 -> 0 | D116: ='PRIORIDAD DE INTERVENCIÓN'!B125 ->  | E116: ='PRIORIDAD DE INTERVENCIÓN'!E125:F125 -> 
C117: ='PRIORIDAD DE INTERVENCIÓN'!J126 -> 0 | D117: ='PRIORIDAD DE INTERVENCIÓN'!B126 ->  | E117: ='PRIORIDAD DE INTERVENCIÓN'!E126:F126 -> 
C118: ='PRIORIDAD DE INTERVENCIÓN'!J128 -> 0 | D118: ='PRIORIDAD DE INTERVENCIÓN'!B128 ->  | E118: ='PRIORIDAD DE INTERVENCIÓN'!E128:F128 -> 
C119: ='PRIORIDAD DE INTERVENCIÓN'!J129 -> 0 | D119: ='PRIORIDAD DE INTERVENCIÓN'!B129 ->  | E119: ='PRIORIDAD DE INTERVENCIÓN'!E129:F129 -> 
C120: ='PRIORIDAD DE INTERVENCIÓN'!J130 -> 0 | D120: ='PRIORIDAD DE INTERVENCIÓN'!B130 ->  | E120: ='PRIORIDAD DE INTERVENCIÓN'!E130:F130 -> 
C121: ='PRIORIDAD DE INTERVENCIÓN'!J131 -> 0 | D121: ='PRIORIDAD DE INTERVENCIÓN'!B131 ->  | E121: ='PRIORIDAD DE INTERVENCIÓN'!E131:F131 -> 
C122: ='PRIORIDAD DE INTERVENCIÓN'!J132 -> 0 | D122: ='PRIORIDAD DE INTERVENCIÓN'!B132 ->  | E122: ='PRIORIDAD DE INTERVENCIÓN'!E132:F132 -> 
C123: ='PRIORIDAD DE INTERVENCIÓN'!J133 -> 0 | D123: ='PRIORIDAD DE INTERVENCIÓN'!B133 ->  | E123: ='PRIORIDAD DE INTERVENCIÓN'!E133:F133 -> 
C124: ='PRIORIDAD DE INTERVENCIÓN'!J134 -> 0 | D124: ='PRIORIDAD DE INTERVENCIÓN'!B134 ->  | E124: ='PRIORIDAD DE INTERVENCIÓN'!E134:F134 -> 
C125: ='PRIORIDAD DE INTERVENCIÓN'!J135 -> 0 | D125: ='PRIORIDAD DE INTERVENCIÓN'!B135 ->  | E125: ='PRIORIDAD DE INTERVENCIÓN'!E135:F135 -> 
C126: ='PRIORIDAD DE INTERVENCIÓN'!J136 -> 0 | D126: ='PRIORIDAD DE INTERVENCIÓN'!B136 ->  | E126: ='PRIORIDAD DE INTERVENCIÓN'!E136:F136 -> 
C127: ='PRIORIDAD DE INTERVENCIÓN'!J137 -> 0 | D127: ='PRIORIDAD DE INTERVENCIÓN'!B137 ->  | E127: ='PRIORIDAD DE INTERVENCIÓN'!E137:F137 -> 
C128: ='PRIORIDAD DE INTERVENCIÓN'!J138 -> 0 | D128: ='PRIORIDAD DE INTERVENCIÓN'!B138 ->  | E128: ='PRIORIDAD DE INTERVENCIÓN'!E138:F138 -> 
C129: ='PRIORIDAD DE INTERVENCIÓN'!J139 -> 0 | D129: ='PRIORIDAD DE INTERVENCIÓN'!B139 ->  | E129: ='PRIORIDAD DE INTERVENCIÓN'!E139:F139 -> 
C130: ='PRIORIDAD DE INTERVENCIÓN'!J140 -> 0 | D130: ='PRIORIDAD DE INTERVENCIÓN'!B140 ->  | E130: ='PRIORIDAD DE INTERVENCIÓN'!E140:F140 -> 
C131: ='PRIORIDAD DE INTERVENCIÓN'!J141 -> 0 | D131: ='PRIORIDAD DE INTERVENCIÓN'!B141 ->  | E131: ='PRIORIDAD DE INTERVENCIÓN'!E141:F141 -> 
C132: ='PRIORIDAD DE INTERVENCIÓN'!J142 -> 0 | D132: ='PRIORIDAD DE INTERVENCIÓN'!B142 ->  | E132: ='PRIORIDAD DE INTERVENCIÓN'!E142:F142 -> 
C133: ='PRIORIDAD DE INTERVENCIÓN'!J143 -> 0 | D133: ='PRIORIDAD DE INTERVENCIÓN'!B143 ->  | E133: ='PRIORIDAD DE INTERVENCIÓN'!E143:F143 -> 
C134: ='PRIORIDAD DE INTERVENCIÓN'!J144 -> 0 | D134: ='PRIORIDAD DE INTERVENCIÓN'!B144 ->  | E134: ='PRIORIDAD DE INTERVENCIÓN'!E144:F144 -> 
C135: ='PRIORIDAD DE INTERVENCIÓN'!J145 -> 0 | D135: ='PRIORIDAD DE INTERVENCIÓN'!B145 ->  | E135: ='PRIORIDAD DE INTERVENCIÓN'!E145:F145 -> 
C136: ='PRIORIDAD DE INTERVENCIÓN'!J146 -> 0 | D136: ='PRIORIDAD DE INTERVENCIÓN'!B146 ->  | E136: ='PRIORIDAD DE INTERVENCIÓN'!E146:F146 -> 
C137: ='PRIORIDAD DE INTERVENCIÓN'!J147 -> 0 | D137: ='PRIORIDAD DE INTERVENCIÓN'!B147 ->  | E137: ='PRIORIDAD DE INTERVENCIÓN'!E147:F147 -> 
C138: ='PRIORIDAD DE INTERVENCIÓN'!J148 -> 0 | D138: ='PRIORIDAD DE INTERVENCIÓN'!B148 ->  | E138: ='PRIORIDAD DE INTERVENCIÓN'!E148:F148 -> 
C139: ='PRIORIDAD DE INTERVENCIÓN'!J149 -> 0 | D139: ='PRIORIDAD DE INTERVENCIÓN'!B149 ->  | E139: ='PRIORIDAD DE INTERVENCIÓN'!E149:F149 -> 
C140: ='PRIORIDAD DE INTERVENCIÓN'!J150 -> 0 | D140: ='PRIORIDAD DE INTERVENCIÓN'!B150 ->  | E140: ='PRIORIDAD DE INTERVENCIÓN'!E150:F150 -> 
C141: ='PRIORIDAD DE INTERVENCIÓN'!J151 -> 0 | D141: ='PRIORIDAD DE INTERVENCIÓN'!B151 ->  | E141: ='PRIORIDAD DE INTERVENCIÓN'!E151:F151 -> 
C142: ='PRIORIDAD DE INTERVENCIÓN'!J152 -> 0 | D142: ='PRIORIDAD DE INTERVENCIÓN'!B152 ->  | E142: ='PRIORIDAD DE INTERVENCIÓN'!E152:F152 -> 
C143: ='PRIORIDAD DE INTERVENCIÓN'!J153 -> 0 | D143: ='PRIORIDAD DE INTERVENCIÓN'!B153 ->  | E143: ='PRIORIDAD DE INTERVENCIÓN'!E153:F153 -> 
C144: ='PRIORIDAD DE INTERVENCIÓN'!J154 -> 0 | D144: ='PRIORIDAD DE INTERVENCIÓN'!B154 ->  | E144: ='PRIORIDAD DE INTERVENCIÓN'!E154:F154 -> 
C145: ='PRIORIDAD DE INTERVENCIÓN'!J155 -> 0 | D145: ='PRIORIDAD DE INTERVENCIÓN'!B155 ->  | E145: ='PRIORIDAD DE INTERVENCIÓN'!E155:F155 -> 
C146: ='PRIORIDAD DE INTERVENCIÓN'!J156 -> 0 | D146: ='PRIORIDAD DE INTERVENCIÓN'!B156 ->  | E146: ='PRIORIDAD DE INTERVENCIÓN'!E156:F156 -> 
C147: ='PRIORIDAD DE INTERVENCIÓN'!J157 -> 0 | D147: ='PRIORIDAD DE INTERVENCIÓN'!B157 ->  | E147: ='PRIORIDAD DE INTERVENCIÓN'!E157:F157 -> 
C148: ='PRIORIDAD DE INTERVENCIÓN'!J158 -> 0 | D148: ='PRIORIDAD DE INTERVENCIÓN'!B158 ->  | E148: ='PRIORIDAD DE INTERVENCIÓN'!E158:F158 -> 
C149: ='PRIORIDAD DE INTERVENCIÓN'!J160 -> 0 | D149: ='PRIORIDAD DE INTERVENCIÓN'!B160 ->  | E149: ='PRIORIDAD DE INTERVENCIÓN'!E160:F160 -> 
C150: ='PRIORIDAD DE INTERVENCIÓN'!J118 -> 0 | D150: ='PRIORIDAD DE INTERVENCIÓN'!B118 ->  | E150: ='PRIORIDAD DE INTERVENCIÓN'!E118:F118 -> 
C151: ='PRIORIDAD DE INTERVENCIÓN'!J159 -> 0 | D151: ='PRIORIDAD DE INTERVENCIÓN'!B159 ->  | E151: ='PRIORIDAD DE INTERVENCIÓN'!E159:F159 -> 
C152: ='PRIORIDAD DE INTERVENCIÓN'!J162 -> 0 | D152: ='PRIORIDAD DE INTERVENCIÓN'!B162 ->  | E152: ='PRIORIDAD DE INTERVENCIÓN'!E162:F162 -> 

Sheet MONITOREO
C2: UNIDAD FUNCIONAL DE GESTIÓN DE LA CALIDAD EN SALUD
C6: =+'MENU PRINCIPAL'!B2 -> APLICATIVO DE RONDAS DE SEGURIDAD DEL PACIENTE PARA LA GESTIÓN DEL RIESGO EN LA ATENCION DE SALUD
C10: FICHA DE MONITOREO
H11: IR A MENU
C14: ÓRGANO DESCONCENTRADO: | E14: ='MENU PRINCIPAL'!C20 -> INSTITUTO NACIONAL MATERNO PERINATAL | F14: TRIMESTRE: | G14: ='FICHA EVALUACIÓN'!J14 -> I TRIMESTRE | H14: AÑO: | I14: ='FICHA EVALUACIÓN'!L14 -> 2023
C15: IPRESS: | E15: =IF('FICHA EVALUACIÓN'!H15=0," ",'FICHA EVALUACIÓN'!H15) -> HOSPITAL DE ESPINAR | F15: FECHA APLICACION: | H15: =IF('FICHA EVALUACIÓN'!K15=0," ",'FICHA EVALUACIÓN'!K15) -> 2023-03-29 | I15: (DD/MM/AAAA)
C16: UPSS: | E16: ='FICHA EVALUACIÓN'!H16 -> EMERGENCIA | F16: RESP.EPIDEMIOLOGIA: | G16: =IF('FICHA EVALUACIÓN'!J16=0," ",'FICHA EVALUACIÓN'!J16) -> LIC. ISABEL ROMERO JACHA
C17: TITULAR/RESPONSABLE IPRESS: | E17: =IF('MENU PRINCIPAL'!C22=0," ",'MENU PRINCIPAL'!C22) -> Dr.EDWIN SOTO CCAYAHUALLPA | F17: RESP. DE LA UPSS: | G17: =IF('FICHA EVALUACIÓN'!J17=0," ",'FICHA EVALUACIÓN'!J17) -> DR. EDINSON VALDERRAMA MAMANI
C18: RESP. DE ADMINISTRACION: | E18: =IF('FICHA EVALUACIÓN'!H18=0," ",'FICHA EVALUACIÓN'!H18) -> LIC. JUVENAL TAIRO ZAMBRANO | F18: RESP.OFIC./UNIDAD CALIDAD: | G18: =IF('FICHA EVALUACIÓN'!J18=0," ",'FICHA EVALUACIÓN'!J18) -> LIC. JUDITH K. CAHUATA TURO
C19: RESP. DPTO/SERVICIO ENFERMERÍA: | E19: =IF('FICHA EVALUACIÓN'!H19=0," ",'FICHA EVALUACIÓN'!H19) -> LIC. MARIO CHOQUE ROMERO. | F19: OTROS RESPONSABLES: | G19: =IF('FICHA EVALUACIÓN'!J19=0," ",'FICHA EVALUACIÓN'!J19) -> LIC. IRMA LUPACA JIHUAÑA
E22: PORCENTAJE DE IMPLEMENTACIÓN | F22: =IFERROR(N156," ") -> 
C25: PRIORIDAD | D25: BUENAS PRÁCTICAS | E25: VERIFICADOR INSEGURO | F25: ACCIONES DE MEJORA / CORRECTIVAS | I25: RESPONSABLE (CARGO) | L25: PLAZO (dd/mm/aaaa) | M25: MONITOREO (dd/mm/aaaa) | N25: IMPLEMENTACIÓN
B26: 1 | C26: ='PLAN DE ACCIÓN'!C26 -> 56 | D26: ='PLAN DE ACCIÓN'!D26 -> HISTORIA CLINICA | E26: ='PLAN DE ACCIÓN'!E26 -> Registro de los antecedentes del paciente. | F26: =IF('PLAN DE ACCIÓN'!F26=0," ",'PLAN DE ACCIÓN'!F26) -> Se recomienda que todas las Historias clinicas deben ser bien llenadas con los anatecedentes | I26: =IF('PLAN DE ACCIÓN'!I26=0," ",'PLAN DE ACCIÓN'!I26) -> DR. Edinson Valderrama Mamani. | L26: =IF('PLAN DE ACCIÓN'!L26=0," ",'PLAN DE ACCIÓN'!L26) -> 2023-05-05 | N26: SELECCIONE
B27: 2 | C27: ='PLAN DE ACCIÓN'!C27 -> 28 | D27: ='PLAN DE ACCIÓN'!D27 -> HISTORIA CLINICA | E27: ='PLAN DE ACCIÓN'!E27 -> Registro completo de la filiación del paciente: Datos del EESS, Nº de HCl, Nombres y Apellidos del Paciente, Lugar y fecha de nacimiento, Edad, Sexo, Domicilio, Procedencia, Teléfono, DNI, Seguro, Estado Civi, Instrucción, Ocupación, Religión, Acompañante o Responsable de ser el caso. | F27: =IF('PLAN DE ACCIÓN'!F27=0," ",'PLAN DE ACCIÓN'!F27) -> Se recomienda que todas las Historias clinicas deben ser bien llenadas con los datos completos esto con el fin de tener mas informacion sobre el paciente | I27: =IF('PLAN DE ACCIÓN'!I27=0," ",'PLAN DE ACCIÓN'!I27) -> DR. Edinson Valderrama Mamani. | L27: =IF('PLAN DE ACCIÓN'!L27=0," ",'PLAN DE ACCIÓN'!L27) -> 2023-05-05 | N27: SELECCIONE
B28: 3 | C28: ='PLAN DE ACCIÓN'!C28 -> 84 | D28: ='PLAN DE ACCIÓN'!D28 -> HISTORIA CLINICA | E28: ='PLAN DE ACCIÓN'!E28 -> Registro e inclusión en la Historia Clínica de los resultados de examenes auxiliares y procedimientos del paciente. | F28: =IF('PLAN DE ACCIÓN'!F28=0," ",'PLAN DE ACCIÓN'!F28) -> Se recomienda que las historias clinicas deben estar completas con sus examenes auxiliares para evaluar mas pronto al paciente | I28: =IF('PLAN DE ACCIÓN'!I28=0," ",'PLAN DE ACCIÓN'!I28) -> DR. Edinson Valderrama Mamani. | L28: =IF('PLAN DE ACCIÓN'!L28=0," ",'PLAN DE ACCIÓN'!L28) -> 2023-05-05 | N28: SELECCIONE
B29: 4 | C29: ='PLAN DE ACCIÓN'!C29 -> 28 | D29: ='PLAN DE ACCIÓN'!D29 -> HISTORIA CLINICA | E29: ='PLAN DE ACCIÓN'!E29 -> Registro y gráfico actualizado de la Funciones Vitales. | F29: =IF('PLAN DE ACCIÓN'!F29=0," ",'PLAN DE ACCIÓN'!F29) -> Se recomienda que implementen la hoja grafica de funciones vitales y sean registrados para tener un control mejor del paciente | I29: =IF('PLAN DE ACCIÓN'!I29=0," ",'PLAN DE ACCIÓN'!I29) -> DR. Edinson Valderrama Mamani. | L29: =IF('PLAN DE ACCIÓN'!L29=0," ",'PLAN DE ACCIÓN'!L29) -> 2023-05-05 | N29: SELECCIONE
B30: 6 | C30: ='PLAN DE ACCIÓN'!C30 -> 56 | D30: ='PLAN DE ACCIÓN'!D30 -> HISTORIA CLINICA | E30: ='PLAN DE ACCIÓN'!E30 -> Registro de la Funciones Biológicas: apetito, sed, sueño, orina, deposiciones, estado de animo. | F30: =IF('PLAN DE ACCIÓN'!F30=0," ",'PLAN DE ACCIÓN'!F30) -> Se recomienda registrar en la hisctoria clinica todas estas funciones biologicas para de acuerso a eso realizar un adecuado balance hirdrico del paciente | I30: =IF('PLAN DE ACCIÓN'!I30=0," ",'PLAN DE ACCIÓN'!I30) -> DR. Edinson Valderrama Mamani. | L30: =IF('PLAN DE ACCIÓN'!L30=0," ",'PLAN DE ACCIÓN'!L30) -> 2023-05-05 | N30: SELECCIONE
B31: 7 | C31: ='PLAN DE ACCIÓN'!C31 -> 12 | D31: ='PLAN DE ACCIÓN'!D31 -> HISTORIA CLINICA | E31: ='PLAN DE ACCIÓN'!E31 -> Registro de la Hoja de Balance hidro - electrolítico actualizado. | F31: =IF('PLAN DE ACCIÓN'!F31=0," ",'PLAN DE ACCIÓN'!F31) -> Se recomienda implementar la hoja de balance hidrico pa ra controlar adecuadamente el ingreso y egreso de electrolitos | I31: =IF('PLAN DE ACCIÓN'!I31=0," ",'PLAN DE ACCIÓN'!I31) -> DR. Edinson Valderrama Mamani. | L31: =IF('PLAN DE ACCIÓN'!L31=0," ",'PLAN DE ACCIÓN'!L31) -> 2023-05-05 | N31: SELECCIONE
B32: 8 | C32: ='PLAN DE ACCIÓN'!C32 -> 28 | D32: ='PLAN DE ACCIÓN'!D32 -> HISTORIA CLINICA | E32: ='PLAN DE ACCIÓN'!E32 -> Registro de evolución del paciente: Fecha y hora de atención, Apreciación Subjetiva, Apreciación Objetiva, Tratamiento, Dieta, Interpretación de exámenes y comentario, terapeútica y Plan de trabajo, firma, sello y colegiatura del médico responsable. | F32: =IF('PLAN DE ACCIÓN'!F32=0," ",'PLAN DE ACCIÓN'!F32) -> Se recomienda a los Señores Medicos hacer la evolucion del paciente despues de tener los resultados de los examenes | I32: =IF('PLAN DE ACCIÓN'!I32=0," ",'PLAN DE ACCIÓN'!I32) -> DR. Edinson Valderrama Mamani. | L32: =IF('PLAN DE ACCIÓN'!L32=0," ",'PLAN DE ACCIÓN'!L32) -> 2023-05-05 | N32: SELECCIONE
B33: 9 | C33: ='PLAN DE ACCIÓN'!C33 -> 84 | D33: ='PLAN DE ACCIÓN'!D33 -> HISTORIA CLINICA | E33: ='PLAN DE ACCIÓN'!E33 -> En caso de haberse producido un evento adverso, este ha sido registrado en la HCl o en algún medio de registro evidenciable. | F33: =IF('PLAN DE ACCIÓN'!F33=0," ",'PLAN DE ACCIÓN'!F33) -> Se recomienda implementar el registro de eventos adversos en la historia clinica | I33: =IF('PLAN DE ACCIÓN'!I33=0," ",'PLAN DE ACCIÓN'!I33) -> DR. Edinson Valderrama Mamani. | L33: =IF('PLAN DE ACCIÓN'!L33=0," ",'PLAN DE ACCIÓN'!L33) -> 2023-05-05 | N33: SELECCIONE
B34: 10 | C34: ='PLAN DE ACCIÓN'!C34 -> 84 | D34: ='PLAN DE ACCIÓN'!D34 -> SEGURIDAD EN LA UPSS | E34: ='PLAN DE ACCIÓN'!E34 -> Análisis y plan de intervención sobre la información de los incidentes y eventos adversos. | F34: =IF('PLAN DE ACCIÓN'!F34=0," ",'PLAN DE ACCIÓN'!F34) -> Se recomienda implementar el plan y anlisis de eventos adversos | I34: =IF('PLAN DE ACCIÓN'!I34=0," ",'PLAN DE ACCIÓN'!I34) -> DR. Edinson Valderrama Mamani. | L34: =IF('PLAN DE ACCIÓN'!L34=0," ",'PLAN DE ACCIÓN'!L34) -> 2023-05-05 | N34: SELECCIONE
B35: 11 | C35: ='PLAN DE ACCIÓN'!C35 -> 84 | D35: ='PLAN DE ACCIÓN'!D35 -> HISTORIA CLINICA | E35: ='PLAN DE ACCIÓN'!E35 -> La letra de la Historia Clínica es legible | F35: =IF('PLAN DE ACCIÓN'!F35=0," ",'PLAN DE ACCIÓN'!F35) -> Se recomienda que la letra de la historia clinica debe ser legible ya que aveces solicitan informacion los pacientes y no se entiende lo que esta escrito en la historia | I35: =IF('PLAN DE ACCIÓN'!I35=0," ",'PLAN DE ACCIÓN'!I35) -> DR. Edinson Valderrama Mamani. | L35: =IF('PLAN DE ACCIÓN'!L35=0," ",'PLAN DE ACCIÓN'!L35) -> 2023-05-05 | N35: SELECCIONE
B36: 12 | C36: ='PLAN DE ACCIÓN'!C36 -> 84 | D36: ='PLAN DE ACCIÓN'!D36 -> SEGURIDAD EN LA UPSS | E36: ='PLAN DE ACCIÓN'!E36 -> La solicitud de medicamentos e insumos se gestionan oportunamente durante el turno. | F36: =IF('PLAN DE ACCIÓN'!F36=0," ",'PLAN DE ACCIÓN'!F36) -> Se recomienda que deben implementar un kit de medicamentos para las emergencias para no tener problemas con farmacia al momento de cambio de turno | I36: =IF('PLAN DE ACCIÓN'!I36=0," ",'PLAN DE ACCIÓN'!I36) -> DR. Edinson Valderrama Mamani. | L36: =IF('PLAN DE ACCIÓN'!L36=0," ",'PLAN DE ACCIÓN'!L36) -> 2023-05-05 | N36: SELECCIONE
B37: 13 | C37: ='PLAN DE ACCIÓN'!C37 -> 84 | D37: ='PLAN DE ACCIÓN'!D37 -> SEGURIDAD EN LA UPSS | E37: ='PLAN DE ACCIÓN'!E37 -> Registro físico y/o virtual de los incidentes y eventos adversos en la UPSS. | F37: =IF('PLAN DE ACCIÓN'!F37=0," ",'PLAN DE ACCIÓN'!F37) -> Se recomienda implementar un registro fisico o virtual de los incidentes o eventos adversos | I37: =IF('PLAN DE ACCIÓN'!I37=0," ",'PLAN DE ACCIÓN'!I37) -> DR. Edinson Valderrama Mamani. | L37: =IF('PLAN DE ACCIÓN'!L37=0," ",'PLAN DE ACCIÓN'!L37) -> 2023-05-05 | N37: SELECCIONE
B38: 14 | C38: ='PLAN DE ACCIÓN'!C38 -> 84 | D38: ='PLAN DE ACCIÓN'!D38 -> HISTORIA CLINICA | E38: ='PLAN DE ACCIÓN'!E38 -> Registro completo del Consentimiento Informado de acuerdo a la normatividad vigente. | F38: =IF('PLAN DE ACCIÓN'!F38=0," ",'PLAN DE ACCIÓN'!F38) -> Se recomienda implementar la hoja de consentimiento informado para que el paciente tenga onocimiento de todo la atencion que se le ralizara | I38: =IF('PLAN DE ACCIÓN'!I38=0," ",'PLAN DE ACCIÓN'!I38) -> DR. Edinson Valderrama Mamani. | L38: =IF('PLAN DE ACCIÓN'!L38=0," ",'PLAN DE ACCIÓN'!L38) -> 2023-05-05 | N38: SELECCIONE
B39: 15 | C39: ='PLAN DE ACCIÓN'!C39 -> 84 | D39: ='PLAN DE ACCIÓN'!D39 -> SEGURIDAD EN LA UPSS | E39: ='PLAN DE ACCIÓN'!E39 -> Personal conoce del sistema de registro y notificación de incidentes y eventos adversos. | F39: =IF('PLAN DE ACCIÓN'!F39=0," ",'PLAN DE ACCIÓN'!F39) -> Se recomienda socializar e implementar registro y notificacion de eventos adversos | I39: =IF('PLAN DE ACCIÓN'!I39=0," ",'PLAN DE ACCIÓN'!I39) -> DR. Edinson Valderrama Mamani. | L39: =IF('PLAN DE ACCIÓN'!L39=0," ",'PLAN DE ACCIÓN'!L39) -> 2023-05-05 | N39: SELECCIONE
B40: 16 | C40: ='PLAN DE ACCIÓN'!C40 -> 84 | D40: ='PLAN DE ACCIÓN'!D40 -> HISTORIA CLINICA | E40: ='PLAN DE ACCIÓN'!E40 -> Registro de los informes de los procedimientos realizados al paciente. | F40: =IF('PLAN DE ACCIÓN'!F40=0," ",'PLAN DE ACCIÓN'!F40) -> Se recomienda implementar un cuaderno de procedimientos y con eso dar una buena informacion al paciente de todos los procedimientos realizados | I40: =IF('PLAN DE ACCIÓN'!I40=0," ",'PLAN DE ACCIÓN'!I40) -> DR. Edinson Valderrama Mamani. | L40: =IF('PLAN DE ACCIÓN'!L40=0," ",'PLAN DE ACCIÓN'!L40) -> 2023-05-05 | N40: SELECCIONE
B41: 17 | C41: ='PLAN DE ACCIÓN'!C41 -> 84 | D41: ='PLAN DE ACCIÓN'!D41 -> SEGURIDAD EN LA UPSS | E41: ='PLAN DE ACCIÓN'!E41 -> Registro físico o digital de notificación de accidentes de trabajo del personal asistencial. | F41: =IF('PLAN DE ACCIÓN'!F41=0," ",'PLAN DE ACCIÓN'!F41) -> Se recomienda implementar un registro fisico o digital de notificacion de accidentes de trabajo | I41: =IF('PLAN DE ACCIÓN'!I41=0," ",'PLAN DE ACCIÓN'!I41) -> DR. Edinson Valderrama Mamani. | L41: =IF('PLAN DE ACCIÓN'!L41=0," ",'PLAN DE ACCIÓN'!L41) -> 2023-05-05 | N41: SELECCIONE
